Workbook

Sheet AEQESG Taufiq (hidden)
C2: ASEAN 5 ESG OPPORTUNITY FUND
C4: FUND FACTSHEET | R4: =ValueDate -> 2019-01-31
C5: For Sophisticated Investors use only. Not for distribution to retail investors.
C6: Fund Category | I6: FUND OBJECTIVE
C7: Growth and Value | I7: The ASEAN 5 ESG Opportunity Fund is a growth and value fund which invests using an ESG (Environmental, Social and Governance) filter which aims to provide returns* to investors by investing in the constituent securities of the FTSE4Good ASEAN 5 Index. *Note: Returns may be distributed in the form of cash and/or units.
C9: Target Investor
C10: Sophisticated Investors
C12: Base Currency | I12: FUND STRATEGY
C13: US Dollar (US$) | I13: The Fund is actively managed and the Fund’s strategy is to hold Constituent Securities and other Authorised Investments to achieve medium to long-term growth. The selection of securities is based on a value and growth investing methodology where financial fundamentals, industrial prospects and management quality are validated by top-down views. The Manager will invest a minimum of 70% to a maximum of 95% of the NAV of the Fund in the Constituent Securities to achieve its investment objective. The remaining balance of the NAV of the Fund will be invested in Liquid Assets.
C15: First Trading Date
C16: 2017-01-31
C22: NAV per Unit | I22: FUND CUMULATIVE PERFORMANCE (since inception)
C23: ="RM " & SUMIFS(A5ESG_Internal!AD:AD,A5ESG_Internal!AC:AC,ValueDate) -> RM 0.9551
C26: Minimum Initial Investment Sum
C27: US$ 80,000 | RM 300,000
C30: Minimum Additional Investment
C31: US$ 40,000 | RM 150,000
C33: Distribution Policy
C34: Incidental
I36: Source: VCAP Asset Managers
I38: PERFORMANCE | L38: 1 MONTH | N38: 3 MONTH | P38: 6 MONTH | R38: 1 YEAR | T38: 3 YEAR | V38: YTD
I39: TWRR - AEQESG | L39: 0.0083 | N39: -0.103 | P39: -0.0519 | R39: -0.1633 | T39: N.A. | V39: -0.1633
I40: TWRR - Benchmark | L40: -0.0095 | N40: -0.0514 | P40: -0.0008 | R40: -0.102 | T40: N.A. | V40: -0.102
I41: Excess Returns | L41: 0.0178 | N41: -0.0517 | P41: -0.0511 | R41: -0.0613 | T41: N.A. | V41: -0.0613
I42: ROI | L42: -0.0006 | R42: -0.0032 | V42: -0.0032
I43: Standard Deviation | L43: 0.1888 | R43: 0.1629 | V43: 0.1629
I44: Information Ratio | L44: 0.18 | R44: 0.55 | V44: 0.36
I45: Source: VCAP Asset Managers
I47: TOP HOLDINGS
C48: Fees & Charges | I48: Company Name | M48: Country | Q48: Weight (%)
C49: Annual Management Fee | G49: 0.0065 | I49: =IF(A5ESG_Internal!AG6="","",A5ESG_Internal!AG6) -> BTSGROUP-NVDR | M49: =IF(A5ESG_Internal!AI6="","",A5ESG_Internal!AI6) -> Thailand | Q49: =IF(A5ESG_Internal!AK6="","",A5ESG_Internal!AK6) -> 0.1209081537
C50: Annual Trustee Fee | G50: 0.0005 | I50: =IF(A5ESG_Internal!AG7="","",A5ESG_Internal!AG7) -> TENAGA | M50: =IF(A5ESG_Internal!AI7="","",A5ESG_Internal!AI7) -> Malaysia | Q50: =IF(A5ESG_Internal!AK7="","",A5ESG_Internal!AK7) -> 0.0880326045
C51: Performance Fees | G51: 0.1 | I51: =IF(A5ESG_Internal!AG8="","",A5ESG_Internal!AG8) -> CENTPATTANA-NVDR | M51: =IF(A5ESG_Internal!AI8="","",A5ESG_Internal!AI8) -> Thailand | Q51: =IF(A5ESG_Internal!AK8="","",A5ESG_Internal!AK8) -> 0.08425418298
C52: (High Water Mark methodology) | I52: =IF(A5ESG_Internal!AG9="","",A5ESG_Internal!AG9) -> DBS GROUP HLDGS | M52: =IF(A5ESG_Internal!AI9="","",A5ESG_Internal!AI9) -> Singapore | Q52: =IF(A5ESG_Internal!AK9="","",A5ESG_Internal!AK9) -> 0.08285436779
I53: =IF(A5ESG_Internal!AG10="","",A5ESG_Internal!AG10) -> AIRPORTHAINVDR | M53: =IF(A5ESG_Internal!AI10="","",A5ESG_Internal!AI10) -> Thailand | Q53: =IF(A5ESG_Internal!AK10="","",A5ESG_Internal!AK10) -> 0.08061554276
C54: For more information, kindly contact us at : | I54: =IF(A5ESG_Internal!AG11="","",A5ESG_Internal!AG11) -> KASIKORNNVDR | M54: =IF(A5ESG_Internal!AI11="","",A5ESG_Internal!AI11) -> Thailand | Q54: =IF(A5ESG_Internal!AK11="","",A5ESG_Internal!AK11) -> 0.07706080313
I55: =IF(A5ESG_Internal!AG12="","",A5ESG_Internal!AG12) -> PTTEPNVDR | M55: =IF(A5ESG_Internal!AI12="","",A5ESG_Internal!AI12) -> Thailand | Q55: =IF(A5ESG_Internal!AK12="","",A5ESG_Internal!AK12) -> 0.07338177251
C56: Level 8, Block B, HP Towers | I56: =IF(A5ESG_Internal!AG13="","",A5ESG_Internal!AG13) -> SIME | M56: =IF(A5ESG_Internal!AI13="","",A5ESG_Internal!AI13) -> Malaysia | Q56: =IF(A5ESG_Internal!AK13="","",A5ESG_Internal!AK13) -> 0.06369284081
C57: No. 12, Jalan Gelenggang | I57: =IF(A5ESG_Internal!AG14="","",A5ESG_Internal!AG14) -> SIAMCOMMBANKNVDR | M57: =IF(A5ESG_Internal!AI14="","",A5ESG_Internal!AI14) -> Thailand | Q57: =IF(A5ESG_Internal!AK14="","",A5ESG_Internal!AK14) -> 0.06116390645
C58: Bukit Damansara, 50490 KL | I58: =IF(A5ESG_Internal!AG15="","",A5ESG_Internal!AG15) -> PTTNVDR | M58: =IF(A5ESG_Internal!AI15="","",A5ESG_Internal!AI15) -> Thailand | Q58: =IF(A5ESG_Internal!AK15="","",A5ESG_Internal!AK15) -> 0.05907580526
C59: Tel: +603 2788 5100 | I59: Total | Q59: =SUM(Q49:R58) -> 0.7910399799
C60: Fax: +603 2788 5169 | I60: ="(Based on the Market Value as at "& TEXT(ValueDate,"dd mmm yyyy") &")" -> (Based on the Market Value as at 31 Jan 2019)
C61: E-mail: invest@vcam.com.my | I61: Source: VCAP Asset Managers
C62: ASEAN 5 ESG OPPORTUNITY FUND | S62: =ValueDate -> 2019-01-31
C63: For Sophisticated Investors use only. Not for distribution to retail investors.
C64: SECTOR ALLOCATION | O64: COUNTRY ALLOCATION
C79: ="(Based on the Market Value as at "& TEXT(ValueDate,"dd mmm yyyy") &")" -> (Based on the Market Value as at 31 Jan 2019) | O79: ="(Based on the Market Value as at "& TEXT(ValueDate,"dd mmm yyyy") &")" -> (Based on the Market Value as at 31 Jan 2019)
C80: Source: VCAP Asset Managers | O80: Source: VCAP Asset Managers
C82: MANAGER'S COMMENTARY
C93: ABOUT THE REFERENCE BENCHMARK
C94: The FTSE4Good ASEAN 5 Index comprises the eligible companies from : Bursa Malaysia Securities Berhad, Singapore Exchange Securities Trading Limited, Indonesia Stock Exchange, The Philippine Stock Exchange, Inc. and The Stock Exchange of Thailand. The securities included in the index have undergone assessment for FTSE4Good inclusion using FTSE’s ESG ratings methodology. The assessment model contains over 300 indicators, 14 themes and 3 pillars which measures risk and performance across a variety of ESG aspects, to generate an overall rating. Aside from meeting a specified rating threshold, securities which are included in the index must also meet certain requirements as set out in the Index Inclusion Rules for FTSE4Good Index Series read in conjunction with the FTSE4Good Index Series Ground Rules which can be accessed at: http://www.ftse.com/products/indices/FTSE4Good.
C104: DISCLAIMER
C105: The Fund is intended to be offered to Sophisticated Investors only. We recommend that you read and understand the content of the Information Memorandum before investing. The Information Memorandum has been lodged with the Securities Commission Malaysia, who takes no responsibility for its contents, on 16 December 2016 (which may be replaced or supplemented from time to time). You may obtain the printed copy of the the Information Memorandum from VCAP Asset Managers Sdn. Bhd. The online version of the Fund Factsheet can also be obtained from VCAM's website at www.vcam.com.my. Please consider the fees, charges and risks involved before investing. The NAV per unit may rise or fall. Past performance of a fund is not indicative of future performance. You are advised to seek independent advice or consult relevant laws, regulations and rules prior to investing. Any issue of units will only be made on receipt of an application form. The ASEAN 5 ESG Opportunity Fund is not in any way sponsored, endorsed, sold or promoted by FTSE International Limited ("FTSE") or by the London Stock Exchange Group companies ("LSEG") and neither FTSE nor LSEG makes any warranty or representation whatsoever, expressly or impliedly, either as to the results to be obtained from the use of the FTSE4Good ASEAN 5 Index ("the Index") and/or the figure at which the said Index stands at any particular time on any particular day or otherwise. The Index is compiled and calculated by FTSE in conjunction with Indonesia Stock Exchange, Bursa Malaysia Securities Berhad, The Philippine Stock Exchange, Inc., Singapore Exchange Securities Trading Limited and The Stock Exchange of Thailand (The "Exchanges"). However, neither FTSE nor LSEG nor the Exchanges shall be liable (whether in negligence or otherwise) to any person for any error in the Index and neither FTSE nor the LSEG nor the Exchanges shall be under any obligation to advise any person of any error therein. “FTSE®", “FTSE4GoodTM”, "FT-SETM", and "FootsieTM", are trademarks of LSEG and are used by FTSE International Limited under licence.

Sheet MEQESG Taufiq (hidden)
C2: MALAYSIAN ESG OPPORTUNITY FUND
C4: FUND FACTSHEET | T4: =ValueDate -> 2019-01-31
C5: For Sophisticated Investors use only. Not for distribution to retail investors.
C6: Fund Category / Fund Type | L6: FUND OBJECTIVE
C7: ESG Equity / Growth | L7: The Malaysian ESG Opportunity Fund ("MEQESG") is an ESG (Environmental, Social and Governance) equity growth fund that aims to provide returns* to investors by investing in the constituent securities of the FTSE4Good Bursa Malaysia Index ("F4GBM"). *Note: Returns may be distributed in the form of cash and/or units.
C9: Target Investor
C10: Sophisticated Investors
C12: Currency | L12: FUND STRATEGY
C13: Ringgit Malaysia (RM) | L13: The Fund is actively managed and the Fund’s strategy is to hold constituent securities to achieve growth over the medium to long-term. The selection of the securities is based on a value and/or growth investing methodology* where financial fundamentals, industrial prospects and management quality are validated by top-down views. The Manager could take a defensive position that may be inconsistent with the Fund’s investment strategy in attempting to respond to adverse market conditions. Under such situations, the Fund may hold up to all of the Fund’s net asset value (“NAV”) in liquid assets. *Note: The Manager seeks to invest in constituent securities which are undervalued relative to their perceived true value and/or also show growth potential based on the Manager’s judgement.
C15: First Trading Date
C16: 2015-08-20
C18: Asset Under Management
C19: =SUMIF(InHolding!$A:$A,"meqesg",InHolding!$O:$O) -> 226885612
C21: NAV per Unit
C22: =VLOOKUP(ValueDate,MEQESG_Internal!T:U,2,1) -> 0.9999
C24: Minimum Initial Investment | L24: FUND CUMULATIVE PERFORMANCE (since inception)
C25: 250000
C27: Minimum Additional Investment
C28: 100000
C30: Distribution Policy
C31: Incidental
C33: Fees & Charges
C34: Annual Management Fee | H34: 0.0045
C35: Annual Trustee Fee | H35: 0.000475
L39: Note : MEQESG - Malaysian ESG Opportunity Fund, F4GBM - FTSE4Good Bursa Malaysia Index
L40: Source: VCAP Asset Managers
C42: For information on the Fund, kindly contact us at : | L42: PERFORMANCE | O42: 1 MONTH | P42: 3 MONTH | R42: 6 MONTH | T42: 1 YEAR | V42: 3 YEAR | X42: YTD
L43: TWRR - MEQESG | O43: -0.0125 | P43: -0.1489 | R43: -0.1006 | T43: -0.2442 | V43: -0.0122 | X43: -0.2442
L44: TWRR - Benchmark | O44: 0.0001 | P44: -0.0698 | R44: -0.0033 | T44: -0.076 | V44: 0.0021 | X44: -0.076
C45: VCAP Asset Managers Sdn. Bhd. | L45: Excess Return | O45: -0.0127 | P45: -0.0799 | R45: -0.0973 | T45: -0.1682 | V45: -0.0143 | X45: -0.1682
C46: Level 8, Block B, HP Towers | L46: ROI | O46: -0.0849 | T46: -0.1099 | X46: -0.1099
C47: No. 12, Jalan Gelenggang | L47: Standard Deviation | O47: 0.1931 | T47: 0.2238 | X47: 0.2238
C48: Bukit Damansara, 50490 KL | L48: Information Ratio | O48: 0.09 | T48: -1.66 | X48: -1.66
C49: Tel: +603 2788 5100 | L49: Source: VCAP Asset Managers
C50: Fax: +603 2788 5169
C51: E-mail: invest@vcam.com.my
C52: MALAYSIAN ESG OPPORTUNITY FUND | T52: =+T4 -> 2019-01-31
C53: For Sophisticated Investors use only. Not for distribution to retail investors.
C55: TOP HOLDINGS | P55: SECTOR ALLOCATION
C56: =MEQESG_Internal!AH6 -> TENAGA | M56: =ROUND(MEQESG_Internal!AJ6,4) -> 0.1213
C57: =MEQESG_Internal!AH7 -> MYEG | M57: =ROUND(MEQESG_Internal!AJ7,4) -> 0.0928
C58: =MEQESG_Internal!AH8 -> TM | M58: =ROUND(MEQESG_Internal!AJ8,4) -> 0.0785
C59: =MEQESG_Internal!AH9 -> SIMEPROP | M59: =ROUND(MEQESG_Internal!AJ9,4) -> 0.0769
C60: =MEQESG_Internal!AH10 -> YTL | M60: =ROUND(MEQESG_Internal!AJ10,4) -> 0.0756
C61: =MEQESG_Internal!AH11 -> AIRPORT | M61: =ROUND(MEQESG_Internal!AJ11,4) -> 0.0739
C62: =MEQESG_Internal!AH12 -> MAYBANK | M62: =ROUND(MEQESG_Internal!AJ12,4) -> 0.0617
C63: =MEQESG_Internal!AH13 -> UEMS | M63: =ROUND(MEQESG_Internal!AJ13,4) -> 0.053
C64: =MEQESG_Internal!AH14 -> ASTRO | M64: =ROUND(MEQESG_Internal!AJ14,4) -> 0.0463
C65: =MEQESG_Internal!AH15 -> PBBANK | M65: =ROUND(MEQESG_Internal!AJ15,4) -> 0.0439
C66: Total | M66: =SUM(M56:N65) -> 0.7239
C67: ="(Based on the Market Value as at "&TEXT(ValueDate,"dd MMM yyyy")&")" -> (Based on the Market Value as at 31 Jan 2019) | P67: ="(Based on the Market Value as at "&TEXT(ValueDate,"dd MMM yyyy")&")" -> (Based on the Market Value as at 31 Jan 2019)
C68: Source: VCAP Asset Managers | P68: Source: VCAP Asset Managers
C70: MANAGER'S COMMENTARY
C85: ABOUT THE REFERENCE BENCHMARK
C86: The F4GBM comprises the eligible companies from the universe of the top 200 companies in the FTSE Bursa Malaysia EMAS Index. The index is designed to identify companies that demonstrate a leading approach to addressing ESG risks. The FTSE ESG ratings form the engine for the FTSE4Good indices. Companies need to achieve a FTSE ESG rating above a specified threshold for index inclusion in addition to passing certain additional screens set out in the FTSE4Good Index Ground Rules which are available at http://www.ftse.com/products/indices/FTSE4Good
C94: DISCLAIMER
C95: The Fund is intended to be offered to Sophisticated Investors only. We recommend that you read and understand the content of the Information Memorandum before investing. The Information Memorandum has been deposited with the Securities Commission, who takes no responsibility for its contents, on 21 December 2015 (which may be replaced or supplemented from time to time). You may obtain the printed copy of the the Information Memorandum from VCAP Asset Managers Sdn. Bhd ("VCAM"). The online version of the Fund Factsheet can also be obtained from VCAM's website at www.vcam.com.my. Please consider the fees, charges and risks involved before investing. The NAV per unit may rise or fall. Past performance of a fund is not indicative of future performance. You are advised to seek independent advice or consult relevant laws, regulations and rules prior to investing. Any issue of units will only be made on receipt of an application form. "FTSE®", "FT-SE®", "Footsie®" and “FTSE4GOOD®” are trade marks of the London Stock Exchange Group companies and are used by FTSE International Limited (“FTSE”) under licence. "BURSA MALAYSIA®" is a trade mark of Bursa Malaysia Berhad ("BURSA MALAYSIA'). The FTSE4Good Bursa Malaysia Index is calculated by FTSE. Neither FTSE nor BURSA MALAYSIA sponsor, endorse or promote this product and are not in any way connected to it and do not accept any liability. All intellectual property rights in the index values and constituent vests in FTSE and BURSA MALAYSIA. VCAP Asset Managers Sdn. Bhd. has obtained full licence from FTSE to use such intellectual property rights in the creation of this product.

Sheet Main (hidden)
H11: * Please select sheet(s) to print
C12: Reports Details | H12: Sheets | I12: YES/NO
H13: MEQESG_Distribution | I13: NO
C14: Company Name: | D14: VCAP ASSET MANAGERS | H14: AEQESG_Distribution | I14: NO
H15: MEQESG_Internal | I15: NO
C16: Company ID: | D16: VC | H16: A5ESG_Internal | I16: NO
C18: End of Last Month: | D18: =EOMONTH(ValueDate,-1) -> 2018-12-31
C20: Value Date | D20: 2019-01-31 | H20: MEQESG | I20: =VLOOKUP(Main!ValueDate,MEQESG_Internal!T:AD,2,FALSE) -> 0.9999
H21: F4GBM | I21: =VLOOKUP(ValueDate,MEQESG_Internal!$T:$AB,3,FALSE) -> 941.49
H22: MEQESG Return | I22: =MEQESG_Internal!K20-1 -> 0.07508206212
H23: F4GBM Return | I23: =VLOOKUP(ValueDate,MEQESG_Internal!$T:$AB,9,FALSE) -> 0.1087179246

Sheet AEQESG_Distribution - Main (hidden)
C2: ASEAN 5 ESG OPPORTUNITY FUND
C4: FUND FACTSHEET | R4: =ValueDate -> 2019-01-31
C5: For current Unit Holders only.
C6: Fund Category | I6: FUND OBJECTIVE
C7: Growth and Value | I7: The ASEAN 5 ESG Opportunity Fund is a growth and value fund which invests using an ESG (Environmental, Social and Governance) filter which aims to provide returns* to investors by investing in the constituent securities of the FTSE4Good ASEAN 5 Index. *Note: Returns may be distributed in the form of cash and/or units.
C9: Target Investor
C10: Sophisticated Investors
C12: Base Currency | I12: FUND STRATEGY
C13: US Dollar (US$) | I13: The Fund is actively managed and the Fund’s strategy is to hold Constituent Securities and other Authorised Investments to achieve medium to long-term growth. The selection of securities is based on a value and growth investing methodology where financial fundamentals, industrial prospects and management quality are validated by top-down views. The Manager will invest a minimum of 70% to a maximum of 95% of the NAV of the Fund in the Constituent Securities to achieve its investment objective. The remaining balance of the NAV of the Fund will be invested in Liquid Assets.
C15: First Trading Date
C16: 2017-01-31
C22: NAV per Unit | I22: FUND NAV (since inception)
C23: ="RM " & SUMIFS(A5ESG_Internal!AD:AD,A5ESG_Internal!AC:AC,ValueDate) -> RM 0.9551
C25: Minimum Initial Investment Sum
C26: US$ 10,000 | RM 30,000
C28: Minimum Additional Investment
C29: US$ 2,000 | RM 10,000
C31: Distribution Policy
C32: Incidental
C35: Fees & Charges
C36: Annual Management Fee | G36: 0.0065 | I36: Source: VCAP Asset Managers
C37: Annual Trustee Fee | G37: 0.0005 | I37: Disclaimer : Past performance is not an indication of future performance.
C38: Performance Fees | G38: 0.1 | I38: TOP HOLDINGS
C39: (High Water Mark methodology) | I39: Company Name | Q39: Country | T39: Weight (%)
I40: =IF(A5ESG_Internal!AH6="","",A5ESG_Internal!AH6) -> BTS Group Holdings Plc | Q40: =IF(A5ESG_Internal!AI6="","",A5ESG_Internal!AI6) -> Thailand | T40: =IF(A5ESG_Internal!AK6="","",A5ESG_Internal!AK6) -> 0.1209081537
I41: =IF(A5ESG_Internal!AH7="","",A5ESG_Internal!AH7) -> Tenaga Nasional Bhd | Q41: =IF(A5ESG_Internal!AI7="","",A5ESG_Internal!AI7) -> Malaysia | T41: =IF(A5ESG_Internal!AK7="","",A5ESG_Internal!AK7) -> 0.0880326045
I42: =IF(A5ESG_Internal!AH8="","",A5ESG_Internal!AH8) -> Central Pattana | Q42: =IF(A5ESG_Internal!AI8="","",A5ESG_Internal!AI8) -> Thailand | T42: =IF(A5ESG_Internal!AK8="","",A5ESG_Internal!AK8) -> 0.08425418298
C43: For more information, kindly contact us at : | I43: =IF(A5ESG_Internal!AH9="","",A5ESG_Internal!AH9) -> DBS Group Holdings | Q43: =IF(A5ESG_Internal!AI9="","",A5ESG_Internal!AI9) -> Singapore | T43: =IF(A5ESG_Internal!AK9="","",A5ESG_Internal!AK9) -> 0.08285436779
I44: =IF(A5ESG_Internal!AH10="","",A5ESG_Internal!AH10) -> AIRPORTS OF THAILAND | Q44: =IF(A5ESG_Internal!AI10="","",A5ESG_Internal!AI10) -> Thailand | T44: =IF(A5ESG_Internal!AK10="","",A5ESG_Internal!AK10) -> 0.08061554276
I45: =IF(A5ESG_Internal!AH11="","",A5ESG_Internal!AH11) -> Kasikornbank (NVDR) | Q45: =IF(A5ESG_Internal!AI11="","",A5ESG_Internal!AI11) -> Thailand | T45: =IF(A5ESG_Internal!AK11="","",A5ESG_Internal!AK11) -> 0.07706080313
C46: VCAP Asset Managers Sdn. Bhd. | I46: =IF(A5ESG_Internal!AH12="","",A5ESG_Internal!AH12) -> PTT Exploration & Production | Q46: =IF(A5ESG_Internal!AI12="","",A5ESG_Internal!AI12) -> Thailand | T46: =IF(A5ESG_Internal!AK12="","",A5ESG_Internal!AK12) -> 0.07338177251
C47: (1073635-A) | I47: =IF(A5ESG_Internal!AH13="","",A5ESG_Internal!AH13) -> Sime Darby Berhad | Q47: =IF(A5ESG_Internal!AI13="","",A5ESG_Internal!AI13) -> Malaysia | T47: =IF(A5ESG_Internal!AK13="","",A5ESG_Internal!AK13) -> 0.06369284081
C48: Level 8, Block B, HP Towers | I48: =IF(A5ESG_Internal!AH14="","",A5ESG_Internal!AH14) -> Siam Commercial Bank (NVDR) | Q48: =IF(A5ESG_Internal!AI14="","",A5ESG_Internal!AI14) -> Thailand | T48: =IF(A5ESG_Internal!AK14="","",A5ESG_Internal!AK14) -> 0.06116390645
C49: No. 12, Jalan Gelenggang | I49: =IF(A5ESG_Internal!AH15="","",A5ESG_Internal!AH15) -> PTT PCL | Q49: =IF(A5ESG_Internal!AI15="","",A5ESG_Internal!AI15) -> Thailand | T49: =IF(A5ESG_Internal!AK15="","",A5ESG_Internal!AK15) -> 0.05907580526
C50: Bukit Damansara, 50490 KL | I50: Total | T50: =SUM(T40:U49) -> 0.7910399799
C51: Tel: +603 2788 5100 | I51: ="(Based on the Market Value as at "& TEXT(ValueDate,"dd mmm yyyy") &")" -> (Based on the Market Value as at 31 Jan 2019)
C52: Fax: +603 2788 5169 | I52: Source: VCAP Asset Managers
C53: E-mail: invest@vcam.com.my
C54: ASEAN 5 ESG OPPORTUNITY FUND | S54: =ValueDate -> 2019-01-31
C55: For Sophisticated Investors use only. Not for distribution to retail investors.
D57: SECTOR ALLOCATION | O57: COUNTRY ALLOCATION
D72: ="(Based on the Market Value as at "& TEXT(ValueDate,"dd mmm yyyy") &")" -> (Based on the Market Value as at 31 Jan 2019) | P72: ="(Based on the Market Value as at "& TEXT(ValueDate,"dd mmm yyyy") &")" -> (Based on the Market Value as at 31 Jan 2019)
D73: Source: VCAP Asset Managers | P73: Source: VCAP Asset Managers
C74: MANAGER'S COMMENTARY
C96: ABOUT THE REFERENCE BENCHMARK
C97: The FTSE4Good ASEAN 5 Index comprises the eligible companies from : Bursa Malaysia Securities Berhad, Singapore Exchange Securities Trading Limited, Indonesia Stock Exchange, The Philippine Stock Exchange, Inc. and The Stock Exchange of Thailand. The securities included in the index have undergone assessment for FTSE4Good inclusion using FTSE’s ESG ratings methodology. The assessment model contains over 300 indicators, 14 themes and 3 pillars which measures risk and performance across a variety of ESG aspects, to generate an overall rating. Aside from meeting a specified rating threshold, securities which are included in the index must also meet certain requirements as set out in the Index Inclusion Rules for FTSE4Good Index Series read in conjunction with the FTSE4Good Index Series Ground Rules which can be accessed at: http://www.ftse.com/products/indices/FTSE4Good.
C106: DISCLAIMER
C107: The Fund is intended to be offered to Sophisticated Investors only. We recommend that you read and understand the content of the Information Memorandum before investing. The Information Memorandum has been lodged with the Securities Commission Malaysia, who takes no responsibility for its contents, on 25 July 2018 (which may be replaced or supplemented from time to time). You may obtain the printed copy of the the Information Memorandum from VCAP Asset Managers Sdn. Bhd. Please consider the fees, charges and risks involved before investing. The NAV per unit may rise or fall. Past performance of a fund is not indicative of future performance. You are advised to seek independent advice or consult relevant laws, regulations and rules prior to investing. Any issue of units will only be made on receipt of an application form. The ASEAN 5 ESG Opportunity Fund is not in any way sponsored, endorsed, sold or promoted by FTSE International Limited ("FTSE") or by the London Stock Exchange Group companies ("LSEG") and neither FTSE nor LSEG makes any warranty or representation whatsoever, expressly or impliedly, either as to the results to be obtained from the use of the FTSE4Good ASEAN 5 Index ("the Index") and/or the figure at which the said Index stands at any particular time on any particular day or otherwise. The Index is compiled and calculated by FTSE in conjunction with Indonesia Stock Exchange, Bursa Malaysia Securities Berhad, The Philippine Stock Exchange, Inc., Singapore Exchange Securities Trading Limited and The Stock Exchange of Thailand (The "Exchanges"). However, neither FTSE nor LSEG nor the Exchanges shall be liable (whether in negligence or otherwise) to any person for any error in the Index and neither FTSE nor the LSEG nor the Exchanges shall be under any obligation to advise any person of any error therein. “FTSE®", “FTSE4GoodTM”, "FT-SETM", and "FootsieTM", are trademarks of LSEG and are used by FTSE International Limited under licence.

Sheet MEQESG_Distribution - Main (hidden)
C2: MALAYSIAN ESG OPPORTUNITY FUND
C4: FUND FACTSHEET | T4: =ValueDate -> 2019-01-31
C5: For current Unit Holders only.
C6: Fund Category / Fund Type | L6: FUND OBJECTIVE
C7: ESG Equity / Growth | L7: The Malaysian ESG Opportunity Fund ("MEQESG") is an ESG (Environmental, Social and Governance) equity growth fund that aims to provide returns* to investors by investing in the constituent securities of the FTSE4Good Bursa Malaysia Index ("F4GBM"). *Note: Returns may be distributed in the form of cash and/or units.
C9: Target Investor
C10: Sophisticated Investors
C12: Currency | L12: FUND STRATEGY
C13: Ringgit Malaysia (RM) | L13: The Fund is actively managed and the Fund’s strategy is to hold constituent securities to achieve growth over the medium to long-term. The selection of the securities is based on a value and/or growth investing methodology* where financial fundamentals, industrial prospects and management quality are validated by top-down views. The Manager will invest a minimum of 70% to a maximum of 95% of the NAV of the Fund in the Constituent Securities to achieve its investment objective. The remaining balance of the NAV of the Fund will be invested in Liquid Assets. *Note: The Manager seeks to invest in constituent securities which are undervalued relative to their perceived true value and/or also show growth potential based on the Manager’s judgement.
C15: First Trading Date
C16: 2015-08-20
C18: Asset Under Management
C19: =SUMIF(InHolding!$A:$A,"meqesg",InHolding!$O:$O) -> 226885612
C21: NAV per Unit
C22: =VLOOKUP(ValueDate,MEQESG_Internal!T:U,2,1) -> 0.9999
C24: Minimum Initial Investment | L24: FUND NAV (since inception)
C25: 30000
C27: Minimum Additional Investment
C28: 10000
C30: Distribution Policy
C31: Incidental
C33: Fees & Charges
C34: Annual Management Fee | H34: 0.0045
C35: Annual Trustee Fee | H35: 0.000475
L39: Source: VCAP Asset Managers
L40: Disclaimer : Past performance is not an indication of future performance.
L41: TOP HOLDINGS (including Cash) | S41: SECTOR ALLOCATION
L42: =MEQESG_Internal!AH6 -> TENAGA | P42: =MEQESG_Internal!AJ6 -> 0.1212870211
L43: =MEQESG_Internal!AH7 -> MYEG | P43: =MEQESG_Internal!AJ7 -> 0.09281681555
L44: =MEQESG_Internal!AH8 -> TM | P44: =MEQESG_Internal!AJ8 -> 0.078453137
C45: For information on the Fund, kindly contact us at : | L45: =MEQESG_Internal!AH9 -> SIMEPROP | P45: =MEQESG_Internal!AJ9 -> 0.07686025062
L46: =MEQESG_Internal!AH10 -> YTL | P46: =MEQESG_Internal!AJ10 -> 0.07563282594
C47: VCAP Asset Managers Sdn. Bhd. | L47: =MEQESG_Internal!AH11 -> AIRPORT | P47: =MEQESG_Internal!AJ11 -> 0.07387772126
C48: (1073635-A) | L48: =MEQESG_Internal!AH12 -> MAYBANK | P48: =MEQESG_Internal!AJ12 -> 0.06174520604
C49: Level 8, Block B, HP Towers | L49: =MEQESG_Internal!AH13 -> UEMS | P49: =MEQESG_Internal!AJ13 -> 0.05296150071
C50: No. 12, Jalan Gelenggang | L50: =MEQESG_Internal!AH14 -> ASTRO | P50: =MEQESG_Internal!AJ14 -> 0.04628252937
C51: Bukit Damansara, 50490 KL | L51: =MEQESG_Internal!AH15 -> PBBANK | P51: =MEQESG_Internal!AJ15 -> 0.04390564881
C52: Tel: +603 2788 5100 | L52: Total | P52: =SUM(P42:Q51) -> 0.7238226564
C53: Fax: +603 2788 5169 | L53: ="(Based on the Market Value as at "&TEXT(ValueDate,"dd MMM yyyy")&")" -> (Based on the Market Value as at 31 Jan 2019) | T53: ="(Based on the Market Value as at "&TEXT(ValueDate,"dd MMM yyyy")&")" -> (Based on the Market Value as at 31 Jan 2019)
C54: E-mail: invest@vcam.com.my | L54: Source: VCAP Asset Managers | T54: Source: VCAP Asset Managers
C55: MALAYSIAN ESG OPPORTUNITY FUND | T55: =+T4 -> 2019-01-31
C56: For Sophisticated Investors use only. Not for distribution to retail investors.
C58: MANAGER'S COMMENTARY
C75: ABOUT THE REFERENCE BENCHMARK
C76: The F4GBM comprises the eligible companies from the universe of the top 200 companies in the FTSE Bursa Malaysia EMAS Index. The index is designed to identify companies that demonstrate a leading approach to addressing ESG risks. The FTSE ESG ratings form the engine for the FTSE4Good indices. Companies need to achieve a FTSE ESG rating above a specified threshold for index inclusion in addition to passing certain additional screens set out in the FTSE4Good Index Ground Rules which are available at http://www.ftse.com/products/indices/FTSE4Good
C84: DISCLAIMER
C85: The Fund is intended to be offered to Sophisticated Investors only. We recommend that you read and understand the content of the Information Memorandum before investing. The Information Memorandum has been deposited with the Securities Commission, who takes no responsibility for its contents, on 25 July 2018 (which may be replaced or supplemented from time to time). You may obtain the printed copy of the the Information Memorandum from VCAP Asset Managers Sdn. Bhd ("VCAM"). Please consider the fees, charges and risks involved before investing. The NAV per unit may rise or fall. Past performance of a fund is not indicative of future performance. You are advised to seek independent advice or consult relevant laws, regulations and rules prior to investing. Any issue of units will only be made on receipt of an application form. "FTSE®", "FT-SE®", "Footsie®" and “FTSE4GOOD®” are trade marks of the London Stock Exchange Group companies and are used by FTSE International Limited (“FTSE”) under licence. "BURSA MALAYSIA®" is a trade mark of Bursa Malaysia Berhad ("BURSA MALAYSIA'). The FTSE4Good Bursa Malaysia Index is calculated by FTSE. Neither FTSE nor BURSA MALAYSIA sponsor, endorse or promote this product and are not in any way connected to it and do not accept any liability. All intellectual property rights in the index values and constituent vests in FTSE and BURSA MALAYSIA. VCAP Asset Managers Sdn. Bhd. has obtained full licence from FTSE to use such intellectual property rights in the creation of this product.

Sheet AEQESG_Distribution - Perf Numb (hidden)
C2: ASEAN 5 ESG OPPORTUNITY FUND
C4: FUND FACTSHEET | R4: =ValueDate -> 2019-01-31
C5: For Sophisticated Investors use only. Not for distribution to retail investors.
C6: Fund Category | I6: FUND OBJECTIVE
C7: Growth and Value | I7: The ASEAN 5 ESG Opportunity Fund is a growth and value fund which invests using an ESG (Environmental, Social and Governance) filter which aims to provide returns* to investors by investing in the constituent securities of the FTSE4Good ASEAN 5 Index. *Note: Returns may be distributed in the form of cash and/or units.
C9: Target Investor
C10: Sophisticated Investors
C12: Base Currency | I12: FUND STRATEGY
C13: US Dollar (US$) | I13: The Fund is actively managed and the Fund’s strategy is to hold Constituent Securities and other Authorised Investments to achieve medium to long-term growth. The selection of securities is based on a value and growth investing methodology where financial fundamentals, industrial prospects and management quality are validated by top-down views. The Manager will invest a minimum of 70% to a maximum of 95% of the NAV of the Fund in the Constituent Securities to achieve its investment objective. The remaining balance of the NAV of the Fund will be invested in Liquid Assets.
C15: First Trading Date
C16: 2017-01-31
C22: NAV per Unit | I22: FUND CUMULATIVE PERFORMANCE (since inception)
C23: ="RM " & SUMIFS(A5ESG_Internal!AD:AD,A5ESG_Internal!AC:AC,ValueDate) -> RM 0.9551
C26: Minimum Initial Investment Sum
C27: US$ 80,000 | RM 300,000
C30: Minimum Additional Investment
C31: US$ 40,000 | RM 150,000
C33: Distribution Policy
C34: Incidental
I36: Source: VCAP Asset Managers
C37: Fees & Charges
C38: Annual Management Fee | G38: 0.0065 | I38: TOP HOLDINGS | Q38: SECTOR ALLOCATION
C39: Annual Trustee Fee | G39: 0.0005 | I39: Company Name | L39: Country | N39: Weight (%)
C40: Performance Fees | G40: 0.1 | I40: =IF(A5ESG_Internal!AG6="","",A5ESG_Internal!AG6) -> BTSGROUP-NVDR | L40: =IF(A5ESG_Internal!AI6="","",A5ESG_Internal!AI6) -> Thailand | N40: =IF(A5ESG_Internal!AK6="","",A5ESG_Internal!AK6) -> 0.1209081537
C41: (High Water Mark methodology) | I41: =IF(A5ESG_Internal!AG7="","",A5ESG_Internal!AG7) -> TENAGA | L41: =IF(A5ESG_Internal!AI7="","",A5ESG_Internal!AI7) -> Malaysia | N41: =IF(A5ESG_Internal!AK7="","",A5ESG_Internal!AK7) -> 0.0880326045
I42: =IF(A5ESG_Internal!AG8="","",A5ESG_Internal!AG8) -> CENTPATTANA-NVDR | L42: =IF(A5ESG_Internal!AI8="","",A5ESG_Internal!AI8) -> Thailand | N42: =IF(A5ESG_Internal!AK8="","",A5ESG_Internal!AK8) -> 0.08425418298
I43: =IF(A5ESG_Internal!AG9="","",A5ESG_Internal!AG9) -> DBS GROUP HLDGS | L43: =IF(A5ESG_Internal!AI9="","",A5ESG_Internal!AI9) -> Singapore | N43: =IF(A5ESG_Internal!AK9="","",A5ESG_Internal!AK9) -> 0.08285436779
C44: For more information, kindly contact us at : | I44: =IF(A5ESG_Internal!AG10="","",A5ESG_Internal!AG10) -> AIRPORTHAINVDR | L44: =IF(A5ESG_Internal!AI10="","",A5ESG_Internal!AI10) -> Thailand | N44: =IF(A5ESG_Internal!AK10="","",A5ESG_Internal!AK10) -> 0.08061554276
I45: =IF(A5ESG_Internal!AG11="","",A5ESG_Internal!AG11) -> KASIKORNNVDR | L45: =IF(A5ESG_Internal!AI11="","",A5ESG_Internal!AI11) -> Thailand | N45: =IF(A5ESG_Internal!AK11="","",A5ESG_Internal!AK11) -> 0.07706080313
I46: =IF(A5ESG_Internal!AG12="","",A5ESG_Internal!AG12) -> PTTEPNVDR | L46: =IF(A5ESG_Internal!AI12="","",A5ESG_Internal!AI12) -> Thailand | N46: =IF(A5ESG_Internal!AK12="","",A5ESG_Internal!AK12) -> 0.07338177251
C47: VCAP Asset Managers Sdn. Bhd. | I47: =IF(A5ESG_Internal!AG13="","",A5ESG_Internal!AG13) -> SIME | L47: =IF(A5ESG_Internal!AI13="","",A5ESG_Internal!AI13) -> Malaysia | N47: =IF(A5ESG_Internal!AK13="","",A5ESG_Internal!AK13) -> 0.06369284081
C48: Level 8, Block B, HP Towers | I48: =IF(A5ESG_Internal!AG14="","",A5ESG_Internal!AG14) -> SIAMCOMMBANKNVDR | L48: =IF(A5ESG_Internal!AI14="","",A5ESG_Internal!AI14) -> Thailand | N48: =IF(A5ESG_Internal!AK14="","",A5ESG_Internal!AK14) -> 0.06116390645
C49: No. 12, Jalan Gelenggang | I49: =IF(A5ESG_Internal!AG15="","",A5ESG_Internal!AG15) -> PTTNVDR | L49: =IF(A5ESG_Internal!AI15="","",A5ESG_Internal!AI15) -> Thailand | N49: =IF(A5ESG_Internal!AK15="","",A5ESG_Internal!AK15) -> 0.05907580526
C50: Bukit Damansara, 50490 KL | I50: Total | N50: =SUM(N40:O49) -> 0.7910399799
C51: Tel: +603 2788 5100 | I51: ="(Based on the Market Value as at "& TEXT(ValueDate,"dd mmm yyyy") &")" -> (Based on the Market Value as at 31 Jan 2019) | Q51: ="(Based on the Market Value as at "& TEXT(ValueDate,"dd mmm yyyy") &")" -> (Based on the Market Value as at 31 Jan 2019)
C52: Fax: +603 2788 5169 | I52: Source: VCAP Asset Managers | Q52: Source: VCAP Asset Managers
C53: E-mail: invest@vcam.com.my
C54: ASEAN 5 ESG OPPORTUNITY FUND | S54: =ValueDate -> 2019-01-31
C55: For Sophisticated Investors use only. Not for distribution to retail investors.
C57: COUNTRY ALLOCATION | L57: CUMULATIVE PERFORMANCE | R57: ANNUALISED PERFORMANCE
L58: Time Frame | O58: AEQESG | R58: Time Frame | U58: AEQESG
L59: YTD | O59: =IFERROR(A5ESG_Internal!$K$20/A5ESG_Internal!$O$20-1,"N.A.") -> 0.04302719231 | R59: Since Inception | U59: =A5ESG_Internal!R25 -> -0.02180948894
L60: 1 Month | O60: =IFERROR(IF(A5ESG_Internal!$K$18=1,O64,A5ESG_Internal!$K$20/A5ESG_Internal!$L$20-1),"N.A.") -> 0.04302719231 | R60: 2 Years | U60: =A5ESG_Internal!P25 -> -0.02280553716
L61: 3 Month | O61: =IFERROR(IF(A5ESG_Internal!$K$18=3,O64,A5ESG_Internal!$K$20/A5ESG_Internal!$M$20-1),"N.A.") -> 0.0166045769
L62: 6 Month | O62: =IFERROR(IF(A5ESG_Internal!$K$18=6,O64,A5ESG_Internal!$K$20/A5ESG_Internal!$N$20-1),"N.A.") -> -0.03913480885
L63: 1 Year | O63: =IFERROR(IF(A5ESG_Internal!$K$18=12,O64,A5ESG_Internal!$K$20/A5ESG_Internal!$P$20-1),"N.A.") -> -0.1252861984
L64: Since Inception | O64: =IFERROR(A5ESG_Internal!$K$20/A5ESG_Internal!$R$20-1,"N.A") -> -0.0449
C67: ="(Based on the Market Value as at "& TEXT(ValueDate,"dd mmm yyyy") &")" -> (Based on the Market Value as at 31 Jan 2019) | L67: ="(Based on the Market Value as at "& TEXT(ValueDate,"dd mmm yyyy") &")" -> (Based on the Market Value as at 31 Jan 2019) | R67: ="(Based on the Market Value as at "& TEXT(ValueDate,"dd mmm yyyy") &")" -> (Based on the Market Value as at 31 Jan 2019)
C68: Source: VCAP Asset Managers | L68: Source: VCAP Asset Managers | R68: Source: VCAP Asset Managers
C70: MANAGER'S COMMENTARY
C71: Taking the cue from the positive momentum in the Dow, selected ASEAN markets like Thailand (+3.53%) and Philippines (+2.67%) continued to grind higher in the final month of the 3rd Quarter. Indonesia rose (+0.62%), followed by a decline in both Malaysia (-0.99%) and Singapore (-1.75%). The Thai market played catch up in the month of September as investor sentiment turned positive on prospects of better corporate profit growth, a pick-up in GDP (helped by better data on exports and tourism), and a strong current account surplus. Investors are starting to price in the upside from proposed transformation initiatives which are centered around an unprecedented infrastructure build-out (estimated at USD70bn) and the Eastern Economic Corridor (EEC) development (at USD43bn). Elsewhere, the US Federal Reserve commented that while uncertainty is high around the forces keeping inflation rate low, it continues to focus on raising borrowing costs as it would be imprudent to keep monetary policy on hold until inflation is back to 2%. The dollar index was in the 91-93 range in September.
C81: ABOUT THE REFERENCE BENCHMARK
C82: The FTSE4Good ASEAN 5 Index comprises the eligible companies from : Bursa Malaysia Securities Berhad, Singapore Exchange Securities Trading Limited, Indonesia Stock Exchange, The Philippine Stock Exchange, Inc. and The Stock Exchange of Thailand. The securities included in the index have undergone assessment for FTSE4Good inclusion using FTSE’s ESG ratings methodology. The assessment model contains over 300 indicators, 14 themes and 3 pillars which measures risk and performance across a variety of ESG aspects, to generate an overall rating. Aside from meeting a specified rating threshold, securities which are included in the index must also meet certain requirements as set out in the Index Inclusion Rules for FTSE4Good Index Series read in conjunction with the FTSE4Good Index Series Ground Rules which can be accessed at: http://www.ftse.com/products/indices/FTSE4Good.
C92: DISCLAIMER
C93: The Fund is intended to be offered to Sophisticated Investors only. We recommend that you read and understand the content of the Information Memorandum before investing. The Information Memorandum has been lodged with the Securities Commission Malaysia, who takes no responsibility for its contents, on 16 December 2016 (which may be replaced or supplemented from time to time). You may obtain the printed copy of the the Information Memorandum from VCAP Asset Managers Sdn. Bhd. The online version of the Fund Factsheet can also be obtained from VCAM's website at www.vcam.com.my. Please consider the fees, charges and risks involved before investing. The NAV per unit may rise or fall. Past performance of a fund is not indicative of future performance. You are advised to seek independent advice or consult relevant laws, regulations and rules prior to investing. Any issue of units will only be made on receipt of an application form. The ASEAN 5 ESG Opportunity Fund is not in any way sponsored, endorsed, sold or promoted by FTSE International Limited ("FTSE") or by the London Stock Exchange Group companies ("LSEG") and neither FTSE nor LSEG makes any warranty or representation whatsoever, expressly or impliedly, either as to the results to be obtained from the use of the FTSE4Good ASEAN 5 Index ("the Index") and/or the figure at which the said Index stands at any particular time on any particular day or otherwise. The Index is compiled and calculated by FTSE in conjunction with Indonesia Stock Exchange, Bursa Malaysia Securities Berhad, The Philippine Stock Exchange, Inc., Singapore Exchange Securities Trading Limited and The Stock Exchange of Thailand (The "Exchanges"). However, neither FTSE nor LSEG nor the Exchanges shall be liable (whether in negligence or otherwise) to any person for any error in the Index and neither FTSE nor the LSEG nor the Exchanges shall be under any obligation to advise any person of any error therein. “FTSE®", “FTSE4GoodTM”, "FT-SETM", and "FootsieTM", are trademarks of LSEG and are used by FTSE International Limited under licence.

Sheet MEQESG_Distribution - Perf Numb (hidden)
C2: MALAYSIAN ESG OPPORTUNITY FUND
C4: FUND FACTSHEET | T4: =ValueDate -> 2019-01-31
C5: For Sophisticated Investors use only. Not for distribution to retail investors.
C6: Fund Category / Fund Type | L6: FUND OBJECTIVE
C7: ESG Equity / Growth | L7: The Malaysian ESG Opportunity Fund ("MEQESG") is an ESG (Environmental, Social and Governance) equity growth fund that aims to provide returns* to investors by investing in the constituent securities of the FTSE4Good Bursa Malaysia Index ("F4GBM"). *Note: Returns may be distributed in the form of cash and/or units.
C9: Target Investor
C10: Sophisticated Investors
C12: Currency | L12: FUND STRATEGY
C13: Ringgit Malaysia (RM) | L13: The Fund is actively managed and the Fund’s strategy is to hold constituent securities to achieve growth over the medium to long-term. The selection of the securities is based on a value and/or growth investing methodology* where financial fundamentals, industrial prospects and management quality are validated by top-down views. The Manager could take a defensive position that may be inconsistent with the Fund’s investment strategy in attempting to respond to adverse market conditions. Under such situations, the Fund may hold up to all of the Fund’s net asset value (“NAV”) in liquid assets. *Note: The Manager seeks to invest in constituent securities which are undervalued relative to their perceived true value and/or also show growth potential based on the Manager’s judgement.
C15: First Trading Date
C16: 2015-08-20
C18: Asset Under Management
C19: =SUMIF(InHolding!$A:$A,"meqesg",InHolding!$O:$O) -> 226885612
C21: NAV per Unit
C22: =VLOOKUP(ValueDate,MEQESG_Internal!T:U,2,1) -> 0.9999
C24: Minimum Initial Investment | L24: FUND CUMULATIVE PERFORMANCE (since inception)
C25: 250000
C27: Minimum Additional Investment
C28: 100000
C30: Distribution Policy
C31: Incidental
C33: Fees & Charges
C34: Annual Management Fee | H34: 0.0045
C35: Annual Trustee Fee | H35: 0.000475
L39: Note : MEQESG - Malaysian ESG Opportunity Fund, F4GBM - FTSE4Good Bursa Malaysia Index
L40: Source: VCAP Asset Managers, Deutsche Trustee
L41: TOP HOLDINGS | S41: SECTOR ALLOCATION
L42: =MEQESG_Internal!AH6 -> TENAGA | P42: =ROUND(MEQESG_Internal!AJ6,4) -> 0.1213
L43: =MEQESG_Internal!AH7 -> MYEG | P43: =ROUND(MEQESG_Internal!AJ7,4) -> 0.0928
L44: =MEQESG_Internal!AH8 -> TM | P44: =ROUND(MEQESG_Internal!AJ8,4) -> 0.0785
C45: For information on the Fund, kindly contact us at : | L45: =MEQESG_Internal!AH9 -> SIMEPROP | P45: =ROUND(MEQESG_Internal!AJ9,4) -> 0.0769
L46: =MEQESG_Internal!AH10 -> YTL | P46: =ROUND(MEQESG_Internal!AJ10,4) -> 0.0756
L47: =MEQESG_Internal!AH11 -> AIRPORT | P47: =ROUND(MEQESG_Internal!AJ11,4) -> 0.0739
C48: VCAP Asset Managers Sdn. Bhd. | L48: =MEQESG_Internal!AH12 -> MAYBANK | P48: =ROUND(MEQESG_Internal!AJ12,4) -> 0.0617
C49: Level 8, Block B, HP Towers | L49: =MEQESG_Internal!AH13 -> UEMS | P49: =ROUND(MEQESG_Internal!AJ13,4) -> 0.053
C50: No. 12, Jalan Gelenggang | L50: =MEQESG_Internal!AH14 -> ASTRO | P50: =ROUND(MEQESG_Internal!AJ14,4) -> 0.0463
C51: Bukit Damansara, 50490 KL | L51: =MEQESG_Internal!AH15 -> PBBANK | P51: =ROUND(MEQESG_Internal!AJ15,4) -> 0.0439
C52: Tel: +603 2788 5100 | L52: Total | P52: =SUM(P42:Q51) -> 0.7239
C53: Fax: +603 2788 5169 | L53: ="(Based on the Market Value as at "&TEXT(ValueDate,"dd MMM yyyy")&")" -> (Based on the Market Value as at 31 Jan 2019) | T53: ="(Based on the Market Value as at "&TEXT(ValueDate,"dd MMM yyyy")&")" -> (Based on the Market Value as at 31 Jan 2019)
C54: E-mail: invest@vcam.com.my | L54: Source: VCAP Asset Managers | T54: Source: VCAP Asset Managers
C56: MALAYSIAN ESG OPPORTUNITY FUND | T56: =+T4 -> 2019-01-31
C57: For Sophisticated Investors use only. Not for distribution to retail investors.
C59: CUMULATIVE PERFORMANCE | L59: YTD | N59: 1 MONTH | P59: 3 MONTHS | R59: 6 MONTHS | T59: 1 YEAR | V59: 2 YEARS | X59: INCEPTION
C60: MEQESG | L60: =IFERROR(MEQESG_Internal!$K$20/MEQESG_Internal!$O$20-1,"N.A.") -> 0.05352439153 | N60: =IFERROR(IF(MEQESG_Internal!$K$18=1,$X$60,MEQESG_Internal!$K$20/MEQESG_Internal!$L$20-1),"N.A.") -> 0.05352439153 | P60: =IFERROR(IF(MEQESG_Internal!$K$18=3,$X$60,MEQESG_Internal!K$20/MEQESG_Internal!$M$20-1),"N.A.") -> -0.02308666232 | R60: =IFERROR(IF(MEQESG_Internal!$K$18=6,X60,MEQESG_Internal!$K$20/MEQESG_Internal!$N$20-1),"N.A.") -> -0.1336207749 | T60: =IFERROR(IF(MEQESG_Internal!$K$18=12,X60,MEQESG_Internal!$K$20/MEQESG_Internal!$P$20-1),"N.A.") -> -0.230148637 | V60: =IFERROR(IF(MEQESG_Internal!$K$18=24,X60,MEQESG_Internal!$K$20/MEQESG_Internal!$O$28-1),"N.A.") -> -0.04826304699 | X60: =IFERROR(MEQESG_Internal!$K$20/MEQESG_Internal!$R$20-1,"N.A.") -> 0.07508206212
C61: F4GBM | L61: =IF(L60="N.A.","N.A.",IFERROR(MEQESG_Internal!$K$21/MEQESG_Internal!$O$21-1,"N.A.")) -> 0.002694470478 | N61: =IF(N60="N.A.","N.A.",IFERROR(IF(MEQESG_Internal!$K$18=1,$X$61,MEQESG_Internal!$K$21/MEQESG_Internal!$L$21-1),"N.A.")) -> 0.002694470478 | P61: =IF(P60="N.A.","N.A.",IFERROR(IF(MEQESG_Internal!$K$18=3,$X$61,MEQESG_Internal!K$21/MEQESG_Internal!$M$21-1),"N.A.")) -> -0.01217093874 | R61: =IF(R60="N.A.","N.A.",IFERROR(IF(MEQESG_Internal!K18=6,X61,MEQESG_Internal!$K$21/MEQESG_Internal!$N$21-1),"N.A.")) -> -0.05950692266 | T61: =IF(T60="N.A.","N.A.",IFERROR(IF(MEQESG_Internal!$K$18=12,X61,MEQESG_Internal!$K$21/MEQESG_Internal!$P$21-1),"N.A.")) -> -0.1087835215 | V61: =IF(V60="N.A.","N.A.",IFERROR(IF(MEQESG_Internal!$K$18=12,X61,MEQESG_Internal!$K$21/MEQESG_Internal!$O$29-1),"N.A.")) -> 0.03292447448 | X61: =IF(X60="N.A.","N.A.",IFERROR(MEQESG_Internal!$K$21/MEQESG_Internal!$R$21-1,"N.A.")) -> 0.1087179246
C62: FBMKLCI | L62: =IF(L61="N.A.","N.A.",IFERROR(MEQESG_Internal!$K$22/MEQESG_Internal!$O$22-1,"N.A.")) -> -0.004170166452 | N62: =IF(N61="N.A.","N.A.",IFERROR(IF(MEQESG_Internal!$K$18=1,$X$62,MEQESG_Internal!$K$22/MEQESG_Internal!$L$22-1),"N.A.")) -> -0.004170166452 | P62: =IF(P61="N.A.","N.A.",IFERROR(IF(MEQESG_Internal!$K$18=3,$X$62,MEQESG_Internal!K$22/MEQESG_Internal!$M$22-1),"N.A.")) -> -0.0150590603 | R62: =IF(R61="N.A.","N.A.",IFERROR(IF(MEQESG_Internal!$K$18=6,X62,MEQESG_Internal!$K$22/MEQESG_Internal!$N$22-1),"N.A.")) -> -0.05644948858 | T62: =IF(T61="N.A.","N.A.",IFERROR(IF(MEQESG_Internal!$K$18=12,X62,MEQESG_Internal!$K$22/MEQESG_Internal!$P$22-1),"N.A.")) -> -0.09903242034 | V62: =IF(V61="N.A.","N.A.",IFERROR(IF(MEQESG_Internal!$K$18=12,X62,MEQESG_Internal!$K$22/MEQESG_Internal!$O$30-1),"N.A.")) -> 0.007173026072 | X62: =IF(X61="N.A.","N.A.",IFERROR(MEQESG_Internal!$K$22/MEQESG_Internal!$R$22-1,"N.A.")) -> 0.06388235889
C63: FBM100 | L63: =IF(L62="N.A.","N.A.",IFERROR(MEQESG_Internal!$K$23/MEQESG_Internal!$O$23-1,"N.A.")) -> 0.008878317244 | N63: =IF(N62="N.A.","N.A.",IFERROR(IF(MEQESG_Internal!$K$18=1,$X$63,MEQESG_Internal!$K$23/MEQESG_Internal!$L$23-1),"N.A.")) -> 0.008878317244 | P63: =IF(P62="N.A.","N.A.",IFERROR(IF(MEQESG_Internal!$K$18=3,$X$63,MEQESG_Internal!K$23/MEQESG_Internal!$M$23-1),"N.A.")) -> -0.006801287307 | R63: =IF(R62="N.A.","N.A.",IFERROR(IF(MEQESG_Internal!$K$18=6,X63,MEQESG_Internal!$K$23/MEQESG_Internal!$N$23-1),"N.A.")) -> -0.07044146182 | T63: =IF(T62="N.A.","N.A.",IFERROR(IF(MEQESG_Internal!$K$18=12,X63,MEQESG_Internal!$K$23/MEQESG_Internal!$P$23-1),"N.A.")) -> -0.1162015039 | V63: =IF(V62="N.A.","N.A.",IFERROR(IF(MEQESG_Internal!$K$18=12,X63,MEQESG_Internal!$K$23/MEQESG_Internal!$O$31-1),"N.A.")) -> 0.009137576733 | X63: =IF(X62="N.A.","N.A.",IFERROR(MEQESG_Internal!$K$23/MEQESG_Internal!$R$23-1,"N.A.")) -> 0.09074410163
C64: (Note : Based on calendar year)
C66: ANNUALISED PERFORMANCE | L66: INCEPTION | N66: 2 YEARS
C67: MEQESG | L67: =MEQESG_Internal!R28 -> 0.0209002702 | N67: =MEQESG_Internal!P28 -> -0.02442993434
C68: F4GBM | L68: =MEQESG_Internal!R29 -> 0.02992599481 | N68: =MEQESG_Internal!P29 -> 0.01632892042
C69: FBMKLCI | L69: =MEQESG_Internal!R30 -> 0.01785025053 | N69: =MEQESG_Internal!P30 -> 0.003580104462
C70: FBM100 | L70: =MEQESG_Internal!R31 -> 0.0251276882 | N70: =MEQESG_Internal!P31 -> 0.004558398866
C72: MANAGER'S COMMENTARY
C73: The FTSE4Good Bursa Malaysia index rose to an all-time-high of 983 in May before closing the month at 974, up 0.8% driven mainly by the banks. The KLCI, on the other hand, declined 0.1% to close the month at 1,766. In the latest corporate reporting season, earnings momentum picked up and is on track to achieve 8-10% normalised profit growth for 2017, following three years of flat to lower profits. Earnings momentum was also strong across the region, led by Indonesia. Apart from earnings, Malaysia also reported 1Q17 GDP which grew at a strong 5.6%, its highest since 1Q15. Growth for the quarter was driven by stronger domestic demand while a turnaround in the agriculture sector and higher growth in manufacturing and services sectors supported growth on the supply side. Reflecting the strong economy, the ringgit appreciated more than 4% to below RM4.28/USD since early March.
C87: ABOUT THE REFERENCE BENCHMARK
C88: The F4GBM comprises the eligible companies from the universe of the top 200 companies in the FTSE Bursa Malaysia EMAS Index. The index is designed to identify companies that demonstrate a leading approach to addressing ESG risks. The FTSE ESG ratings form the engine for the FTSE4Good indices. Companies need to achieve a FTSE ESG rating above a specified threshold for index inclusion in addition to passing certain additional screens set out in the FTSE4Good Index Ground Rules which are available at http://www.ftse.com/products/indices/FTSE4Good
C96: DISCLAIMER
C97: The Fund is intended to be offered to Sophisticated Investors only. We recommend that you read and understand the content of the Information Memorandum before investing. The Information Memorandum has been deposited with the Securities Commission, who takes no responsibility for its contents, on 21 December 2015 (which may be replaced or supplemented from time to time). You may obtain the printed copy of the the Information Memorandum from VCAP Asset Managers Sdn. Bhd ("VCAM"). The online version of the Fund Factsheet can also be obtained from VCAM's website at www.vcam.com.my. Please consider the fees, charges and risks involved before investing. The NAV per unit may rise or fall. Past performance of a fund is not indicative of future performance. You are advised to seek independent advice or consult relevant laws, regulations and rules prior to investing. Any issue of units will only be made on receipt of an application form. "FTSE®", "FT-SE®", "Footsie®" and “FTSE4GOOD®” are trade marks of the London Stock Exchange Group companies and are used by FTSE International Limited (“FTSE”) under licence. "BURSA MALAYSIA®" is a trade mark of Bursa Malaysia Berhad ("BURSA MALAYSIA'). The FTSE4Good Bursa Malaysia Index is calculated by FTSE. Neither FTSE nor BURSA MALAYSIA sponsor, endorse or promote this product and are not in any way connected to it and do not accept any liability. All intellectual property rights in the index values and constituent vests in FTSE and BURSA MALAYSIA. VCAP Asset Managers Sdn. Bhd. has obtained full licence from FTSE to use such intellectual property rights in the creation of this product.

Sheet MEQESG_Internal (hidden)
C1: Setting | D1: =VLOOKUP(FundCode, InFund!$A:$E,5,0) -> MYR | AA1: =IFERROR(U1-1,0) -> -1 | AB1: =IF(V1=0,0,IFERROR(V1/$V$3-1,0)) -> 0 | AC1: =IF(W1=0,0,IFERROR(W1/$W$3-1,0)) -> 0 | AD1: =IF(X1=0,0,IFERROR(X1/$X$3-1,0)) -> 0 | AE1: =IFERROR(Z1-1,0) -> -1 | AJ1: =SUM(AI:AI)+SUMIFS(InHolding!O:O,InHolding!C:C,"CSH",InHolding!A:A,"MEQESG") -> 226885612
C2: Fund Code | D2: MEQESG | T2: qValDate | U2: BuyPriceMYR | V2: F4GBM | W2: FBMKLCI | X2: FBMT100 | Y2: Indices | Z2: NAV | AA2: MEQESG Movement | AB2: F4GBM Movement | AC2: FBMKLCI Movement | AD2: FBMT100 Movement | AE2: MEQESG Return Movement | AH2: qFundCode | AI2: MEQESG
C3: UTFlag | D3: =VLOOKUP(FundCode,FundData,MATCH(C3,InFund!2:2,0),0) -> 1 | E3: Note: | F3: 1 = Yes; 0=No; | T3: 2015-08-19 | U3: 1 | V3: 849.17 | W3: 1582.44 | X3: 10584.71 | Y3: 15500000 | Z3: 1 | AA3: 0 | AB3: 0 | AC3: 0 | AD3: 0 | AE3: 0 | AH3: qProductType | AI3: EQT
C4: RollEOYFlag | D4: =VLOOKUP(FundCode,FundData,MATCH(C4,InFund!2:2,0),0) -> 1 | T4: 2015-08-20 | U4: 1.0005 | V4: 849.59 | W4: 1577.41 | X4: 10548.11 | Y4: 15500000 | Z4: 1.0005 | AA4: 0.0005 | AB4: 0.00049460061 | AC4: -0.003178635525 | AD4: -0.003457817928 | AE4: 0.0005
C5: Amort.Flag | D5: 0 | E5: * IF Amort.Flag = 1 --> Exclude amortisation/accreation form Unrealised Gain n Loss | T5: 2015-08-21 | U5: 1.0016 | V5: 849.13 | W5: 1574.67 | X5: 10529.77 | Y5: 15500000 | Z5: 1.0016 | AA5: 0.0016 | AB5: -4.710482e-05 | AC5: -0.004910138773 | AD5: -0.005190505928 | AE5: 0.0016 | AH5: Row Labels | AI5: Sum of MarketValueFC
C6: Clean MV | D6: 1 | E6: * IF Clean MV=1 - Accrued Interest add into Cash | T6: 2015-08-24 | U6: 0.9973 | V6: 827.27 | W6: 1532.14 | X6: 10241.8 | Y6: 15500000 | Z6: 0.9973 | AA6: -0.0027 | AB6: -0.02578988895 | AC6: -0.03178635525 | AD6: -0.03239673076 | AE6: -0.0027 | AH6: TENAGA | AI6: 27518280 | AJ6: =IFERROR(AI6/$AJ$1,0) -> 0.1212870211
T7: 2015-08-25 | U7: 0.9992 | V7: 846.99 | W7: 1563.94 | X7: 10411.82 | Y7: 15500000 | Z7: 0.9992 | AA7: -0.0008 | AB7: -0.00256721269 | AC7: -0.0116908066 | AD7: -0.01633393829 | AE7: -0.0008 | AH7: MYEG | AI7: 21058800 | AJ7: =IFERROR(AI7/$AJ$1,0) -> 0.09281681555
C8: Accrued Interest | D8: =SUMIF(InHolding!A:A,FundCode,InHolding!P:P) -> 6118.62 | E8: Top Holding Denominator | F8: NAV | T8: 2015-08-26 | U8: 1.0056 | V8: 856.78 | W8: 1580.37 | X8: 10514.6 | Y8: 15500000 | Z8: 1.0056 | AA8: 0.0056 | AB8: 0.008961692005 | AC8: -0.001308106468 | AD8: -0.006623705326 | AE8: 0.0056 | AH8: TM | AI8: 17799888 | AJ8: 0.078453137
C9: Pre-Acq | D9: =SUMIF(InHolding!A:A,FundCode,InHolding!M:M) -> 0 | T9: 2015-08-27 | U9: 1.0141 | V9: 869.75 | W9: 1601.7 | X9: 10665.28 | Y9: 15500000 | Z9: 1.0141 | AA9: 0.0141 | AB9: 0.02423542989 | AC9: 0.01217107758 | AD9: 0.007611923236 | AE9: 0.0141 | AH9: SIMEPROP | AI9: 17438485 | AJ9: 0.07686025062
B10: Adj. | C10: FinanceYrStart | D10: =VLOOKUP(FundCode,FundData,MATCH(C10,InFund!2:2,0),0) -> 2015-07-06 | T10: 2015-08-28 | U10: 1.0168 | V10: 877.22 | W10: 1612.74 | X10: 10734.17 | Y10: 15500000 | Z10: 1.0168 | AA10: 0.0168 | AB10: 0.03303225503 | AC10: 0.01914764541 | AD10: 0.01412036796 | AE10: 0.0168 | AH10: YTL | AI10: 17160000 | AJ10: 0.07563282594
J11: Portfolio Analysis | T11: 2015-08-31 | U11: 1.0169 | V11: 877.22 | W11: 1612.74 | X11: 10734.17 | Y11: 15500000 | Z11: 1.0169 | AA11: 0.0169 | AB11: 0.03303225503 | AC11: 0.01914764541 | AD11: 0.01412036796 | AE11: 0.0169 | AH11: AIRPORT | AI11: 16761792 | AJ11: 0.07387772126
C12: Sector | F12: Top Holding - EQT | J12: EQT | K12: Equity | L12: =SUMIFS(InHolding!U:U,InHolding!A:A,FundCode,InHolding!C:C,$J12) -> 202790350.2 | M12: =IF(L12=0,NA(),L12) -> 202790350.2 | N12: =L12/$L$15 -> 0.8937999568 | T12: 2015-09-01 | U12: 1.0144 | V12: 871.4 | W12: 1609.21 | X12: 10718.56 | Y12: 15500000 | Z12: 1.0144 | AA12: 0.0144 | AB12: 0.02617850372 | AC12: 0.01691691312 | AD12: 0.01264559917 | AE12: 0.0144 | AH12: MAYBANK | AI12: 14009098.86 | AJ12: 0.06174520604
C13: EQT | F13: qFundCode | G13: MEQESG | J13: BND | K13: FI | L13: =SUMIFS(InHolding!U:U,InHolding!A:A,FundCode,InHolding!C:C,$J13) -> 0 | M13: =IF(L13=0,NA(),L13) ->  | N13: =L13/$L$15 -> 0 | T13: 2015-09-02 | U13: 1.0035 | V13: 858.76 | W13: 1590.19 | X13: 10618.22 | Y13: 15500000 | Z13: 1.0035 | AA13: 0.0035 | AB13: 0.0112933806 | AC13: 0.004897500063 | AD13: 0.003165887398 | AE13: 0.0035 | AH13: UEMS | AI13: 12016202.5 | AJ13: 0.05296150071
C14: qFundCode | D14: MEQESG | J14: CSH | K14: Cash | L14: =SUMIFS(InHolding!U:U,InHolding!A:A,FundCode,InHolding!C:C,$J14) -> 24095261.79 | M14: =IF(L14=0,NA(),L14) -> 24095261.79 | N14: =L14/$L$15 -> 0.1062000432 | T14: 2015-09-03 | U14: 1.0078 | V14: 866.64 | W14: 1602.75 | X14: 10696.52 | Y14: 15500000 | Z14: 1.0078 | AA14: 0.0078 | AB14: 0.02057303014 | AC14: 0.01283460984 | AD14: 0.01056335034 | AE14: 0.0078 | AH14: ASTRO | AI14: 10500840 | AJ14: 0.04628252937
C15: qProductType | D15: (All) | F15: Sum of Perc_Eqt | J15: Total | L15: =L12+L13+L14 -> 226885612 | T15: 2015-09-04 | U15: 1.0027 | V15: 858.76 | W15: 1589.16 | X15: 10625.79 | Y15: 15500000 | Z15: 1.0027 | AA15: 0.0027 | AB15: 0.0112933806 | AC15: 0.004246606506 | AD15: 0.003881069958 | AE15: 0.0027 | AH15: PBBANK | AI15: 9961560 | AJ15: 0.04390564881
F16: StockName | G16: Description | H16: Total | T16: 2015-09-07 | U16: 1.0018 | V16: 856.51 | W16: 1582.85 | X16: 10581.17 | Y16: 15500000 | Z16: 1.0018 | AA16: 0.0018 | AB16: 0.00864373447 | AC16: 0.0002590935517 | AD16: -0.0003344446848 | AE16: 0.0018 | AH16: MHB | AI16: 8413152 | AJ16: 0.03708102919
C17: Row Labels | D17: Sum of MarketValueFC | F17: TENAGA | G17: Tenaga Nasional Bhd | H17: 0.1356981729 | J17: Conversion Date: | K17: 2015-01-16 | T17: 2015-09-08 | U17: 1.0063 | V17: 861.6 | W17: 1587.12 | X17: 10610.21 | Y17: 15500000 | Z17: 1.0063 | AA17: 0.0063 | AB17: 0.01463782282 | AC17: 0.002957458103 | AD17: 0.002409135442 | AE17: 0.0063 | AH17: CIMB | AI17: 6930482.84 | AJ17: 0.03054615398
C18: FINANCIALS | D18: 67014839.2 | F18: MYEG | G18: My E.G. Services Berhad | H18: 0.1038451779 | K18: =YEAR(K19)*12+MONTH(K19)-2015*12-8+1 -> 42 | L18: =YEAR(L19)*12+MONTH(L19)-2015*12-8+1 -> 41 | M18: =YEAR(M19)*12+MONTH(M19)-2015*12-8+1 -> 39 | N18: 36 | O18: 41 | P18: 30 | Q18: 6 | R18: 1 | S18: -18 | T18: 2015-09-09 | U18: 1.0099 | V18: 869.77 | W18: 1603.36 | X18: 10728.9 | Y18: 15500000 | Z18: 1.0099 | AA18: 0.0099 | AB18: 0.0242589823 | AC18: 0.01322009049 | AD18: 0.01362247997 | AE18: 0.0099 | AH18: SUNWAY | AI18: 6659010 | AJ18: 0.02934963545
C19: UTILITIES | D19: 51274110 | F19: TM | G19: Telekom Malaysia Berhad | H19: 0.08777482746 | J19: Relative Performance | K19: =_VDate -> 2019-01-31 | L19: =_1Month -> 2018-12-31 | M19: =_3Month -> 2018-10-31 | N19: =_6Month -> 2018-07-31 | O19: =IF(YEAR(ValueDate)=2015,DATE(2015,8,19),_YTD) -> 2018-12-31 | P19: =_1Year -> 2018-01-31 | Q19: =_3Year -> 2016-01-31 | R19: 2015-08-19 | S19: =_5Year -> 2014-01-31 | T19: 2015-09-10 | U19: 1.0108 | V19: 873.24 | W19: 1614.02 | X19: 10799.26 | Y19: 15500000 | Z19: 1.0108 | AA19: 0.0108 | AB19: 0.02834532544 | AC19: 0.01995652284 | AD19: 0.02026980427 | AE19: 0.0108 | AH19: YTLPOWR | AI19: 6595830 | AJ19: 0.02907116913
C20: INDUSTRIALS | D20: 47787521 | F20: SIMEPROP | G20: Sime Darby Property Bhd | H20: 0.08599267659 | J20: =FundCode -> MEQESG | K20: =INDEX(InTWRR!$C:$C,MATCH($J20&K$19,InTWRR!$D:$D,0),0) -> 1.075082062 | L20: =INDEX(InTWRR!$C:$C,MATCH($J20&L$19,InTWRR!$D:$D,0),0) -> 1.020462431 | M20: =INDEX(InTWRR!$C:$C,MATCH($J20&M$19,InTWRR!$D:$D,0),0) -> 1.100488672 | N20: =INDEX(InTWRR!$C:$C,MATCH($J20&N$19,InTWRR!$D:$D,0),0) -> 1.24089086 | O20: =IF(K18<=5,R20,INDEX(InTWRR!$C:$C,MATCH($J20&O$19,InTWRR!$D:$D,0),0)) -> 1.020462431 | P20: =INDEX(InTWRR!$C:$C,MATCH($J20&P$19,InTWRR!$D:$D,0),0) -> 1.39648004 | Q20: =INDEX(InTWRR!$C:$C,MATCH($J20&Q$19,InTWRR!$D:$D,0),0) -> 1.0556 | R20: 1 | S20: =INDEX(InTWRR!$C:$C,MATCH($J20&S$19,InTWRR!$D:$D,0),0) ->  | T20: 2015-09-11 | U20: 1.0128 | V20: 871.65 | W20: 1603.6 | X20: 10752.77 | Y20: 15500000 | Z20: 1.0128 | AA20: 0.0128 | AB20: 0.02647290884 | AC20: 0.01337175501 | AD20: 0.0158776197 | AE20: 0.0128 | AH20: SIME | AI20: 5231744 | AJ20: 0.02305895008
C21: CASH | D21: 24095261.79 | F21: YTL | G21: YTL Corporation Berhad | H21: 0.08461941105 | J21: =VLOOKUP(FundCode,FundData,MATCH("qIndexBenchmark",InFund!$2:$2,0),0) -> F4GBM | K21: =INDEX(InIndex!$C:$C,MATCH($J21&K$19,InIndex!$D:$D,0),0) -> 941.49 | L21: =INDEX(InIndex!$C:$C,MATCH($J21&L$19,InIndex!$D:$D,0),0) -> 938.96 | M21: =INDEX(InIndex!$C:$C,MATCH($J21&M$19,InIndex!$D:$D,0),0) -> 953.09 | N21: =INDEX(InIndex!$C:$C,MATCH($J21&N$19,InIndex!$D:$D,0),0) -> 1001.06 | O21: =IF(K18<=5,R21,INDEX(InIndex!$C:$C,MATCH($J21&O$19,InIndex!$D:$D,0),0)) -> 938.96 | P21: =INDEX(InIndex!$C:$C,MATCH($J21&P$19,InIndex!$D:$D,0),0) -> 1056.41 | Q21: =INDEX(InIndex!$C:$C,MATCH($J21&Q$19,InIndex!$D:$D,0),0) -> 906.26 | R21: 849.17 | S21: =INDEX(InIndex!$C:$C,MATCH($J21&S$19,InIndex!$D:$D,0),0) ->  | T21: 2015-09-14 | U21: 1.0306 | V21: 892.76 | W21: 1639.63 | X21: 10979.68 | Y21: 15500000 | Z21: 1.0306 | AA21: 0.0306 | AB21: 0.0513324776 | AC21: 0.03614039079 | AD21: 0.03731514609 | AE21: 0.0306 | AH21: CMSB | AI21: 2149000 | AJ21: 0.009471733272
C22: TELCO | D22: 17799888 | F22: AIRPORT | G22: Malaysia Airports Holdings Bhd | H22: 0.08265576732 | J22: FBMKLCI | K22: =INDEX(InIndex!$C:$C,MATCH($J22&K$19,InIndex!$D:$D,0),0) -> 1683.53 | L22: =INDEX(InIndex!$C:$C,MATCH($J22&L$19,InIndex!$D:$D,0),0) -> 1690.58 | M22: =INDEX(InIndex!$C:$C,MATCH($J22&M$19,InIndex!$D:$D,0),0) -> 1709.27 | N22: =INDEX(InIndex!$C:$C,MATCH($J22&N$19,InIndex!$D:$D,0),0) -> 1784.25 | O22: =IF(K18<=5,R22,INDEX(InIndex!$C:$C,MATCH($J22&O$19,InIndex!$D:$D,0),0)) -> 1690.58 | P22: =INDEX(InIndex!$C:$C,MATCH($J22&P$19,InIndex!$D:$D,0),0) -> 1868.58 | Q22: =INDEX(InIndex!$C:$C,MATCH($J22&Q$19,InIndex!$D:$D,0),0) -> 1667.8 | R22: 1582.44 | S22: =INDEX(InIndex!$C:$C,MATCH($J22&S$19,InIndex!$D:$D,0),0) ->  | T22: 2015-09-15 | U22: 1.0367 | V22: 900.17 | W22: 1647.15 | X22: 11043.03 | Y22: 15500000 | Z22: 1.0367 | AA22: 0.0367 | AB22: 0.0600586455 | AC22: 0.04089254569 | AD22: 0.04330019434 | AE22: 0.0367 | AH22: SUNCON | AI22: 1811160 | AJ22: 0.007982700992
C23: CONSUMER SERVICES | D23: 10500840 | F23: MAYBANK | G23: Malayan Banking Berhad | H23: 0.06908168385 | J23: FBMT100 | K23: =INDEX(InIndex!$C:$C,MATCH($J23&K$19,InIndex!$D:$D,0),0) -> 11545.21 | L23: =INDEX(InIndex!$C:$C,MATCH($J23&L$19,InIndex!$D:$D,0),0) -> 11443.61 | M23: =INDEX(InIndex!$C:$C,MATCH($J23&M$19,InIndex!$D:$D,0),0) -> 11624.27 | N23: =INDEX(InIndex!$C:$C,MATCH($J23&N$19,InIndex!$D:$D,0),0) -> 12420.1 | O23: =IF(K18<=5,R23,INDEX(InIndex!$C:$C,MATCH($J23&O$19,InIndex!$D:$D,0),0)) -> 11443.61 | P23: =INDEX(InIndex!$C:$C,MATCH($J23&P$19,InIndex!$D:$D,0),0) -> 13063.17 | Q23: =INDEX(InIndex!$C:$C,MATCH($J23&Q$19,InIndex!$D:$D,0),0) -> 11279.86 | R23: 10584.71 | S23: =INDEX(InIndex!$C:$C,MATCH($J23&S$19,InIndex!$D:$D,0),0) ->  | T23: 2015-09-17 | U23: 1.0502 | V23: 915.73 | W23: 1681.54 | X23: 11256.55 | Y23: 15500000 | Z23: 1.0502 | AA23: 0.0502 | AB23: 0.07838242048 | AC23: 0.06262480726 | AD23: 0.06347268843 | AE23: 0.0502 | AH23: GDEX | AI23: 775025 | AJ23: 0.003415928376
C24: OIL & GAS | D24: 8413152 | F24: UEMS | G24: UEM Sunrise Bhd | H24: 0.05925431111 | L24: 1 month | M24: 3 months | N24: 6 months | O24: YTD | P24: 1 year | Q24: 3 year | R24: Inception | S24: 5Year | T24: 2015-09-18 | U24: 1.0498 | V24: 913.44 | W24: 1669.45 | X24: 11198.86 | Y24: 15500000 | Z24: 1.0498 | AA24: 0.0498 | AB24: 0.07568566954 | AC24: 0.05498470716 | AD24: 0.05802237378 | AE24: 0.0498 | AJ24: 0
F25: ASTRO | G25: Astro Malaysia Holdings Bhd | H25: 0.05178175386 | T25: 2015-09-21 | U25: 1.0386 | V25: 895.65 | W25: 1639.47 | X25: 11021.82 | Y25: 16214421.8 | Z25: 1.0386 | AA25: 0.0386 | AB25: 0.05473580084 | AC25: 0.03603928111 | AD25: 0.0412963605 | AE25: 0.0386 | AJ25: 0
F26: PBBANK | G26: Public Bank Berhad | H26: 0.04912245573 | O26: =YEAR(O27)*12+MONTH(O27)-2015*12-8+1 -> 18 | T26: 2015-09-22 | U26: 1.0392 | V26: 895.51 | W26: 1635.37 | X26: 11007.53 | Y26: 16214421.8 | Z26: 1.0392 | AA26: 0.0392 | AB26: 0.05457093397 | AC26: 0.03344834559 | AD26: 0.0399462999 | AE26: 0.0392 | AJ26: 0
F27: MHB | G27: Msia M&H Eng Hldg Bhd | H27: 0.04148694448 | O27: =_2Year -> 2017-01-31 | P27: =_2Year -> 2017-01-31 | Q27: =_3Year -> 2016-01-31 | R27: 2015-08-19 | S27: =_5Year -> 2014-01-31 | T27: 2015-09-23 | U27: 1.0307 | V27: 884.83 | W27: 1613.17 | X27: 10866.81 | Y27: 16214421.8 | Z27: 1.0307 | AA27: 0.0307 | AB27: 0.04199394703 | AC27: 0.01941937767 | AD27: 0.0266516513 | AE27: 0.0307 | AJ27: 0
F28: CIMB | G28: CIMB Group Holdings Bhd | H28: 0.03417560467 | O28: =INDEX(InTWRR!$C:$C,MATCH($J20&O$27,InTWRR!$D:$D,0),0) -> 1.1296 | P28: =IFERROR(($K$20/O28)^(12/($K$18-O26))-1,"N.A.") -> -0.02442993434 | Q28: =IFERROR(($K$20/Q20)^(12/($K$18-Q18))-1,"N.A.") -> 0.006114507707 | R28: =IFERROR(IF(K18<=12,($K$20/$R$20)-1,($K$20/$R$20)^(12/K18)-1),"N.A.") -> 0.0209002702 | S28: =IFERROR(($K$20/S20)^(12/($K$18-S18))-1,"N.A.") -> N.A. | T28: 2015-09-25 | U28: 1.0331 | V28: 886.93 | W28: 1615.01 | X28: 10877.39 | Y28: 16214421.8 | Z28: 1.0331 | AA28: 0.0331 | AB28: 0.04446695008 | AC28: 0.02058213898 | AD28: 0.02765120632 | AE28: 0.0331 | AJ28: 0
F29: SUNWAY | G29: Sunway Bhd | H29: 0.0328369175 | O29: =INDEX(InIndex!$C:$C,MATCH($J21&O$27,InIndex!$D:$D,0),0) -> 911.48 | P29: =IF(P28="N.A.","N.A.",IFERROR(($K$21/$O$29)^(12/($K$18-O26))-1,"N.A.")) -> 0.01632892042 | Q29: =IF(Q28="N.A.","N.A.",IFERROR(($K$21/$Q$21)^(12/($K$18-Q18))-1,"N.A.")) -> 0.01279364263 | R29: =IF(R28="N.A.","N.A.",IFERROR(IF(K18<=12,($K$21/$R$21)-1,($K$21/$R$21)^(12/K18)-1),"N.A.")) -> 0.02992599481 | S29: =IF(S28="N.A.","N.A.",IFERROR(($K$21/$S$21)^(12/($K$18-S18))-1,"N.A.")) -> N.A. | T29: 2015-09-28 | U29: 1.0293 | V29: 884.79 | W29: 1608.43 | X29: 10852.33 | Y29: 16214421.8 | Z29: 1.0293 | AA29: 0.0293 | AB29: 0.04194684221 | AC29: 0.01642400344 | AD29: 0.02528364027 | AE29: 0.0293 | AJ29: 0
F30: YTLPOWR | G30: YTL Power International Berhad | H30: 0.03252536422 | O30: =INDEX(InIndex!$C:$C,MATCH($J22&O$27,InIndex!$D:$D,0),0) -> 1671.54 | P30: =IF(P29="N.A.","N.A.",IFERROR(($K$22/$O$30)^(12/($K$18-O26))-1,"N.A.")) -> 0.003580104462 | Q30: =IF(Q29="N.A.","N.A.",IFERROR(($K$22/$Q$22)^(12/($K$18-Q18))-1,"N.A.")) -> 0.00313402977 | R30: =IF(R29="N.A.","N.A.",IFERROR(IF(K18<=12,($K$22/$R$22)-1,($K$22/$R$22)^(12/K18)-1),"N.A.")) -> 0.01785025053 | S30: =IF(S29="N.A.","N.A.",IFERROR(($K$22/$S$22)^(12/($K$18-S18))-1,"N.A.")) -> N.A. | T30: 2015-09-29 | U30: 1.0277 | V30: 882.13 | W30: 1603.32 | X30: 10813.42 | Y30: 16214421.8 | Z30: 1.0277 | AA30: 0.0277 | AB30: 0.03881437168 | AC30: 0.01319481307 | AD30: 0.02160758301 | AE30: 0.0277 | AJ30: 0
F31: SIME | G31: Sime Darby Berhad | H31: 0.02579878182 | O31: =INDEX(InIndex!$C:$C,MATCH($J23&O$27,InIndex!$D:$D,0),0) -> 11440.67 | P31: =IF(P30="N.A.","N.A.",IFERROR(($K$23/$O$31)^(12/($K$18-O26))-1,"N.A.")) -> 0.004558398866 | Q31: =IF(Q30="N.A.","N.A.",IFERROR(($K$23/$Q$23)^(12/($K$18-Q18))-1,"N.A.")) -> 0.007780712873 | R31: =IF(R30="N.A.","N.A.",IFERROR(IF(K18<=12,($K$23/$R$23)-1,($K$23/$R$23)^(12/K18)-1),"N.A.")) -> 0.0251276882 | S31: =IF(S30="N.A.","N.A.",IFERROR(($K$23/$S$23)^(12/($K$18-S18))-1,"N.A.")) -> N.A. | T31: 2015-09-30 | U31: 1.0335 | V31: 887.8 | W31: 1621.04 | X31: 10921.07 | Y31: 16214421.8 | Z31: 1.0335 | AA31: 0.0335 | AB31: 0.04549147992 | AC31: 0.02439270999 | AD31: 0.03177791361 | AE31: 0.0335 | AJ31: 0
O32: 2 year | P32: 2 year Annual | Q32: 3 year Annual | R32: Inception Annual | S32: 5Year Annual | T32: 2015-10-01 | U32: 1.0337 | V32: 888.03 | W32: 1633.93 | X32: 10991.57 | Y32: 16698214.7 | Z32: 1.0337 | AA32: 0.0337 | AB32: 0.04576233263 | AC32: 0.03253835848 | AD32: 0.03843846454 | AE32: 0.0337 | AJ32: 0
T33: 2015-10-02 | U33: 1.0306 | V33: 885.84 | W33: 1628.8 | X33: 10967.31 | Y33: 16698214.7 | Z33: 1.0306 | AA33: 0.0306 | AB33: 0.04318334374 | AC33: 0.02929652941 | AD33: 0.03614647921 | AE33: 0.0306 | AJ33: 0
T34: 2015-10-05 | U34: 1.039 | V34: 897.08 | W34: 1647.59 | X34: 11077.39 | Y34: 16698214.7 | Z34: 1.039 | AA34: 0.039 | AB34: 0.05641979816 | AC34: 0.04117059731 | AD34: 0.04654638625 | AE34: 0.039 | AJ34: 0
T35: 2015-10-06 | U35: 1.0492 | V35: 905 | W35: 1662.51 | X35: 11164.19 | Y35: 16698214.7 | Z35: 1.0492 | AA35: 0.0492 | AB35: 0.06574655252 | AC35: 0.05059907485 | AD35: 0.05474689434 | AE35: 0.0492 | AJ35: 0
T36: 2015-10-07 | U36: 1.0677 | V36: 916.03 | W36: 1689.25 | X36: 11360.53 | Y36: 16698214.7 | Z36: 1.0677 | AA36: 0.0677 | AB36: 0.07873570663 | AC36: 0.0674970299 | AD36: 0.07329629248 | AE36: 0.0677 | AJ36: 0
T37: 2015-10-08 | U37: 1.0718 | V37: 915.86 | W37: 1692.2 | X37: 11339.55 | Y37: 16698214.7 | Z37: 1.0718 | AA37: 0.0718 | AB37: 0.07853551115 | AC37: 0.0693612396 | AD37: 0.07131418811 | AE37: 0.0718 | AJ37: 0
T38: 2015-10-09 | U38: 1.0779 | V38: 925.65 | W38: 1706.54 | X38: 11439.34 | Y38: 16698214.7 | Z38: 1.0779 | AA38: 0.0779 | AB38: 0.09006441584 | AC38: 0.07842319456 | AD38: 0.08074193814 | AE38: 0.0779 | AJ38: 0
T39: 2015-10-12 | U39: 1.0765 | V39: 929.73 | W39: 1709.86 | X39: 11472.07 | Y39: 16698214.7 | Z39: 1.0765 | AA39: 0.0765 | AB39: 0.09486910748 | AC39: 0.08052122039 | AD39: 0.08383413433 | AE39: 0.0765 | AJ39: 0
T40: 2015-10-13 | U40: 1.0789 | V40: 929.81 | W40: 1711.14 | X40: 11477.8 | Y40: 16930448.79 | Z40: 1.0789 | AA40: 0.0789 | AB40: 0.09496331712 | AC40: 0.08133009782 | AD40: 0.08437548124 | AE40: 0.0789 | AJ40: 0
T41: 2015-10-15 | U41: 1.0808 | V41: 931.42 | W41: 1713.25 | X41: 11488.52 | Y41: 16930448.79 | Z41: 1.0808 | AA41: 0.0808 | AB41: 0.09685928613 | AC41: 0.08266348171 | AD41: 0.08538826288 | AE41: 0.0808 | AJ41: 0
T42: 2015-10-16 | U42: 1.0857 | V42: 931.01 | W42: 1716.82 | X42: 11509.05 | Y42: 16930448.83 | Z42: 1.0857 | AA42: 0.0857 | AB42: 0.09637646172 | AC42: 0.08491949142 | AD42: 0.0873278531 | AE42: 0.0857 | AJ42: 0
T43: 2015-10-19 | U43: 1.085 | V43: 933.05 | W43: 1718.2 | X43: 11527.1 | Y43: 16930448.83 | Z43: 1.085 | AA43: 0.085 | AB43: 0.09877880754 | AC43: 0.0857915624 | AD43: 0.08903314309 | AE43: 0.085 | AJ43: 0
T44: 2015-10-20 | U44: 1.0744 | V44: 929.06 | W44: 1705.03 | X44: 11461.5 | Y44: 16930448.83 | Z44: 1.0744 | AA44: 0.0744 | AB44: 0.09408010175 | AC44: 0.07746897197 | AD44: 0.08283552407 | AE44: 0.0744 | AJ44: 0
T45: 2015-10-21 | U45: 1.0768 | V45: 928.99 | W45: 1707.11 | X45: 11478.9 | Y45: 16930448.83 | Z45: 1.0768 | AA45: 0.0768 | AB45: 0.09399766831 | AC45: 0.07878339779 | AD45: 0.08447940473 | AE45: 0.0768 | AJ45: 0
T46: 2015-10-22 | U46: 1.0721 | V46: 927.99 | W46: 1705.09 | X46: 11477.35 | Y46: 16930448.83 | Z46: 1.0721 | AA46: 0.0721 | AB46: 0.09282004781 | AC46: 0.0775068881 | AD46: 0.08433296708 | AE46: 0.0721 | AJ46: 0
T47: 2015-10-23 | U47: 1.0747 | V47: 930.97 | W47: 1710.93 | X47: 11524.79 | Y47: 16930448.83 | Z47: 1.0747 | AA47: 0.0747 | AB47: 0.0963293569 | AC47: 0.08119739137 | AD47: 0.08881490376 | AE47: 0.0747 | AJ47: 0
T48: 2015-10-26 | U48: 1.0711 | V48: 926.44 | W48: 1706.79 | X48: 11494.8 | Y48: 16930448.83 | Z48: 1.0711 | AA48: 0.0711 | AB48: 0.09099473604 | AC48: 0.07858117843 | AD48: 0.08598157153 | AE48: 0.0711 | AJ48: 0
T49: 2015-10-27 | U49: 1.0653 | V49: 921.06 | W49: 1696.95 | X49: 11426.48 | Y49: 16930448.83 | Z49: 1.0653 | AA49: 0.0653 | AB49: 0.08465913775 | AC49: 0.07236293319 | AD49: 0.07952697807 | AE49: 0.0653 | AJ49: 0
T50: 2015-10-28 | U50: 1.0627 | V50: 915.91 | W50: 1686.51 | X50: 11362.75 | Y50: 16930448.83 | Z50: 1.0627 | AA50: 0.0627 | AB50: 0.07859439217 | AC50: 0.06576552666 | AD50: 0.07350602898 | AE50: 0.0627 | AJ50: 0
T51: 2015-10-29 | U51: 1.052 | V51: 907.28 | W51: 1666.98 | X51: 11258.26 | Y51: 16930448.83 | Z51: 1.052 | AA51: 0.052 | AB51: 0.06843152726 | AC51: 0.0534238265 | AD51: 0.06363424222 | AE51: 0.052 | AJ51: 0
T52: 2015-10-30 | U52: 1.0525 | V52: 906.1 | W52: 1665.71 | X52: 11256.03 | Y52: 16930448.83 | Z52: 1.0525 | AA52: 0.0525 | AB52: 0.06704193507 | AC52: 0.05262126842 | AD52: 0.06342356097 | AE52: 0.0525 | AJ52: 0
T53: 2015-10-31 | U53: 1.0525 | V53: 906.1 | W53: 1665.71 | X53: 11256.03 | Y53: 16930448.83 | Z53: 1.0525 | AA53: 0.0525 | AB53: 0.06704193507 | AC53: 0.05262126842 | AD53: 0.06342356097 | AE53: 0.0525 | AJ53: 0
T54: 2015-11-02 | U54: 1.0523 | V54: 904.64 | W54: 1664.07 | X54: 11254.62 | Y54: 16930448.83 | Z54: 1.0523 | AA54: 0.0523 | AB54: 0.06532260914 | AC54: 0.05158489421 | AD54: 0.06329034995 | AE54: 0.0523 | AJ54: 0
T55: 2015-11-03 | U55: 1.0583 | V55: 910.88 | W55: 1677.56 | X55: 11336.03 | Y55: 16930448.83 | Z55: 1.0583 | AA55: 0.0583 | AB55: 0.07267096106 | AC55: 0.060109704 | AD55: 0.07098163294 | AE55: 0.0583 | AJ55: 0
T56: 2015-11-04 | U56: 1.0578 | V56: 911.89 | W56: 1685.62 | X56: 11387.77 | Y56: 16930448.83 | Z56: 1.0578 | AA56: 0.0578 | AB56: 0.07386035776 | AC56: 0.06520310407 | AD56: 0.07586981599 | AE56: 0.0578 | AJ56: 0
T57: 2015-11-05 | U57: 1.0579 | V57: 919.48 | W57: 1688.54 | X57: 11411.23 | Y57: 16930448.83 | Z57: 1.0579 | AA57: 0.0579 | AB57: 0.08279849736 | AC57: 0.0670483557 | AD57: 0.0780862206 | AE57: 0.0579 | AJ57: 0
T58: 2015-11-06 | U58: 1.0565 | V58: 919.17 | W58: 1685.7 | X58: 11407.18 | Y58: 16930448.83 | Z58: 1.0565 | AA58: 0.0565 | AB58: 0.082433435 | AC58: 0.06525365891 | AD58: 0.0777035932 | AE58: 0.0565 | AJ58: 0
T59: 2015-11-09 | U59: 1.0685 | V59: 921.56 | W59: 1686.11 | X59: 11418.35 | Y59: 16930448.83 | Z59: 1.0685 | AA59: 0.0685 | AB59: 0.085247948 | AC59: 0.06551275246 | AD59: 0.078758889 | AE59: 0.0685 | AJ59: 0
T60: 2015-11-11 | U60: 1.052 | V60: 911.64 | W60: 1665.32 | X60: 11289.58 | Y60: 16930448.83 | Z60: 1.052 | AA60: 0.052 | AB60: 0.07356595264 | AC60: 0.05237481358 | AD60: 0.0665932274 | AE60: 0.052 | AJ60: 0
T61: 2015-11-12 | U61: 1.0488 | V61: 912.98 | W61: 1663.2 | X61: 11272.14 | Y61: 16930448.83 | Z61: 1.0488 | AA61: 0.0488 | AB61: 0.07514396411 | AC61: 0.05103511034 | AD61: 0.06494556771 | AE61: 0.0488 | AJ61: 0
T62: 2015-11-13 | U62: 1.0446 | V62: 910.38 | W62: 1658.91 | X62: 11238.32 | Y62: 16930448.83 | Z62: 1.0446 | AA62: 0.0446 | AB62: 0.07208215081 | AC62: 0.04832410708 | AD62: 0.06175039278 | AE62: 0.0446 | AJ62: 0
T63: 2015-11-16 | U63: 1.0464 | V63: 909.85 | W63: 1656 | X63: 11213.19 | Y63: 16930448.83 | Z63: 1.0464 | AA63: 0.0464 | AB63: 0.07145801194 | AC63: 0.04648517479 | AD63: 0.05937621342 | AE63: 0.0464
T64: 2015-11-17 | U64: 1.0483 | V64: 912.71 | W64: 1661.53 | X64: 11257.44 | Y64: 16930448.83 | Z64: 1.0483 | AA64: 0.0483 | AB64: 0.07482600657 | AC64: 0.04997977806 | AD64: 0.06355677199 | AE64: 0.0483
T65: 2015-11-18 | U65: 1.0451 | V65: 909.26 | W65: 1656.5 | X65: 11228.54 | Y65: 16930448.83 | Z65: 1.0451 | AA65: 0.0451 | AB65: 0.07076321585 | AC65: 0.04680114254 | AD65: 0.06082641848 | AE65: 0.0451
T66: 2015-11-19 | U66: 1.0449 | V66: 911.32 | W66: 1660.06 | X66: 11241.41 | Y66: 16930448.83 | Z66: 1.0449 | AA66: 0.0449 | AB66: 0.07318911408 | AC66: 0.04905083289 | AD66: 0.06204232331 | AE66: 0.0449
T67: 2015-11-20 | U67: 1.0525 | V67: 914.77 | W67: 1661.89 | X67: 11267.38 | Y67: 16930448.83 | Z67: 1.0525 | AA67: 0.0525 | AB67: 0.0772519048 | AC67: 0.05020727484 | AD67: 0.06449586243 | AE67: 0.0525
T68: 2015-11-23 | U68: 1.0559 | V68: 921.36 | W68: 1670.9 | X68: 11311.35 | Y68: 16930448.83 | Z68: 1.0559 | AA68: 0.0559 | AB68: 0.0850124239 | AC68: 0.05590101362 | AD68: 0.06864996774 | AE68: 0.0559
T69: 2015-11-24 | U69: 1.0581 | V69: 925.72 | W69: 1677.03 | X69: 11339.64 | Y69: 16930448.83 | Z69: 1.0581 | AA69: 0.0581 | AB69: 0.09014684928 | AC69: 0.05977477819 | AD69: 0.07132269094 | AE69: 0.0581
T70: 2015-11-25 | U70: 1.0628 | V70: 927.98 | W70: 1684.42 | X70: 11377.15 | Y70: 16930448.83 | Z70: 1.0628 | AA70: 0.0628 | AB70: 0.09280827161 | AC70: 0.06444478148 | AD70: 0.07486648193 | AE70: 0.0628
T71: 2015-11-26 | U71: 1.0652 | V71: 927.36 | W71: 1683.09 | X71: 11374.46 | Y71: 16930448.83 | Z71: 1.0652 | AA71: 0.0652 | AB71: 0.0920781469 | AC71: 0.06360430727 | AD71: 0.07461234176 | AE71: 0.0652
T72: 2015-11-27 | U72: 1.0633 | V72: 924.53 | W72: 1682.59 | X72: 11366.22 | Y72: 16930448.83 | Z72: 1.0633 | AA72: 0.0633 | AB72: 0.08874548088 | AC72: 0.06328833953 | AD72: 0.07383386035 | AE72: 0.0633
T73: 2015-11-30 | U73: 1.0459 | V73: 915.39 | W73: 1672.16 | X73: 11312.24 | Y73: 16930448.83 | Z73: 1.0459 | AA73: 0.0459 | AB73: 0.07798202951 | AC73: 0.05669725234 | AD73: 0.06873405129 | AE73: 0.0459
T74: 2015-12-01 | U74: 1.0575 | V74: 922.26 | W74: 1682.37 | X74: 11378.2 | Y74: 16930448.83 | Z74: 1.0575 | AA74: 0.0575 | AB74: 0.08607228235 | AC74: 0.06314931372 | AD74: 0.07496568163 | AE74: 0.0575
T75: 2015-12-02 | U75: 1.0553 | V75: 922.2 | W75: 1676.77 | X75: 11345.37 | Y75: 16930448.83 | Z75: 1.0553 | AA75: 0.0553 | AB75: 0.08600162512 | AC75: 0.05961047496 | AD75: 0.07186403784 | AE75: 0.0553
T76: 2015-12-03 | U76: 1.0521 | V76: 920.75 | W76: 1673.92 | X76: 11317.34 | Y76: 16930448.83 | Z76: 1.0521 | AA76: 0.0521 | AB76: 0.08429407539 | AC76: 0.05780945881 | AD76: 0.06921587838 | AE76: 0.0521
T77: 2015-12-04 | U77: 1.0532 | V77: 920.6 | W77: 1667.87 | X77: 11293.26 | Y77: 16930448.83 | Z77: 1.0532 | AA77: 0.0532 | AB77: 0.08411743232 | AC77: 0.05398624908 | AD77: 0.06694089871 | AE77: 0.0532
T78: 2015-12-07 | U78: 1.0564 | V78: 922.61 | W78: 1672 | X78: 11337.08 | Y78: 16930448.83 | Z78: 1.0564 | AA78: 0.0564 | AB78: 0.08648444952 | AC78: 0.05659614267 | AD78: 0.07108083263 | AE78: 0.0564
T79: 2015-12-08 | U79: 1.053 | V79: 920.92 | W79: 1669.24 | X79: 11318.55 | Y79: 16930448.83 | Z79: 1.053 | AA79: 0.053 | AB79: 0.08449427088 | AC79: 0.05485200071 | AD79: 0.06933019421 | AE79: 0.053
T80: 2015-12-09 | U80: 1.0554 | V80: 916.62 | W80: 1659.36 | X80: 11247.02 | Y80: 16930448.83 | Z80: 1.0554 | AA80: 0.0554 | AB80: 0.07943050273 | AC80: 0.04860847805 | AD80: 0.06257233311 | AE80: 0.0554
T81: 2015-12-10 | U81: 1.0496 | V81: 913.52 | W81: 1648.65 | X81: 11187.42 | Y81: 16930448.83 | Z81: 1.0496 | AA81: 0.0496 | AB81: 0.07577987918 | AC81: 0.04184044893 | AD81: 0.05694156949 | AE81: 0.0496
T82: 2015-12-11 | U82: 1.0405 | V82: 907.19 | W82: 1640.14 | X82: 11115.51 | Y82: 16930448.83 | Z82: 1.0405 | AA82: 0.0405 | AB82: 0.06832554141 | AC82: 0.03646267789 | AD82: 0.05014780755 | AE82: 0.0405
T83: 2015-12-14 | U83: 1.0365 | V83: 898.97 | W83: 1629.96 | X83: 11043.9 | Y83: 16930448.83 | Z83: 1.0365 | AA83: 0.0365 | AB83: 0.0586455009 | AC83: 0.03002957458 | AD83: 0.04338238837 | AE83: 0.0365
T84: 2015-12-15 | U84: 1.0366 | V84: 896.5 | W84: 1622.84 | X84: 11017.94 | Y84: 16930448.83 | Z84: 1.0366 | AA84: 0.0366 | AB84: 0.05573677827 | AC84: 0.02553019388 | AD84: 0.04092979401 | AE84: 0.0366
T85: 2015-12-16 | U85: 1.0458 | V85: 906.52 | W85: 1634.13 | X85: 11104.97 | Y85: 16930448.83 | Z85: 1.0458 | AA85: 0.0458 | AB85: 0.06753653568 | AC85: 0.03266474558 | AD85: 0.04915203156 | AE85: 0.0458
T86: 2015-12-17 | U86: 1.0552 | V86: 918.09 | W86: 1656.52 | X86: 11257.72 | Y86: 16930448.83 | Z86: 1.0552 | AA86: 0.0552 | AB86: 0.08116160486 | AC86: 0.04681378125 | AD86: 0.06358322524 | AE86: 0.0552
T87: 2015-12-18 | U87: 1.0449 | V87: 909.66 | W87: 1643.9 | X87: 11158.24 | Y87: 16930448.83 | Z87: 1.0449 | AA87: 0.0449 | AB87: 0.07123426405 | AC87: 0.03883875534 | AD87: 0.05418476274 | AE87: 0.0449
T88: 2015-12-21 | U88: 1.0355 | V88: 903.41 | W88: 1629.09 | X88: 11080.69 | Y88: 16930448.83 | Z88: 1.0355 | AA88: 0.0355 | AB88: 0.06387413592 | AC88: 0.0294797907 | AD88: 0.04685815672 | AE88: 0.0355
T89: 2015-12-22 | U89: 1.0442 | V89: 911.35 | W89: 1643.26 | X89: 11177.68 | Y89: 16930448.83 | Z89: 1.0442 | AA89: 0.0442 | AB89: 0.07322444269 | AC89: 0.03843431662 | AD89: 0.05602137423 | AE89: 0.0442
T90: 2015-12-23 | U90: 1.0542 | V90: 921.09 | W90: 1663.51 | X90: 11302.45 | Y90: 16930448.83 | Z90: 1.0542 | AA90: 0.0542 | AB90: 0.08469446636 | AC90: 0.05123101034 | AD90: 0.06780913223 | AE90: 0.0542
T91: 2015-12-28 | U91: 1.0594 | V91: 923.83 | W91: 1670.73 | X91: 11346.81 | Y91: 16930448.83 | Z91: 1.0594 | AA91: 0.0594 | AB91: 0.08792114653 | AC91: 0.05579358459 | AD91: 0.07200008314 | AE91: 0.0594
T92: 2015-12-29 | U92: 1.0602 | V92: 931.34 | W92: 1685.36 | X92: 11437.96 | Y92: 64126975.17 | Z92: 1.0602 | AA92: 0.0602 | AB92: 0.09676507649 | AC92: 0.06503880084 | AD92: 0.08061156139 | AE92: 0.0602
T93: 2015-12-30 | U93: 1.0618 | V93: 934.73 | W93: 1693.14 | X93: 11463.03 | Y93: 64126975.17 | Z93: 1.0618 | AA93: 0.0618 | AB93: 0.10075721 | AC93: 0.06995525897 | AD93: 0.0829800722 | AE93: 0.0618
T94: 2015-12-31 | U94: 1.0599 | V94: 933.17 | W94: 1692.51 | X94: 11470.57 | Y94: 64126975.17 | Z94: 1.0599 | AA94: 0.0599 | AB94: 0.098920122 | AC94: 0.06955713961 | AD94: 0.08369242048 | AE94: 0.0599
T95: 2016-01-04 | U95: 1.0526 | V95: 914.36 | W95: 1653.37 | X95: 11236.44 | Y95: 64126975.17 | Z95: 1.0526 | AA95: 0.0526 | AB95: 0.0767690804 | AC95: 0.04482318445 | AD95: 0.06157277809 | AE95: 0.0526
T96: 2016-01-05 | U96: 1.057 | V96: 921.1 | W96: 1665.7 | X96: 11319.07 | Y96: 64126975.17 | Z96: 1.057 | AA96: 0.057 | AB96: 0.08470624257 | AC96: 0.05261494907 | AD96: 0.06937932168 | AE96: 0.057
T97: 2016-01-06 | U97: 1.0576 | V97: 921.3 | W97: 1667.97 | X97: 11360.87 | Y97: 111430664.9 | Z97: 1.0576 | AA97: 0.0576 | AB97: 0.08494176667 | AC97: 0.05404944263 | AD97: 0.07332841429 | AE97: 0.0576
T98: 2016-01-07 | U98: 1.0543 | V98: 915.81 | W98: 1655.13 | X98: 11270.42 | Y98: 111430664.9 | Z98: 1.0543 | AA98: 0.0543 | AB98: 0.07847663012 | AC98: 0.04593539092 | AD98: 0.06478306916 | AE98: 0.0543
T99: 2016-01-08 | U99: 1.0546 | V99: 916.1 | W99: 1657.61 | X99: 11289.97 | Y99: 111430664.9 | Z99: 1.0546 | AA99: 0.0546 | AB99: 0.07881814007 | AC99: 0.04750259094 | AD99: 0.066630073 | AE99: 0.0546
T100: 2016-01-11 | U100: 1.0468 | V100: 904.23 | W100: 1637.59 | X100: 11161.51 | Y100: 111430664.9 | Z100: 1.0468 | AA100: 0.0468 | AB100: 0.06483978473 | AC100: 0.03485124239 | AD100: 0.05449369893 | AE100: 0.0468
T101: 2016-01-12 | U101: 1.046 | V101: 906.52 | W101: 1641.37 | X101: 11177.11 | Y101: 111430664.9 | Z101: 1.046 | AA101: 0.046 | AB101: 0.06753653568 | AC101: 0.03723995855 | AD101: 0.05596752296 | AE101: 0.046
T102: 2016-01-13 | U102: 1.0464 | V102: 906.34 | W102: 1642.54 | X102: 11186.01 | Y102: 111430664.9 | Z102: 1.0464 | AA102: 0.0464 | AB102: 0.06732456399 | AC102: 0.03797932307 | AD102: 0.05680835847 | AE102: 0.0464
T103: 2016-01-14 | U103: 1.044 | V103: 901.58 | W103: 1633.44 | X103: 11119.74 | Y103: 111430664.9 | Z103: 1.044 | AA103: 0.044 | AB103: 0.06171909041 | AC103: 0.03222871009 | AD103: 0.0505474406 | AE103: 0.044
T104: 2016-01-15 | U104: 1.0423 | V104: 899.62 | W104: 1628.55 | X104: 11093.6 | Y104: 159323385.2 | Z104: 1.0423 | AA104: 0.0423 | AB104: 0.05941095423 | AC104: 0.02913854554 | AD104: 0.04807784058 | AE104: 0.0423
T105: 2016-01-18 | U105: 1.0389 | V105: 896.35 | W105: 1622.64 | X105: 11048.25 | Y105: 159323385.2 | Z105: 1.0389 | AA105: 0.0389 | AB105: 0.05556013519 | AC105: 0.02540380678 | AD105: 0.04379335853 | AE105: 0.0389
T106: 2016-01-19 | U106: 1.0426 | V106: 899.2 | W106: 1629.22 | X106: 11095.27 | Y106: 159323385.2 | Z106: 1.0426 | AA106: 0.0426 | AB106: 0.05891635362 | AC106: 0.02956194232 | AD106: 0.04823561534 | AE106: 0.0426
T107: 2016-01-20 | U107: 1.0384 | V107: 894.08 | W107: 1618.83 | X107: 11008.98 | Y107: 159323385.2 | Z107: 1.0384 | AA107: 0.0384 | AB107: 0.05288693666 | AC107: 0.02299613255 | AD107: 0.04008328995 | AE107: 0.0384
T108: 2016-01-21 | U108: 1.0288 | V108: 884.11 | W108: 1600.92 | X108: 10881.41 | Y108: 159323385.2 | Z108: 1.0288 | AA108: 0.0288 | AB108: 0.04114606027 | AC108: 0.01167816789 | AD108: 0.02803099943 | AE108: 0.0288
T109: 2016-01-22 | U109: 1.0389 | V109: 896.16 | W109: 1625.21 | X109: 11030.15 | Y109: 207923696.2 | Z109: 1.0389 | AA109: 0.0389 | AB109: 0.0553363873 | AC109: 0.02702788099 | AD109: 0.04208334475 | AE109: 0.0389
T110: 2016-01-26 | U110: 1.0373 | V110: 894.84 | W110: 1626.66 | X110: 11013.59 | Y110: 207923696.2 | Z110: 1.0373 | AA110: 0.0373 | AB110: 0.05378192824 | AC110: 0.02794418746 | AD110: 0.04051882385 | AE110: 0.0373
T111: 2016-01-27 | U111: 1.0393 | V111: 897.34 | W111: 1631.54 | X111: 11041.91 | Y111: 207923696.2 | Z111: 1.0393 | AA111: 0.0393 | AB111: 0.05672597949 | AC111: 0.03102803266 | AD111: 0.04319438133 | AE111: 0.0393
T112: 2016-01-28 | U112: 1.0421 | V112: 893.81 | W112: 1634.53 | X112: 11066.83 | Y112: 207923696.2 | Z112: 1.0421 | AA112: 0.0421 | AB112: 0.05256897912 | AC112: 0.03291751978 | AD112: 0.04554872075 | AE112: 0.0421
T113: 2016-01-29 | U113: 1.0555 | V113: 906.26 | W113: 1667.8 | X113: 11279.86 | Y113: 207923696.2 | Z113: 1.0555 | AA113: 0.0555 | AB113: 0.06723035435 | AC113: 0.0539420136 | AD113: 0.06567492166 | AE113: 0.0555
T114: 2016-01-31 | U114: 1.0556 | V114: 906.26 | W114: 1667.8 | X114: 11279.86 | Y114: 207923696.2 | Z114: 1.0556 | AA114: 0.0556 | AB114: 0.06723035435 | AC114: 0.0539420136 | AD114: 0.06567492166 | AE114: 0.0556
T115: 2016-02-02 | U115: 1.0502 | V115: 903.08 | W115: 1653.18 | X115: 11207.05 | Y115: 207923696.2 | Z115: 1.0502 | AA115: 0.0502 | AB115: 0.06348552116 | AC115: 0.04470311671 | AD115: 0.0587961314 | AE115: 0.0502
T116: 2016-02-03 | U116: 1.0424 | V116: 892.34 | W116: 1633.3 | X116: 11085.51 | Y116: 207923696.2 | Z116: 1.0424 | AA116: 0.0424 | AB116: 0.05083787699 | AC116: 0.03214023912 | AD116: 0.04731353055 | AE116: 0.0424
T117: 2016-02-04 | U117: 1.0537 | V117: 903.75 | W117: 1656.77 | X117: 11225.83 | Y117: 207923696.2 | Z117: 1.0537 | AA117: 0.0537 | AB117: 0.06427452689 | AC117: 0.04697176512 | AD117: 0.0605703888 | AE117: 0.0537
T118: 2016-02-05 | U118: 1.0558 | V118: 904.59 | W118: 1662.46 | X118: 11233.8 | Y118: 207923696.2 | Z118: 1.0558 | AA118: 0.0558 | AB118: 0.06526372811 | AC118: 0.05056747807 | AD118: 0.06132336172 | AE118: 0.0558
T119: 2016-02-10 | U119: 1.0487 | V119: 898.08 | W119: 1644.41 | X119: 11118.8 | Y119: 207923696.2 | Z119: 1.0487 | AA119: 0.0487 | AB119: 0.05759741866 | AC119: 0.03916104244 | AD119: 0.05045863325 | AE119: 0.0487
T120: 2016-02-11 | U120: 1.0481 | V120: 897.27 | W120: 1643.95 | X120: 11112.16 | Y120: 207923696.2 | Z120: 1.0481 | AA120: 0.0481 | AB120: 0.05664354605 | AC120: 0.03887035211 | AD120: 0.04983131328 | AE120: 0.0481
T121: 2016-02-12 | U121: 1.0499 | V121: 898.04 | W121: 1643.74 | X121: 11113.69 | Y121: 207923696.2 | Z121: 1.0499 | AA121: 0.0499 | AB121: 0.05755031384 | AC121: 0.03873764566 | AD121: 0.04997586141 | AE121: 0.0499
T122: 2016-02-15 | U122: 1.0536 | V122: 901.52 | W122: 1649.96 | X122: 11149.54 | Y122: 207923696.2 | Z122: 1.0536 | AA122: 0.0536 | AB122: 0.06164843318 | AC122: 0.04266828442 | AD122: 0.05336282241 | AE122: 0.0536
T123: 2016-02-16 | U123: 1.0607 | V123: 908.22 | W123: 1664.99 | X123: 11240.96 | Y123: 207923696.2 | Z123: 1.0607 | AA123: 0.0607 | AB123: 0.06953849053 | AC123: 0.05216627487 | AD123: 0.06199980916 | AE123: 0.0607
T124: 2016-02-17 | U124: 1.0602 | V124: 909.01 | W124: 1664.32 | X124: 11254.02 | Y124: 207923696.2 | Z124: 1.0602 | AA124: 0.0602 | AB124: 0.07046881072 | AC124: 0.05174287809 | AD124: 0.06323366441 | AE124: 0.0602
T125: 2016-02-18 | U125: 1.0694 | V125: 914.65 | W125: 1680.02 | X125: 11356.75 | Y125: 207923696.2 | Z125: 1.0694 | AA125: 0.0694 | AB125: 0.07711059034 | AC125: 0.06166426531 | AD125: 0.07293917358 | AE125: 0.0694
T126: 2016-02-19 | U126: 1.0687 | V126: 914.25 | W126: 1674.88 | X126: 11319.95 | Y126: 207923696.2 | Z126: 1.0687 | AA126: 0.0687 | AB126: 0.07663954214 | AC126: 0.05841611688 | AD126: 0.06946246047 | AE126: 0.0687
T127: 2016-02-22 | U127: 1.0684 | V127: 913.87 | W127: 1674.59 | X127: 11334.02 | Y127: 207923696.2 | Z127: 1.0684 | AA127: 0.0684 | AB127: 0.07619204635 | AC127: 0.05823285559 | AD127: 0.07079173638 | AE127: 0.0684
T128: 2016-02-23 | U128: 1.0688 | V128: 915.12 | W128: 1677.28 | X128: 11355.37 | Y128: 207923696.2 | Z128: 1.0688 | AA128: 0.0688 | AB128: 0.07766407198 | AC128: 0.05993276206 | AD128: 0.07280879684 | AE128: 0.0688
T129: 2016-02-24 | U129: 1.0648 | V129: 909.03 | W129: 1664.17 | X129: 11276.79 | Y129: 207923696.2 | Z129: 1.0648 | AA129: 0.0648 | AB129: 0.07049236313 | AC129: 0.05164808776 | AD129: 0.06538488064 | AE129: 0.0648
T130: 2016-02-25 | U130: 1.0615 | V130: 905.83 | W130: 1658.16 | X130: 11235.5 | Y130: 207923696.2 | Z130: 1.0615 | AA130: 0.0615 | AB130: 0.06672397753 | AC130: 0.04785015546 | AD130: 0.06148397075 | AE130: 0.0615
T131: 2016-02-26 | U131: 1.0656 | V131: 905.9 | W131: 1663.44 | X131: 11245.43 | Y131: 207923696.2 | Z131: 1.0656 | AA131: 0.0656 | AB131: 0.06680641097 | AC131: 0.05118677485 | AD131: 0.06242211643 | AE131: 0.0656
T132: 2016-02-29 | U132: 1.0649 | V132: 904.16 | W132: 1654.75 | X132: 11207.93 | Y132: 207923696.2 | Z132: 1.0649 | AA132: 0.0649 | AB132: 0.0647573513 | AC132: 0.04569525543 | AD132: 0.05887927019 | AE132: 0.0649
T133: 2016-03-01 | U133: 1.07 | V133: 910.84 | W133: 1670.82 | X133: 11302.17 | Y133: 207923696.2 | Z133: 1.07 | AA133: 0.07 | AB133: 0.07262385624 | AC133: 0.05585045879 | AD133: 0.06778267898 | AE133: 0.07
T134: 2016-03-02 | U134: 1.082 | V134: 921.48 | W134: 1691.03 | X134: 11423.02 | Y134: 207923696.2 | Z134: 1.082 | AA134: 0.082 | AB134: 0.08515373836 | AC134: 0.06862187508 | AD134: 0.07920009145 | AE134: 0.082
T135: 2016-03-03 | U135: 1.0789 | V135: 919.66 | W135: 1688.2 | X135: 11414.81 | Y135: 207923696.2 | Z135: 1.0789 | AA135: 0.0789 | AB135: 0.08301046905 | AC135: 0.06683349764 | AD135: 0.07842444432 | AE135: 0.0789
T136: 2016-03-04 | U136: 1.0823 | V136: 922.73 | W136: 1692.49 | X136: 11430.73 | Y136: 207923696.2 | Z136: 1.0823 | AA136: 0.0823 | AB136: 0.08662576398 | AC136: 0.0695445009 | AD136: 0.07992850064 | AE136: 0.0823
T137: 2016-03-07 | U137: 1.0769 | V137: 920.5 | W137: 1697.93 | X137: 11438.52 | Y137: 207923696.2 | Z137: 1.0769 | AA137: 0.0769 | AB137: 0.08399967027 | AC137: 0.07298222997 | AD137: 0.0806644679 | AE137: 0.0769
T138: 2016-03-08 | U138: 1.0697 | V138: 915.81 | W138: 1687.86 | X138: 11373.29 | Y138: 207923696.2 | Z138: 1.0697 | AA138: 0.0697 | AB138: 0.07847663012 | AC138: 0.06661863957 | AD138: 0.07450180496 | AE138: 0.0697
T139: 2016-03-09 | U139: 1.0697 | V139: 913.12 | W139: 1686.35 | X139: 11374.41 | Y139: 207923696.2 | Z139: 1.0697 | AA139: 0.0697 | AB139: 0.07530883098 | AC139: 0.06566441698 | AD139: 0.07460761797 | AE139: 0.0697
T140: 2016-03-10 | U140: 1.0743 | V140: 917.05 | W140: 1690.91 | X140: 11408.65 | Y140: 207923696.2 | Z140: 1.0743 | AA140: 0.0743 | AB140: 0.07993687954 | AC140: 0.06854604282 | AD140: 0.07784247277 | AE140: 0.0743
T141: 2016-03-11 | U141: 1.0761 | V141: 918.21 | W141: 1696.54 | X141: 11448.1 | Y141: 207923696.2 | Z141: 1.0761 | AA141: 0.0761 | AB141: 0.08130291932 | AC141: 0.07210383964 | AD141: 0.08156954702 | AE141: 0.0761
T142: 2016-03-14 | U142: 1.0778 | V142: 919.44 | W142: 1700.31 | X142: 11467.66 | Y142: 207923696.2 | Z142: 1.0778 | AA142: 0.0778 | AB142: 0.08275139254 | AC142: 0.07448623644 | AD142: 0.08341749561 | AE142: 0.0778
T143: 2016-03-15 | U143: 1.0761 | V143: 915.6 | W143: 1690.92 | X143: 11426.75 | Y143: 207923696.2 | Z143: 1.0761 | AA143: 0.0761 | AB143: 0.07822932982 | AC143: 0.06855236217 | AD143: 0.07955248656 | AE143: 0.0761
T144: 2016-03-16 | U144: 1.0777 | V144: 917.35 | W144: 1693.43 | X144: 11449.87 | Y144: 207923696.2 | Z144: 1.0777 | AA144: 0.0777 | AB144: 0.08029016569 | AC144: 0.07013852026 | AD144: 0.08173676936 | AE144: 0.0777
T145: 2016-03-17 | U145: 1.0822 | V145: 922.22 | W145: 1703.19 | X145: 11510.51 | Y145: 207923696.2 | Z145: 1.0822 | AA145: 0.0822 | AB145: 0.08602517753 | AC145: 0.07630621066 | AD145: 0.08746578791 | AE145: 0.0822
T146: 2016-03-18 | U146: 1.0866 | V146: 927.4 | W146: 1716.34 | X146: 11612 | Y146: 207923696.2 | Z146: 1.0866 | AA146: 0.0866 | AB146: 0.09212525172 | AC146: 0.08461616238 | AD146: 0.09705414697 | AE146: 0.0866
T147: 2016-03-21 | U147: 1.088 | V147: 927.82 | W147: 1718.36 | X147: 11607.68 | Y147: 207923696.2 | Z147: 1.088 | AA147: 0.088 | AB147: 0.09261985233 | AC147: 0.08589267208 | AD147: 0.09664601109 | AE147: 0.088
T148: 2016-03-22 | U148: 1.0892 | V148: 931.86 | W148: 1724.75 | X148: 11645.58 | Y148: 207923696.2 | Z148: 1.0892 | AA148: 0.0892 | AB148: 0.09737743915 | AC148: 0.08993073987 | AD148: 0.1002266477 | AE148: 0.0892
T149: 2016-03-23 | U149: 1.0896 | V149: 931.53 | W149: 1724.55 | X149: 11642.89 | Y149: 207923696.2 | Z149: 1.0896 | AA149: 0.0896 | AB149: 0.09698882438 | AC149: 0.08980435277 | AD149: 0.09997250751 | AE149: 0.0896
T150: 2016-03-24 | U150: 1.0907 | V150: 928.73 | W150: 1715.53 | X150: 11583.68 | Y150: 207923696.2 | Z150: 1.0907 | AA150: 0.0907 | AB150: 0.09369148698 | AC150: 0.08410429463 | AD150: 0.09437858949 | AE150: 0.0907
T151: 2016-03-25 | U151: 1.0842 | V151: 923.19 | W151: 1703.79 | X151: 11513.62 | Y151: 207923696.2 | Z151: 1.0842 | AA151: 0.0842 | AB151: 0.08716746941 | AC151: 0.07668537196 | AD151: 0.08775960796 | AE151: 0.0842
T152: 2016-03-28 | U152: 1.0839 | V152: 923.69 | W152: 1702.41 | X152: 11512.67 | Y152: 207923696.2 | Z152: 1.0839 | AA152: 0.0839 | AB152: 0.08775627966 | AC152: 0.07581330098 | AD152: 0.08766985586 | AE152: 0.0839
T153: 2016-03-29 | U153: 1.0887 | V153: 929.12 | W153: 1715.04 | X153: 11593.81 | Y153: 207923696.2 | Z153: 1.0887 | AA153: 0.0887 | AB153: 0.09415075898 | AC153: 0.08379464624 | AD153: 0.09533563036 | AE153: 0.0887
T154: 2016-03-30 | U154: 1.0911 | V154: 932.41 | W154: 1717.82 | X154: 11619.35 | Y154: 207923696.2 | Z154: 1.0911 | AA154: 0.0911 | AB154: 0.09802513042 | AC154: 0.08555142691 | AD154: 0.09774854483 | AE154: 0.0911
T155: 2016-03-31 | U155: 1.0932 | V155: 932.83 | W155: 1717.58 | X155: 11618.94 | Y155: 207923696.2 | Z155: 1.0932 | AA155: 0.0932 | AB155: 0.09851973103 | AC155: 0.08539976239 | AD155: 0.09770980972 | AE155: 0.0932
T156: 2016-04-01 | U156: 1.0881 | V156: 928.06 | W156: 1710.55 | X156: 11573.15 | Y156: 207923696.2 | Z156: 1.0881 | AA156: 0.0881 | AB156: 0.09290248125 | AC156: 0.08095725588 | AD156: 0.09338375827 | AE156: 0.0881
T157: 2016-04-04 | U157: 1.093 | V157: 934.28 | W157: 1725.24 | X157: 11668.18 | Y157: 207923696.2 | Z157: 1.093 | AA157: 0.093 | AB157: 0.1002272808 | AC157: 0.09024038826 | AD157: 0.102361803 | AE157: 0.093
T158: 2016-04-05 | U158: 1.0911 | V158: 932.89 | W158: 1718.08 | X158: 11635.07 | Y158: 207923696.2 | Z158: 1.0911 | AA158: 0.0911 | AB158: 0.09859038826 | AC158: 0.08571573014 | AD158: 0.09923370598 | AE158: 0.0911
T159: 2016-04-06 | U159: 1.0897 | V159: 933.13 | W159: 1717.01 | X159: 11625.45 | Y159: 207923696.2 | Z159: 1.0897 | AA159: 0.0897 | AB159: 0.09887301718 | AC159: 0.08503955916 | AD159: 0.09832484782 | AE159: 0.0897
T160: 2016-04-07 | U160: 1.0949 | V160: 939.64 | W160: 1724.29 | X160: 11673.58 | Y160: 207923696.2 | Z160: 1.0949 | AA160: 0.0949 | AB160: 0.1065393266 | AC160: 0.08964004954 | AD160: 0.1028719729 | AE160: 0.0949
T161: 2016-04-08 | U161: 1.0914 | V161: 935.81 | W161: 1718.4 | X161: 11646.47 | Y161: 207923696.2 | Z161: 1.0914 | AA161: 0.0914 | AB161: 0.1020290401 | AC161: 0.0859179495 | AD161: 0.1003107312 | AE161: 0.0914
T162: 2016-04-11 | U162: 1.0922 | V162: 934.71 | W162: 1715.28 | X162: 11616.58 | Y162: 207923696.2 | Z162: 1.0922 | AA162: 0.0922 | AB162: 0.1007336576 | AC162: 0.08394631076 | AD162: 0.09748684659 | AE162: 0.0922
T163: 2016-04-12 | U163: 1.089 | V163: 934.29 | W163: 1715 | X163: 11620.57 | Y163: 207923696.2 | Z163: 1.089 | AA163: 0.089 | AB163: 0.100239057 | AC163: 0.08376936882 | AD163: 0.09786380543 | AE163: 0.089
T164: 2016-04-13 | U164: 1.0913 | V164: 937.37 | W164: 1723.11 | X164: 11659.14 | Y164: 207923696.2 | Z164: 1.0913 | AA164: 0.0913 | AB164: 0.1038661281 | AC164: 0.08889436566 | AD164: 0.1015077409 | AE164: 0.0913
T165: 2016-04-14 | U165: 1.0926 | V165: 939.48 | W165: 1723.78 | X165: 11664.54 | Y165: 207923696.2 | Z165: 1.0926 | AA165: 0.0926 | AB165: 0.1063509074 | AC165: 0.08931776244 | AD165: 0.1020179107 | AE165: 0.0926
T166: 2016-04-15 | U166: 1.0927 | V166: 940.81 | W166: 1727.99 | X166: 11693.21 | Y166: 207923696.2 | Z166: 1.0927 | AA166: 0.0927 | AB166: 0.1079171426 | AC166: 0.09197821086 | AD166: 0.1047265348 | AE166: 0.0927
T167: 2016-04-18 | U167: 1.0875 | V167: 934.71 | W167: 1717.68 | X167: 11618.77 | Y167: 207923696.2 | Z167: 1.0875 | AA167: 0.0875 | AB167: 0.1007336576 | AC167: 0.08546295594 | AD167: 0.09769374881 | AE167: 0.0875
T168: 2016-04-19 | U168: 1.0867 | V168: 932.51 | W168: 1711.15 | X168: 11583.87 | Y168: 207923696.2 | Z168: 1.0867 | AA168: 0.0867 | AB168: 0.09814289247 | AC168: 0.08133641718 | AD168: 0.09439653991 | AE168: 0.0867
T169: 2016-04-20 | U169: 1.0876 | V169: 931.41 | W169: 1708.91 | X169: 11577.75 | Y169: 208153750.5 | Z169: 1.0876 | AA169: 0.0876 | AB169: 0.09684750992 | AC169: 0.07992088168 | AD169: 0.09381834741 | AE169: 0.0876
T170: 2016-04-21 | U170: 1.0916 | V170: 936.53 | W170: 1721.47 | X170: 11661.77 | Y170: 208153750.5 | Z170: 1.0916 | AA170: 0.0916 | AB170: 0.1028769269 | AC170: 0.08785799146 | AD170: 0.1017562125 | AE170: 0.0916
T171: 2016-04-22 | U171: 1.0908 | V171: 935.34 | W171: 1717.96 | X171: 11627.98 | Y171: 208153750.5 | Z171: 1.0908 | AA171: 0.0908 | AB171: 0.1014755585 | AC171: 0.08563989788 | AD171: 0.09856387185 | AE171: 0.0908
T172: 2016-04-25 | U172: 1.0879 | V172: 932.76 | W172: 1714.51 | X172: 11597.31 | Y172: 208153750.5 | Z172: 1.0879 | AA172: 0.0879 | AB172: 0.0984372976 | AC172: 0.08345972043 | AD172: 0.09566629601 | AE172: 0.0879
T173: 2016-04-26 | U173: 1.08 | V173: 921.23 | W173: 1692.5 | X173: 11446.4 | Y173: 212060359.6 | Z173: 1.08 | AA173: 0.08 | AB173: 0.08485933323 | AC173: 0.06955082025 | AD173: 0.08140893799 | AE173: 0.08
T174: 2016-04-27 | U174: 1.0811 | V174: 922.17 | W174: 1692.34 | X174: 11453.24 | Y174: 212060359.6 | Z174: 1.0811 | AA174: 0.0811 | AB174: 0.0859662965 | AC174: 0.06944971057 | AD174: 0.08205515314 | AE174: 0.0811
T175: 2016-04-28 | U175: 1.075 | V175: 913.23 | W175: 1674.76 | X175: 11357.1 | Y175: 212060359.6 | Z175: 1.075 | AA175: 0.075 | AB175: 0.07543836923 | AC175: 0.05834028462 | AD175: 0.07297224015 | AE175: 0.075
T176: 2016-04-29 | U176: 1.0728 | V176: 912.77 | W176: 1672.72 | X176: 11334.19 | Y176: 212060359.6 | Z176: 1.0728 | AA176: 0.0728 | AB176: 0.0748966638 | AC176: 0.05705113622 | AD176: 0.07080779728 | AE176: 0.0728
T177: 2016-04-30 | U177: 1.0729 | V177: 912.77 | W177: 1672.72 | X177: 11334.19 | Y177: 212060359.6 | Z177: 1.0729 | AA177: 0.0729 | AB177: 0.0748966638 | AC177: 0.05705113622 | AD177: 0.07080779728 | AE177: 0.0729
T178: 2016-05-03 | U178: 1.0642 | V178: 902.23 | W178: 1651.44 | X178: 11204.48 | Y178: 212060359.6 | Z178: 1.0642 | AA178: 0.0642 | AB178: 0.06248454373 | AC178: 0.04360354895 | AD178: 0.05855332834 | AE178: 0.0642
T179: 2016-05-04 | U179: 1.0679 | V179: 904.2 | W179: 1657.58 | X179: 11252.09 | Y179: 212060359.6 | Z179: 1.0679 | AA179: 0.0679 | AB179: 0.06480445612 | AC179: 0.04748363287 | AD179: 0.06305132592 | AE179: 0.0679
T180: 2016-05-05 | U180: 1.0649 | V180: 899.07 | W180: 1645.09 | X180: 11179.29 | Y180: 212060359.6 | Z180: 1.0649 | AA180: 0.0649 | AB180: 0.05876326295 | AC180: 0.03959075858 | AD180: 0.05617348043 | AE180: 0.0649
T181: 2016-05-06 | U181: 1.0647 | V181: 901.44 | W181: 1649.36 | X181: 11207.98 | Y181: 212060359.6 | Z181: 1.0647 | AA181: 0.0647 | AB181: 0.06155422354 | AC181: 0.04228912313 | AD181: 0.05888399399 | AE181: 0.0647
T182: 2016-05-09 | U182: 1.0523 | V182: 893.24 | W182: 1632.19 | X182: 11127.7 | Y182: 212060359.6 | Z182: 1.0523 | AA182: 0.0523 | AB182: 0.05189773544 | AC182: 0.03143879073 | AD182: 0.05129946876 | AE182: 0.0523
T183: 2016-05-10 | U183: 1.0609 | V183: 895.81 | W183: 1635.84 | X183: 11134.72 | Y183: 212060359.6 | Z183: 1.0609 | AA183: 0.0609 | AB183: 0.05492422012 | AC183: 0.03374535527 | AD183: 0.05196268958 | AE183: 0.0609
T184: 2016-05-11 | U184: 1.0624 | V184: 899.25 | W184: 1644.58 | X184: 11191.37 | Y184: 212060359.6 | Z184: 1.0624 | AA184: 0.0624 | AB184: 0.05897523464 | AC184: 0.03926847147 | AD184: 0.05731474929 | AE184: 0.0624
T185: 2016-05-12 | U185: 1.0628 | V185: 899.4 | W185: 1648.98 | X185: 11214.19 | Y185: 212060359.6 | Z185: 1.0628 | AA185: 0.0628 | AB185: 0.05915187772 | AC185: 0.04204898764 | AD185: 0.05947068932 | AE185: 0.0628
T186: 2016-05-13 | U186: 1.0489 | V186: 886.83 | W186: 1628.26 | X186: 11090.22 | Y186: 212060359.6 | Z186: 1.0489 | AA186: 0.0489 | AB186: 0.04434918803 | AC186: 0.02895528424 | AD186: 0.04775851204 | AE186: 0.0489
T187: 2016-05-16 | U187: 1.0435 | V187: 881.48 | W187: 1621.21 | X187: 11040.17 | Y187: 212155697.5 | Z187: 1.0435 | AA187: 0.0435 | AB187: 0.03804891836 | AC187: 0.02450013903 | AD187: 0.04302999326 | AE187: 0.0435
T188: 2016-05-17 | U188: 1.0529 | V188: 888.57 | W188: 1633.39 | X188: 11103.92 | Y188: 212155697.5 | Z188: 1.0529 | AA188: 0.0529 | AB188: 0.0463982477 | AC188: 0.03219711332 | AD188: 0.04905283187 | AE188: 0.0529
T189: 2016-05-18 | U189: 1.056 | V189: 891.16 | W189: 1635.72 | X189: 11115.29 | Y189: 212155697.5 | Z189: 1.056 | AA189: 0.056 | AB189: 0.0494482848 | AC189: 0.03366952302 | AD189: 0.05012702285 | AE189: 0.056
T190: 2016-05-19 | U190: 1.0556 | V190: 890.15 | W190: 1633.76 | X190: 11121.42 | Y190: 212155697.5 | Z190: 1.0556 | AA190: 0.0556 | AB190: 0.04825888809 | AC190: 0.03243092945 | AD190: 0.05070616011 | AE190: 0.0556
T191: 2016-05-20 | U191: 1.0536 | V191: 889.07 | W191: 1628.79 | X191: 11099.39 | Y191: 212155697.5 | Z191: 1.0536 | AA191: 0.0536 | AB191: 0.04698705795 | AC191: 0.02929021006 | AD191: 0.04862485604 | AE191: 0.0536
T192: 2016-05-23 | U192: 1.0566 | V192: 891.57 | W192: 1634.89 | X192: 11143.57 | Y192: 212155697.5 | Z192: 1.0566 | AA192: 0.0566 | AB192: 0.0499311092 | AC192: 0.03314501656 | AD192: 0.05279880129 | AE192: 0.0566
T193: 2016-05-24 | U193: 1.0537 | V193: 887.18 | W193: 1625.84 | X193: 11083.88 | Y193: 212155697.5 | Z193: 1.0537 | AA193: 0.0537 | AB193: 0.04476135521 | AC193: 0.02742600035 | AD193: 0.04715953484 | AE193: 0.0537
T194: 2016-05-25 | U194: 1.0565 | V194: 889.5 | W194: 1630.96 | X194: 11106.64 | Y194: 212155697.5 | Z194: 1.0565 | AA194: 0.0565 | AB194: 0.04749343477 | AC194: 0.03066151007 | AD194: 0.04930980631 | AE194: 0.0565
T195: 2016-05-26 | U195: 1.0583 | V195: 889.56 | W195: 1631.09 | X195: 11093.97 | Y195: 212155697.5 | Z195: 1.0583 | AA195: 0.0583 | AB195: 0.047564092 | AC195: 0.03074366169 | AD195: 0.04811279667 | AE195: 0.0583
T196: 2016-05-27 | U196: 1.0616 | V196: 891.12 | W196: 1637.19 | X196: 11141.71 | Y196: 212155697.5 | Z196: 1.0616 | AA196: 0.0616 | AB196: 0.04940117998 | AC196: 0.03459846819 | AD196: 0.05262307612 | AE196: 0.0616
T197: 2016-05-30 | U197: 1.0592 | V197: 887.55 | W197: 1629.87 | X197: 11096.76 | Y197: 212155697.5 | Z197: 1.0592 | AA197: 0.0592 | AB197: 0.04519707479 | AC197: 0.02997270039 | AD197: 0.04837638443 | AE197: 0.0592
T198: 2016-05-31 | U198: 1.0574 | V198: 886.24 | W198: 1626 | X198: 11084.78 | Y198: 212155697.5 | Z198: 1.0574 | AA198: 0.0574 | AB198: 0.04365439194 | AC198: 0.02752711003 | AD198: 0.04724456315 | AE198: 0.0574
T199: 2016-06-01 | U199: 1.0605 | V199: 887.75 | W199: 1626.5 | X199: 11085.56 | Y199: 212155697.5 | Z199: 1.0605 | AA199: 0.0605 | AB199: 0.04543259889 | AC199: 0.02784307778 | AD199: 0.04731825435 | AE199: 0.0605
T200: 2016-06-02 | U200: 1.0619 | V200: 890.96 | W200: 1630.53 | X200: 11108.91 | Y200: 212155697.5 | Z200: 1.0619 | AA200: 0.0619 | AB200: 0.0492127607 | AC200: 0.03038977781 | AD200: 0.04952426661 | AE200: 0.0619
... 661 more rows

Sheet A5ESG_Internal (hidden)
C1: Setting | D1: =VLOOKUP(FundCode, InFund!$A:$E,5,0) -> USD | Y1: =IF(U1=0,0,IFERROR(U1-1,0)*100) -> 0 | Z1: =IF(V1=0,0,IFERROR(V1-1,0)*100) -> 0 | AA1: =IF(W1=0,0,IFERROR(W1/A5ESGIncIndices-1,0)*100) -> 0 | AK1: =SUM(AJ:AJ)+SUMIFS(InHolding!O:O,InHolding!C:C,"CSH",InHolding!A:A,"ASEAN5ESG") -> 2577097.33
C2: Fund Code | D2: ASEAN5ESG | T2: Date | U2: BuyPriceMYR | V2: BuyPriceUSD | W2: Indices | X2: NAV | Y2: 0 | Z2: 0 | AA2: 0 | AG2: qFundCode | AH2: ASEAN5ESG
C3: UTFlag | D3: =VLOOKUP(FundCode,FundData,MATCH(C3,InFund!2:2,0),0) -> 1 | E3: Note: | F3: 1 = Yes; 0=No; | T3: 2017-01-25 | U3: 1 | V3: 1 | W3: 20660.65143 | X3: 135226.5 | Y3: 0 | Z3: 0 | AA3: 2166.714731 | AC3: Manual Input | AD3: NAV - MYR | AG3: qProductType | AH3: EQT
C4: RollEOYFlag | D4: =VLOOKUP(FundCode,FundData,MATCH(C4,InFund!2:2,0),0) -> 1 | T4: 2017-01-26 | U4: 1 | V4: 1 | W4: 20785.75492 | X4: 293681.52 | Y4: 0 | Z4: 0 | AA4: 2180.440045 | AC4: 2017-01-30 | AD4: 1 | AE4: 0
C5: Amort.Flag | D5: 0 | E5: * IF Amort.Flag = 1 --> Exclude amortisation/accreation form Unrealised Gain n Loss | T5: 2017-01-27 | U5: 1 | V5: 1 | W5: 20776.31541 | X5: 361235.99 | Y5: 0 | Z5: 0 | AA5: 2179.40442 | AC5: =IF(OR(A5ESGNAV!A2="",A5ESGNAV!A2>ValueDate),"",A5ESGNAV!A2) -> 2017-01-31 | AD5: =IF(OR(A5ESGNAV!B2="",A5ESGNAV!A2>ValueDate),"",A5ESGNAV!B2) -> 1.0002 | AE5: =IF(OR(A5ESGNAV!B2="",A5ESGNAV!A2>ValueDate),"",A5ESGNAV!B2-1) -> 0.0002 | AG5: Row Labels | AH5: Description | AI5: CountryName | AJ5: Sum of MarketValueFC
C6: Clean MV | D6: 1 | E6: * IF Clean MV=1 - Accrued Interest add into Cash | T6: 2017-01-31 | U6: 1.000296 | V6: 0 | W6: 20605.62649 | X6: 361484.68 | Y6: 0.0296 | Z6: 0 | AA6: 2160.677853 | AC6: 2017-02-02 | AD6: 1.000454 | AE6: 0.000454 | AG6: BTSGROUP-NVDR | AH6: BTS Group Holdings Plc | AI6: Thailand | AJ6: 311592.08 | AK6: =IFERROR(AJ6/$AK$1,0) -> 0.1209081537
T7: 2017-02-02 | U7: 1.000445 | V7: 0 | W7: 20726.24977 | X7: 361947.75 | Y7: 0.0445 | Z7: 0 | AA7: 2173.911635 | AC7: 2017-02-03 | AD7: 1.000318 | AE7: 0.000318 | AG7: TENAGA | AH7: Tenaga Nasional Bhd | AI7: Malaysia | AJ7: 226868.59 | AK7: =IFERROR(AJ7/$AK$1,0) -> 0.0880326045
C8: Accrued Interest | D8: =SUMIF(InHolding!A:A,FundCode,InHolding!P:P) -> 0 | T8: 2017-02-03 | U8: 1.000318 | V8: 0 | W8: 20835.94072 | X8: 361493.18 | Y8: 0.0318 | Z8: 0 | AA8: 2185.946013 | AC8: 2017-02-06 | AD8: 1.001723 | AE8: 0.001723 | AG8: CENTPATTANA-NVDR | AH8: Central Pattana | AI8: Thailand | AJ8: 217131.23 | AK8: 0.08425418298
C9: Pre-Acq | D9: =SUMIF(InHolding!A:A,FundCode,InHolding!M:M) -> 0 | E9: Currency (USD/MYR) | F9: =SUMIFS(InCurrency!E:E,InCurrency!D:D,VLOOKUP(FundCode,FundData,MATCH("FXSource",InFund!2:2,0),0),InCurrency!B:B,"USD",InCurrency!C:C,"MYR") -> 4.094 | T9: 2017-02-06 | U9: 1.001723 | V9: 0 | W9: 20982.58262 | X9: 362123.16 | Y9: 0.1723 | Z9: 0 | AA9: 2202.034342 | AC9: 2017-02-07 | AD9: 1.001645 | AE9: 0.001645 | AG9: DBS GROUP HLDGS | AH9: DBS Group Holdings | AI9: Singapore | AJ9: 213523.77 | AK9: 0.08285436779
B10: Adj. | C10: FinanceYrStart | D10: =VLOOKUP(FundCode,FundData,MATCH(C10,InFund!2:2,0),0) -> 2016-12-16 | T10: 2017-02-07 | U10: 1.001645 | V10: 0 | W10: 20956.56412 | X10: 361360.32 | Y10: 0.1645 | Z10: 0 | AA10: 2199.179809 | AC10: 2017-02-08 | AD10: 1.001028 | AE10: 0.001028 | AG10: AIRPORTHAINVDR | AH10: AIRPORTS OF THAILAND | AI10: Thailand | AJ10: 207754.1 | AK10: 0.08061554276
C11: Sector | F11: Top Holding - EQT | J11: Portfolio Analysis | T11: 2017-02-08 | U11: 1.001028 | V11: 0 | W11: 20949.34524 | X11: 360852.72 | Y11: 0.1028 | Z11: 0 | AA11: 2198.387813 | AC11: 2017-02-10 | AD11: 1.006842 | AE11: 0.006842 | AG11: KASIKORNNVDR | AH11: Kasikornbank (NVDR) | AI11: Thailand | AJ11: 198593.19 | AK11: 0.07706080313
C12: EQT | F12: qFundCode | G12: ASEAN5ESG | J12: EQT | K12: Equity | L12: =SUMIFS(InHolding!U:U,InHolding!A:A,FundCode,InHolding!C:C,$J12) -> 2251984.88 | M12: =IF(L12=0,NA(),L12) -> 2251984.88 | N12: =L12/$L$15 -> 0.8738454903 | T12: 2017-02-10 | U12: 1.006842 | V12: 0 | W12: 21001.99141 | X12: 362580.56 | Y12: 0.6842 | Z12: 0 | AA12: 2204.163713 | AC12: 2017-02-13 | AD12: 1.009907 | AE12: 0.009907 | AG12: PTTEPNVDR | AH12: PTT Exploration & Production | AI12: Thailand | AJ12: 189111.97 | AK12: 0.07338177251
C13: qFundCode | D13: ASEAN5ESG | J13: BND | K13: FI | L13: =SUMIFS(InHolding!U:U,InHolding!A:A,FundCode,InHolding!C:C,$J13) -> 0 | M13: =IF(L13=0,NA(),L13) ->  | N13: =L13/$L$15 -> 0 | T13: 2017-02-13 | U13: 1.009907 | V13: 0 | W13: 21141.10923 | X13: 363317.36 | Y13: 0.9907 | Z13: 0 | AA13: 2219.426562 | AC13: 2017-02-14 | AD13: 1.01031 | AE13: 0.01031 | AG13: SIME | AH13: Sime Darby Berhad | AI13: Malaysia | AJ13: 164142.65 | AK13: 0.06369284081
C14: qProductType | D14: (All) | F14: Sum of Perc_Eqt | J14: CSH | K14: Cash | L14: =SUMIFS(InHolding!U:U,InHolding!A:A,FundCode,InHolding!C:C,$J14) -> 325112.45 | M14: =IF(L14=0,NA(),L14) -> 325112.45 | N14: =L14/$L$15 -> 0.1261545097 | T14: 2017-02-14 | U14: 1.01031 | V14: 0 | W14: 21008.57714 | X14: 363338.6 | Y14: 1.031 | Z14: 0 | AA14: 2204.886244 | AC14: 2017-02-15 | AD14: 1.0083 | AE14: 0.0083 | AG14: SIAMCOMMBANKNVDR | AH14: Siam Commercial Bank (NVDR) | AI14: Thailand | AJ14: 157625.34 | AK14: 0.06116390645
F15: StockName | G15: Description | H15: Country | I15: Total | J15: Total | L15: =L12+L13+L14 -> 2577097.33 | T15: 2017-02-15 | U15: 1.008364 | V15: 0 | W15: 21009.11229 | X15: 362679.36 | Y15: 0.8364 | Z15: 0 | AA15: 2204.944957 | AC15: 2017-02-16 | AD15: 1.0077 | AE15: 0.0077 | AG15: PTTNVDR | AH15: PTT PCL | AI15: Thailand | AJ15: 152244.1 | AK15: 0.05907580526
C16: Row Labels | D16: Sum of MarketValueFC | F16: BTSGROUP-NVDR | G16: BTS Group Holdings Plc | H16: Thailand | I16: 0.1383633091 | T16: 2017-02-16 | U16: 1.007706 | V16: 0 | W16: 21081.39935 | X16: 362239.94 | Y16: 0.7706 | Z16: 0 | AA16: 2212.875691 | AC16: 2017-02-17 | AD16: 1.0157 | AE16: 0.0157 | AG16: UNITTRACTORS | AH16: United Tractors | AI16: Indonesia | AJ16: 139949.89 | AK16: 0.05430524038
C17: FINANCIALS | D17: 786873.53 | F17: TENAGA | G17: Tenaga Nasional Bhd | H17: Malaysia | I17: 0.1007416133 | J17: Conversion Date: | K17: 2015-01-16 | T17: 2017-02-17 | U17: 1.015767 | V17: 0 | W17: 21076.10466 | X17: 365137.73 | Y17: 1.5767 | Z17: 0 | AA17: 2212.294802 | AC17: 2017-02-20 | AD17: 1.0182 | AE17: 0.0182 | AG17: AIRPORT | AH17: Malaysia Airports Holdings Bhd | AI17: Malaysia | AJ17: 73447.97 | AK17: 0.02850027011
C18: INDUSTRIALS | D18: 585294.61 | F18: CENTPATTANA-NVDR | G18: Central Pattana | H18: Thailand | I18: 0.09641771218 | K18: =YEAR(K19)*12+MONTH(K19)-2017*12-1+1 -> 25 | L18: =YEAR(L19)*12+MONTH(L19)-2017*12-1+1 -> 24 | M18: 22 | N18: 19 | O18: =YEAR(O19)*12+MONTH(O19)-2017*12-1+1 -> 24 | P18: 13 | Q18: -11 | R18: 1 | S18: -35 | T18: 2017-02-20 | U18: 1.017831 | V18: 0 | W18: 21100.40945 | X18: 365468.51 | Y18: 1.7831 | Z18: 0 | AA18: 2214.961321 | AC18: 2017-02-21 | AD18: 1.0166 | AE18: 0.0166 | AK18: 0
C19: OIL & GAS | D19: 341356.07 | F19: DBS GROUP HLDGS | G19: DBS Group Holdings | H19: Singapore | I19: 0.09481580978 | J19: Relative Performance | K19: =_VDate -> 2019-01-31 | L19: =_1Month -> 2018-12-31 | M19: =_3Month -> 2018-10-31 | N19: =_6Month -> 2018-07-31 | O19: =IF(YEAR(_VDate)=2017,R19,_YTD) -> 2018-12-31 | P19: =_1Year -> 2018-01-31 | Q19: =_3Year -> 2016-01-31 | R19: =DATE(2017,1,30) -> 2017-01-30 | S19: =_5Year -> 2014-01-31 | T19: 2017-02-21 | U19: 1.016696 | V19: 0 | W19: 21050.20469 | X19: 365102.59 | Y19: 1.6696 | Z19: 0 | AA19: 2209.453273 | AC19: 2017-02-22 | AD19: 1.0204 | AE19: 0.0204 | AK19: 0
C20: CASH | D20: 325112.45 | F20: AIRPORTHAINVDR | G20: AIRPORTS OF THAILAND | H20: Thailand | I20: 0.09225377215 | J20: =FundCode -> ASEAN5ESG | K20: =IF(COUNTIF($AC:$AC,K$19)=1,INDEX($AD:$AD,MATCH(K$19,$AC:$AC,0)),INDEX(InTWRR!$C:$C,MATCH($J20&K$19,InTWRR!$D:$D,0),0)) -> 0.9551 | L20: =IF(COUNTIF($AC:$AC,L$19)=1,INDEX($AD:$AD,MATCH(L$19,$AC:$AC,0)),INDEX(InTWRR!$C:$C,MATCH($J20&L$19,InTWRR!$D:$D,0),0)) -> 0.9157 | M20: =IF(COUNTIF($AC:$AC,M$19)=1,INDEX($AD:$AD,MATCH(M$19,$AC:$AC,0)),INDEX(InTWRR!$C:$C,MATCH($J20&M$19,InTWRR!$D:$D,0),0)) -> 0.9395 | N20: =IF(COUNTIF($AC:$AC,N$19)=1,INDEX($AD:$AD,MATCH(N$19,$AC:$AC,0)),INDEX(InTWRR!$C:$C,MATCH($J20&N$19,InTWRR!$D:$D,0),0)) -> 0.994 | O20: =IF(YEAR(_VDate)=2017,R20,IF(COUNTIF($AC:$AC,O$19)=1,INDEX($AD:$AD,MATCH(O$19,$AC:$AC,0)),INDEX(InTWRR!$C:$C,MATCH($J20&O$19,InTWRR!$D:$D,0),0))) -> 0.9157 | P20: =IF(COUNTIF($AC:$AC,P$19)=1,INDEX($AD:$AD,MATCH(P$19,$AC:$AC,0)),INDEX(InTWRR!$C:$C,MATCH($J20&P$19,InTWRR!$D:$D,0),0)) -> 1.0919 | Q20: =IF(COUNTIF($AC:$AC,Q$19)=1,INDEX($AD:$AD,MATCH(Q$19,$AC:$AC,0)),INDEX(InTWRR!$C:$C,MATCH($J20&Q$19,InTWRR!$D:$D,0),0)) ->  | R20: 1 | S20: =IF(COUNTIF($AC:$AC,S$19)=1,INDEX($AD:$AD,MATCH(S$19,$AC:$AC,0)),INDEX(InTWRR!$C:$C,MATCH($J20&S$19,InTWRR!$D:$D,0),0)) ->  | T20: 2017-02-22 | U20: 1.020405 | V20: 0 | W20: 21100.50436 | X20: 366804.5 | Y20: 2.0405 | Z20: 0 | AA20: 2214.971734 | AC20: 2017-02-23 | AD20: 1.0187 | AE20: 0.0187 | AK20: 0
C21: CONSUMER SERVICES | D21: 311592.08 | F21: KASIKORNNVDR | G21: Kasikornbank (NVDR) | H21: Thailand | I21: 0.08818584519 | J21: =VLOOKUP(FundCode,FundData,MATCH("qIndexBenchmark",InFund!$2:$2,0),0) -> F4GAS | K21: =INDEX(InIndex!$C:$C,MATCH($J21&K$19,InIndex!$D:$D,0),0) ->  | L21: =INDEX(InIndex!$C:$C,MATCH($J21&L$19,InIndex!$D:$D,0),0) ->  | M21: =INDEX(InIndex!$C:$C,MATCH($J21&M$19,InIndex!$D:$D,0),0) ->  | N21: =INDEX(InIndex!$C:$C,MATCH($J21&N$19,InIndex!$D:$D,0),0) ->  | O21: =IF(YEAR(_VDate)=2017,A5ESGIncIndices,INDEX(InIndex!$C:$C,MATCH($J21&O$19,InIndex!$D:$D,0),0)) ->  | P21: =INDEX(InIndex!$C:$C,MATCH($J21&P$19,InIndex!$D:$D,0),0) -> 24499.09511 | Q21: =INDEX(InIndex!$C:$C,MATCH($J21&Q$19,InIndex!$D:$D,0),0) ->  | R21: 911.48 | S21: =INDEX(InIndex!$C:$C,MATCH($J21&S$19,InIndex!$D:$D,0),0) ->  | T21: 2017-02-23 | U21: 1.018719 | V21: 0 | W21: 21079.43763 | X21: 366528.77 | Y21: 1.8719 | Z21: 0 | AA21: 2212.660468 | AC21: 2017-02-24 | AD21: 1.0173 | AE21: 0.0173 | AK21: 0
C22: UTILITIES | D22: 226868.59 | F22: PTTEPNVDR | G22: PTT Exploration & Production | H22: Thailand | I22: 0.08397568371 | L22: 1 month | M22: 3 month | N22: 6 month | O22: YTD | P22: 1 year | Q22: 3 year | R22: Inception | S22: 5Year | T22: 2017-02-24 | U22: 1.017302 | V22: 0 | W22: 21054.2089 | X22: 366842.2 | Y22: 1.7302 | Z22: 0 | AA22: 2209.892581 | AC22: 2017-02-28 | AD22: 1.0139 | AE22: 0.0139 | AK22: 0
F23: SIME | G23: Sime Darby Berhad | H23: Malaysia | I23: 0.07288798937 | O23: =YEAR(O24)*12+MONTH(O24)-2017*12-1+1 -> 1 | T23: 2017-02-27 | U23: 1.014036 | V23: 0 | W23: 21000.33222 | X23: 365665.57 | Y23: 1.4036 | Z23: 0 | AA23: 2203.98168 | AC23: 2017-03-01 | AD23: 1.0168 | AE23: 0.0168 | AK23: 0
F24: SIAMCOMMBANKNVDR | G24: Siam Commercial Bank (NVDR) | H24: Thailand | I24: 0.06999396017 | O24: =_2Year -> 2017-01-31 | P24: =_2Year -> 2017-01-31 | Q24: =_3Year -> 2016-01-31 | R24: =DATE(2017,1,31) -> 2017-01-31 | S24: =_5Year -> 2014-01-31 | T24: 2017-02-28 | U24: 1.013923 | V24: 0 | W24: 20979.222 | X24: 365542.86 | Y24: 1.3923 | Z24: 0 | AA24: 2201.665643 | AC24: 2017-03-02 | AD24: 1.0204 | AE24: 0.0204 | AK24: 0
F25: PTTNVDR | G25: PTT PCL | H25: Thailand | I25: 0.06760440594 | O25: =IF(COUNTIF($AC:$AC,O$24)=1,INDEX($AD:$AD,MATCH(O$24,$AC:$AC,0)),INDEX(InTWRR!$C:$C,MATCH($J20&O$24,InTWRR!$D:$D,0),0)) -> 1.0002 | P25: =IF(O23<0,"N.A.",IFERROR(($K$20/$O$25)^(12/($K$18-O23))-1,"N.A.")) -> -0.02280553716 | Q25: =IF(Q18<0,"N.A.",IFERROR(($K$20/$Q$20)^(12/($K$18-Q18))-1,"N.A.")) -> N.A. | R25: =IFERROR(IF(K18<=12,($K$20/$R$20)-1,($K$20/$R$20)^(12/K18)-1),"N.A.") -> -0.02180948894 | S25: =IF(S18<0,"N.A.",IFERROR(($K$20/$S$20)^(12/(K18-S18))-1,"N.A.")) -> N.A. | T25: 2017-03-01 | U25: 1.016841 | V25: 0 | W25: 21032.09095 | X25: 365975.87 | Y25: 1.6841 | Z25: 0 | AA25: 2207.465984 | AC25: 2017-03-03 | AD25: 1.0167 | AE25: 0.0167 | AK25: 0
F26: UNITTRACTORS | G26: United Tractors | H26: Indonesia | I26: 0.06214512861 | O26: =INDEX(InIndex!$C:$C,MATCH($J21&O$24,InIndex!$D:$D,0),0) -> 20605.62649 | P26: =IF(P25="N.A.","N.A.",IFERROR(($K$21/$O$26)^(12/($K$18-O23))-1,"N.A.")) -> N.A. | Q26: =IF(Q25="N.A.","N.A.",IFERROR(($K$21/$Q$21)^(12/(K18-Q18))-1,"N.A.")) -> N.A. | R26: =IF(R25="N.A.","N.A.",IFERROR(IF(K18<=12,($K$21/$R$21)-1,($K$21/$R$21)^(12/K18)-1),"N.A.")) -> N.A. | S26: =IF(S25="N.A.","N.A.",IFERROR(($K$21/$S$21)^(12/(K18-S18))-1,"N.A.")) -> N.A. | T26: 2017-03-02 | U26: 1.020484 | V26: 0 | W26: 21116.80923 | X26: 367162.89 | Y26: 2.0484 | Z26: 0 | AA26: 2216.760569 | AC26: 2017-03-06 | AD26: 1.0179 | AE26: 0.0179 | AK26: 0
F27: AIRPORT | G27: Malaysia Airports Holdings Bhd | H27: Malaysia | I27: 0.03261477049 | O27: 2 year | P27: 2 year Annual | Q27: 3 year Annual | R27: Inception Annual | S27: 5 Year Annual | T27: 2017-03-03 | U27: 1.016788 | V27: 0 | W27: 21063.24579 | X27: 365422.66 | Y27: 1.6788 | Z27: 0 | AA27: 2210.884034 | AC27: 2017-03-07 | AD27: 1.0223 | AE27: 0.0223 | AK27: 0
T28: 2017-03-06 | U28: 1.017929 | V28: 0 | W28: 21114.47363 | X28: 366327.11 | Y28: 1.7929 | Z28: 0 | AA28: 2216.504326 | AC28: 2017-03-08 | AD28: 1.0218 | AE28: 0.0218 | AK28: 0
T29: 2017-03-07 | U29: 1.02231 | V29: 0 | W29: 21129.13338 | X29: 367984.83 | Y29: 2.231 | Z29: 0 | AA29: 2218.112672 | AC29: 2017-03-09 | AD29: 1.0176 | AE29: 0.0176 | AK29: 0
T30: 2017-03-08 | U30: 1.021859 | V30: 0 | W30: 21153.02179 | X30: 367244.88 | Y30: 2.1859 | Z30: 0 | AA30: 2220.733509 | AC30: 2017-03-10 | AD30: 1.0168 | AE30: 0.0168 | AK30: 0
T31: 2017-03-09 | U31: 1.017611 | V31: 0 | W31: 21100.819 | X31: 365143.41 | Y31: 1.7611 | Z31: 0 | AA31: 2215.006254 | AC31: 2017-03-13 | AD31: 1.0156 | AE31: 0.0156 | AK31: 0
T32: 2017-03-10 | U32: 1.016868 | V32: 0 | W32: 21082.91107 | X32: 365698.1 | Y32: 1.6868 | Z32: 0 | AA32: 2213.041545 | AC32: 2017-03-14 | AD32: 1.0147 | AE32: 0.0147 | AK32: 0
T33: 2017-03-13 | U33: 1.015602 | V33: 0 | W33: 21163.03671 | X33: 365571.76 | Y33: 1.5602 | Z33: 0 | AA33: 2221.832263 | AC33: 2017-03-15 | AD33: 1.0142 | AE33: 0.0142 | AK33: 0
T34: 2017-03-14 | U34: 1.014789 | V34: 0 | W34: 21187.13521 | X34: 365031.7 | Y34: 1.4789 | Z34: 0 | AA34: 2224.47615 | AC34: 2017-03-16 | AD34: 1.021 | AE34: 0.021 | AK34: 0
T35: 2017-03-15 | U35: 1.014239 | V35: 0 | W35: 21150.64922 | X35: 364997.67 | Y35: 1.4239 | Z35: 0 | AA35: 2220.473211 | AC35: 2017-03-17 | AD35: 1.0266 | AE35: 0.0266 | AK35: 0
T36: 2017-03-16 | U36: 1.021079 | V36: 0 | W36: 21443.99438 | X36: 368370.61 | Y36: 2.1079 | Z36: 0 | AA36: 2252.6566 | AC36: 2017-03-20 | AD36: 1.0271 | AE36: 0.0271 | AK36: 0
J37: Country Allocation | T37: 2017-03-17 | U37: 1.026604 | V37: 0 | W37: 21615.92338 | X37: 370448.29 | Y37: 2.6604 | Z37: 0 | AA37: 2271.519219 | AC37: 2017-03-21 | AD37: 1.032 | AE37: 0.032 | AK37: 0
J38: EQT | T38: 2017-03-20 | U38: 1.027184 | V38: 0 | W38: 21633.722 | X38: 371410.57 | Y38: 2.7184 | Z38: 0 | AA38: 2273.471936 | AC38: 2017-03-22 | AD38: 1.0303 | AE38: 0.0303 | AK38: 0
T39: 2017-03-21 | U39: 1.032032 | V39: 0 | W39: 21680.61744 | X39: 373332.26 | Y39: 3.2032 | Z39: 0 | AA39: 2278.616913 | AC39: 2017-03-23 | AD39: 1.0294 | AE39: 0.0294 | AK39: 0
J40: qFundCode | K40: ASEAN5ESG | T40: 2017-03-22 | U40: 1.030348 | V40: 0 | W40: 21628.67399 | X40: 372555.31 | Y40: 3.0348 | Z40: 0 | AA40: 2272.91811 | AC40: 2017-03-24 | AD40: 1.0287 | AE40: 0.0287 | AK40: 0
J41: qProductType | K41: EQT | T41: 2017-03-23 | U41: 1.029406 | V41: 0 | W41: 21691.80258 | X41: 372047.02 | Y41: 2.9406 | Z41: 0 | AA41: 2279.844054 | AC41: 2017-03-27 | AD41: 1.025 | AE41: 0.025 | AK41: 0
T42: 2017-03-24 | U42: 1.028768 | V42: 0 | W42: 21720.68591 | X42: 372151.47 | Y42: 2.8768 | Z42: 0 | AA42: 2283.012892 | AC42: 2017-03-28 | AD42: 1.031 | AE42: 0.031 | AK42: 0
J43: Row Labels | K43: Sum of MarketValueFCEQT | T43: 2017-03-27 | U43: 1.026808 | V43: 0 | W43: 21632.14744 | X43: 372623.08 | Y43: 2.6808 | Z43: 0 | AA43: 2273.299188 | AC43: 2017-03-29 | AD43: 1.032 | AE43: 0.032 | AK43: 0
J44: Malaysia | K44: 464459.21 | T44: 2017-03-28 | U44: 1.031071 | V44: 0 | W44: 21764.77803 | X44: 373915.47 | Y44: 3.1071 | Z44: 0 | AA44: 2287.850313 | AC44: 2017-03-30 | AD44: 1.0315 | AE44: 0.0315 | AK44: 0
J45: Thailand | K45: 1434052.01 | T45: 2017-03-29 | U45: 1.032032 | V45: 0 | W45: 21839.86462 | X45: 373840.57 | Y45: 3.2032 | Z45: 0 | AA45: 2296.088188 | AC45: 2017-03-31 | AD45: 1.031 | AE45: 0.031 | AK45: 0
J46: Indonesia | K46: 139949.89 | T46: 2017-03-30 | U46: 1.031505 | V46: 0 | W46: 21860.7517 | X46: 373480.25 | Y46: 3.1505 | Z46: 0 | AA46: 2298.379745 | AC46: 2017-04-03 | AD46: 1.031 | AE46: 0.031 | AK46: 0
J47: Singapore | K47: 213523.77 | T47: 2017-03-31 | U47: 1.031063 | V47: 0 | W47: 21783.20053 | X47: 1050966.71 | Y47: 3.1063 | Z47: 0 | AA47: 2289.871476 | AC47: 2017-04-04 | AD47: 1.0318 | AE47: 0.0318 | AK47: 0
T48: 2017-04-03 | U48: 1.031023 | V48: 0 | W48: 21871.28771 | X48: 1050216.5 | Y48: 3.1023 | Z48: 0 | AA48: 2299.535668 | AC48: 2017-04-05 | AD48: 1.035 | AE48: 0.035 | AK48: 0
T49: 2017-04-04 | U49: 1.031867 | V49: 0 | W49: 21959.76204 | X49: 1050123.78 | Y49: 3.1867 | Z49: 0 | AA49: 2309.242336 | AC49: 2017-04-06 | AD49: 1.0336 | AE49: 0.0336 | AK49: 0
T50: 2017-04-05 | U50: 1.03501 | V50: 0 | W50: 22020.65208 | X50: 1053441.37 | Y50: 3.501 | Z50: 0 | AA50: 2315.922684 | AC50: 2017-04-07 | AD50: 1.0354 | AE50: 0.0354 | AK50: 0
T51: 2017-04-06 | U51: 1.033683 | V51: 0 | W51: 22036.35282 | X51: 1050787.64 | Y51: 3.3683 | Z51: 0 | AA51: 2317.645239 | AC51: 2017-04-10 | AD51: 1.0352 | AE51: 0.0352 | AK51: 0
T52: 2017-04-07 | U52: 1.035431 | V52: 0 | W52: 22028.40551 | X52: 1052920.29 | Y52: 3.5431 | Z52: 0 | AA52: 2316.773326 | AC52: 2017-04-11 | AD52: 1.0341 | AE52: 0.0341 | AK52: 0
T53: 2017-04-10 | U53: 1.035203 | V53: 0 | W53: 22026.07203 | X53: 1052808.86 | Y53: 3.5203 | Z53: 0 | AA53: 2316.517316 | AC53: 2017-04-12 | AD53: 1.0379 | AE53: 0.0379 | AK53: 0
T54: 2017-04-11 | U54: 1.034102 | V54: 0 | W54: 21997.89646 | X54: 1052162.65 | Y54: 3.4102 | Z54: 0 | AA54: 2313.426127 | AC54: 2017-04-13 | AD54: 1.0346 | AE54: 0.0346 | AK54: 0
T55: 2017-04-12 | U55: 1.037915 | V55: 0 | W55: 22091.35217 | X55: 1057472.27 | Y55: 3.7915 | Z55: 0 | AA55: 2323.679309 | AC55: 2017-04-14 | AD55: 1.0325 | AE55: 0.0325 | AK55: 0
T56: 2017-04-13 | U56: 1.03463 | V56: 0 | W56: 21948.33669 | X56: 1057710.7 | Y56: 3.463 | Z56: 0 | AA56: 2307.988841 | AC56: 2017-04-17 | AD56: 1.0327 | AE56: 0.0327 | AK56: 0
T57: 2017-04-14 | U57: 1.032549 | V57: 0 | W57: 21902.44756 | X57: 1055584.87 | Y57: 3.2549 | Z57: 0 | AA57: 2302.954268 | AC57: 2017-04-18 | AD57: 1.0327 | AE57: 0.0327 | AK57: 0
T58: 2017-04-17 | U58: 1.032715 | V58: 0 | W58: 21790.65593 | X58: 1057434.05 | Y58: 3.2715 | Z58: 0 | AA58: 2290.689421 | AC58: 2017-04-19 | AD58: 1.0295 | AE58: 0.0295 | AK58: 0
T59: 2017-04-18 | U59: 1.033271 | V59: 0 | W59: 21809.7549 | X59: 1056564.45 | Y59: 3.3271 | Z59: 0 | AA59: 2292.784801 | AC59: 2017-04-20 | AD59: 1.0289 | AE59: 0.0289 | AK59: 0
T60: 2017-04-19 | U60: 1.029535 | V60: 0 | W60: 21746.7194 | X60: 1055254.13 | Y60: 2.9535 | Z60: 0 | AA60: 2285.86907 | AC60: 2017-04-21 | AD60: 1.0323 | AE60: 0.0323 | AK60: 0
T61: 2017-04-20 | U61: 1.028967 | V61: 0 | W61: 21720.45538 | X61: 1055273.75 | Y61: 2.8967 | Z61: 0 | AA61: 2282.9876 | AC61: 2017-04-25 | AD61: 1.0325 | AE61: 0.0325 | AK61: 0
T62: 2017-04-21 | U62: 1.032334 | V62: 0 | W62: 21847.73468 | X62: 1058243.3 | Y62: 3.2334 | Z62: 0 | AA62: 2296.951626 | AC62: 2017-04-26 | AD62: 1.0322 | AE62: 0.0322 | AK62: 0
T63: 2017-04-25 | U63: 1.033478 | V63: 0 | W63: 21825.37113 | X63: 1101810.36 | Y63: 3.3478 | Z63: 0 | AA63: 2294.498083 | AC63: 2017-04-27 | AD63: 1.0312 | AE63: 0.0312 | AK63: 0
T64: 2017-04-26 | U64: 1.032275 | V64: 0 | W64: 21866.45989 | X64: 1105358.1 | Y64: 3.2275 | Z64: 0 | AA64: 2299.006 | AC64: 2017-04-28 | AD64: 1.0306 | AE64: 0.0306 | AK64: 0
T65: 2017-04-27 | U65: 1.031251 | V65: 0 | W65: 21759.0723 | X65: 1104515.52 | Y65: 3.1251 | Z65: 0 | AA65: 2287.224327 | AC65: 2017-04-30 | AD65: 1.0306 | AE65: 0.0306 | AK65: 0
T66: 2017-04-28 | U66: 1.030677 | V66: 0 | W66: 21715.28383 | X66: 1105430.03 | Y66: 3.0677 | Z66: 0 | AA66: 2282.420221 | AC66: 2017-05-02 | AD66: 1.033 | AE66: 0.033 | AK66: 0
T67: 2017-04-30 | U67: 1.030682 | V67: 0 | X67: 1105432.71 | Y67: 3.0682 | Z67: 0 | AA67: 0 | AC67: 2017-05-03 | AD67: 1.0307 | AE67: 0.0307 | AK67: 0
T68: 2017-05-02 | U68: 1.033062 | V68: 0 | W68: 21719.76341 | X68: 1111316.2 | Y68: 3.3062 | Z68: 0 | AA68: 2282.911683 | AC68: 2017-05-04 | AD68: 1.0298 | AE68: 0.0298 | AK68: 0
T69: 2017-05-03 | U69: 1.030749 | V69: 0 | W69: 21720.31147 | X69: 1111138.88 | Y69: 3.0749 | Z69: 0 | AA69: 2282.971812 | AC69: 2017-05-05 | AD69: 1.0331 | AE69: 0.0331 | AK69: 0
T70: 2017-05-04 | U70: 1.029882 | V70: 0 | W70: 21806.35482 | X70: 1107896.63 | Y70: 2.9882 | Z70: 0 | AA70: 2292.411772 | AC70: 2017-05-08 | AD70: 1.0357 | AE70: 0.0357 | AK70: 0
T71: 2017-05-05 | U71: 1.033169 | V71: 0 | W71: 21835.9813 | X71: 1109122.57 | Y71: 3.3169 | Z71: 0 | AA71: 2295.662143 | AC71: 2017-05-09 | AD71: 1.0344 | AE71: 0.0344 | AK71: =IFERROR(AJ71/$AK$1,0) -> 0
T72: 2017-05-08 | U72: 1.035788 | V72: 0 | W72: 21925.58251 | X72: 1111936.6 | Y72: 3.5788 | Z72: 0 | AA72: 2305.492442 | AC72: 2017-05-11 | AD72: 1.0371 | AE72: 0.0371 | AK72: 0
T73: 2017-05-09 | U73: 1.034123 | V73: 0 | W73: 21874.8343 | X73: 1107590.66 | Y73: 3.4123 | Z73: 0 | AA73: 2299.924771 | AC73: 2017-05-12 | AD73: 1.0354 | AE73: 0.0354 | AK73: 0
T74: 2017-05-11 | U74: 1.037121 | V74: 0 | W74: 21849.99927 | X74: 1110547.89 | Y74: 3.7121 | Z74: 0 | AA74: 2297.200078 | AC74: 2017-05-15 | AD74: 1.0355 | AE74: 0.0355 | AK74: 0
T75: 2017-05-12 | U75: 1.035427 | V75: 0 | W75: 21815.61911 | X75: 2721249.23 | Y75: 3.5427 | Z75: 0 | AA75: 2293.428173 | AC75: 2017-05-16 | AD75: 1.0348 | AE75: 0.0348 | AK75: 0
T76: 2017-05-15 | U76: 1.035513 | V76: 0 | W76: 21865.62416 | X76: 2730227.06 | Y76: 3.5513 | Z76: 0 | AA76: 2298.914311 | AC76: 2017-05-17 | AD76: 1.0316 | AE76: 0.0316 | AK76: 0
T77: 2017-05-16 | U77: 1.034895 | V77: 0 | W77: 21798.75653 | X77: 2731756.99 | Y77: 3.4895 | Z77: 0 | AA77: 2291.578151 | AC77: 2017-05-18 | AD77: 1.0319 | AE77: 0.0319 | AK77: 0
T78: 2017-05-17 | U78: 1.031682 | V78: 0 | W78: 21747.1752 | X78: 2722647.16 | Y78: 3.1682 | Z78: 0 | AA78: 2285.919077 | AC78: 2017-05-19 | AD78: 1.0325 | AE78: 0.0325 | AK78: 0
T79: 2017-05-18 | U79: 1.031972 | V79: 0 | W79: 21787.9323 | X79: 2720267.07 | Y79: 3.1972 | Z79: 0 | AA79: 2290.390606 | AC79: 2017-05-22 | AD79: 1.0342 | AE79: 0.0342 | AK79: 0
T80: 2017-05-19 | U80: 1.032555 | V80: 0 | W80: 21956.22366 | X80: 2726842.32 | Y80: 3.2555 | Z80: 0 | AA80: 2308.854134 | AC80: 2017-05-23 | AD80: 1.0336 | AE80: 0.0336 | AK80: 0
T81: 2017-05-22 | U81: 1.03426 | V81: 0 | W81: 21964.8132 | X81: 2740866.52 | Y81: 3.426 | Z81: 0 | AA81: 2309.796507 | AC81: 2017-05-24 | AD81: 1.0345 | AE81: 0.0345 | AK81: 0
T82: 2017-05-23 | U82: 1.033694 | V82: 0 | W82: 21895.13689 | X82: 2746389.6 | Y82: 3.3694 | Z82: 0 | AA82: 2302.152202 | AC82: 2017-05-25 | AD82: 1.0312 | AE82: 0.0312 | AK82: 0
T83: 2017-05-24 | U83: 1.034513 | V83: 0 | W83: 21870.71855 | X83: 2749202.16 | Y83: 3.4513 | Z83: 0 | AA83: 2299.473225 | AC83: 2017-05-26 | AD83: 1.0314 | AE83: 0.0314 | AK83: 0
T84: 2017-05-25 | U84: 1.031288 | V84: 0 | W84: 21862.92577 | X84: 2750894.13 | Y84: 3.1288 | Z84: 0 | AA84: 2298.618266 | AC84: 2017-05-29 | AD84: 1.0315 | AE84: 0.0315 | AK84: 0
T85: 2017-05-26 | U85: 1.03147 | V85: 0 | W85: 21912.3789 | X85: 2756538.6 | Y85: 3.147 | Z85: 0 | AA85: 2304.043852 | AC85: 2017-05-30 | AD85: 1.0344 | AE85: 0.0344 | AK85: 0
T86: 2017-05-29 | U86: 1.031586 | V86: 0 | W86: 21901.69338 | X86: 2852348.63 | Y86: 3.1586 | Z86: 0 | AA86: 2302.871525 | AC86: 2017-05-31 | AD86: 1.0369 | AE86: 0.0369 | AK86: 0
T87: 2017-05-30 | U87: 1.034409 | V87: 0 | W87: 21871.48858 | X87: 2849065.17 | Y87: 3.4409 | Z87: 0 | AA87: 2299.557706 | AC87: 2017-06-01 | AD87: 1.0373 | AE87: 0.0373 | AK87: 0
T88: 2017-05-31 | U88: 1.03691 | V88: 0 | W88: 21963.3008 | X88: 2857957.48 | Y88: 3.691 | Z88: 0 | AA88: 2309.630579 | AC88: 2017-06-02 | AD88: 1.0372 | AE88: 0.0372 | AK88: 0
T89: 2017-06-01 | U89: 1.037399 | V89: 0 | W89: 21939.50912 | X89: 2853901.34 | Y89: 3.7399 | Z89: 0 | AA89: 2307.020354 | AC89: 2017-06-03 | AD89: 1.0372 | AE89: 0.0372 | AK89: 0
T90: 2017-06-02 | U90: 1.037298 | V90: 0 | W90: 22049.76104 | X90: 2858551.1 | Y90: 3.7298 | Z90: 0 | AA90: 2319.116277 | AC90: 2017-06-06 | AD90: 1.0371 | AE90: 0.0371 | AK90: 0
T91: 2017-06-05 | U91: 1.037209 | V91: 0 | W91: 22099.46429 | X91: 2869508.33 | Y91: 3.7209 | Z91: 0 | AA91: 2324.569304 | AC91: 2017-06-07 | AD91: 1.0372 | AE91: 0.0372 | AK91: 0
T92: 2017-06-06 | U92: 1.037181 | V92: 0 | W92: 22080.54917 | X92: 2868150.33 | Y92: 3.7181 | Z92: 0 | AA92: 2322.494094 | AC92: 2017-06-08 | AD92: 1.0372 | AE92: 0.0372 | AK92: 0
T93: 2017-06-07 | U93: 1.037229 | V93: 0 | W93: 22051.41007 | X93: 2872328.07 | Y93: 3.7229 | Z93: 0 | AA93: 2319.297195 | AC93: 2017-06-09 | AD93: 1.036 | AE93: 0.036 | AK93: 0
T94: 2017-06-08 | U94: 1.037258 | V94: 0 | W94: 21999.4126 | X94: 2867024 | Y94: 3.7258 | Z94: 0 | AA94: 2313.592465 | AC94: 2017-06-13 | AD94: 1.0357 | AE94: 0.0357 | AK94: 0
T95: 2017-06-09 | U95: 1.036013 | V95: 0 | W95: 21972.95586 | X95: 2865861.99 | Y95: 3.6013 | Z95: 0 | AA95: 2310.689852 | AC95: 2017-06-14 | AD95: 1.0357 | AE95: 0.0357 | AK95: 0
T96: 2017-06-13 | U96: 1.035705 | V96: 0 | W96: 22030.07769 | X96: 2866759.2 | Y96: 3.5705 | Z96: 0 | AA96: 2316.956783 | AC96: 2017-06-15 | AD96: 1.0373 | AE96: 0.0373 | AK96: 0
T97: 2017-06-14 | U97: 1.038521 | V97: 0 | W97: 22159.57302 | X97: 2877522.42 | Y97: 3.8521 | Z97: 0 | AA97: 2331.163933 | AC97: 2017-06-16 | AD97: 1.0345 | AE97: 0.0345 | AK97: 0
T98: 2017-06-15 | U98: 1.037394 | V98: 0 | W98: 22105.97387 | X98: 2868074.21 | Y98: 3.7394 | Z98: 0 | AA98: 2325.283481 | AC98: 2017-06-19 | AD98: 1.0376 | AE98: 0.0376 | AK98: 0
T99: 2017-06-16 | U99: 1.034506 | V99: 0 | W99: 22097.85334 | X99: 2854061.23 | Y99: 3.4506 | Z99: 0 | AA99: 2324.392564 | AC99: 2017-06-20 | AD99: 1.035 | AE99: 0.035 | AK99: 0
T100: 2017-06-19 | U100: 1.037612 | V100: 0 | W100: 22181.48955 | X100: 2861961.08 | Y100: 3.7612 | Z100: 0 | AA100: 2333.568433 | AC100: 2017-06-21 | AD100: 1.0349 | AE100: 0.0349 | AK100: 0
T101: 2017-06-20 | U101: 1.035053 | V101: 0 | W101: 22278.08212 | X101: 2850897.92 | Y101: 3.5053 | Z101: 0 | AA101: 2344.165766 | AC101: 2017-06-22 | AD101: 1.0336 | AE101: 0.0336 | AK101: 0
T102: 2017-06-21 | U102: 1.034935 | V102: 0 | W102: 22166.82389 | X102: 2847116.64 | Y102: 3.4935 | Z102: 0 | AA102: 2331.959438 | AC102: 2017-06-23 | AD102: 1.038 | AE102: 0.038 | AK102: 0
T103: 2017-06-22 | U103: 1.033698 | V103: 0 | W103: 22158.46201 | X103: 2842392.18 | Y103: 3.3698 | Z103: 0 | AA103: 2331.042043 | AC103: 2017-06-28 | AD103: 1.0386 | AE103: 0.0386 | AK103: 0
T104: 2017-06-23 | U104: 1.038069 | V104: 0 | W104: 22191.7068 | X104: 2855201.52 | Y104: 3.8069 | Z104: 0 | AA104: 2334.689384 | AC104: 2017-06-29 | AD104: 1.0388 | AE104: 0.0388 | AK104: 0
T105: 2017-06-28 | U105: 1.038614 | V105: 0 | W105: 22220.18639 | X105: 2850320.36 | Y105: 3.8614 | Z105: 0 | AA105: 2337.813928 | AC105: 2017-06-30 | AD105: 1.0362 | AE105: 0.0362 | AK105: 0
T106: 2017-06-29 | U106: 1.03884 | V106: 0 | W106: 22289.45406 | X106: 2854659.54 | Y106: 3.884 | Z106: 0 | AA106: 2345.4134 | AC106: 2017-07-03 | AD106: 1.0442 | AE106: 0.0442 | AK106: 0
T107: 2017-06-30 | U107: 1.036214 | V107: 0 | W107: 22259.19336 | X107: 2847973.65 | Y107: 3.6214 | Z107: 0 | AA107: 2342.093448 | AC107: 2017-07-04 | AD107: 1.04 | AE107: 0.04 | AK107: 0
T108: 2017-07-03 | U108: 1.044267 | V108: 0 | W108: 22405.73175 | X108: 2863839.9 | Y108: 4.4267 | Z108: 0 | AA108: 2358.170421 | AC108: 2017-07-05 | AD108: 1.0397 | AE108: 0.0397 | AK108: 0
T109: 2017-07-04 | U109: 1.040087 | V109: 0 | W109: 22294.6722 | X109: 2854695.74 | Y109: 4.0087 | Z109: 0 | AA109: 2345.985891 | AC109: 2017-07-06 | AD109: 1.0398 | AE109: 0.0398 | AK109: 0
T110: 2017-07-05 | U110: 1.039759 | V110: 0 | W110: 22312.97669 | X110: 2854459.33 | Y110: 3.9759 | Z110: 0 | AA110: 2347.994107 | AC110: 2017-07-07 | AD110: 1.0354 | AE110: 0.0354 | AK110: 0
T111: 2017-07-06 | U111: 1.039805 | V111: 0 | W111: 22282.23332 | X111: 2853260.12 | Y111: 3.9805 | Z111: 0 | AA111: 2344.621201 | AC111: 2017-07-10 | AD111: 1.0355 | AE111: 0.0355 | AK111: 0
T112: 2017-07-07 | U112: 1.035422 | V112: 0 | W112: 22236.81536 | X112: 2841227.34 | Y112: 3.5422 | Z112: 0 | AA112: 2339.63832 | AC112: 2017-07-11 | AD112: 1.0381 | AE112: 0.0381 | AK112: 0
T113: 2017-07-10 | U113: 1.035567 | V113: 0 | W113: 22186.8768 | X113: 2842958.03 | Y113: 3.5567 | Z113: 0 | AA113: 2334.159477 | AC113: 2017-07-12 | AD113: 1.0453 | AE113: 0.0453 | AK113: 0
T114: 2017-07-11 | U114: 1.038171 | V114: 0 | W114: 22148.59732 | X114: 2849439.26 | Y114: 3.8171 | Z114: 0 | AA114: 2329.959771 | AC114: 2017-07-13 | AD114: 1.0438 | AE114: 0.0438 | AK114: 0
T115: 2017-07-12 | U115: 1.045325 | V115: 0 | W115: 22264.07305 | X115: 2871749.65 | Y115: 4.5325 | Z115: 0 | AA115: 2342.628807 | AC115: 2017-07-14 | AD115: 1.0438 | AE115: 0.0438 | AK115: 0
T116: 2017-07-13 | U116: 1.043836 | V116: 0 | W116: 22344.76328 | X116: 2868662.8 | Y116: 4.3836 | Z116: 0 | AA116: 2351.481468 | AC116: 2017-07-17 | AD116: 1.0463 | AE116: 0.0463 | AK116: 0
T117: 2017-07-14 | U117: 1.043867 | V117: 0 | W117: 22377.86275 | X117: 2868407.46 | Y117: 4.3867 | Z117: 0 | AA117: 2355.112866 | AC117: 2017-07-18 | AD117: 1.0473 | AE117: 0.0473 | AK117: 0
T118: 2017-07-17 | U118: 1.046303 | V118: 0 | W118: 22435.07691 | X118: 2878453.96 | Y118: 4.6303 | Z118: 0 | AA118: 2361.389927 | AC118: 2017-07-19 | AD118: 1.0479 | AE118: 0.0479 | AK118: 0
T119: 2017-07-18 | U119: 1.047301 | V119: 0 | W119: 22497.65727 | X119: 2882542.22 | Y119: 4.7301 | Z119: 0 | AA119: 2368.255724 | AC119: 2017-07-20 | AD119: 1.0481 | AE119: 0.0481 | AK119: 0
T120: 2017-07-19 | U120: 1.04798 | V120: 0 | W120: 22525.91328 | X120: 2884077.79 | Y120: 4.798 | Z120: 0 | AA120: 2371.355738 | AC120: 2017-07-21 | AD120: 1.047 | AE120: 0.047 | AK120: 0
T121: 2017-07-20 | U121: 1.048129 | V121: 0 | W121: 22462.33327 | X121: 2880791.13 | Y121: 4.8129 | Z121: 0 | AA121: 2364.380268 | AC121: 2017-07-24 | AD121: 1.0481 | AE121: 0.0481 | AK121: 0
T122: 2017-07-21 | U122: 1.047082 | V122: 0 | W122: 22499.87973 | X122: 2883289.31 | Y122: 4.7082 | Z122: 0 | AA122: 2368.499553 | AC122: 2017-07-25 | AD122: 1.0497 | AE122: 0.0497 | AK122: 0
T123: 2017-07-24 | U123: 1.04818 | V123: 0 | W123: 22571.1558 | X123: 2890361.24 | Y123: 4.818 | Z123: 0 | AA123: 2376.319371 | AC123: 2017-07-26 | AD123: 1.0508 | AE123: 0.0508 | AK123: 0
T124: 2017-07-25 | U124: 1.049743 | V124: 0 | W124: 22671.41297 | X124: 2891963.23 | Y124: 4.9743 | Z124: 0 | AA124: 2387.318753 | AC124: 2017-07-27 | AD124: 1.0506 | AE124: 0.0506 | AK124: 0
T125: 2017-07-26 | U125: 1.050844 | V125: 0 | W125: 22731.66325 | X125: 2893308.17 | Y125: 5.0844 | Z125: 0 | AA125: 2393.928912 | AC125: 2017-07-28 | AD125: 1.0522 | AE125: 0.0522 | AK125: 0
T126: 2017-07-27 | U126: 1.050652 | V126: 0 | W126: 22781.78534 | X126: 2897184.12 | Y126: 5.0652 | Z126: 0 | AA126: 2399.427891 | AC126: 2017-07-31 | AD126: 1.0531 | AE126: 0.0531 | AK126: 0
T127: 2017-07-28 | U127: 1.052261 | V127: 0 | W127: 22780.27735 | X127: 2899243.74 | Y127: 5.2261 | Z127: 0 | AA127: 2399.262447 | AC127: 2017-08-01 | AD127: 1.0543 | AE127: 0.0543 | AK127: 0
T128: 2017-07-31 | U128: 1.053171 | V128: 0 | W128: 22736.46904 | X128: 2901416.46 | Y128: 5.3171 | Z128: 0 | AA128: 2394.456164 | AC128: 2017-08-02 | AD128: 1.0558 | AE128: 0.0558
T129: 2017-08-01 | U129: 1.054387 | V129: 0 | W129: 22765.96157 | X129: 2902054.77 | Y129: 5.4387 | Z129: 0 | AA129: 2397.691839 | AC129: 2017-08-03 | AD129: 1.051 | AE129: 0.051
T130: 2017-08-02 | U130: 1.0558 | V130: 0 | W130: 22833.38827 | X130: 2905946.61 | Y130: 5.58 | Z130: 0 | AA130: 2405.089335 | AC130: 2017-08-04 | AD130: 1.0519 | AE130: 0.0519
T131: 2017-08-03 | U131: 1.051064 | V131: 0 | W131: 22732.50813 | X131: 2896285.49 | Y131: 5.1064 | Z131: 0 | AA131: 2394.021606 | AC131: 2017-08-07 | AD131: 1.0506 | AE131: 0.0506
T132: 2017-08-04 | U132: 1.051945 | V132: 0 | W132: 22714.09014 | X132: 2900067.52 | Y132: 5.1945 | Z132: 0 | AA132: 2392.000937 | AC132: 2017-08-08 | AD132: 1.0534 | AE132: 0.0534
T133: 2017-08-07 | U133: 1.050679 | V133: 0 | W133: 22680.86692 | X133: 2893197.48 | Y133: 5.0679 | Z133: 0 | AA133: 2388.355962 | AC133: 2017-08-09 | AD133: 1.0535 | AE133: 0.0535
T134: 2017-08-08 | U134: 1.053448 | V134: 0 | W134: 22741.33488 | X134: 2899462.47 | Y134: 5.3448 | Z134: 0 | AA134: 2394.990003 | AC134: 2017-08-10 | AD134: 1.0541 | AE134: 0.0541
T135: 2017-08-09 | U135: 1.053586 | V135: 0 | W135: 22783.70413 | X135: 2897816.76 | Y135: 5.3586 | Z135: 0 | AA135: 2399.638405 | AC135: 2017-08-11 | AD135: 1.0535 | AE135: 0.0535
T136: 2017-08-10 | U136: 1.054186 | V136: 0 | W136: 22800.75667 | X136: 2897439.54 | Y136: 5.4186 | Z136: 0 | AA136: 2401.509267 | AC136: 2017-08-14 | AD136: 1.0499 | AE136: 0.0499
T137: 2017-08-11 | U137: 1.046416 | V137: 0 | W137: 22654.16218 | X137: 2873745.15 | Y137: 4.6416 | Z137: 0 | AA137: 2385.42614 | AC137: 2017-08-15 | AD137: 1.0526 | AE137: 0.0526
T138: 2017-08-14 | U138: 1.049935 | V138: 0 | W138: 22738.22573 | X138: 2884406.53 | Y138: 4.9935 | Z138: 0 | AA138: 2394.648893 | AC138: 2017-08-16 | AD138: 1.0509 | AE138: 0.0509
T139: 2017-08-15 | U139: 1.05264 | V139: 0 | W139: 22750.73962 | X139: 2890496.27 | Y139: 5.264 | Z139: 0 | AA139: 2396.021813 | AC139: 2017-08-17 | AD139: 1.0499 | AE139: 0.0499
T140: 2017-08-16 | U140: 1.050986 | V140: 0 | W140: 22761.59272 | X140: 2884607.21 | Y140: 5.0986 | Z140: 0 | AA140: 2397.212525 | AC140: 2017-08-18 | AD140: 1.0506 | AE140: 0.0506
T141: 2017-08-17 | U141: 1.049947 | V141: 0 | W141: 22782.54592 | X141: 2883104.04 | Y141: 4.9947 | Z141: 0 | AA141: 2399.511335 | AC141: 2017-08-21 | AD141: 1.0467 | AE141: 0.0467
T142: 2017-08-18 | U142: 1.050646 | V142: 0 | W142: 22730.41653 | X142: 2889059.79 | Y142: 5.0646 | Z142: 0 | AA142: 2393.792133 | AC142: 2017-08-22 | AD142: 1.0484 | AE142: 0.0484
T143: 2017-08-21 | U143: 1.046763 | V143: 0 | W143: 22713.93642 | X143: 2880062.46 | Y143: 4.6763 | Z143: 0 | AA143: 2391.984072 | AC143: 2017-08-23 | AD143: 1.0481 | AE143: 0.0481
T144: 2017-08-22 | U144: 1.048475 | V144: 0 | W144: 22754.73508 | X144: 2889152.85 | Y144: 4.8475 | Z144: 0 | AA144: 2396.460161 | AC144: 2017-08-24 | AD144: 1.0528 | AE144: 0.0528
T145: 2017-08-23 | U145: 1.048136 | V145: 0 | W145: 22764.24149 | X145: 2888888.43 | Y145: 4.8136 | Z145: 0 | AA145: 2397.503126 | AC145: 2017-08-25 | AD145: 1.0534 | AE145: 0.0534
T146: 2017-08-24 | U146: 1.052816 | V146: 0 | W146: 22775.58459 | X146: 2901793.29 | Y146: 5.2816 | Z146: 0 | AA146: 2398.747596 | AC146: 2017-08-28 | AD146: 1.0562 | AE146: 0.0562
T147: 2017-08-25 | U147: 1.053404 | V147: 0 | W147: 22757.08245 | X147: 2908172.92 | Y147: 5.3404 | Z147: 0 | AA147: 2396.717695 | AC147: 2017-08-29 | AD147: 1.0588 | AE147: 0.0588
T148: 2017-08-28 | U148: 1.056249 | V148: 0 | W148: 22837.55186 | X148: 2919442.83 | Y148: 5.6249 | Z148: 0 | AA148: 2405.546129 | AC148: 2017-08-30 | AD148: 1.0606 | AE148: 0.0606
T149: 2017-08-29 | U149: 1.058816 | V149: 0 | W149: 22936.18348 | X149: 2927224.14 | Y149: 5.8816 | Z149: 0 | AA149: 2416.36717 | AC149: 2017-08-31 | AD149: 1.0605 | AE149: 0.0605
T150: 2017-08-30 | U150: 1.06068 | V150: 0 | W150: 22993.85813 | X150: 2929629.32 | Y150: 6.068 | Z150: 0 | AA150: 2422.694752 | AC150: 2017-09-05 | AD150: 1.0598 | AE150: 0.0598
T151: 2017-08-31 | U151: 1.060582 | V151: 0 | W151: 23003.62904 | X151: 2929359.36 | Y151: 6.0582 | Z151: 0 | AA151: 2423.766735 | AC151: 2017-09-06 | AD151: 1.0582 | AE151: 0.0582
T152: 2017-09-05 | U152: 1.059881 | V152: 0 | W152: 22937.98704 | X152: 2934639.77 | Y152: 5.9881 | Z152: 0 | AA152: 2416.565041 | AC152: 2017-09-07 | AD152: 1.063 | AE152: 0.063
T153: 2017-09-06 | U153: 1.058212 | V153: 0 | W153: 22740.97441 | X153: 2944884.47 | Y153: 5.8212 | Z153: 0 | AA153: 2394.950455 | AC153: 2017-09-08 | AD153: 1.0625 | AE153: 0.0625
T154: 2017-09-07 | U154: 1.063092 | V154: 0 | W154: 22863.92889 | X154: 2978856.26 | Y154: 6.3092 | Z154: 0 | AA154: 2408.439998 | AC154: 2017-09-11 | AD154: 1.0637 | AE154: 0.0637
T155: 2017-09-08 | U155: 1.062576 | V155: 0 | W155: 22908.36182 | X155: 2988779.66 | Y155: 6.2576 | Z155: 0 | AA155: 2413.314809 | AC155: 2017-09-12 | AD155: 1.0649 | AE155: 0.0649
T156: 2017-09-11 | U156: 1.063749 | V156: 0 | W156: 22895.14895 | X156: 2989217.77 | Y156: 6.3749 | Z156: 0 | AA156: 2411.865203 | AC156: 2017-09-13 | AD156: 1.058 | AE156: 0.058
T157: 2017-09-12 | U157: 1.064942 | V157: 0 | W157: 22965.47748 | X157: 2985457.2 | Y157: 6.4942 | Z157: 0 | AA157: 2419.581064 | AC157: 2017-09-14 | AD157: 1.057 | AE157: 0.057
T158: 2017-09-13 | U158: 1.058034 | V158: 0 | W158: 22870.96512 | X158: 2977416.39 | Y158: 5.8034 | Z158: 0 | AA158: 2409.211954 | AC158: 2017-09-15 | AD158: 1.0637 | AE158: 0.0637
T159: 2017-09-14 | U159: 1.057003 | V159: 0 | W159: 22968.85973 | X159: 2964610.83 | Y159: 5.7003 | Z159: 0 | AA159: 2419.952136 | AC159: 2017-09-18 | AD159: 1.0639 | AE159: 0.0639
T160: 2017-09-15 | U160: 1.063714 | V160: 0 | W160: 22937.54183 | X160: 2994834.74 | Y160: 6.3714 | Z160: 0 | AA160: 2416.516197 | AC160: 2017-09-19 | AD160: 1.0632 | AE160: 0.0632
T161: 2017-09-18 | U161: 1.063995 | V161: 0 | W161: 23071.29833 | X161: 2996692.12 | Y161: 6.3995 | Z161: 0 | AA161: 2431.190847 | AC161: 2017-09-20 | AD161: 1.0659 | AE161: 0.0659
T162: 2017-09-19 | U162: 1.063225 | V162: 0 | W162: 23043.2868 | X162: 2992031.76 | Y162: 6.3225 | Z162: 0 | AA162: 2428.117655 | AC162: 2017-09-21 | AD162: 1.0657 | AE162: 0.0657
T163: 2017-09-20 | U163: 1.065994 | V163: 0 | W163: 23007.34356 | X163: 3002688.95 | Y163: 6.5994 | Z163: 0 | AA163: 2424.174262 | AC163: 2017-09-25 | AD163: 1.0596 | AE163: 0.0596
T164: 2017-09-21 | U164: 1.065746 | V164: 0 | W164: 22973.63476 | X164: 2994835.19 | Y164: 6.5746 | Z164: 0 | AA164: 2420.476013 | AC164: 2017-09-26 | AD164: 1.0603 | AE164: 0.0603
T165: 2017-09-25 | U165: 1.059669 | V165: 0 | W165: 22973.20721 | X165: 2973500.97 | Y165: 5.9669 | Z165: 0 | AA165: 2420.429105 | AC165: 2017-09-27 | AD165: 1.0606 | AE165: 0.0606
T166: 2017-09-26 | U166: 1.060354 | V166: 0 | W166: 22928.54472 | X166: 2973309.61 | Y166: 6.0354 | Z166: 0 | AA166: 2415.529109 | AC166: 2017-09-28 | AD166: 1.0571 | AE166: 0.0571
T167: 2017-09-27 | U167: 1.060655 | V167: 0 | W167: 22968.17897 | X167: 2963576.54 | Y167: 6.0655 | Z167: 0 | AA167: 2419.877449 | AC167: 2017-09-29 | AD167: 1.0612 | AE167: 0.0612
T168: 2017-09-28 | U168: 1.057162 | V168: 0 | W168: 22849.67262 | X168: 2946828.89 | Y168: 5.7162 | Z168: 0 | AA168: 2406.875918 | AC168: 2017-09-30 | AD168: 1.0612 | AE168: 0.0612
T169: 2017-09-29 | U169: 1.061299 | V169: 0 | W169: 22927.64719 | X169: 2964667.98 | Y169: 6.1299 | Z169: 0 | AA169: 2415.430639 | AC169: 2017-10-02 | AD169: 1.0633 | AE169: 0.0633
T170: 2017-09-30 | U170: 1.061282 | V170: 0 | X170: 2964625.76 | Y170: 6.1282 | Z170: 0 | AA170: 0 | AC170: 2017-10-03 | AD170: 1.0649 | AE170: 0.0649
T171: 2017-10-02 | U171: 1.063341 | V171: 0 | W171: 23083.81494 | X171: 2962654.14 | Y171: 6.3341 | Z171: 0 | AA171: 2432.564065 | AC171: 2017-10-04 | AD171: 1.0666 | AE171: 0.0666
T172: 2017-10-03 | U172: 1.064922 | V172: 0 | W172: 23098.4091 | X172: 2964265.51 | Y172: 6.4922 | Z172: 0 | AA172: 2434.165215 | AC172: 2017-10-05 | AD172: 1.0624 | AE172: 0.0624
T173: 2017-10-04 | U173: 1.06663 | V173: 0 | W173: 23086.5466 | X173: 2976040.24 | Y173: 6.663 | Z173: 0 | AA173: 2432.86376 | AC173: 2017-10-06 | AD173: 1.0652 | AE173: 0.0652
T174: 2017-10-05 | U174: 1.062476 | V174: 0 | W174: 23076.68879 | X174: 2963403.14 | Y174: 6.2476 | Z174: 0 | AA174: 2431.782243 | AC174: 2017-10-09 | AD174: 1.066 | AE174: 0.066
T175: 2017-10-06 | U175: 1.065282 | V175: 0 | W175: 23131.32098 | X175: 2965268.09 | Y175: 6.5282 | Z175: 0 | AA175: 2437.776032 | AC175: 2017-10-10 | AD175: 1.07 | AE175: 0.07
T176: 2017-10-09 | U176: 1.06607 | V176: 0 | W176: 23125.73438 | X176: 2971666.82 | Y176: 6.607 | Z176: 0 | AA176: 2437.163117 | AC176: 2017-10-11 | AD176: 1.069 | AE176: 0.069
T177: 2017-10-10 | U177: 1.070026 | V177: 0 | W177: 23197.70549 | X177: 2991886.84 | Y177: 7.0026 | Z177: 0 | AA177: 2445.059188 | AC177: 2017-10-12 | AD177: 1.0825 | AE177: 0.0825
T178: 2017-10-11 | U178: 1.069091 | V178: 0 | W178: 23201.11555 | X178: 2987143.96 | Y178: 6.9091 | Z178: 0 | AA178: 2445.433312 | AC178: 2017-10-13 | AD178: 1.0835 | AE178: 0.0835
T179: 2017-10-12 | U179: 1.08259 | V179: 0 | W179: 23306.51312 | X179: 3024869.76 | Y179: 8.259 | Z179: 0 | AA179: 2456.996656 | AC179: 2017-10-16 | AD179: 1.085 | AE179: 0.085
T180: 2017-10-13 | U180: 1.083553 | V180: 0 | W180: 23333.45304 | X180: 3027556.5 | Y180: 8.3553 | Z180: 0 | AA180: 2459.95228 | AC180: 2017-10-17 | AD180: 1.0836 | AE180: 0.0836
T181: 2017-10-16 | U181: 1.085095 | V181: 0 | W181: 23433.19369 | X181: 3035100.15 | Y181: 8.5095 | Z181: 0 | AA181: 2470.894994 | AC181: 2017-10-19 | AD181: 1.0698 | AE181: 0.0698
T182: 2017-10-17 | U182: 1.083657 | V182: 0 | W182: 23419.27371 | X182: 2975077.44 | Y182: 8.3657 | Z182: 0 | AA182: 2469.367809 | AC182: 2017-10-20 | AD182: 1.0644 | AE182: 0.0644
T183: 2017-10-19 | U183: 1.069846 | V183: 0 | W183: 23186.96009 | X183: 2937163.78 | Y183: 6.9846 | Z183: 0 | AA183: 2443.880292 | AC183: 2017-10-23 | AD183: 1.0633 | AE183: 0.0633
T184: 2017-10-20 | U184: 1.064461 | V184: 0 | W184: 23202.4832 | X184: 2920989.76 | Y184: 6.4461 | Z184: 0 | AA184: 2445.583359 | AC184: 2017-10-24 | AD184: 1.0611 | AE184: 0.0611
T185: 2017-10-23 | U185: 1.063346 | V185: 0 | W185: 23236.80161 | X185: 2909674.08 | Y185: 6.3346 | Z185: 0 | AA185: 2449.348489 | AC185: 2017-10-25 | AD185: 1.0671 | AE185: 0.0671
T186: 2017-10-24 | U186: 1.061195 | V186: 0 | W186: 23145.34886 | X186: 2906532.75 | Y186: 6.1195 | Z186: 0 | AA186: 2439.315055 | AC186: 2017-10-26 | AD186: 1.0627 | AE186: 0.0627
T187: 2017-10-25 | U187: 1.067184 | V187: 0 | W187: 23218.53662 | X187: 2921547.26 | Y187: 6.7184 | Z187: 0 | AA187: 2447.344607 | AC187: 2017-10-27 | AD187: 1.0682 | AE187: 0.0682
T188: 2017-10-26 | U188: 1.062781 | V188: 0 | W188: 23205.06363 | X188: 2910524.4 | Y188: 6.2781 | Z188: 0 | AA188: 2445.866462 | AC188: 2017-10-30 | AD188: 1.0731 | AE188: 0.0731
T189: 2017-10-27 | U189: 1.068276 | V189: 0 | W189: 23302.49137 | X189: 2920398.23 | Y189: 6.8276 | Z189: 0 | AA189: 2456.555423 | AC189: 2017-10-31 | AD189: 1.0731 | AE189: 0.0731
T190: 2017-10-30 | U190: 1.073127 | V190: 0 | W190: 23379.83419 | X190: 2936432.82 | Y190: 7.3127 | Z190: 0 | AA190: 2465.040834 | AC190: 2017-11-01 | AD190: 1.0781 | AE190: 0.0781
T191: 2017-10-31 | U191: 1.073167 | V191: 0 | W191: 23424.47622 | X191: 2939323.63 | Y191: 7.3167 | Z191: 0 | AA191: 2469.938586 | AC191: 2017-11-02 | AD191: 1.0767 | AE191: 0.0767
T192: 2017-11-01 | U192: 1.078172 | V192: 0 | W192: 23450.1267 | X192: 2954427.71 | Y192: 7.8172 | Z192: 0 | AA192: 2472.752743 | AC192: 2017-11-03 | AD192: 1.0785 | AE192: 0.0785
T193: 2017-11-02 | U193: 1.076784 | V193: 0 | W193: 23488.25489 | X193: 2951312.3 | Y193: 7.6784 | Z193: 0 | AA193: 2476.93585 | AC193: 2017-11-06 | AD193: 1.0833 | AE193: 0.0833
T194: 2017-11-03 | U194: 1.078582 | V194: 0 | W194: 23499.23921 | X194: 2952747.41 | Y194: 7.8582 | Z194: 0 | AA194: 2478.140959 | AC194: 2017-11-07 | AD194: 1.0859 | AE194: 0.0859
T195: 2017-11-06 | U195: 1.083328 | V195: 0 | W195: 23543.07565 | X195: 2968554.14 | Y195: 8.3328 | Z195: 0 | AA195: 2482.950328 | AC195: 2017-11-08 | AD195: 1.0818 | AE195: 0.0818
T196: 2017-11-07 | U196: 1.085925 | V196: 0 | W196: 23603.21858 | X196: 2976724.99 | Y196: 8.5925 | Z196: 0 | AA196: 2489.54871 | AC196: 2017-11-09 | AD196: 1.0756 | AE196: 0.0756
T197: 2017-11-08 | U197: 1.081831 | V197: 0 | W197: 23601.34276 | X197: 2965852.83 | Y197: 8.1831 | Z197: 0 | AA197: 2489.34291 | AC197: 2017-11-10 | AD197: 1.0682 | AE197: 0.0682
T198: 2017-11-09 | U198: 1.075622 | V198: 0 | W198: 23420.76606 | X198: 2964960.34 | Y198: 7.5622 | Z198: 0 | AA198: 2469.531538 | AC198: 2017-11-13 | AD198: 1.0656 | AE198: 0.0656
T199: 2017-11-10 | U199: 1.06822 | V199: 0 | W199: 23281.34724 | X199: 2955089.69 | Y199: 6.822 | Z199: 0 | AA199: 2454.235665 | AC199: 2017-11-14 | AD199: 1.066 | AE199: 0.066
T200: 2017-11-13 | U200: 1.065697 | V200: 0 | W200: 23198.48421 | X200: 2948114.04 | Y200: 6.5697 | Z200: 0 | AA200: 2445.144623 | AC200: 2017-11-15 | AD200: 1.0568 | AE200: 0.0568
... 302 more rows

Sheet A5ESGNAV (hidden)
B1: NAV - MYR
A2: 2017-01-31 | B2: 1.0002
A3: 2017-02-02 | B3: 1.000454
A4: 2017-02-03 | B4: 1.000318
A5: 2017-02-06 | B5: 1.001723
A6: 2017-02-07 | B6: 1.001645
A7: 2017-02-08 | B7: 1.001028
A8: 2017-02-10 | B8: 1.006842
A9: 2017-02-13 | B9: 1.009907
A10: 2017-02-14 | B10: 1.01031
A11: 2017-02-15 | B11: 1.0083
A12: 2017-02-16 | B12: 1.0077
A13: 2017-02-17 | B13: 1.0157
A14: 2017-02-20 | B14: 1.0182
A15: 2017-02-21 | B15: 1.0166
A16: 2017-02-22 | B16: 1.0204
A17: 2017-02-23 | B17: 1.0187
A18: 2017-02-24 | B18: 1.0173
A19: 2017-02-28 | B19: 1.0139
A20: 2017-03-01 | B20: 1.0168
A21: 2017-03-02 | B21: 1.0204
A22: 2017-03-03 | B22: 1.0167
A23: 2017-03-06 | B23: 1.0179
A24: 2017-03-07 | B24: 1.0223
A25: 2017-03-08 | B25: 1.0218
A26: 2017-03-09 | B26: 1.0176
A27: 2017-03-10 | B27: 1.0168
A28: 2017-03-13 | B28: 1.0156
A29: 2017-03-14 | B29: 1.0147
A30: 2017-03-15 | B30: 1.0142
A31: 2017-03-16 | B31: 1.021
A32: 2017-03-17 | B32: 1.0266
A33: 2017-03-20 | B33: 1.0271
A34: 2017-03-21 | B34: 1.032
A35: 2017-03-22 | B35: 1.0303
A36: 2017-03-23 | B36: 1.0294
A37: 2017-03-24 | B37: 1.0287
A38: 2017-03-27 | B38: 1.025
A39: 2017-03-28 | B39: 1.031
A40: 2017-03-29 | B40: 1.032
A41: 2017-03-30 | B41: 1.0315
A42: 2017-03-31 | B42: 1.031
A43: 2017-04-03 | B43: 1.031
A44: 2017-04-04 | B44: 1.0318
A45: 2017-04-05 | B45: 1.035
A46: 2017-04-06 | B46: 1.0336
A47: 2017-04-07 | B47: 1.0354
A48: 2017-04-10 | B48: 1.0352
A49: 2017-04-11 | B49: 1.0341
A50: 2017-04-12 | B50: 1.0379
A51: 2017-04-13 | B51: 1.0346
A52: 2017-04-14 | B52: 1.0325
A53: 2017-04-17 | B53: 1.0327
A54: 2017-04-18 | B54: 1.0327
A55: 2017-04-19 | B55: 1.0295
A56: 2017-04-20 | B56: 1.0289
A57: 2017-04-21 | B57: 1.0323
A58: 2017-04-25 | B58: 1.0325
A59: 2017-04-26 | B59: 1.0322
A60: 2017-04-27 | B60: 1.0312
A61: 2017-04-28 | B61: 1.0306
A62: 2017-04-30 | B62: 1.0306
A63: 2017-05-02 | B63: 1.033
A64: 2017-05-03 | B64: 1.0307
A65: 2017-05-04 | B65: 1.0298
A66: 2017-05-05 | B66: 1.0331
A67: 2017-05-08 | B67: 1.0357
A68: 2017-05-09 | B68: 1.0344
A69: 2017-05-11 | B69: 1.0371
A70: 2017-05-12 | B70: 1.0354
A71: 2017-05-15 | B71: 1.0355
A72: 2017-05-16 | B72: 1.0348
A73: 2017-05-17 | B73: 1.0316
A74: 2017-05-18 | B74: 1.0319
A75: 2017-05-19 | B75: 1.0325
A76: 2017-05-22 | B76: 1.0342
A77: 2017-05-23 | B77: 1.0336
A78: 2017-05-24 | B78: 1.0345
A79: 2017-05-25 | B79: 1.0312
A80: 2017-05-26 | B80: 1.0314
A81: 2017-05-29 | B81: 1.0315
A82: 2017-05-30 | B82: 1.0344
A83: 2017-05-31 | B83: 1.0369
A84: 2017-06-01 | B84: 1.0373
A85: 2017-06-02 | B85: 1.0372
A86: 2017-06-03 | B86: 1.0372
A87: 2017-06-06 | B87: 1.0371
A88: 2017-06-07 | B88: 1.0372
A89: 2017-06-08 | B89: 1.0372
A90: 2017-06-09 | B90: 1.036
A91: 2017-06-13 | B91: 1.0357
A92: 2017-06-14 | B92: 1.0357
A93: 2017-06-15 | B93: 1.0373
A94: 2017-06-16 | B94: 1.0345
A95: 2017-06-19 | B95: 1.0376
A96: 2017-06-20 | B96: 1.035
A97: 2017-06-21 | B97: 1.0349
A98: 2017-06-22 | B98: 1.0336
A99: 2017-06-23 | B99: 1.038
A100: 2017-06-28 | B100: 1.0386
A101: 2017-06-29 | B101: 1.0388
A102: 2017-06-30 | B102: 1.0362
A103: 2017-07-03 | B103: 1.0442
A104: 2017-07-04 | B104: 1.04
A105: 2017-07-05 | B105: 1.0397
A106: 2017-07-06 | B106: 1.0398
A107: 2017-07-07 | B107: 1.0354
A108: 2017-07-10 | B108: 1.0355
A109: 2017-07-11 | B109: 1.0381
A110: 2017-07-12 | B110: 1.0453
A111: 2017-07-13 | B111: 1.0438
A112: 2017-07-14 | B112: 1.0438
A113: 2017-07-17 | B113: 1.0463
A114: 2017-07-18 | B114: 1.0473
A115: 2017-07-19 | B115: 1.0479
A116: 2017-07-20 | B116: 1.0481
A117: 2017-07-21 | B117: 1.047
A118: 2017-07-24 | B118: 1.0481
A119: 2017-07-25 | B119: 1.0497
A120: 2017-07-26 | B120: 1.0508
A121: 2017-07-27 | B121: 1.0506
A122: 2017-07-28 | B122: 1.0522
A123: 2017-07-31 | B123: 1.0531
A124: 2017-08-01 | B124: 1.0543
A125: 2017-08-02 | B125: 1.0558
A126: 2017-08-03 | B126: 1.051
A127: 2017-08-04 | B127: 1.0519
A128: 2017-08-07 | B128: 1.0506
A129: 2017-08-08 | B129: 1.0534
A130: 2017-08-09 | B130: 1.0535
A131: 2017-08-10 | B131: 1.0541
A132: 2017-08-11 | B132: 1.0535
A133: 2017-08-14 | B133: 1.0499
A134: 2017-08-15 | B134: 1.0526
A135: 2017-08-16 | B135: 1.0509
A136: 2017-08-17 | B136: 1.0499
A137: 2017-08-18 | B137: 1.0506
A138: 2017-08-21 | B138: 1.0467
A139: 2017-08-22 | B139: 1.0484
A140: 2017-08-23 | B140: 1.0481
A141: 2017-08-24 | B141: 1.0528
A142: 2017-08-25 | B142: 1.0534
A143: 2017-08-28 | B143: 1.0562
A144: 2017-08-29 | B144: 1.0588
A145: 2017-08-30 | B145: 1.0606
A146: 2017-08-31 | B146: 1.0605
A147: 2017-09-05 | B147: 1.0598
A148: 2017-09-06 | B148: 1.0582
A149: 2017-09-07 | B149: 1.063
A150: 2017-09-08 | B150: 1.0625
A151: 2017-09-11 | B151: 1.0637
A152: 2017-09-12 | B152: 1.0649
A153: 2017-09-13 | B153: 1.058
A154: 2017-09-14 | B154: 1.057
A155: 2017-09-15 | B155: 1.0637
A156: 2017-09-18 | B156: 1.0639
A157: 2017-09-19 | B157: 1.0632
A158: 2017-09-20 | B158: 1.0659
A159: 2017-09-21 | B159: 1.0657
A160: 2017-09-25 | B160: 1.0596
A161: 2017-09-26 | B161: 1.0603
A162: 2017-09-27 | B162: 1.0606
A163: 2017-09-28 | B163: 1.0571
A164: 2017-09-29 | B164: 1.0612
A165: 2017-09-30 | B165: 1.0612
A166: 2017-10-02 | B166: 1.0633
A167: 2017-10-03 | B167: 1.0649
A168: 2017-10-04 | B168: 1.0666
A169: 2017-10-05 | B169: 1.0624
A170: 2017-10-06 | B170: 1.0652
A171: 2017-10-09 | B171: 1.066
A172: 2017-10-10 | B172: 1.07
A173: 2017-10-11 | B173: 1.069
A174: 2017-10-12 | B174: 1.0825
A175: 2017-10-13 | B175: 1.0835
A176: 2017-10-16 | B176: 1.085
A177: 2017-10-17 | B177: 1.0836
A178: 2017-10-19 | B178: 1.0698
A179: 2017-10-20 | B179: 1.0644
A180: 2017-10-23 | B180: 1.0633
A181: 2017-10-24 | B181: 1.0611
A182: 2017-10-25 | B182: 1.0671
A183: 2017-10-26 | B183: 1.0627
A184: 2017-10-27 | B184: 1.0682
A185: 2017-10-30 | B185: 1.0731
A186: 2017-10-31 | B186: 1.0731
A187: 2017-11-01 | B187: 1.0781
A188: 2017-11-02 | B188: 1.0767
A189: 2017-11-03 | B189: 1.0785
A190: 2017-11-06 | B190: 1.0833
A191: 2017-11-07 | B191: 1.0859
A192: 2017-11-08 | B192: 1.0818
A193: 2017-11-09 | B193: 1.0756
A194: 2017-11-10 | B194: 1.0682
A195: 2017-11-13 | B195: 1.0656
A196: 2017-11-14 | B196: 1.066
A197: 2017-11-15 | B197: 1.0568
A198: 2017-11-16 | B198: 1.0507
A199: 2017-11-17 | B199: 1.0572
A200: 2017-11-20 | B200: 1.0525
... 296 more rows

Sheet InHolding (hidden)
A1: MasterData | AC1: =IF(C1="EQT",Y1/K1*I1*L1,L1*Y1) -> 0 | AD1: =IF(C1="EQT","",IF(C1="CSH","Cash",VLOOKUP(V1,RatingData,2,0))) -> N/A | AE1: =IF(C1="EQT",SUMIFS(O:O,Z:Z,Z1,A:A,A1,C:C,"EQT")/SUMIFS(O:O,A:A,A1,C:C,"EQT") - SUMIFS(IndexBasket!D:D, IndexBasket!E:E,Z1,IndexBasket!B:B,InHolding!AA1),0) -> 0 | AF1: =IF(C1="EQT",O1,0) -> 0
A2: qFundCode | B2: HistoryDate | C2: qProductType | D2: qStockCode | E2: StockName | F2: Description | G2: StockCurrency | H2: SectorName | I2: UnitFaceValue | J2: PriceCurr | K2: CostSC | L2: CostFC | M2: LastMarketValue | N2: MarketValueSC | O2: MarketValueFC | P2: AccruedInterest | Q2: UnrealisedGainsStock | R2: UnrealisedGainsExchg | S2: AmortAccreation | T2: CountryName | U2: CleanMVFC | V2: Rating | W2: IssuedSize | X2: MarketCap | Y2: DPS | Z2: qKLSESector | AA2: qIndexBenchmark | AB2: qAssetClass | AE2: 0 | AF2: MarketValueFCEQT
A3: ASEAN5ESG | B3: 2019-01-31 | C3: EQT | D3: 4197 | E3: SIME | F3: Sime Darby Berhad | G3: MYR | H3: INDUSTRIALS | I3: 300000 | J3: 2.24 | K3: 672000 | L3: 163702.8 | M3: 0 | N3: 672000 | O3: 164142.65 | P3: 0 | Q3: 0 | R3: 439.85 | S3: 0 | T3: Malaysia | U3: 164142.65 | V3: Score 4 | W3: 6800839377 | X3: LARGE CAP | Y3: 0.25 | Z3: 68 | AA3: F4GAS | AB3: EQT | AC3: 18270.40179 | AE3: 0.2599016606 | AF3: 164142.65
A4: ASEAN5ESG | B4: 2019-01-31 | C4: EQT | D4: 5014 | E4: AIRPORT | F4: Malaysia Airports Holdings Bhd | G4: MYR | H4: INDUSTRIALS | I4: 37400 | J4: 8.04 | K4: 326739.44 | L4: 78914.96 | M4: 0 | N4: 300696 | O4: 73447.97 | P4: 0 | Q4: -6361.37 | R4: 894.38 | S4: 0 | T4: Malaysia | U4: 73447.97 | V4: Score 3 | W4: 1659191828 | X4: LARGE CAP | Y4: 0.02 | Z4: 68 | AA4: F4GAS | AB4: EQT | AC4: 180.6589069 | AE4: 0.2599016606 | AF4: 73447.97
A5: ASEAN5ESG | B5: 2019-01-31 | C5: EQT | D5: 5347 | E5: TENAGA | F5: Tenaga Nasional Bhd | G5: MYR | H5: UTILITIES | I5: 72000 | J5: 12.9 | K5: 965107.2 | L5: 230892.19 | M5: 0 | N5: 928800 | O5: 226868.59 | P5: 0 | Q5: -8868.39 | R5: 4844.79 | S5: 0 | T5: Malaysia | U5: 226868.59 | V5: Score 3 | W5: 5686888771 | X5: LARGE CAP | Y5: 0.35 | Z5: 20 | AA5: F4GAS | AB5: EQT | AC5: 6028.846524 | AE5: 0.1007416133 | AF5: 226868.59
A6: ASEAN5ESG | B6: 2019-01-31 | C6: EQT | D6: ID1000058407 | E6: UNITTRACTORS | F6: United Tractors | G6: IDR | H6: INDUSTRIALS | I6: 76000 | J6: 25725 | K6: 2027411188 | L6: 149144.87 | M6: 0 | N6: 1955100000 | O6: 139949.89 | P6: 0 | Q6: -5176.18 | R6: -4018.8 | S6: 0 | T6: Indonesia | U6: 139949.89 | V6: Score 3 | W6: 0 | X6: SMALL CAP | Y6: 0 | Z6: 68 | AA6: F4GAS | AB6: EQT | AC6: 0 | AE6: 0.2599016606 | AF6: 139949.89
A7: ASEAN5ESG | B7: 2019-01-31 | C7: EQT | D7: SG1L01001701 | E7: DBS GROUP HLDGS | F7: DBS Group Holdings | G7: SGD | H7: FINANCIALS | I7: 12000 | J7: 23.92 | K7: 318322.2 | L7: 239036.56 | M7: 0 | N7: 287040 | O7: 213523.77 | P7: 0 | Q7: -23270.25 | R7: -2242.54 | S7: 0 | T7: Singapore | U7: 213523.77 | V7: Score 4 | W7: 0 | X7: SMALL CAP | Y7: 0 | Z7: 3 | AA7: F4GAS | AB7: EQT | AC7: 0 | AE7: 0.3494133273 | AF7: 213523.77
A8: ASEAN5ESG | B8: 2019-01-31 | C8: EQT | D8: TH0015010R16 | E8: SIAMCOMMBANKNVDR | F8: Siam Commercial Bank (NVDR) | G8: THB | H8: FINANCIALS | I8: 37000 | J8: 133 | K8: 5464600 | L8: 172853.37 | M8: 0 | N8: 4921000 | O8: 157625.34 | P8: 0 | Q8: -17412.14 | R8: 2184.11 | S8: 0 | T8: Thailand | U8: 157625.34 | V8: Score 3 | W8: 0 | X8: SMALL CAP | Y8: 0 | Z8: 3 | AA8: F4GAS | AB8: EQT | AC8: 0 | AE8: 0.3494133273 | AF8: 157625.34
A9: ASEAN5ESG | B9: 2019-01-31 | C9: EQT | D9: TH0016010R14 | E9: KASIKORNNVDR | F9: Kasikornbank (NVDR) | G9: THB | H9: FINANCIALS | I9: 31000 | J9: 200 | K9: 6272500.8 | L9: 191287.43 | M9: 0 | N9: 6200000 | O9: 198593.19 | P9: 0 | Q9: -2322.28 | R9: 9628.05 | S9: 0 | T9: Thailand | U9: 198593.19 | V9: Score 4 | W9: 0 | X9: SMALL CAP | Y9: 0 | Z9: 3 | AA9: F4GAS | AB9: EQT | AC9: 0 | AE9: 0.3494133273 | AF9: 198593.19
A10: ASEAN5ESG | B10: 2019-01-31 | C10: EQT | D10: TH0221010R10 | E10: BTSGROUP-NVDR | F10: BTS Group Holdings Plc | G10: THB | H10: CONSUMER SERVICES | I10: 972778 | J10: 10 | K10: 8353526 | L10: 261054.56 | M10: 0 | N10: 9727780 | O10: 311592.08 | P10: 0 | Q10: 44018.95 | R10: 6518.57 | S10: 0 | T10: Thailand | U10: 311592.08 | V10: Score 2 | W10: 0 | X10: SMALL CAP | Y10: 0 | Z10: 7 | AA10: F4GAS | AB10: EQT | AC10: 0 | AE10: 0.1383633091 | AF10: 311592.08
A11: ASEAN5ESG | B11: 2019-01-31 | C11: EQT | D11: TH0355010R16 | E11: PTTEPNVDR | F11: PTT Exploration & Production | G11: THB | H11: OIL & GAS | I11: 48000 | J11: 123 | K11: 5807050.2 | L11: 185507.08 | M11: 0 | N11: 5904000 | O11: 189111.97 | P11: 0 | Q11: 3105.41 | R11: 499.47 | S11: 0 | T11: Thailand | U11: 189111.97 | V11: Score 4 | W11: 0 | X11: SMALL CAP | Y11: 0 | Z11: 17 | AA11: F4GAS | AB11: EQT | AC11: 0 | AE11: 0.1515800896 | AF11: 189111.97
A12: ASEAN5ESG | B12: 2019-01-31 | C12: EQT | D12: TH0481010R10 | E12: CENTPATTANA-NVDR | F12: Central Pattana | G12: THB | H12: FINANCIALS | I12: 85000 | J12: 79.75 | K12: 6571525 | L12: 205529.15 | M12: 0 | N12: 6778750 | O12: 217131.23 | P12: 0 | Q12: 6637.66 | R12: 4964.42 | S12: 0 | T12: Thailand | U12: 217131.23 | V12: Score 3 | W12: 0 | X12: SMALL CAP | Y12: 0 | Z12: 3 | AA12: F4GAS | AB12: EQT | AC12: 0 | AE12: 0.3494133273 | AF12: 217131.23
A13: ASEAN5ESG | B13: 2019-01-31 | C13: EQT | D13: TH0646010R18 | E13: PTTNVDR | F13: PTT PCL | G13: THB | H13: OIL & GAS | I13: 98000 | J13: 48.5 | K13: 4066300 | L13: 122610.56 | M13: 0 | N13: 4753000 | O13: 152244.1 | P13: 0 | Q13: 21995.8 | R13: 7637.75 | S13: 0 | T13: Thailand | U13: 152244.1 | V13: Score 4 | W13: 0 | X13: SMALL CAP | Y13: 0 | Z13: 17 | AA13: F4GAS | AB13: EQT | AC13: 0 | AE13: 0.1515800896 | AF13: 152244.1
A14: ASEAN5ESG | B14: 2019-01-31 | C14: EQT | D14: TH0765010R16 | E14: AIRPORTHAINVDR | F14: AIRPORTS OF THAILAND | G14: THB | H14: INDUSTRIALS | I14: 94000 | J14: 69 | K14: 5858750 | L14: 176834.04 | M14: 0 | N14: 6486000 | O14: 207754.1 | P14: 0 | Q14: 20091.55 | R14: 10828.52 | S14: 0 | T14: Thailand | U14: 207754.1 | V14: Score 3 | W14: 0 | X14: SMALL CAP | Y14: 0 | Z14: 68 | AA14: F4GAS | AB14: EQT | AC14: 0 | AE14: 0.2599016606 | AF14: 207754.1
A15: KWAP | B15: 2019-01-31 | C15: CSH | D15: RDC*MYR*KAF | E15: KAF INVESTMENT BANK BERHAD | F15: Using KAF invest in Short Term MM Conventional | G15: MYR | H15: CASH | I15: 76385000 | J15: 0 | K15: 76385000 | L15: 76385000 | M15: 0 | N15: 76423818.76 | O15: 76423818.76 | P15: 38818.76 | Q15: 0 | R15: 0 | S15: 0 | T15: Malaysia | U15: 76385000 | V15: Cash | W15: 0 | X15: SMALL CAP | Y15: 0.036 | Z15: 0 | AA15: FBMT100 | AB15: CSH | AC15: 2749860 | AD15: Cash | AE15: 0 | AF15: 0
A16: KWAP | B16: 2019-01-31 | C16: CSH | D16: RDC*MYR*PIVB | E16: PUBLIC INVESTMENT BANK BERHAD | F16: Using PIVB invest in Short Term MM Conventional | G16: MYR | H16: CASH | I16: 30993000 | J16: 0 | K16: 30993000 | L16: 30993000 | M16: 0 | N16: 31006904.78 | O16: 31006904.78 | P16: 13904.78 | Q16: 0 | R16: 0 | S16: 0 | T16: Malaysia | U16: 30993000 | V16: Cash | W16: 0 | X16: SMALL CAP | Y16: 0.036 | Z16: 0 | AA16: FBMT100 | AB16: CSH | AC16: 1115748 | AD16: Cash | AE16: 0 | AF16: 0
A17: KWAP | B17: 2019-01-31 | C17: EQT | D17: 138 | E17: MYEG | F17: My E.G. Services Berhad | G17: MYR | H17: INDUSTRIALS | I17: 5000000 | J17: 1 | K17: 5640834 | L17: 5640834 | M17: 0 | N17: 5000000 | O17: 5000000 | P17: 0 | Q17: -640834 | R17: 0 | S17: 0 | T17: Malaysia | U17: 5000000 | V17: Score 2 | W17: 3606305993 | X17: LARGE CAP | Y17: 0.01 | Z17: 68 | AA17: FBMT100 | AB17: EQT | AC17: 50000 | AE17: 0.06147044887 | AF17: 5000000
A18: KWAP | B18: 2019-01-31 | C18: EQT | D18: 166 | E18: INARI | F18: Inari Amertron Bhd | G18: MYR | H18: TECHNOLOGY | I18: 2272300 | J18: 1.5 | K18: 5025106.75 | L18: 5025106.75 | M18: 0 | N18: 3408450 | O18: 3408450 | P18: 0 | Q18: -1616656.75 | R18: 0 | S18: 0 | T18: Malaysia | U18: 3408450 | V18: Score 3 | W18: 3166702453 | X18: LARGE CAP | Y18: 0.1 | Z18: 2 | AA18: FBMT100 | AB18: EQT | AC18: 227230 | AE18: 0.001008243015 | AF18: 3408450
A19: KWAP | B19: 2019-01-31 | C19: EQT | D19: 0821EA | E19: MYETFDJ | F19: MYETF DOW JONES ISLAMIC MARKET MALAYSIA | G19: MYR | H19: FINANCIALS | I19: 15000000 | J19: 1.105 | K19: 17850000 | L19: 17850000 | M19: 0 | N19: 16575000 | O19: 16575000 | P19: 0 | Q19: -1275000 | R19: 0 | S19: 0 | T19: Malaysia | U19: 16575000 | V19: Score | W19: 275900000 | X19: SMALL CAP | Y19: 0 | Z19: 3 | AA19: FBMT100 | AB19: EQT | AC19: 0 | AE19: 0.1089864992 | AF19: 16575000
A20: KWAP | B20: 2019-01-31 | C20: EQT | D20: 1023 | E20: CIMB | F20: CIMB Group Holdings Bhd | G20: MYR | H20: FINANCIALS | I20: 11965500 | J20: 5.62 | K20: 76343004.79 | L20: 76343004.79 | M20: 0 | N20: 67246110 | O20: 67246110 | P20: 0 | Q20: -9096894.79 | R20: 0 | S20: 0 | T20: Malaysia | U20: 67246110 | V20: Score 3 | W20: 9564459418 | X20: LARGE CAP | Y20: 0.17 | Z20: 3 | AA20: FBMT100 | AB20: EQT | AC20: 2034135 | AE20: 0.1089864992 | AF20: 67246110
A21: KWAP | B21: 2019-01-31 | C21: EQT | D21: 1066 | E21: RHBBANK | F21: RHB BANK BERHAD | G21: MYR | H21: FINANCIALS | I21: 4000000 | J21: 5.43 | K21: 21161886.43 | L21: 21161886.43 | M21: 0 | N21: 21720000 | O21: 21720000 | P21: 0 | Q21: 558113.57 | R21: 0 | S21: 0 | T21: Malaysia | U21: 21720000 | V21: Score 4 | W21: 4010045621 | X21: LARGE CAP | Y21: 0.15 | Z21: 3 | AA21: FBMT100 | AB21: EQT | AC21: 600000 | AE21: 0.1089864992 | AF21: 21720000
A22: KWAP | B22: 2019-01-31 | C22: EQT | D22: 1155 | E22: MAYBANK | F22: Malayan Banking Berhad | G22: MYR | H22: FINANCIALS | I22: 8971400 | J22: 9.54 | K22: 89816493.84 | L22: 89816493.84 | M22: 0 | N22: 85587156 | O22: 85587156 | P22: 0 | Q22: -4229337.84 | R22: 0 | S22: 0 | T22: Malaysia | U22: 85587156 | V22: Score 4 | W22: 11049682979 | X22: LARGE CAP | Y22: 0.47 | Z22: 3 | AA22: FBMT100 | AB22: EQT | AC22: 4216558 | AE22: 0.1089864992 | AF22: 85587156
A23: KWAP | B23: 2019-01-31 | C23: EQT | D23: 1171 | E23: MBSB | F23: Malaysia Building Society Bhd | G23: MYR | H23: FINANCIALS | I23: 18900000 | J23: 0.995 | K23: 26216395.94 | L23: 26216395.94 | M23: 0 | N23: 18805500 | O23: 18805500 | P23: 0 | Q23: -7410895.94 | R23: 0 | S23: 0 | T23: Malaysia | U23: 18805500 | V23: Score 4 | W23: 6389101298 | X23: LARGE CAP | Y23: 0.02 | Z23: 3 | AA23: FBMT100 | AB23: EQT | AC23: 378000 | AE23: 0.1089864992 | AF23: 18805500
A24: KWAP | B24: 2019-01-31 | C24: EQT | D24: 1295 | E24: PBBANK | F24: Public Bank Berhad | G24: MYR | H24: FINANCIALS | I24: 3450000 | J24: 24.78 | K24: 84285129.93 | L24: 84285129.93 | M24: 0 | N24: 85491000 | O24: 85491000 | P24: 0 | Q24: 1205870.07 | R24: 0 | S24: 0 | T24: Malaysia | U24: 85491000 | V24: Score 3 | W24: 3882138347 | X24: LARGE CAP | Y24: 0.59 | Z24: 3 | AA24: FBMT100 | AB24: EQT | AC24: 2035500 | AE24: 0.1089864992 | AF24: 85491000
A25: KWAP | B25: 2019-01-31 | C25: EQT | D25: 3336 | E25: IJM | F25: IJM Corporation Bhd | G25: MYR | H25: INDUSTRIALS | I25: 10500000 | J25: 1.83 | K25: 35804236.4 | L25: 35804236.4 | M25: 0 | N25: 19215000 | O25: 19215000 | P25: 0 | Q25: -16589236.4 | R25: 0 | S25: 0 | T25: Malaysia | U25: 19215000 | V25: Score 3 | W25: 3635687820 | X25: LARGE CAP | Y25: 0.11 | Z25: 68 | AA25: FBMT100 | AB25: EQT | AC25: 1155000 | AE25: 0.06147044887 | AF25: 19215000
A26: KWAP | B26: 2019-01-31 | C26: EQT | D26: 3689 | E26: F&N | F26: Fraser & Neave Holdings Berhad | G26: MYR | H26: CONSUMER GOODS | I26: 170000 | J26: 33.96 | K26: 6384908.1 | L26: 6384908.1 | M26: 0 | N26: 5773200 | O26: 5773200 | P26: 0 | Q26: -611708.1 | R26: 0 | S26: 0 | T26: Malaysia | U26: 5773200 | V26: Score 3 | W26: 366778501 | X26: LARGE CAP | Y26: 0.69 | Z26: 39 | AA26: FBMT100 | AB26: EQT | AC26: 117300 | AE26: -0.1028095591 | AF26: 5773200
A27: KWAP | B27: 2019-01-31 | C27: EQT | D27: 3816 | E27: MISC | F27: MISC Bhd | G27: MYR | H27: INDUSTRIALS | I27: 4800000 | J27: 6.78 | K27: 35631905.8 | L27: 35631905.8 | M27: 0 | N27: 32544000 | O27: 32544000 | P27: 0 | Q27: -3087905.8 | R27: 0 | S27: 0 | T27: Malaysia | U27: 32544000 | V27: Score 4 | W27: 4463793103 | X27: LARGE CAP | Y27: 0.13 | Z27: 68 | AA27: FBMT100 | AB27: EQT | AC27: 624000 | AE27: 0.06147044887 | AF27: 32544000
A28: KWAP | B28: 2019-01-31 | C28: EQT | D28: 4197 | E28: SIME | F28: Sime Darby Berhad | G28: MYR | H28: INDUSTRIALS | I28: 8700000 | J28: 2.24 | K28: 22569329.12 | L28: 22569329.12 | M28: 0 | N28: 19488000 | O28: 19488000 | P28: 0 | Q28: -3081329.12 | R28: 0 | S28: 0 | T28: Malaysia | U28: 19488000 | V28: Score 4 | W28: 6800839377 | X28: LARGE CAP | Y28: 0.25 | Z28: 68 | AA28: FBMT100 | AB28: EQT | AC28: 2175000 | AE28: 0.06147044887 | AF28: 19488000
A29: KWAP | B29: 2019-01-31 | C29: EQT | D29: 4707 | E29: NESTLE | F29: Nestle (Malaysia) Berhad | G29: MYR | H29: CONSUMER GOODS | I29: 75000 | J29: 148.5 | K29: 11094345.1 | L29: 11094345.1 | M29: 0 | N29: 11137500 | O29: 11137500 | P29: 0 | Q29: 43154.9 | R29: 0 | S29: 0 | T29: Malaysia | U29: 11137500 | V29: Score | W29: 234500000 | X29: LARGE CAP | Y29: 2.84 | Z29: 39 | AA29: FBMT100 | AB29: EQT | AC29: 213000 | AE29: -0.1028095591 | AF29: 11137500
A30: KWAP | B30: 2019-01-31 | C30: EQT | D30: 5148 | E30: UEMS | F30: UEM Sunrise Bhd | G30: MYR | H30: FINANCIALS | I30: 9222100 | J30: 0.755 | K30: 12175113.9 | L30: 12175113.9 | M30: 0 | N30: 6962685.5 | O30: 6962685.5 | P30: 0 | Q30: -5212428.4 | R30: 0 | S30: 0 | T30: Malaysia | U30: 6962685.5 | V30: Score 3 | W30: 4537436037 | X30: LARGE CAP | Y30: 0.02 | Z30: 3 | AA30: FBMT100 | AB30: EQT | AC30: 184442 | AE30: 0.1089864992 | AF30: 6962685.5
A31: KWAP | B31: 2019-01-31 | C31: EQT | D31: 5168 | E31: HARTA | F31: Hartalega Holdings Berhad | G31: MYR | H31: HEALTHCARE | I31: 200000 | J31: 5.4 | K31: 1073509.51 | L31: 1073509.51 | M31: 0 | N31: 1080000 | O31: 1080000 | P31: 0 | Q31: 6490.49 | R31: 0 | S31: 0 | T31: Malaysia | U31: 1080000 | V31: Score 4 | W31: 3330525628 | X31: LARGE CAP | Y31: 0.09 | Z31: 30 | AA31: FBMT100 | AB31: EQT | AC31: 18000 | AE31: -0.02593636565 | AF31: 1080000
A32: KWAP | B32: 2019-01-31 | C32: EQT | D32: 5180 | E32: CMMT | F32: CapitaMalls Malaysia Trust | G32: MYR | H32: FINANCIALS | I32: 7022100 | J32: 1.09 | K32: 10203905.46 | L32: 10203905.46 | M32: 0 | N32: 7654089 | O32: 7654089 | P32: 0 | Q32: -2549816.46 | R32: 0 | S32: 0 | T32: Malaysia | U32: 7654089 | V32: Score | W32: 2044176200 | X32: MID CAP | Y32: 0.08 | Z32: 3 | AA32: FBMT100 | AB32: EQT | AC32: 561768 | AE32: 0.1089864992 | AF32: 7654089
A33: KWAP | B33: 2019-01-31 | C33: EQT | D33: 5183 | E33: PCHEM | F33: Petronas Chemicals Group Bhd | G33: MYR | H33: BASIC MATERIALS | I33: 3585000 | J33: 8.45 | K33: 32159367.47 | L33: 32159367.47 | M33: 0 | N33: 30293250 | O33: 30293250 | P33: 0 | Q33: -1866117.47 | R33: 0 | S33: 0 | T33: Malaysia | U33: 30293250 | V33: Score 3 | W33: 8000000000 | X33: LARGE CAP | Y33: 0.18 | Z33: 40 | AA33: FBMT100 | AB33: EQT | AC33: 645300 | AE33: 0.01641348316 | AF33: 30293250
A34: KWAP | B34: 2019-01-31 | C34: EQT | D34: 5218 | E34: SAPNRG | F34: Sapura Energy Berhad | G34: MYR | H34: OIL & GAS | I34: 16000000 | J34: 0.265 | K34: 26005835.24 | L34: 26005835.24 | M34: 0 | N34: 4240000 | O34: 4240000 | P34: 0 | Q34: -21765835.24 | R34: 0 | S34: 0 | T34: Malaysia | U34: 4240000 | V34: Score 2 | W34: 15979080232 | X34: LARGE CAP | Y34: 0.03 | Z34: 17 | AA34: FBMT100 | AB34: EQT | AC34: 480000 | AE34: 0.03474868774 | AF34: 4240000
A35: KWAP | B35: 2019-01-31 | C35: EQT | D35: 5225 | E35: IHH | F35: IHH Healthcare Bhd | G35: MYR | H35: HEALTHCARE | I35: 2903200 | J35: 5.6 | K35: 17730945.84 | L35: 17730945.84 | M35: 0 | N35: 16257920 | O35: 16257920 | P35: 0 | Q35: -1473025.84 | R35: 0 | S35: 0 | T35: Malaysia | U35: 16257920 | V35: Score 3 | W35: 8769296463 | X35: LARGE CAP | Y35: 0.03 | Z35: 30 | AA35: FBMT100 | AB35: EQT | AC35: 87096 | AE35: -0.02593636565 | AF35: 16257920
A36: KWAP | B36: 2019-01-31 | C36: EQT | D36: 5253 | E36: ECONBHD | F36: ECONPILE HOLDINGS BHD | G36: MYR | H36: INDUSTRIALS | I36: 5912700 | J36: 0.45 | K36: 5656458.76 | L36: 5656458.76 | M36: 0 | N36: 2660715 | O36: 2660715 | P36: 0 | Q36: -2995743.76 | R36: 0 | S36: 0 | T36: Malaysia | U36: 2660715 | V36: Score 1 | W36: 1337500025 | X36: SMALL CAP | Y36: 0 | Z36: 68 | AA36: FBMT100 | AB36: EQT | AC36: 0 | AE36: 0.06147044887 | AF36: 2660715
A37: KWAP | B37: 2019-01-31 | C37: EQT | D37: 5279 | E37: SERBADK | F37: Serba Dinamik Holdings Berhad | G37: MYR | H37: OIL & GAS | I37: 64700 | J37: 3.71 | K37: 234474.09 | L37: 234474.09 | M37: 0 | N37: 240037 | O37: 240037 | P37: 0 | Q37: 5562.91 | R37: 0 | S37: 0 | T37: Malaysia | U37: 240037 | V37: Score 2 | W37: 1468500000 | X37: LARGE CAP | Y37: 0 | Z37: 17 | AA37: FBMT100 | AB37: EQT | AC37: 0 | AE37: 0.03474868774 | AF37: 240037
A38: KWAP | B38: 2019-01-31 | C38: EQT | D38: 5284 | E38: LCTITAN | F38: LOTTE CHEMICAL TITAN HOLDING BERHAD | G38: MYR | H38: BASIC MATERIALS | I38: 7062300 | J38: 4.22 | K38: 43554424.73 | L38: 43554424.73 | M38: 0 | N38: 29802906 | O38: 29802906 | P38: 0 | Q38: -13751518.73 | R38: 0 | S38: 0 | T38: Malaysia | U38: 29802906 | V38: Score | W38: 2307791500 | X38: LARGE CAP | Y38: 0 | Z38: 40 | AA38: FBMT100 | AB38: EQT | AC38: 0 | AE38: 0.01641348316 | AF38: 29802906
A39: KWAP | B39: 2019-01-31 | C39: EQT | D39: 5347 | E39: TENAGA | F39: Tenaga Nasional Bhd | G39: MYR | H39: UTILITIES | I39: 6000000 | J39: 12.9 | K39: 90421704.06 | L39: 90421704.06 | M39: 0 | N39: 77400000 | O39: 77400000 | P39: 0 | Q39: -13021704.06 | R39: 0 | S39: 0 | T39: Malaysia | U39: 77400000 | V39: Score 3 | W39: 5686888771 | X39: LARGE CAP | Y39: 0.35 | Z39: 20 | AA39: FBMT100 | AB39: EQT | AC39: 2100000 | AE39: 0.02031667722 | AF39: 77400000
A40: KWAP | B40: 2019-01-31 | C40: EQT | D40: 5398 | E40: GAMUDA | F40: Gamuda Berhad | G40: MYR | H40: INDUSTRIALS | I40: 2500000 | J40: 2.76 | K40: 8302102.05 | L40: 8302102.05 | M40: 0 | N40: 6900000 | O40: 6900000 | P40: 0 | Q40: -1402102.05 | R40: 0 | S40: 0 | T40: Malaysia | U40: 6900000 | V40: Score 2 | W40: 2468050951 | X40: LARGE CAP | Y40: 0.12 | Z40: 68 | AA40: FBMT100 | AB40: EQT | AC40: 300000 | AE40: 0.06147044887 | AF40: 6900000
A41: KWAP | B41: 2019-01-31 | C41: EQT | D41: 5681 | E41: PETDAG | F41: Petronas Dagangan Berhad | G41: MYR | H41: OIL & GAS | I41: 600000 | J41: 26.38 | K41: 15872738.47 | L41: 15872738.47 | M41: 0 | N41: 15828000 | O41: 15828000 | P41: 0 | Q41: -44738.47 | R41: 0 | S41: 0 | T41: Malaysia | U41: 15828000 | V41: Score 4 | W41: 993454000 | X41: LARGE CAP | Y41: 0.56 | Z41: 17 | AA41: FBMT100 | AB41: EQT | AC41: 336000 | AE41: 0.03474868774 | AF41: 15828000
A42: KWAP | B42: 2019-01-31 | C42: EQT | D42: 5703 | E42: MUHIBAH | F42: Muhibbah Engineering M Bhd | G42: MYR | H42: INDUSTRIALS | I42: 2800000 | J42: 2.84 | K42: 8353199.02 | L42: 8353199.02 | M42: 0 | N42: 7952000 | O42: 7952000 | P42: 0 | Q42: -401199.02 | R42: 0 | S42: 0 | T42: Malaysia | U42: 7952000 | V42: Score 2 | W42: 483519250 | X42: MID CAP | Y42: 0.05 | Z42: 68 | AA42: FBMT100 | AB42: EQT | AC42: 140000 | AE42: 0.06147044887 | AF42: 7952000
A43: KWAP | B43: 2019-01-31 | C43: EQT | D43: 6012 | E43: MAXIS | F43: Maxis Bhd | G43: MYR | H43: TELCO | I43: 2100000 | J43: 5.75 | K43: 13869093.53 | L43: 13869093.53 | M43: 0 | N43: 12075000 | O43: 12075000 | P43: 0 | Q43: -1794093.53 | R43: 0 | S43: 0 | T43: Malaysia | U43: 12075000 | V43: Score 3 | W43: 7816650600 | X43: LARGE CAP | Y43: 0.2 | Z43: 49 | AA43: FBMT100 | AB43: EQT | AC43: 420000 | AE43: -0.03609811451 | AF43: 12075000
A44: KWAP | B44: 2019-01-31 | C44: EQT | D44: 6033 | E44: PETGAS | F44: Petronas Gas Berhad | G44: MYR | H44: UTILITIES | I44: 1161200 | J44: 18.08 | K44: 21259077.45 | L44: 21259077.45 | M44: 0 | N44: 20994496 | O44: 20994496 | P44: 0 | Q44: -264581.45 | R44: 0 | S44: 0 | T44: Malaysia | U44: 20994496 | V44: Score 4 | W44: 1978731915 | X44: LARGE CAP | Y44: 0.62 | Z44: 20 | AA44: FBMT100 | AB44: EQT | AC44: 719944 | AE44: 0.02031667722 | AF44: 20994496
A45: KWAP | B45: 2019-01-31 | C45: EQT | D45: 6888 | E45: AXIATA | F45: Axiata Group Bhd | G45: MYR | H45: TELCO | I45: 5726857 | J45: 4.01 | K45: 36305725.31 | L45: 36305725.31 | M45: 0 | N45: 22964696.57 | O45: 22964696.57 | P45: 0 | Q45: -13341028.74 | R45: 0 | S45: 0 | T45: Malaysia | U45: 22964696.57 | V45: Score 4 | W45: 9071486793 | X45: LARGE CAP | Y45: 0.18 | Z45: 49 | AA45: FBMT100 | AB45: EQT | AC45: 1030834.26 | AE45: -0.03609811451 | AF45: 22964696.57
A46: KWAP | B46: 2019-01-31 | C46: EQT | D46: 6963 | E46: VS | F46: V.S INDUSTRY BHD | G46: MYR | H46: INDUSTRIALS | I46: 7200000 | J46: 0.81 | K46: 14759464.68 | L46: 14759464.68 | M46: 0 | N46: 5832000 | O46: 5832000 | P46: 0 | Q46: -8927464.68 | R46: 0 | S46: 0 | T46: Malaysia | U46: 5832000 | V46: Score 3 | W46: 1815031228 | X46: MID CAP | Y46: 0 | Z46: 68 | AA46: FBMT100 | AB46: EQT | AC46: 0 | AE46: 0.06147044887 | AF46: 5832000
A47: KWAP | B47: 2019-01-31 | C47: EQT | D47: 7052 | E47: PADINI | F47: Padini Holdings Berhad | G47: MYR | H47: CONSUMER GOODS | I47: 1450000 | J47: 3.71 | K47: 8549859.94 | L47: 8549859.94 | M47: 0 | N47: 5379500 | O47: 5379500 | P47: 0 | Q47: -3170359.94 | R47: 0 | S47: 0 | T47: Malaysia | U47: 5379500 | V47: Score 2 | W47: 657909500 | X47: MID CAP | Y47: 0.11 | Z47: 39 | AA47: FBMT100 | AB47: EQT | AC47: 159500 | AE47: -0.1028095591 | AF47: 5379500
A48: KWAP | B48: 2019-01-31 | C48: EQT | D48: 7081 | E48: PHARMA | F48: Pharmaniaga Berhad | G48: MYR | H48: HEALTHCARE | I48: 2214700 | J48: 2.74 | K48: 12493698.82 | L48: 12493698.82 | M48: 0 | N48: 6068278 | O48: 6068278 | P48: 0 | Q48: -6425420.82 | R48: 0 | S48: 0 | T48: Malaysia | U48: 6068278 | V48: Score | W48: 260505032 | X48: SMALL CAP | Y48: 0.2 | Z48: 30 | AA48: FBMT100 | AB48: EQT | AC48: 442940 | AE48: -0.02593636565 | AF48: 6068278
A49: KWAP | B49: 2019-01-31 | C49: EQT | D49: 7113 | E49: TOPGLOV | F49: Top Glove Corporation Berhad | G49: MYR | H49: HEALTHCARE | I49: 200000 | J49: 4.82 | K49: 978776.41 | L49: 978776.41 | M49: 0 | N49: 964000 | O49: 964000 | P49: 0 | Q49: -14776.41 | R49: 0 | S49: 0 | T49: Malaysia | U49: 964000 | V49: Score 3 | W49: 2560581648 | X49: LARGE CAP | Y49: 0.16 | Z49: 30 | AA49: FBMT100 | AB49: EQT | AC49: 32000 | AE49: -0.02593636565 | AF49: 964000
A50: KWAP | B50: 2019-01-31 | C50: EQT | D50: 7277 | E50: DIALOG | F50: Dialog Group Berhad | G50: MYR | H50: OIL & GAS | I50: 9000000 | J50: 3 | K50: 29762142.84 | L50: 29762142.84 | M50: 0 | N50: 27000000 | O50: 27000000 | P50: 0 | Q50: -2762142.84 | R50: 0 | S50: 0 | T50: Malaysia | U50: 27000000 | V50: Score 3 | W50: 5641642303 | X50: LARGE CAP | Y50: 0.02 | Z50: 17 | AA50: FBMT100 | AB50: EQT | AC50: 180000 | AE50: 0.03474868774 | AF50: 27000000
A51: KWAP | B51: 2019-01-31 | C51: EQT | D51: 8206 | E51: ECOWLD | F51: Eco World Development Group Bhd | G51: MYR | H51: FINANCIALS | I51: 10900000 | J51: 0.92 | K51: 18044356.04 | L51: 18044356.04 | M51: 0 | N51: 10028000 | O51: 10028000 | P51: 0 | Q51: -8016356.04 | R51: 0 | S51: 0 | T51: Malaysia | U51: 10028000 | V51: Score 3 | W51: 2944368381 | X51: MID CAP | Y51: 0 | Z51: 3 | AA51: FBMT100 | AB51: EQT | AC51: 0 | AE51: 0.1089864992 | AF51: 10028000
A52: KWAP | B52: 2019-01-31 | C52: EQT | D52: 8664 | E52: SPSETIA | F52: S P Setia Berhad | G52: MYR | H52: FINANCIALS | I52: 5199993 | J52: 2.57 | K52: 15796345.58 | L52: 15796345.58 | M52: 0 | N52: 13363982.01 | O52: 13363982.01 | P52: 0 | Q52: -2432363.57 | R52: 0 | S52: 0 | T52: Malaysia | U52: 13363982.01 | V52: Score 3 | W52: 3958563502 | X52: LARGE CAP | Y52: 0.14 | Z52: 3 | AA52: FBMT100 | AB52: EQT | AC52: 727999.02 | AE52: 0.1089864992 | AF52: 13363982.01
A53: KWAPFI | B53: 2019-01-31 | C53: BND | D53: MT180003 | E53: MGS 3/2018 4.642% 07.11.2033 | F53: MGS 3/2018 4.642% 07.11.2033 | G53: MYR | H53: GOV | I53: 40000000 | J53: 102.55 | K53: 41004000 | L53: 41004000 | M53: 312886.19 | N53: 41461118.23 | O53: 41461118.23 | P53: 128232.04 | Q53: 19463.92 | R53: 0 | S53: -3463.92 | T53: Malaysia | U53: 41020000 | V53: 10 | W53: 999999990000 | X53: LARGE CAP | Y53: 0.04409125 | Z53: 21 | AA53: MGSALL | AB53: BND | AC53: 1807917.615 | AD53: GOVT | AE53: 0 | AF53: 0
A54: KWAPFI | B54: 2019-01-31 | C54: BND | D54: MT180003 | E54: MGS 3/2018 4.642% 07.11.2033 | F54: MGS 3/2018 4.642% 07.11.2033 | G54: MYR | H54: GOV | I54: 20000000 | J54: 102.55 | K54: 20322000 | L54: 20322000 | M54: 0 | N54: 20730559.12 | O54: 20730559.12 | P54: 220559.12 | Q54: 194233.94 | R54: 0 | S54: -6233.94 | T54: Malaysia | U54: 20510000 | V54: 10 | W54: 999999990000 | X54: LARGE CAP | Y54: 0.04493946 | Z54: 21 | AA54: MGSALL | AB54: BND | AC54: 913259.7061 | AD54: GOVT | AE54: 0 | AF54: 0
A55: KWAPFI | B55: 2019-01-31 | C55: BND | D55: MT180003 | E55: MGS 3/2018 4.642% 07.11.2033 | F55: MGS 3/2018 4.642% 07.11.2033 | G55: MYR | H55: GOV | I55: 20000000 | J55: 102.55 | K55: 20312000 | L55: 20312000 | M55: 0 | N55: 20730559.12 | O55: 20730559.12 | P55: 220559.12 | Q55: 204733.67 | R55: 0 | S55: -6733.67 | T55: Malaysia | U55: 20510000 | V55: 10 | W55: 999999990000 | X55: LARGE CAP | Y55: 0.04498802 | Z55: 21 | AA55: MGSALL | AB55: BND | AC55: 913796.6622 | AD55: GOVT | AE55: 0 | AF55: 0
A56: KWAPFI | B56: 2019-01-31 | C56: BND | D56: MX180004 | E56: MGS 4/2018 08.06.2038 | F56: MGS 4/2018 08.06.2038 | G56: MYR | H56: GOV | I56: 10000000 | J56: 104.15 | K56: 10281000 | L56: 10281000 | M56: 0 | N56: 10488932.69 | O56: 10488932.69 | P56: 73932.69 | Q56: 137752.43 | R56: 0 | S56: -3752.43 | T56: Malaysia | U56: 10415000 | V56: 10 | W56: 999999990000 | X56: LARGE CAP | Y56: 0.0467329 | Z56: 21 | AA56: MGSALL | AB56: BND | AC56: 480460.9449 | AD56: GOVT | AE56: 0 | AF56: 0
A57: KWAPFI | B57: 2019-01-31 | C57: BND | D57: MX180004 | E57: MGS 4/2018 08.06.2038 | F57: MGS 4/2018 08.06.2038 | G57: MYR | H57: GOV | I57: 10000000 | J57: 104.15 | K57: 10166000 | L57: 10166000 | M57: 0 | N57: 10488932.69 | O57: 10488932.69 | P57: 73932.69 | Q57: 250389.24 | R57: 0 | S57: -1389.24 | T57: Malaysia | U57: 10415000 | V57: 10 | W57: 999999990000 | X57: LARGE CAP | Y57: 0.04761395 | Z57: 21 | AA57: MGSALL | AB57: BND | AC57: 484043.4157 | AD57: GOVT | AE57: 0 | AF57: 0
A58: KWAPFI | B58: 2019-01-31 | C58: BND | D58: MX180004 | E58: MGS 4/2018 08.06.2038 | F58: MGS 4/2018 08.06.2038 | G58: MYR | H58: GOV | I58: 20000000 | J58: 104.15 | K58: 20322000 | L58: 20322000 | M58: 0 | N58: 20977865.38 | O58: 20977865.38 | P58: 147865.38 | Q58: 510710.21 | R58: 0 | S58: -2710.21 | T58: Malaysia | U58: 20830000 | V58: 10 | W58: 999999990000 | X58: LARGE CAP | Y58: 0.04765309 | Z58: 21 | AA58: MGSALL | AB58: BND | AC58: 968406.095 | AD58: GOVT | AE58: 0 | AF58: 0
A59: KWAPFI | B59: 2019-01-31 | C59: BND | D59: MX180004 | E59: MGS 4/2018 08.06.2038 | F59: MGS 4/2018 08.06.2038 | G59: MYR | H59: GOV | I59: 10000000 | J59: 104.15 | K59: 10106000 | L59: 10106000 | M59: 0 | N59: 10488932.69 | O59: 10488932.69 | P59: 73932.69 | Q59: 309962.37 | R59: 0 | S59: -962.37 | T59: Malaysia | U59: 10415000 | V59: 10 | W59: 999999990000 | X59: LARGE CAP | Y59: 0.04808517 | Z59: 21 | AA59: MGSALL | AB59: BND | AC59: 485948.728 | AD59: GOVT | AE59: 0 | AF59: 0
A60: KWAPFI | B60: 2019-01-31 | C60: BND | D60: MZ160002 | E60: MGS 2/2016 4.736% 15.3.2046 | F60: MGS 2/2016 4.736% 15.3.2046 | G60: MYR | H60: GOV | I60: 20000000 | J60: 99.128 | K60: 21002000 | L60: 21002000 | M60: 0 | N60: 20189303.87 | O60: 20189303.87 | P60: 363703.87 | Q60: -1133651.55 | R60: 0 | S60: -42748.45 | T60: Malaysia | U60: 19825600 | V60: 10 | W60: 999999990000 | X60: LARGE CAP | Y60: 0.04430087 | Z60: 21 | AA60: MGSALL | AB60: BND | AC60: 930406.8717 | AD60: GOVT | AE60: 0 | AF60: 0
A61: KWAPFI | B61: 2019-01-31 | C61: BND | D61: MZ160002 | E61: MGS 2/2016 4.736% 15.3.2046 | F61: MGS 2/2016 4.736% 15.3.2046 | G61: MYR | H61: GOV | I61: 10000000 | J61: 99.128 | K61: 10073400 | L61: 10073400 | M61: 0 | N61: 10094651.93 | O61: 10094651.93 | P61: 181851.93 | Q61: -157878.71 | R61: 0 | S61: -2721.29 | T61: Malaysia | U61: 9912800 | V61: 10 | W61: 999999990000 | X61: LARGE CAP | Y61: 0.04689351 | Z61: 21 | AA61: MGSALL | AB61: BND | AC61: 472377.0836 | AD61: GOVT | AE61: 0 | AF61: 0
A62: KWAPFI | B62: 2019-01-31 | C62: BND | D62: PP110035 | E62: BESRAYA 4.960% 28.07.2023 | F62: BESRAYA 4.960% 28.07.2023 | G62: MYR | H62: INDUSTRIALS | I62: 10000000 | J62: 100.653 | K62: 10221000 | L62: 10221000 | M62: 0 | N62: 10070750.55 | O62: 10070750.55 | P62: 5450.55 | Q62: -66213.31 | R62: 0 | S62: -89486.69 | T62: Malaysia | U62: 10065300 | V62: 128 | W62: 700000000 | X62: LARGE CAP | Y62: 0.04632213 | Z62: 68 | AA62: MGSALL | AB62: BND | AC62: 473458.4907 | AD62: AA3 | AE62: 0 | AF62: 0
A63: KWAPFI | B63: 2019-01-31 | C63: BND | D63: UN150040 | E63: RHBBANK MTN 3653D 15/0040 4.75% 08.05.2025 | F63: RHBBANK MTN 3653D 15/0040 4.75% 08.05.2025 | G63: MYR | H63: FINANCIALS | I63: 15000000 | J63: 100.566 | K63: 15000000 | L63: 15000000 | M63: 0 | N63: 15250824.66 | O63: 15250824.66 | P63: 165924.66 | Q63: 84900 | R63: 0 | S63: 0 | T63: Malaysia | U63: 15084900 | V63: 128 | W63: 5000000000 | X63: LARGE CAP | Y63: 0.0475 | Z63: 3 | AA63: MGSALL | AB63: BND | AC63: 712500 | AD63: AA3 | AE63: 0 | AF63: 0
A64: KWAPFI | B64: 2019-01-31 | C64: BND | D64: VH180121 | E64: ASIANFIN IMTN 4.700% 10.12.2021 | F64: ASIANFIN IMTN 4.700% 10.12.2021 | G64: MYR | H64: FINANCIALS | I64: 5000000 | J64: 100.431 | K64: 4956000 | L64: 4956000 | M64: 0 | N64: 5055673.29 | O64: 5055673.29 | P64: 34123.29 | Q64: 42508.83 | R64: 0 | S64: 23041.17 | T64: Malaysia | U64: 5021550 | V64: 122 | W64: 2295000000 | X64: LARGE CAP | Y64: 0.04856704 | Z64: 3 | AA64: MGSALL | AB64: BND | AC64: 240698.2502 | AD64: AA1 | AE64: 0 | AF64: 0
A65: KWAPFI | B65: 2019-01-31 | C65: BND | D65: VJ180117 | E65: ASIANFIN IMTN 4.900% 08.12.2023 | F65: ASIANFIN IMTN 4.900% 08.12.2023 | G65: MYR | H65: FINANCIALS | I65: 5000000 | J65: 100.964 | K65: 4952500 | L65: 4952500 | M65: 0 | N65: 5083775.34 | O65: 5083775.34 | P65: 35575.34 | Q65: 77663.5 | R65: 0 | S65: 18036.5 | T65: Malaysia | U65: 5048200 | V65: 122 | W65: 2295000000 | X65: LARGE CAP | Y65: 0.05036919 | Z65: 3 | AA65: MGSALL | AB65: BND | AC65: 249453.4135 | AD65: AA1 | AE65: 0 | AF65: 0
A66: KWAPFI | B66: 2019-01-31 | C66: BND | D66: VN130387 | E66: BGSM MGMT IMTN 5.600% 27.12.2023 - Issue No 9 | F66: BGSM MGMT IMTN 5.600% 27.12.2023 - Issue No 9 | G66: MYR | H66: DIVERSIFIED | I66: 5000000 | J66: 104.872 | K66: 5185000 | L66: 5185000 | M66: 0 | N66: 5270449.32 | O66: 5270449.32 | P66: 26849.32 | Q66: 104869.22 | R66: 0 | S66: -46269.22 | T66: Malaysia | U66: 5243600 | V66: 128 | W66: 373000000 | X66: LARGE CAP | Y66: 0.04954876 | Z66: 22 | AA66: MGSALL | AB66: BND | AC66: 256910.3206 | AD66: AA3 | AE66: 0 | AF66: 0
A67: KWAPFI | B67: 2019-01-31 | C67: BND | D67: VN140164 | E67: BGSM MGMT IMTN 5.450% 28.06.2024 - Issue No 10 | F67: BGSM MGMT IMTN 5.450% 28.06.2024 - Issue No 10 | G67: MYR | H67: DIVERSIFIED | I67: 10000000 | J67: 104.409 | K67: 10256000 | L67: 10256000 | M67: 0 | N67: 10493160.27 | O67: 10493160.27 | P67: 52260.27 | Q67: 243788.74 | R67: 0 | S67: -58888.74 | T67: Malaysia | U67: 10440900 | V67: 128 | W67: 330000000 | X67: LARGE CAP | Y67: 0.05028017 | Z67: 22 | AA67: MGSALL | AB67: BND | AC67: 515673.4235 | AD67: AA3 | AE67: 0 | AF67: 0
A68: KWAPFI | B68: 2019-01-31 | C68: BND | D68: VN180095 | E68: MMC CORP IMTN 5.700% 24.03.2028 | F68: MMC CORP IMTN 5.700% 24.03.2028 | G68: MYR | H68: DIVERSIFIED | I68: 5000000 | J68: 101.07 | K68: 5032500 | L68: 5032500 | M68: 54657.53 | N68: 5153445.21 | O68: 5153445.21 | P68: 45287.68 | Q68: 21363.75 | R68: 0 | S68: -363.75 | T68: Malaysia | U68: 5053500 | V68: 128 | W68: 2500000000 | X68: LARGE CAP | Y68: 0.05608059 | Z68: 22 | AA68: MGSALL | AB68: BND | AC68: 282225.5692 | AD68: AA3 | AE68: 0 | AF68: 0
A69: KWAPFI | B69: 2019-01-31 | C69: BND | D69: VN180095 | E69: MMC CORP IMTN 5.700% 24.03.2028 | F69: MMC CORP IMTN 5.700% 24.03.2028 | G69: MYR | H69: DIVERSIFIED | I69: 30000000 | J69: 101.07 | K69: 30000000 | L69: 30000000 | M69: 0 | N69: 30920671.23 | O69: 30920671.23 | P69: 599671.23 | Q69: 321000 | R69: 0 | S69: 0 | T69: Malaysia | U69: 30321000 | V69: 128 | W69: 2500000000 | X69: LARGE CAP | Y69: 0.05699943 | Z69: 22 | AA69: MGSALL | AB69: BND | AC69: 1709982.9 | AD69: AA3 | AE69: 0 | AF69: 0
A70: KWAPFI | B70: 2019-01-31 | C70: BND | D70: VN180276 | E70: SDHB IMTN 5.300% 02.10.2028 | F70: SDHB IMTN 5.300% 02.10.2028 | G70: MYR | H70: CONSTRUCTION | I70: 50000000 | J70: 100.835 | K70: 50000000 | L70: 50000000 | M70: 0 | N70: 51303253.42 | O70: 51303253.42 | P70: 885753.42 | Q70: 417500 | R70: 0 | S70: 0 | T70: Malaysia | U70: 50417500 | V70: 128 | W70: 700000000 | X70: LARGE CAP | Y70: 0.053 | Z70: 8 | AA70: MGSALL | AB70: BND | AC70: 2650000 | AD70: AA3 | AE70: 0 | AF70: 0
A71: KWAPFI | B71: 2019-01-31 | C71: BND | D71: VO140417 | E71: K-PROHAWK IMTN 5.200% 22.12.2025 | F71: K-PROHAWK IMTN 5.200% 22.12.2025 | G71: MYR | H71: INDUSTRIALS | I71: 5000000 | J71: 103.791 | K71: 5195500 | L71: 5195500 | M71: 0 | N71: 5217330.82 | O71: 5217330.82 | P71: 27780.82 | Q71: 49974.72 | R71: 0 | S71: -55924.72 | T71: Malaysia | U71: 5189550 | V71: 125 | W71: 900000000 | X71: LARGE CAP | Y71: 0.0471982 | Z71: 68 | AA71: MGSALL | AB71: BND | AC71: 245218.2481 | AD71: AA2 | AE71: 0 | AF71: 0
A72: KWAPFI | B72: 2019-01-31 | C72: BND | D72: VP150259 | E72: MMC CORP IMTN 5.950% 12.11.2027 | F72: MMC CORP IMTN 5.950% 12.11.2027 | G72: MYR | H72: DIVERSIFIED | I72: 10000000 | J72: 102.927 | K72: 10432000 | L72: 10432000 | M72: 0 | N72: 10424741.1 | O72: 10424741.1 | P72: 132041.1 | Q72: -95213.61 | R72: 0 | S72: -44086.39 | T72: Malaysia | U72: 10292700 | V72: 128 | W72: 600000000 | X72: LARGE CAP | Y72: 0.05388284 | Z72: 22 | AA72: MGSALL | AB72: BND | AC72: 562105.7869 | AD72: AA3 | AE72: 0 | AF72: 0
A73: KWAPFI | B73: 2019-01-31 | C73: BND | D73: VP150349 | E73: SAMALAJU IMTN 5.45% 28.12.2027 - Issue No.5 | F73: SAMALAJU IMTN 5.45% 28.12.2027 - Issue No.5 | G73: MYR | H73: TRANSPORTATION & LOGISTIC | I73: 5000000 | J73: 105.278 | K73: 5329000 | L73: 5329000 | M73: 0 | N73: 5290030.14 | O73: 5290030.14 | P73: 26130.14 | Q73: -7971.1 | R73: 0 | S73: -57128.9 | T73: Malaysia | U73: 5263900 | V73: 122 | W73: 950000000 | X73: LARGE CAP | Y73: 0.04695301 | Z73: 67 | AA73: MGSALL | AB73: BND | AC73: 250212.5903 | AD73: AA1 | AE73: 0 | AF73: 0
A74: KWAPFI | B74: 2019-01-31 | C74: BND | D74: VR160244 | E74: SARAWAKHIDRO IMTN 4.61% 09.08.2030 | F74: SARAWAKHIDRO IMTN 4.61% 09.08.2030 | G74: MYR | H74: POWER | I74: 15000000 | J74: 100.248 | K74: 15076500 | L74: 15076500 | M74: 0 | N74: 15363057.53 | O74: 15363057.53 | P74: 325857.53 | Q74: -28918.11 | R74: 0 | S74: -10381.89 | T74: Malaysia | U74: 15037200 | V74: 115 | W74: 5540000000 | X74: LARGE CAP | Y74: 0.04560272 | Z74: 50 | AA74: MGSALL | AB74: BND | AC74: 687529.4081 | AD74: AAA | AE74: 0 | AF74: 0
A75: KWAPFI | B75: 2019-01-31 | C75: BND | D75: VS130118 | E75: WESTPORTS IMTN 4.580% 31.03.2028 | F75: WESTPORTS IMTN 4.580% 31.03.2028 | G75: MYR | H75: TRANSPORTATION & LOGISTIC | I75: 5000000 | J75: 99.485 | K75: 5025000 | L75: 5025000 | M75: 0 | N75: 5051631.87 | O75: 5051631.87 | P75: 77381.87 | Q75: -46419.57 | R75: 0 | S75: -4330.43 | T75: Malaysia | U75: 4974250 | V75: 122 | W75: 2000000000 | X75: LARGE CAP | Y75: 0.04523629 | Z75: 67 | AA75: MGSALL | AB75: BND | AC75: 227312.3573 | AD75: AA1 | AE75: 0 | AF75: 0
A76: KWAPFI | B76: 2019-01-31 | C76: BND | D76: VS150073 | E76: AMAN IMTN 4.700% 08.05.2030 | F76: AMAN IMTN 4.700% 08.05.2030 - Tranche No 42 | G76: MYR | H76: CONSTRUCTION | I76: 5000000 | J76: 101.022 | K76: 5009500 | L76: 5009500 | M76: 0 | N76: 5105826.03 | O76: 5105826.03 | P76: 54726.03 | Q76: 42042.11 | R76: 0 | S76: -442.11 | T76: Malaysia | U76: 5051100 | V76: 115 | W76: 10000000000 | X76: LARGE CAP | Y76: 0.04678357 | Z76: 8 | AA76: MGSALL | AB76: BND | AC76: 234362.2939 | AD76: AAA | AE76: 0 | AF76: 0
A77: KWAPFI | B77: 2019-01-31 | C77: BND | D77: VS150073 | E77: AMAN IMTN 4.700% 08.05.2030 | F77: AMAN IMTN 4.700% 08.05.2030 - Tranche No 42 | G77: MYR | H77: CONSTRUCTION | I77: 5000000 | J77: 101.022 | K77: 5000000 | L77: 5000000 | M77: 0 | N77: 5105826.03 | O77: 5105826.03 | P77: 54726.03 | Q77: 51100 | R77: 0 | S77: 0 | T77: Malaysia | U77: 5051100 | V77: 115 | W77: 10000000000 | X77: LARGE CAP | Y77: 0.047 | Z77: 8 | AA77: MGSALL | AB77: BND | AC77: 235000 | AD77: AAA | AE77: 0 | AF77: 0
A78: KWAPFI | B78: 2019-01-31 | C78: BND | D78: VS160243 | E78: SARAWAKHIDRO IMTN 4.67% 11.08.2031 | F78: SARAWAKHIDRO IMTN 4.67% 11.08.2031 | G78: MYR | H78: POWER | I78: 10000000 | J78: 100.508 | K78: 10075000 | L78: 10075000 | M78: 0 | N78: 10270865.75 | O78: 10270865.75 | P78: 220065.75 | Q78: -14937.89 | R78: 0 | S78: -9262.11 | T78: Malaysia | U78: 10050800 | V78: 115 | W78: 5540000000 | X78: LARGE CAP | Y78: 0.0460023 | Z78: 50 | AA78: MGSALL | AB78: BND | AC78: 463473.1725 | AD78: AAA | AE78: 0 | AF78: 0
A79: KWAPFI | B79: 2019-01-31 | C79: BND | D79: VV130177 | E79: K-PROHAWK IMTN 5.240% 27.12.2030 | F79: K-PROHAWK IMTN 5.240% 27.12.2030 | G79: MYR | H79: INDUSTRIALS | I79: 5000000 | J79: 104.094 | K79: 5035000 | L79: 5035000 | M79: 0 | N79: 5229823.29 | O79: 5229823.29 | P79: 25123.29 | Q79: 173434.8 | R79: 0 | S79: -3734.8 | T79: Malaysia | U79: 5204700 | V79: 125 | W79: 900000000 | X79: LARGE CAP | Y79: 0.05168424 | Z79: 68 | AA79: MGSALL | AB79: BND | AC79: 260230.1484 | AD79: AA2 | AE79: 0 | AF79: 0
A80: KWAPFI | B80: 2019-01-31 | C80: BND | D80: VX160267 | E80: LDF3 IMTN 6.130% 22.08.2036 | F80: LDF3 IMTN 6.130% 22.08.2036 | G80: MYR | H80: INDUSTRIALS | I80: 5000000 | J80: 108.85 | K80: 5438000 | L80: 5438000 | M80: 0 | N80: 5578535.62 | O80: 5578535.62 | P80: 136035.62 | Q80: 31189.18 | R80: 0 | S80: -26689.18 | T80: Malaysia | U80: 5442500 | V80: 128 | W80: 3640000000000 | X80: LARGE CAP | Y80: 0.05398608 | Z80: 68 | AA80: MGSALL | AB80: BND | AC80: 293576.303 | AD80: AA3 | AE80: 0 | AF80: 0
A81: KWAPFI | B81: 2019-01-31 | C81: BND | D81: VX160267 | E81: LDF3 IMTN 6.130% 22.08.2036 | F81: LDF3 IMTN 6.130% 22.08.2036 | G81: MYR | H81: INDUSTRIALS | I81: 5000000 | J81: 108.85 | K81: 5429500 | L81: 5429500 | M81: 0 | N81: 5578535.62 | O81: 5578535.62 | P81: 136035.62 | Q81: 37965.52 | R81: 0 | S81: -24965.52 | T81: Malaysia | U81: 5442500 | V81: 128 | W81: 3640000000000 | X81: LARGE CAP | Y81: 0.05410036 | Z81: 68 | AA81: MGSALL | AB81: BND | AC81: 293737.9046 | AD81: AA3 | AE81: 0 | AF81: 0
A82: KWAPFI | B82: 2019-01-31 | C82: BND | D82: VX160267 | E82: LDF3 IMTN 6.130% 22.08.2036 | F82: LDF3 IMTN 6.130% 22.08.2036 | G82: MYR | H82: INDUSTRIALS | I82: 10000000 | J82: 108.85 | K82: 10802000 | L82: 10802000 | M82: 0 | N82: 11157071.23 | O82: 11157071.23 | P82: 272071.23 | Q82: 96742.03 | R82: 0 | S82: -13742.03 | T82: Malaysia | U82: 10885000 | V82: 128 | W82: 3640000000000 | X82: LARGE CAP | Y82: 0.05427622 | Z82: 68 | AA82: MGSALL | AB82: BND | AC82: 586291.7284 | AD82: AA3 | AE82: 0 | AF82: 0
A83: KWAPFI | B83: 2019-01-31 | C83: BND | D83: VY160268 | E83: LDF3 IMTN 6.230% 21.08.2037 | F83: LDF3 IMTN 6.230% 21.08.2037 | G83: MYR | H83: INDUSTRIALS | I83: 10000000 | J83: 109.385 | K83: 10882000 | L83: 10882000 | M83: 0 | N83: 11215009.58 | O83: 11215009.58 | P83: 276509.58 | Q83: 70304.84 | R83: 0 | S83: -13804.84 | T83: Malaysia | U83: 10938500 | V83: 128 | W83: 3640000000 | X83: LARGE CAP | Y83: 0.05478416 | Z83: 68 | AA83: MGSALL | AB83: BND | AC83: 596161.2291 | AD83: AA3 | AE83: 0 | AF83: 0
A84: KWAPFI | B84: 2019-01-31 | C84: BND | D84: VY160268 | E84: LDF3 IMTN 6.230% 21.08.2037 | F84: LDF3 IMTN 6.230% 21.08.2037 | G84: MYR | H84: INDUSTRIALS | I84: 5000000 | J84: 109.385 | K84: 5451000 | L84: 5451000 | M84: 0 | N84: 5607504.79 | O84: 5607504.79 | P84: 138254.79 | Q84: 42193.71 | R84: 0 | S84: -23943.71 | T84: Malaysia | U84: 5469250 | V84: 128 | W84: 3640000000 | X84: LARGE CAP | Y84: 0.05489937 | Z84: 68 | AA84: MGSALL | AB84: BND | AC84: 299256.4659 | AD84: AA3 | AE84: 0 | AF84: 0
A85: KWAPFI | B85: 2019-01-31 | C85: BND | D85: VY160268 | E85: LDF3 IMTN 6.230% 21.08.2037 | F85: LDF3 IMTN 6.230% 21.08.2037 | G85: MYR | H85: INDUSTRIALS | I85: 5000000 | J85: 109.385 | K85: 5118000 | L85: 5118000 | M85: 0 | N85: 5607504.79 | O85: 5607504.79 | P85: 138254.79 | Q85: 358871.25 | R85: 0 | S85: -7621.25 | T85: Malaysia | U85: 5469250 | V85: 128 | W85: 3640000000 | X85: LARGE CAP | Y85: 0.06030281 | Z85: 68 | AA85: MGSALL | AB85: BND | AC85: 308629.7816 | AD85: AA3 | AE85: 0 | AF85: 0
A86: KWAPFI | B86: 2019-01-31 | C86: BND | D86: VZ160270 | E86: LDF3 IMTN 6.430% 23.08.2039 | F86: LDF3 IMTN 6.430% 23.08.2039 | G86: MYR | H86: INDUSTRIALS | I86: 10000000 | J86: 110.586 | K86: 11047000 | L86: 11047000 | M86: 0 | N86: 11343986.3 | O86: 11343986.3 | P86: 285386.3 | Q86: 25343.66 | R86: 0 | S86: -13743.66 | T86: Malaysia | U86: 11058600 | V86: 128 | W86: 3640000000 | X86: LARGE CAP | Y86: 0.05578639 | Z86: 68 | AA86: MGSALL | AB86: BND | AC86: 616272.2503 | AD86: AA3 | AE86: 0 | AF86: 0
A87: KWAPFI | B87: 2019-01-31 | C87: BND | D87: VZ160270 | E87: LDF3 IMTN 6.430% 23.08.2039 | F87: LDF3 IMTN 6.430% 23.08.2039 | G87: MYR | H87: INDUSTRIALS | I87: 5000000 | J87: 110.586 | K87: 5121500 | L87: 5121500 | M87: 0 | N87: 5671993.15 | O87: 5671993.15 | P87: 142693.15 | Q87: 414389.01 | R87: 0 | S87: -6589.01 | T87: Malaysia | U87: 5529300 | V87: 128 | W87: 3640000000 | X87: LARGE CAP | Y87: 0.06229783 | Z87: 68 | AA87: MGSALL | AB87: BND | AC87: 319058.3363 | AD87: AA3 | AE87: 0 | AF87: 0
A88: KWAPFI | B88: 2019-01-31 | C88: CSH | D88: RDC*MYR*KNGINV | E88: KENANGA INVESTMENT BANK BHD | F88: Using KNGINV invest in Short Term MM Conventional | G88: MYR | H88: CASH | I88: 1699000 | J88: 0 | K88: 1699000 | L88: 1699000 | M88: 0 | N88: 1699502.72 | O88: 1699502.72 | P88: 502.72 | Q88: 0 | R88: 0 | S88: 0 | T88: Malaysia | U88: 1699000 | V88: Cash | W88: 0 | X88: SMALL CAP | Y88: 0.036 | Z88: 0 | AA88: MGSALL | AB88: CSH | AC88: 61164 | AD88: Cash | AE88: 0 | AF88: 0
A89: MEQESG | B89: 2019-01-31 | C89: CSH | D89: RDC*MYR*HLB | E89: HONG LEONG BANK BERHAD | F89: Using HLB invest in Short Term MM Conventional | G89: MYR | H89: CASH | I89: 21743000 | J89: 0 | K89: 21743000 | L89: 21743000 | M89: 0 | N89: 21748522.3 | O89: 21748522.3 | P89: 5522.3 | Q89: 0 | R89: 0 | S89: 0 | T89: Malaysia | U89: 21743000 | V89: Cash | W89: 0 | X89: SMALL CAP | Y89: 0.036 | Z89: 0 | AA89: F4GBM | AB89: CSH | AC89: 782748 | AD89: Cash | AE89: 0 | AF89: 0
A90: MEQESG | B90: 2019-01-31 | C90: CSH | D90: RDC*MYR*KAF | E90: KAF INVESTMENT BANK BERHAD | F90: Using KAF invest in Short Term MM Conventional | G90: MYR | H90: CASH | I90: 5506000 | J90: 0 | K90: 5506000 | L90: 5506000 | M90: 0 | N90: 5506543.06 | O90: 5506543.06 | P90: 543.06 | Q90: 0 | R90: 0 | S90: 0 | T90: Malaysia | U90: 5506000 | V90: Cash | W90: 0 | X90: SMALL CAP | Y90: 0.036 | Z90: 0 | AA90: F4GBM | AB90: CSH | AC90: 198216 | AD90: Cash | AE90: 0 | AF90: 0
A91: MEQESG | B91: 2019-01-31 | C91: CSH | D91: RDC*MYR*KNGINV | E91: KENANGA INVESTMENT BANK BHD | F91: Using KNGINV invest in Short Term MM Conventional | G91: MYR | H91: CASH | I91: 540000 | J91: 0 | K91: 540000 | L91: 540000 | M91: 0 | N91: 540053.26 | O91: 540053.26 | P91: 53.26 | Q91: 0 | R91: 0 | S91: 0 | T91: Malaysia | U91: 540000 | V91: Cash | W91: 0 | X91: SMALL CAP | Y91: 0.036 | Z91: 0 | AA91: F4GBM | AB91: CSH | AC91: 19440 | AD91: Cash | AE91: 0 | AF91: 0
A92: MEQESG | B92: 2019-01-31 | C92: EQT | D92: 78 | E92: GDEX | F92: GD Express Carrier Berhad | G92: MYR | H92: INDUSTRIALS | I92: 2672500 | J92: 0.29 | K92: 1089299.04 | L92: 1089299.04 | M92: 0 | N92: 775025 | O92: 775025 | P92: 0 | Q92: -314274.04 | R92: 0 | S92: 0 | T92: Malaysia | U92: 775025 | V92: Score 3 | W92: 5602624193 | X92: MID CAP | Y92: 0.01 | Z92: 68 | AA92: F4GBM | AB92: EQT | AC92: 26725 | AE92: 0.2356498766 | AF92: 775025
A93: MEQESG | B93: 2019-01-31 | C93: EQT | D93: 138 | E93: MYEG | F93: My E.G. Services Berhad | G93: MYR | H93: INDUSTRIALS | I93: 21058800 | J93: 1 | K93: 22827143.77 | L93: 22827143.77 | M93: 0 | N93: 21058800 | O93: 21058800 | P93: 0 | Q93: -1768343.77 | R93: 0 | S93: 0 | T93: Malaysia | U93: 21058800 | V93: Score 2 | W93: 3606305993 | X93: LARGE CAP | Y93: 0.01 | Z93: 68 | AA93: F4GBM | AB93: EQT | AC93: 210588 | AE93: 0.2356498766 | AF93: 21058800
A94: MEQESG | B94: 2019-01-31 | C94: EQT | D94: 1023 | E94: CIMB | F94: CIMB Group Holdings Bhd | G94: MYR | H94: FINANCIALS | I94: 1233182 | J94: 5.62 | K94: 7262979.22 | L94: 7262979.22 | M94: 0 | N94: 6930482.84 | O94: 6930482.84 | P94: 0 | Q94: -332496.38 | R94: 0 | S94: 0 | T94: Malaysia | U94: 6930482.84 | V94: Score 3 | W94: 9564459418 | X94: LARGE CAP | Y94: 0.17 | Z94: 3 | AA94: F4GBM | AB94: EQT | AC94: 209640.94 | AE94: 0.3304636494 | AF94: 6930482.84
A95: MEQESG | B95: 2019-01-31 | C95: EQT | D95: 1155 | E95: MAYBANK | F95: Malayan Banking Berhad | G95: MYR | H95: FINANCIALS | I95: 1468459 | J95: 9.54 | K95: 12086679.23 | L95: 12086679.23 | M95: 0 | N95: 14009098.86 | O95: 14009098.86 | P95: 0 | Q95: 1922419.63 | R95: 0 | S95: 0 | T95: Malaysia | U95: 14009098.86 | V95: Score 4 | W95: 11049682979 | X95: LARGE CAP | Y95: 0.47 | Z95: 3 | AA95: F4GBM | AB95: EQT | AC95: 690175.73 | AE95: 0.3304636494 | AF95: 14009098.86
A96: MEQESG | B96: 2019-01-31 | C96: EQT | D96: 1295 | E96: PBBANK | F96: Public Bank Berhad | G96: MYR | H96: FINANCIALS | I96: 402000 | J96: 24.78 | K96: 7310590.1 | L96: 7310590.1 | M96: 0 | N96: 9961560 | O96: 9961560 | P96: 0 | Q96: 2650969.9 | R96: 0 | S96: 0 | T96: Malaysia | U96: 9961560 | V96: Score 3 | W96: 3882138347 | X96: LARGE CAP | Y96: 0.59 | Z96: 3 | AA96: F4GBM | AB96: EQT | AC96: 237180 | AE96: 0.3304636494 | AF96: 9961560
A97: MEQESG | B97: 2019-01-31 | C97: EQT | D97: 2852 | E97: CMSB | F97: Cahya Mata Sarawak Bhd | G97: MYR | H97: INDUSTRIALS | I97: 700000 | J97: 3.07 | K97: 2095590 | L97: 2095590 | M97: 0 | N97: 2149000 | O97: 2149000 | P97: 0 | Q97: 53410 | R97: 0 | S97: 0 | T97: Malaysia | U97: 2149000 | V97: Score 3 | W97: 1074375720 | X97: LARGE CAP | Y97: 0.11 | Z97: 68 | AA97: F4GBM | AB97: EQT | AC97: 77000 | AE97: 0.2356498766 | AF97: 2149000
A98: MEQESG | B98: 2019-01-31 | C98: EQT | D98: 4197 | E98: SIME | F98: Sime Darby Berhad | G98: MYR | H98: INDUSTRIALS | I98: 2335600 | J98: 2.24 | K98: 5206917 | L98: 5206917 | M98: 0 | N98: 5231744 | O98: 5231744 | P98: 0 | Q98: 24827 | R98: 0 | S98: 0 | T98: Malaysia | U98: 5231744 | V98: Score 4 | W98: 6800839377 | X98: LARGE CAP | Y98: 0.25 | Z98: 68 | AA98: F4GBM | AB98: EQT | AC98: 583900 | AE98: 0.2356498766 | AF98: 5231744
A99: MEQESG | B99: 2019-01-31 | C99: EQT | D99: 4677 | E99: YTL | F99: YTL Corporation Berhad | G99: MYR | H99: UTILITIES | I99: 15600000 | J99: 1.1 | K99: 17865992.53 | L99: 17865992.53 | M99: 0 | N99: 17160000 | O99: 17160000 | P99: 0 | Q99: -705992.53 | R99: 0 | S99: 0 | T99: Malaysia | U99: 17160000 | V99: Score 3 | W99: 10910559429 | X99: LARGE CAP | Y99: 0.1 | Z99: 20 | AA99: F4GBM | AB99: EQT | AC99: 1560000 | AE99: 0.2528429481 | AF99: 17160000
A100: MEQESG | B100: 2019-01-31 | C100: EQT | D100: 4863 | E100: TM | F100: Telekom Malaysia Berhad | G100: MYR | H100: TELCO | I100: 6116800 | J100: 2.91 | K100: 15330900.19 | L100: 15330900.19 | M100: 0 | N100: 17799888 | O100: 17799888 | P100: 0 | Q100: 2468987.81 | R100: 0 | S100: 0 | T100: Malaysia | U100: 17799888 | V100: Score 4 | W100: 3757934823 | X100: LARGE CAP | Y100: 0.16 | Z100: 49 | AA100: F4GBM | AB100: EQT | AC100: 978688 | AE100: 0.08777482746 | AF100: 17799888
A101: MEQESG | B101: 2019-01-31 | C101: EQT | D101: 5014 | E101: AIRPORT | F101: Malaysia Airports Holdings Bhd | G101: MYR | H101: INDUSTRIALS | I101: 2084800 | J101: 8.04 | K101: 18474072.67 | L101: 18474072.67 | M101: 0 | N101: 16761792 | O101: 16761792 | P101: 0 | Q101: -1712280.67 | R101: 0 | S101: 0 | T101: Malaysia | U101: 16761792 | V101: Score 3 | W101: 1659191828 | X101: LARGE CAP | Y101: 0.02 | Z101: 68 | AA101: F4GBM | AB101: EQT | AC101: 41696 | AE101: 0.2356498766 | AF101: 16761792
A102: MEQESG | B102: 2019-01-31 | C102: EQT | D102: 5148 | E102: UEMS | F102: UEM Sunrise Bhd | G102: MYR | H102: FINANCIALS | I102: 15915500 | J102: 0.755 | K102: 16176619.89 | L102: 16176619.89 | M102: 0 | N102: 12016202.5 | O102: 12016202.5 | P102: 0 | Q102: -4160417.39 | R102: 0 | S102: 0 | T102: Malaysia | U102: 12016202.5 | V102: Score 3 | W102: 4537436037 | X102: LARGE CAP | Y102: 0.02 | Z102: 3 | AA102: F4GBM | AB102: EQT | AC102: 318310 | AE102: 0.3304636494 | AF102: 12016202.5
A103: MEQESG | B103: 2019-01-31 | C103: EQT | D103: 5186 | E103: MHB | F103: Msia M&H Eng Hldg Bhd | G103: MYR | H103: OIL & GAS | I103: 12747200 | J103: 0.66 | K103: 9652472.33 | L103: 9652472.33 | M103: 0 | N103: 8413152 | O103: 8413152 | P103: 0 | Q103: -1239320.33 | R103: 0 | S103: 0 | T103: Malaysia | U103: 8413152 | V103: Score 3 | W103: 1600000000 | X103: MID CAP | Y103: 0.04 | Z103: 17 | AA103: F4GBM | AB103: EQT | AC103: 509888 | AE103: 0.04148694448 | AF103: 8413152
A104: MEQESG | B104: 2019-01-31 | C104: EQT | D104: 5211 | E104: SUNWAY | F104: Sunway Bhd | G104: MYR | H104: FINANCIALS | I104: 4110500 | J104: 1.62 | K104: 6206837.53 | L104: 6206837.53 | M104: 0 | N104: 6659010 | O104: 6659010 | P104: 0 | Q104: 452172.47 | R104: 0 | S104: 0 | T104: Malaysia | U104: 6659010 | V104: Score 3 | W104: 4924452588 | X104: LARGE CAP | Y104: 0.08 | Z104: 3 | AA104: F4GBM | AB104: EQT | AC104: 328840 | AE104: 0.3304636494 | AF104: 6659010
A105: MEQESG | B105: 2019-01-31 | C105: EQT | D105: 5263 | E105: SUNCON | F105: SUNWAY CONSTRUCTION GROUP BERHAD | G105: MYR | H105: INDUSTRIALS | I105: 1161000 | J105: 1.56 | K105: 1830283.96 | L105: 1830283.96 | M105: 0 | N105: 1811160 | O105: 1811160 | P105: 0 | Q105: -19123.96 | R105: 0 | S105: 0 | T105: Malaysia | U105: 1811160 | V105: Score 4 | W105: 1292900010 | X105: MID CAP | Y105: 0.04 | Z105: 68 | AA105: F4GBM | AB105: EQT | AC105: 46440 | AE105: 0.2356498766 | AF105: 1811160
A106: MEQESG | B106: 2019-01-31 | C106: EQT | D106: 5288 | E106: SIMEPROP | F106: Sime Darby Property Bhd | G106: MYR | H106: FINANCIALS | I106: 15163900 | J106: 1.15 | K106: 20087461.38 | L106: 20087461.38 | M106: 0 | N106: 17438485 | O106: 17438485 | P106: 0 | Q106: -2648976.38 | R106: 0 | S106: 0 | T106: Malaysia | U106: 17438485 | V106: Score 4 | W106: 6800839377 | X106: LARGE CAP | Y106: 0.25 | Z106: 3 | AA106: F4GBM | AB106: EQT | AC106: 3790975 | AE106: 0.3304636494 | AF106: 17438485
A107: MEQESG | B107: 2019-01-31 | C107: EQT | D107: 5347 | E107: TENAGA | F107: Tenaga Nasional Bhd | G107: MYR | H107: UTILITIES | I107: 2133200 | J107: 12.9 | K107: 29358646.47 | L107: 29358646.47 | M107: 0 | N107: 27518280 | O107: 27518280 | P107: 0 | Q107: -1840366.47 | R107: 0 | S107: 0 | T107: Malaysia | U107: 27518280 | V107: Score 3 | W107: 5686888771 | X107: LARGE CAP | Y107: 0.35 | Z107: 20 | AA107: F4GBM | AB107: EQT | AC107: 746620 | AE107: 0.2528429481 | AF107: 27518280
A108: MEQESG | B108: 2019-01-31 | C108: EQT | D108: 6399 | E108: ASTRO | F108: Astro Malaysia Holdings Bhd | G108: MYR | H108: CONSUMER SERVICES | I108: 6250500 | J108: 1.68 | K108: 7550225.41 | L108: 7550225.41 | M108: 0 | N108: 10500840 | O108: 10500840 | P108: 0 | Q108: 2950614.59 | R108: 0 | S108: 0 | T108: Malaysia | U108: 10500840 | V108: Score 3 | W108: 5214314500 | X108: LARGE CAP | Y108: 0.13 | Z108: 7 | AA108: F4GBM | AB108: EQT | AC108: 812565 | AE108: 0.05178175386 | AF108: 10500840
A109: MEQESG | B109: 2019-01-31 | C109: EQT | D109: 6742 | E109: YTLPOWR | F109: YTL Power International Berhad | G109: MYR | H109: UTILITIES | I109: 7328700 | J109: 0.9 | K109: 7421578.91 | L109: 7421578.91 | M109: 0 | N109: 6595830 | O109: 6595830 | P109: 0 | Q109: -825748.91 | R109: 0 | S109: 0 | T109: Malaysia | U109: 6595830 | V109: Score 3 | W109: 8158208738 | X109: LARGE CAP | Y109: 0.05 | Z109: 20 | AA109: F4GBM | AB109: EQT | AC109: 366435 | AE109: 0.2528429481 | AF109: 6595830
A110: VCAM | B110: 2019-01-31 | C110: CSH | D110: RDC*MYR*AFFINB | E110: AFFIN BANK BERHAD | F110: Using AFFINB invest in Short Term MM Conventional | G110: MYR | H110: CASH | I110: 10429000 | J110: 0 | K110: 10429000 | L110: 10429000 | M110: 0 | N110: 10437571.78 | O110: 10437571.78 | P110: 8571.78 | Q110: 0 | R110: 0 | S110: 0 | T110: Malaysia | U110: 10429000 | V110: Cash | W110: 0 | X110: SMALL CAP | Y110: 0.0375 | Z110: 0 | AA110: FBMKLCI | AB110: CSH | AC110: 391087.5 | AD110: Cash | AE110: 0 | AF110: 0
A111: VCAM | B111: 2019-01-31 | C111: CSH | D111: RDC*MYR*AFFINB | E111: AFFIN BANK BERHAD | F111: Using AFFINB invest in Short Term MM Conventional | G111: MYR | H111: CASH | I111: 15195000 | J111: 0 | K111: 15195000 | L111: 15195000 | M111: 0 | N111: 15291581.92 | O111: 15291581.92 | P111: 96581.92 | Q111: 0 | R111: 0 | S111: 0 | T111: Malaysia | U111: 15195000 | V111: Cash | W111: 0 | X111: SMALL CAP | Y111: 0.04 | Z111: 0 | AA111: FBMKLCI | AB111: CSH | AC111: 607800 | AD111: Cash | AE111: 0 | AF111: 0
A112: VCAM | B112: 2019-01-31 | C112: CSH | D112: RDC*MYR*HLB | E112: HONG LEONG BANK BERHAD | F112: Using HLB invest in Short Term MM Conventional | G112: MYR | H112: CASH | I112: 2966000 | J112: 0 | K112: 2966000 | L112: 2966000 | M112: 0 | N112: 2966901.99 | O112: 2966901.99 | P112: 901.99 | Q112: 0 | R112: 0 | S112: 0 | T112: Malaysia | U112: 2966000 | V112: Cash | W112: 0 | X112: SMALL CAP | Y112: 0.037 | Z112: 0 | AA112: FBMKLCI | AB112: CSH | AC112: 109742 | AD112: Cash | AE112: 0 | AF112: 0
A113: VCAMOPR | B113: 2019-01-31 | C113: CSH | D113: RDC*MYR*MBB | E113: MALAYAN BANKING BERHAD | F113: Using MBB invest in Short Term MM Conventional | G113: MYR | H113: CASH | I113: 1690000 | J113: 0 | K113: 1690000 | L113: 1690000 | M113: 0 | N113: 1690149.55 | O113: 1690149.55 | P113: 149.55 | Q113: 0 | R113: 0 | S113: 0 | T113: Malaysia | U113: 1690000 | V113: Cash | W113: 0 | X113: SMALL CAP | Y113: 0.0323 | Z113: 0 | AA113: FBMKLCI | AB113: CSH | AC113: 54587 | AD113: Cash | AE113: 0 | AF113: 0
A114: VCAM-TABA | B114: 2019-01-31 | C114: BND | D114: VS170042 | E114: BPMB IMTN 4.98% 02.03.2032 - Issue No 12 | F114: BPMB IMTN 4.98% 02.03.2032 - Issue No 12 | G114: MYR | H114: FINANCIALS | I114: 1000000 | J114: 101.973 | K114: 1000000 | L114: 1000000 | M114: 0 | N114: 1040388.79 | O114: 1040388.79 | P114: 20658.79 | Q114: 19730 | R114: 0 | S114: 0 | T114: Malaysia | U114: 1019730 | V114: 115 | W114: 7000000000 | X114: LARGE CAP | Y114: 0.0498 | Z114: 3 | AA114: FBMT100 | AB114: BND | AC114: 49800 | AD114: AAA | AE114: 0 | AF114: 0
A115: VCAM-TABA | B115: 2019-01-31 | C115: BND | D115: VV160265 | E115: LDF3 IMTN 5.950% 23.08.2034 | F115: LDF3 IMTN 5.950% 23.08.2034 | G115: MYR | H115: INDUSTRIALS | I115: 2000000 | J115: 107.727 | K115: 2153800 | L115: 2153800 | M115: 0 | N115: 2207356.44 | O115: 2207356.44 | P115: 52816.44 | Q115: 11133.99 | R115: 0 | S115: -10393.99 | T115: Malaysia | U115: 2154540 | V115: 128 | W115: 3640000000 | X115: LARGE CAP | Y115: 0.05268637 | Z115: 68 | AA115: FBMT100 | AB115: BND | AC115: 113475.9037 | AD115: AA3 | AE115: 0 | AF115: 0
A116: VCAM-TABA | B116: 2019-01-31 | C116: EQT | D116: 138 | E116: MYEG | F116: My E.G. Services Berhad | G116: MYR | H116: INDUSTRIALS | I116: 885000 | J116: 1 | K116: 1001022.41 | L116: 1001022.41 | M116: 0 | N116: 885000 | O116: 885000 | P116: 0 | Q116: -116022.41 | R116: 0 | S116: 0 | T116: Malaysia | U116: 885000 | V116: Score 2 | W116: 3606305993 | X116: LARGE CAP | Y116: 0.01 | Z116: 68 | AA116: FBMT100 | AB116: EQT | AC116: 8850 | AE116: 0.383624399 | AF116: 885000
A117: VCAM-TABA | B117: 2019-01-31 | C117: EQT | D117: 4197 | E117: SIME | F117: Sime Darby Berhad | G117: MYR | H117: INDUSTRIALS | I117: 170000 | J117: 2.24 | K117: 381971.04 | L117: 381971.04 | M117: 0 | N117: 380800 | O117: 380800 | P117: 0 | Q117: -1171.04 | R117: 0 | S117: 0 | T117: Malaysia | U117: 380800 | V117: Score 4 | W117: 6800839377 | X117: LARGE CAP | Y117: 0.25 | Z117: 68 | AA117: FBMT100 | AB117: EQT | AC117: 42500 | AE117: 0.383624399 | AF117: 380800
A118: VCAM-TABA | B118: 2019-01-31 | C118: EQT | D118: 4863 | E118: TM | F118: Telekom Malaysia Berhad | G118: MYR | H118: TELCO | I118: 135000 | J118: 2.91 | K118: 356200.12 | L118: 356200.12 | M118: 0 | N118: 392850 | O118: 392850 | P118: 0 | Q118: 36649.88 | R118: 0 | S118: 0 | T118: Malaysia | U118: 392850 | V118: Score 4 | W118: 3757934823 | X118: LARGE CAP | Y118: 0.16 | Z118: 49 | AA118: FBMT100 | AB118: EQT | AC118: 21600 | AE118: 0.01264002267 | AF118: 392850
A119: VCAM-TABA | B119: 2019-01-31 | C119: EQT | D119: 5243 | E119: VELESTO | F119: Velesto Energy Berhad | G119: MYR | H119: OIL & GAS | I119: 2109700 | J119: 0.19 | K119: 645075.12 | L119: 645075.12 | M119: 0 | N119: 400843 | O119: 400843 | P119: 0 | Q119: -244232.12 | R119: 0 | S119: 0 | T119: Malaysia | U119: 400843 | V119: Score 3 | W119: 8215600000 | X119: MID CAP | Y119: 0.02 | Z119: 17 | AA119: FBMT100 | AB119: EQT | AC119: 42194 | AE119: 0.06851645184 | AF119: 400843
A120: VCAM-TABA | B120: 2019-01-31 | C120: EQT | D120: 5347 | E120: TENAGA | F120: Tenaga Nasional Bhd | G120: MYR | H120: UTILITIES | I120: 48000 | J120: 12.9 | K120: 649488.57 | L120: 649488.57 | M120: 0 | N120: 619200 | O120: 619200 | P120: 0 | Q120: -30288.57 | R120: 0 | S120: 0 | T120: Malaysia | U120: 619200 | V120: Score 3 | W120: 5686888771 | X120: LARGE CAP | Y120: 0.35 | Z120: 20 | AA120: FBMT100 | AB120: EQT | AC120: 16800 | AE120: 0.03750958899 | AF120: 619200
A121: VCAM-TABA | B121: 2019-01-31 | C121: EQT | D121: 5398 | E121: GAMUDA | F121: Gamuda Berhad | G121: MYR | H121: INDUSTRIALS | I121: 215000 | J121: 2.76 | K121: 615784.62 | L121: 615784.62 | M121: 0 | N121: 593400 | O121: 593400 | P121: 0 | Q121: -22384.62 | R121: 0 | S121: 0 | T121: Malaysia | U121: 593400 | V121: Score 2 | W121: 2468050951 | X121: LARGE CAP | Y121: 0.12 | Z121: 68 | AA121: FBMT100 | AB121: EQT | AC121: 25800 | AE121: 0.383624399 | AF121: 593400
A122: VCAM-TABA | B122: 2019-01-31 | C122: EQT | D122: 8664 | E122: SPSETIA | F122: S P Setia Berhad | G122: MYR | H122: FINANCIALS | I122: 300416 | J122: 2.57 | K122: 740145.9 | L122: 740145.9 | M122: 0 | N122: 772069.12 | O122: 772069.12 | P122: 0 | Q122: 31923.22 | R122: 0 | S122: 0 | T122: Malaysia | U122: 772069.12 | V122: Score 3 | W122: 3958563502 | X122: LARGE CAP | Y122: 0.14 | Z122: 3 | AA122: FBMT100 | AB122: EQT | AC122: 42058.24 | AE122: -0.1606904625 | AF122: 772069.12
A123: YAMIR-VCAM | B123: 2019-01-31 | C123: CSH | D123: RDC*MYR*PIVB | E123: PUBLIC INVESTMENT BANK BERHAD | F123: Using PIVB invest in Short Term MM Conventional | G123: MYR | H123: CASH | I123: 15479000 | J123: 0 | K123: 15479000 | L123: 15479000 | M123: 0 | N123: 15489686.87 | O123: 15489686.87 | P123: 10686.87 | Q123: 0 | R123: 0 | S123: 0 | T123: Malaysia | U123: 15479000 | V123: Cash | W123: 0 | X123: SMALL CAP | Y123: 0.036 | Z123: 0 | AA123: FBMT100 | AB123: CSH | AC123: 557244 | AD123: Cash | AE123: 0 | AF123: 0
A124: YAMIR-VCAM | B124: 2019-01-31 | C124: EQT | D124: 3816 | E124: MISC | F124: MISC Bhd | G124: MYR | H124: INDUSTRIALS | I124: 200000 | J124: 6.78 | K124: 1593848.07 | L124: 1593848.07 | M124: 0 | N124: 1356000 | O124: 1356000 | P124: 0 | Q124: -237848.07 | R124: 0 | S124: 0 | T124: Malaysia | U124: 1356000 | V124: Score 4 | W124: 4463793103 | X124: LARGE CAP | Y124: 0.13 | Z124: 68 | AA124: FBMT100 | AB124: EQT | AC124: 26000 | AE124: 0.5956859797 | AF124: 1356000
A125: YAMIR-VCAM | B125: 2019-01-31 | C125: EQT | D125: 5218 | E125: SAPNRG | F125: Sapura Energy Berhad | G125: MYR | H125: OIL & GAS | I125: 2500000 | J125: 0.265 | K125: 3018161.55 | L125: 3018161.55 | M125: 0 | N125: 662500 | O125: 662500 | P125: 0 | Q125: -2355661.55 | R125: 0 | S125: 0 | T125: Malaysia | U125: 662500 | V125: Score 2 | W125: 15979080232 | X125: LARGE CAP | Y125: 0.03 | Z125: 17 | AA125: FBMT100 | AB125: EQT | AC125: 75000 | AE125: 0.2976140203 | AF125: 662500
A126: YH-AUR-VCAM | B126: 2019-01-31 | C126: BND | D126: GZ170004 | E126: GII MURABAHAH 4/2017 4.895% 08.05.2047 | F126: GII MURABAHAH 4/2017 4.895% 08.05.2047 | G126: MYR | H126: GOV | I126: 100000000 | J126: 100.35 | K126: 100172000 | L126: 100172000 | M126: 0 | N126: 101499378.5 | O126: 101499378.5 | P126: 1149378.45 | Q126: 189949.76 | R126: 0 | S126: -11949.76 | T126: Malaysia | U126: 100350000 | V126: 10 | W126: 999999999999 | X126: LARGE CAP | Y126: 0.04884017 | Z126: 21 | AA126: FBMT100 | AB126: BND | AC126: 4892417.509 | AD126: GOVT | AE126: 0 | AF126: 0
A127: YH-AUR-VCAM | B127: 2019-01-31 | C127: BND | D127: GZ170004 | E127: GII MURABAHAH 4/2017 4.895% 08.05.2047 | F127: GII MURABAHAH 4/2017 4.895% 08.05.2047 | G127: MYR | H127: GOV | I127: 100000000 | J127: 100.35 | K127: 100094000 | L127: 100094000 | M127: 0 | N127: 101499378.5 | O127: 101499378.5 | P127: 1149378.45 | Q127: 265708.94 | R127: 0 | S127: -9708.94 | T127: Malaysia | U127: 100350000 | V127: 10 | W127: 999999999999 | X127: LARGE CAP | Y127: 0.04888984 | Z127: 21 | AA127: FBMT100 | AB127: BND | AC127: 4893579.645 | AD127: GOVT | AE127: 0 | AF127: 0
A128: YH-AUR-VCAM | B128: 2019-01-31 | C128: BND | D128: MO160003 | E128: MGS 3/2016 3.9% 30.11.2026 | F128: MGS 3/2016 3.9% 30.11.2026 | G128: MYR | H128: GOV | I128: 10000000 | J128: 99.04 | K128: 10294000 | L128: 10294000 | M128: 0 | N128: 9971500 | O128: 9971500 | P128: 67500 | Q128: -329762.34 | R128: 0 | S128: -60237.66 | T128: Malaysia | U128: 9904000 | V128: 10 | W128: 999999990000 | X128: LARGE CAP | Y128: 0.0355477 | Z128: 21 | AA128: FBMT100 | AB128: BND | AC128: 365928.0238 | AD128: GOVT | AE128: 0 | AF128: 0
A129: YH-AUR-VCAM | B129: 2019-01-31 | C129: BND | D129: MO160003 | E129: MGS 3/2016 3.9% 30.11.2026 | F129: MGS 3/2016 3.9% 30.11.2026 | G129: MYR | H129: GOV | I129: 50000000 | J129: 99.04 | K129: 51372500 | L129: 51372500 | M129: 0 | N129: 49857500 | O129: 49857500 | P129: 337500 | Q129: -1570566.53 | R129: 0 | S129: -281933.47 | T129: Malaysia | U129: 49520000 | V129: 10 | W129: 999999990000 | X129: LARGE CAP | Y129: 0.03577552 | Z129: 21 | AA129: FBMT100 | AB129: BND | AC129: 1837877.901 | AD129: GOVT | AE129: 0 | AF129: 0
A130: YH-AUR-VCAM | B130: 2019-01-31 | C130: BND | D130: MX110004 | E130: MGS 4/2011 4.232% 30.06.2031 | F130: MGS 4/2011 4.232% 30.06.2031 | G130: MYR | H130: GOV | I130: 30000000 | J130: 99.2 | K130: 31203000 | L130: 31203000 | M130: 0 | N130: 29872229.83 | O130: 29872229.83 | P130: 112229.83 | Q130: -1290671.37 | R130: 0 | S130: -152328.63 | T130: Malaysia | U130: 29760000 | V130: 10 | W130: 999999990000 | X130: LARGE CAP | Y130: 0.03873674 | Z130: 21 | AA130: FBMT100 | AB130: BND | AC130: 1208702.498 | AD130: GOVT | AE130: 0 | AF130: 0
A131: YH-AUR-VCAM | B131: 2019-01-31 | C131: BND | D131: MX180004 | E131: MGS 4/2018 08.06.2038 | F131: MGS 4/2018 08.06.2038 | G131: MYR | H131: GOV | I131: 10000000 | J131: 104.15 | K131: 10107000 | L131: 10107000 | M131: 0 | N131: 10488932.69 | O131: 10488932.69 | P131: 73932.69 | Q131: 308969.96 | R131: 0 | S131: -969.96 | T131: Malaysia | U131: 10415000 | V131: 10 | W131: 999999990000 | X131: LARGE CAP | Y131: 0.04807729 | Z131: 21 | AA131: FBMT100 | AB131: BND | AC131: 485917.17 | AD131: GOVT | AE131: 0 | AF131: 0
A132: YH-AUR-VCAM | B132: 2019-01-31 | C132: BND | D132: MZ160002 | E132: MGS 2/2016 4.736% 15.3.2046 | F132: MGS 2/2016 4.736% 15.3.2046 | G132: MYR | H132: GOV | I132: 40000000 | J132: 99.128 | K132: 41484000 | L132: 41484000 | M132: 0 | N132: 40378607.73 | O132: 40378607.73 | P132: 727407.73 | Q132: -1768930.92 | R132: 0 | S132: -63869.08 | T132: Malaysia | U132: 39651200 | V132: 10 | W132: 999999990000 | X132: LARGE CAP | Y132: 0.04507547 | Z132: 21 | AA132: FBMT100 | AB132: BND | AC132: 1869910.797 | AD132: GOVT | AE132: 0 | AF132: 0
A133: YH-AUR-VCAM | B133: 2019-01-31 | C133: BND | D133: PO180006 | E133: CIMB 4.880% 13.09.2029 - Tranche 4 | F133: CIMB 4.880% 13.09.2029 - Tranche 4 | G133: MYR | H133: OTHERS | I133: 65000000 | J133: 101.025 | K133: 65000000 | L133: 65000000 | M133: 0 | N133: 66891597.95 | O133: 66891597.95 | P133: 1225347.95 | Q133: 666250 | R133: 0 | S133: 0 | T133: Malaysia | U133: 65666250 | V133: 125 | W133: 10000000000 | X133: LARGE CAP | Y133: 0.0488 | Z133: 0 | AA133: FBMT100 | AB133: BND | AC133: 3172000 | AD133: AA2 | AE133: 0 | AF133: 0
A134: YH-AUR-VCAM | B134: 2019-01-31 | C134: BND | D134: UG160121 | E134: CAGAMAS MTN 3.750% 18.10.2019 | F134: CAGAMAS MTN 3.750% 18.10.2019 | G134: MYR | H134: FINANCIALS | I134: 10000000 | J134: 99.965 | K134: 10000000 | L134: 10000000 | M134: 0 | N134: 10101294.52 | O134: 10101294.52 | P134: 104794.52 | Q134: -3500 | R134: 0 | S134: 0 | T134: Malaysia | U134: 9996500 | V134: 115 | W134: 20000000000 | X134: LARGE CAP | Y134: 0.03749933 | Z134: 3 | AA134: FBMT100 | AB134: BND | AC134: 374993.3 | AD134: AAA | AE134: 0 | AF134: 0
A135: YH-AUR-VCAM | B135: 2019-01-31 | C135: BND | D135: UN150035 | E135: RHBINVB MTN 3653D 16.4.2025 | F135: RHBINVB MTN 3653D 16.4.2025 | G135: MYR | H135: FINANCIALS | I135: 30000000 | J135: 100.717 | K135: 30000000 | L135: 30000000 | M135: 0 | N135: 30654497.26 | O135: 30654497.26 | P135: 439397.26 | Q135: 215100 | R135: 0 | S135: 0 | T135: Malaysia | U135: 30215100 | V135: 128 | W135: 1000000000 | X135: LARGE CAP | Y135: 0.0495 | Z135: 3 | AA135: FBMT100 | AB135: BND | AC135: 1485000 | AD135: AA3 | AE135: 0 | AF135: 0
A136: YH-AUR-VCAM | B136: 2019-01-31 | C136: BND | D136: UN150040 | E136: RHBBANK MTN 3653D 15/0040 4.75% 08.05.2025 | F136: RHBBANK MTN 3653D 15/0040 4.75% 08.05.2025 | G136: MYR | H136: FINANCIALS | I136: 35000000 | J136: 100.566 | K136: 35000000 | L136: 35000000 | M136: 0 | N136: 35585257.53 | O136: 35585257.53 | P136: 387157.53 | Q136: 198100 | R136: 0 | S136: 0 | T136: Malaysia | U136: 35198100 | V136: 128 | W136: 5000000000 | X136: LARGE CAP | Y136: 0.0475 | Z136: 3 | AA136: FBMT100 | AB136: BND | AC136: 1662500 | AD136: AA3 | AE136: 0 | AF136: 0
A137: YH-AUR-VCAM | B137: 2019-01-31 | C137: BND | D137: VK150137 | E137: IHSAN IMTN 4.300% 17.06.2022 - 7 Years | F137: IHSAN IMTN 4.300% 17.06.2022 - First Sukuk Ihsan | G137: MYR | H137: FINANCIALS | I137: 17000000 | J137: 99.675 | K137: 17000000 | L137: 17000000 | M137: 0 | N137: 17401374.66 | O137: 17401374.66 | P137: 456624.66 | Q137: -55250 | R137: 0 | S137: 0 | T137: Malaysia | U137: 16944750 | V137: 115 | W137: 1000000000 | X137: LARGE CAP | Y137: 0.04299959 | Z137: 3 | AA137: FBMT100 | AB137: BND | AC137: 730993.03 | AD137: AAA | AE137: 0 | AF137: 0
A138: YH-AUR-VCAM | B138: 2019-01-31 | C138: BND | D138: VK170233 | E138: IHSAN IMTN 4.600% 08.08.2024 - Second Sukuk Ihsan | F138: IHSAN IMTN 4.600% 08.08.2024 - Second Sukuk Ihsan | G138: MYR | H138: FINANCIALS | I138: 13000000 | J138: 100.467 | K138: 13000000 | L138: 13000000 | M138: 0 | N138: 13350699.04 | O138: 13350699.04 | P138: 289989.04 | Q138: 60710 | R138: 0 | S138: 0 | T138: Malaysia | U138: 13060710 | V138: 115 | W138: 1000000000 | X138: LARGE CAP | Y138: 0.046 | Z138: 3 | AA138: FBMT100 | AB138: BND | AC138: 598000 | AD138: AAA | AE138: 0 | AF138: 0
A139: YH-AUR-VCAM | B139: 2019-01-31 | C139: BND | D139: VM150346 | E139: SAMALAJU IMTN 5.15% 27.12.2024 - Issue No. 2 | F139: SAMALAJU IMTN 5.15% 27.12.2024 - Issue No. 2 | G139: MYR | H139: TRANSPORTATION & LOGISTIC | I139: 5000000 | J139: 103.359 | K139: 5000000 | L139: 5000000 | M139: 0 | N139: 5192641.78 | O139: 5192641.78 | P139: 24691.78 | Q139: 167950 | R139: 0 | S139: 0 | T139: Malaysia | U139: 5167950 | V139: 122 | W139: 950000000 | X139: LARGE CAP | Y139: 0.05149975 | Z139: 67 | AA139: FBMT100 | AB139: BND | AC139: 257498.75 | AD139: AA1 | AE139: 0 | AF139: 0
A140: YH-AUR-VCAM | B140: 2019-01-31 | C140: BND | D140: VN130387 | E140: BGSM MGMT IMTN 5.600% 27.12.2023 - Issue No 9 | F140: BGSM MGMT IMTN 5.600% 27.12.2023 - Issue No 9 | G140: MYR | H140: DIVERSIFIED | I140: 5000000 | J140: 104.872 | K140: 5185000 | L140: 5185000 | M140: 0 | N140: 5270449.32 | O140: 5270449.32 | P140: 26849.32 | Q140: 104869.22 | R140: 0 | S140: -46269.22 | T140: Malaysia | U140: 5243600 | V140: 128 | W140: 373000000 | X140: LARGE CAP | Y140: 0.04954876 | Z140: 22 | AA140: FBMT100 | AB140: BND | AC140: 256910.3206 | AD140: AA3 | AE140: 0 | AF140: 0
A141: YH-AUR-VCAM | B141: 2019-01-31 | C141: BND | D141: VN150260 | E141: MMC CORP IMTN 5.800% 12.11.2025 | F141: MMC CORP IMTN 5.800% 12.11.2025 | G141: MYR | H141: DIVERSIFIED | I141: 15000000 | J141: 102.16 | K141: 15000000 | L141: 15000000 | M141: 0 | N141: 15517068.49 | O141: 15517068.49 | P141: 193068.49 | Q141: 324000 | R141: 0 | S141: 0 | T141: Malaysia | U141: 15324000 | V141: 128 | W141: 1500000000 | X141: LARGE CAP | Y141: 0.058 | Z141: 22 | AA141: FBMT100 | AB141: BND | AC141: 870000 | AD141: AA3 | AE141: 0 | AF141: 0
A142: YH-AUR-VCAM | B142: 2019-01-31 | C142: BND | D142: VN150347 | E142: SAMALAJU IMTN 5.25% 26.12.2025 - Issue No. 3 | F142: SAMALAJU IMTN 5.25% 26.12.2025 - Issue No. 3 | G142: MYR | H142: TRANSPORTATION & LOGISTIC | I142: 5000000 | J142: 103.904 | K142: 5000000 | L142: 5000000 | M142: 0 | N142: 5220371.23 | O142: 5220371.23 | P142: 25171.23 | Q142: 195200 | R142: 0 | S142: 0 | T142: Malaysia | U142: 5195200 | V142: 122 | W142: 950000000 | X142: LARGE CAP | Y142: 0.05249952 | Z142: 67 | AA142: FBMT100 | AB142: BND | AC142: 262497.6 | AD142: AA1 | AE142: 0 | AF142: 0
A143: YH-AUR-VCAM | B143: 2019-01-31 | C143: BND | D143: VN170154 | E143: YTL POWER IMTN 5.050% 0.05.2027 | F143: YTL POWER IMTN 5.050% 0.05.2027 | G143: MYR | H143: UTILITIES | I143: 45000000 | J143: 101.495 | K143: 45000000 | L143: 45000000 | M143: 0 | N143: 46220640.41 | O143: 46220640.41 | P143: 547890.41 | Q143: 672750 | R143: 0 | S143: 0 | T143: Malaysia | U143: 45672750 | V143: 122 | W143: 2500000000 | X143: LARGE CAP | Y143: 0.0505 | Z143: 20 | AA143: FBMT100 | AB143: BND | AC143: 2272500 | AD143: AA1 | AE143: 0 | AF143: 0
A144: YH-AUR-VCAM | B144: 2019-01-31 | C144: BND | D144: VN180095 | E144: MMC CORP IMTN 5.700% 24.03.2028 | F144: MMC CORP IMTN 5.700% 24.03.2028 | G144: MYR | H144: DIVERSIFIED | I144: 75000000 | J144: 101.07 | K144: 75000000 | L144: 75000000 | M144: 0 | N144: 77301678.08 | O144: 77301678.08 | P144: 1499178.08 | Q144: 802500 | R144: 0 | S144: 0 | T144: Malaysia | U144: 75802500 | V144: 128 | W144: 2500000000 | X144: LARGE CAP | Y144: 0.057 | Z144: 22 | AA144: FBMT100 | AB144: BND | AC144: 4275000 | AD144: AA3 | AE144: 0 | AF144: 0
A145: YH-AUR-VCAM | B145: 2019-01-31 | C145: BND | D145: VN180276 | E145: SDHB IMTN 5.300% 02.10.2028 | F145: SDHB IMTN 5.300% 02.10.2028 | G145: MYR | H145: CONSTRUCTION | I145: 70000000 | J145: 100.835 | K145: 70000000 | L145: 70000000 | M145: 0 | N145: 71824554.79 | O145: 71824554.79 | P145: 1240054.79 | Q145: 584500 | R145: 0 | S145: 0 | T145: Malaysia | U145: 70584500 | V145: 128 | W145: 700000000 | X145: LARGE CAP | Y145: 0.053 | Z145: 8 | AA145: FBMT100 | AB145: BND | AC145: 3710000 | AD145: AA3 | AE145: 0 | AF145: 0
A146: YH-AUR-VCAM | B146: 2019-01-31 | C146: BND | D146: VO150348 | E146: SAMALAJU IMTN 5.35% 28.12.2026 - Issue No. 4 | F146: SAMALAJU IMTN 5.35% 28.12.2026 - Issue No. 4 | G146: MYR | H146: TRANSPORTATION & LOGISTIC | I146: 5000000 | J146: 104.543 | K146: 5000000 | L146: 5000000 | M146: 0 | N146: 5252800.68 | O146: 5252800.68 | P146: 25650.68 | Q146: 227150 | R146: 0 | S146: 0 | T146: Malaysia | U146: 5227150 | V146: 122 | W146: 950000000 | X146: LARGE CAP | Y146: 0.0535 | Z146: 67 | AA146: FBMT100 | AB146: BND | AC146: 267500 | AD146: AA1 | AE146: 0 | AF146: 0
A147: YH-AUR-VCAM | B147: 2019-01-31 | C147: BND | D147: VO170353 | E147: SPG IMTN 5.040% 28.04.2028 | F147: SPG IMTN 5.040% 28.04.2028 | G147: MYR | H147: POWER | I147: 5000000 | J147: 103.218 | K147: 5000000 | L147: 5000000 | M147: 0 | N147: 5225108.22 | O147: 5225108.22 | P147: 64208.22 | Q147: 160900 | R147: 0 | S147: 0 | T147: Malaysia | U147: 5160900 | V147: 128 | W147: 4000000000 | X147: LARGE CAP | Y147: 0.0504 | Z147: 50 | AA147: FBMT100 | AB147: BND | AC147: 252000 | AD147: AA3 | AE147: 0 | AF147: 0
A148: YH-AUR-VCAM | B148: 2019-01-31 | C148: BND | D148: VO170354 | E148: SPG IMTN 5.060% 31.10.2028 | F148: SPG IMTN 5.060% 31.10.2028 | G148: MYR | H148: POWER | I148: 5000000 | J148: 103.409 | K148: 5000000 | L148: 5000000 | M148: 0 | N148: 5234913.01 | O148: 5234913.01 | P148: 64463.01 | Q148: 170450 | R148: 0 | S148: 0 | T148: Malaysia | U148: 5170450 | V148: 128 | W148: 4000000000 | X148: LARGE CAP | Y148: 0.0506 | Z148: 50 | AA148: FBMT100 | AB148: BND | AC148: 253000 | AD148: AA3 | AE148: 0 | AF148: 0
A149: YH-AUR-VCAM | B149: 2019-01-31 | C149: BND | D149: VP160259 | E149: LDF3 IMTN 5.340% 23.08.2028 | F149: LDF3 IMTN 5.340% 23.08.2028 | G149: MYR | H149: INDUSTRIALS | I149: 5000000 | J149: 103.405 | K149: 5089000 | L149: 5089000 | M149: 0 | N149: 5288754.11 | O149: 5288754.11 | P149: 118504.11 | Q149: 95424 | R149: 0 | S149: -14174 | T149: Malaysia | U149: 5170250 | V149: 128 | W149: 3640000000 | X149: LARGE CAP | Y149: 0.05139414 | Z149: 68 | AA149: FBMT100 | AB149: BND | AC149: 261544.7785 | AD149: AA3 | AE149: 0 | AF149: 0
A150: YH-AUR-VCAM | B150: 2019-01-31 | C150: BND | D150: VP170355 | E150: SPG IMTN 5.090% 30.04.2029 | F150: SPG IMTN 5.090% 30.04.2029 | G150: MYR | H150: POWER | I150: 5000000 | J150: 103.709 | K150: 5000000 | L150: 5000000 | M150: 0 | N150: 5250295.21 | O150: 5250295.21 | P150: 64845.21 | Q150: 185450 | R150: 0 | S150: 0 | T150: Malaysia | U150: 5185450 | V150: 128 | W150: 4000000000 | X150: LARGE CAP | Y150: 0.0509 | Z150: 50 | AA150: FBMT100 | AB150: BND | AC150: 254500 | AD150: AA3 | AE150: 0 | AF150: 0
A151: YH-AUR-VCAM | B151: 2019-01-31 | C151: BND | D151: VP170356 | E151: SPG IMTN 5.130% 31.10.2029 | F151: SPG IMTN 5.130% 31.10.2029 | G151: MYR | H151: POWER | I151: 5000000 | J151: 104.113 | K151: 5000000 | L151: 5000000 | M151: 0 | N151: 5271004.79 | O151: 5271004.79 | P151: 65354.79 | Q151: 205650 | R151: 0 | S151: 0 | T151: Malaysia | U151: 5205650 | V151: 128 | W151: 4000000000 | X151: LARGE CAP | Y151: 0.0513 | Z151: 50 | AA151: FBMT100 | AB151: BND | AC151: 256500 | AD151: AA3 | AE151: 0 | AF151: 0
A152: YH-AUR-VCAM | B152: 2019-01-31 | C152: BND | D152: VQ150350 | E152: SAMALAJU IMTN 5.55% 28.12.2018 - Issue No. 6 | F152: SAMALAJU IMTN 5.55% 28.12.2018 - Issue No. 6 | G152: MYR | H152: TRANSPORTATION & LOGISTIC | I152: 5000000 | J152: 106.002 | K152: 5000000 | L152: 5000000 | M152: 0 | N152: 5326709.59 | O152: 5326709.59 | P152: 26609.59 | Q152: 300100 | R152: 0 | S152: 0 | T152: Malaysia | U152: 5300100 | V152: 122 | W152: 950000000 | X152: LARGE CAP | Y152: 0.0555 | Z152: 67 | AA152: FBMT100 | AB152: BND | AC152: 277500 | AD152: AA1 | AE152: 0 | AF152: 0
A153: YH-AUR-VCAM | B153: 2019-01-31 | C153: BND | D153: VQ170358 | E153: SPG IMTN 5.210% 31.10.2030 | F153: SPG IMTN 5.210% 31.10.2030 | G153: MYR | H153: POWER | I153: 5000000 | J153: 105.018 | K153: 5000000 | L153: 5000000 | M153: 0 | N153: 5317273.97 | O153: 5317273.97 | P153: 66373.97 | Q153: 250900 | R153: 0 | S153: 0 | T153: Malaysia | U153: 5250900 | V153: 128 | W153: 4000000000 | X153: LARGE CAP | Y153: 0.0521 | Z153: 50 | AA153: FBMT100 | AB153: BND | AC153: 260500 | AD153: AA3 | AE153: 0 | AF153: 0
A154: YH-AUR-VCAM | B154: 2019-01-31 | C154: BND | D154: VR120013 | E154: PLUS BERHAD IMTN 4.720% 12.01.2026 - Series 1 (10) | F154: PLUS BERHAD IMTN 4.720% 12.01.2026 - Series 1 (10) | G154: MYR | H154: TRANSPORTATION & LOGISTIC | I154: 25000000 | J154: 101.659 | K154: 25527500 | L154: 25527500 | M154: 0 | N154: 25472941.78 | O154: 25472941.78 | P154: 58191.78 | Q154: 43333.98 | R154: 0 | S154: -156083.98 | T154: Malaysia | U154: 25414750 | V154: 115 | W154: 23350000000000 | X154: LARGE CAP | Y154: 0.04468493 | Z154: 67 | AA154: FBMT100 | AB154: BND | AC154: 1140694.551 | AD154: AAA | AE154: 0 | AF154: 0
A155: YH-AUR-VCAM | B155: 2019-01-31 | C155: BND | D155: VR150351 | E155: SAMALAJU IMTN 5.65% 28.12.2029 - Issue No. 7 | F155: SAMALAJU IMTN 5.65% 28.12.2029 - Issue No. 7 | G155: MYR | H155: TRANSPORTATION & LOGISTIC | I155: 5000000 | J155: 106.739 | K155: 5000000 | L155: 5000000 | M155: 0 | N155: 5364039.04 | O155: 5364039.04 | P155: 27089.04 | Q155: 336950 | R155: 0 | S155: 0 | T155: Malaysia | U155: 5336950 | V155: 122 | W155: 950000000 | X155: LARGE CAP | Y155: 0.0565 | Z155: 67 | AA155: FBMT100 | AB155: BND | AC155: 282500 | AD155: AA1 | AE155: 0 | AF155: 0
A156: YH-AUR-VCAM | B156: 2019-01-31 | C156: BND | D156: VR160244 | E156: SARAWAKHIDRO IMTN 4.61% 09.08.2030 | F156: SARAWAKHIDRO IMTN 4.61% 09.08.2030 | G156: MYR | H156: POWER | I156: 15000000 | J156: 100.248 | K156: 15076500 | L156: 15076500 | M156: 0 | N156: 15363057.53 | O156: 15363057.53 | P156: 325857.53 | Q156: -28918.11 | R156: 0 | S156: -10381.89 | T156: Malaysia | U156: 15037200 | V156: 115 | W156: 5540000000 | X156: LARGE CAP | Y156: 0.04560272 | Z156: 50 | AA156: FBMT100 | AB156: BND | AC156: 687529.4081 | AD156: AAA | AE156: 0 | AF156: 0
A157: YH-AUR-VCAM | B157: 2019-01-31 | C157: BND | D157: VR170359 | E157: SPG IMTN 5.250% 30.04.2031 | F157: SPG IMTN 5.250% 30.04.2031 | G157: MYR | H157: POWER | I157: 5000000 | J157: 105.485 | K157: 5000000 | L157: 5000000 | M157: 0 | N157: 5341133.56 | O157: 5341133.56 | P157: 66883.56 | Q157: 274250 | R157: 0 | S157: 0 | T157: Malaysia | U157: 5274250 | V157: 128 | W157: 4000000000 | X157: LARGE CAP | Y157: 0.0525 | Z157: 50 | AA157: FBMT100 | AB157: BND | AC157: 262500 | AD157: AA3 | AE157: 0 | AF157: 0
A158: YH-AUR-VCAM | B158: 2019-01-31 | C158: BND | D158: VR170360 | E158: SPG IMTN 5.290% 31.10.2031 | F158: SPG IMTN 5.290% 31.10.2031 | G158: MYR | H158: POWER | I158: 5000000 | J158: 106.017 | K158: 5000000 | L158: 5000000 | M158: 0 | N158: 5368243.15 | O158: 5368243.15 | P158: 67393.15 | Q158: 300850 | R158: 0 | S158: 0 | T158: Malaysia | U158: 5300850 | V158: 128 | W158: 4000000000 | X158: LARGE CAP | Y158: 0.0529 | Z158: 50 | AA158: FBMT100 | AB158: BND | AC158: 264500 | AD158: AA3 | AE158: 0 | AF158: 0
A159: YH-AUR-VCAM | B159: 2019-01-31 | C159: BND | D159: VS160236 | E159: JAMB.KEDUA IMTN 4.520% 28.07.2031 | F159: JAMB.KEDUA IMTN 4.520% 28.07.2031 | G159: MYR | H159: INDUSTRIALS | I159: 5000000 | J159: 100.416 | K159: 5000000 | L159: 5000000 | M159: 0 | N159: 5023276.71 | O159: 5023276.71 | P159: 2476.71 | Q159: 20800 | R159: 0 | S159: 0 | T159: Malaysia | U159: 5020800 | V159: 100 | W159: 4600000000000 | X159: LARGE CAP | Y159: 0.0452 | Z159: 68 | AA159: FBMT100 | AB159: BND | AC159: 226000 | AD159: GG | AE159: 0 | AF159: 0
A160: YH-AUR-VCAM | B160: 2019-01-31 | C160: BND | D160: VS160262 | E160: LDF3 IMTN 5.640% 22.08.2031 | F160: LDF3 IMTN 5.640% 22.08.2031 | G160: MYR | H160: CONSTRUCTION | I160: 5000000 | J160: 105.641 | K160: 5308500 | L160: 5308500 | M160: 0 | N160: 5407211.64 | O160: 5407211.64 | P160: 125161.64 | Q160: 361.36 | R160: 0 | S160: -26811.36 | T160: Malaysia | U160: 5282050 | V160: 128 | W160: 185000000 | X160: LARGE CAP | Y160: 0.05029025 | Z160: 8 | AA160: FBMT100 | AB160: BND | AC160: 266965.7921 | AD160: AA3 | AE160: 0 | AF160: 0
A161: YH-AUR-VCAM | B161: 2019-01-31 | C161: BND | D161: VS170042 | E161: BPMB IMTN 4.98% 02.03.2032 - Issue No 12 | F161: BPMB IMTN 4.98% 02.03.2032 - Issue No 12 | G161: MYR | H161: FINANCIALS | I161: 9000000 | J161: 101.973 | K161: 9000000 | L161: 9000000 | M161: 0 | N161: 9363499.12 | O161: 9363499.12 | P161: 185929.12 | Q161: 177570 | R161: 0 | S161: 0 | T161: Malaysia | U161: 9177570 | V161: 115 | W161: 7000000000 | X161: LARGE CAP | Y161: 0.0498 | Z161: 3 | AA161: FBMT100 | AB161: BND | AC161: 448200 | AD161: AAA | AE161: 0 | AF161: 0
A162: YH-AUR-VCAM | B162: 2019-01-31 | C162: BND | D162: VS170367 | E162: SPG IMTN 5.370% 29.10.2032 | F162: SPG IMTN 5.370% 29.10.2032 | G162: MYR | H162: POWER | I162: 10000000 | J162: 105.893 | K162: 10000000 | L162: 10000000 | M162: 0 | N162: 10726124.66 | O162: 10726124.66 | P162: 136824.66 | Q162: 589300 | R162: 0 | S162: 0 | T162: Malaysia | U162: 10589300 | V162: 128 | W162: 4000000000 | X162: LARGE CAP | Y162: 0.0537 | Z162: 50 | AA162: FBMT100 | AB162: BND | AC162: 537000 | AD162: AA3 | AE162: 0 | AF162: 0
A163: YH-AUR-VCAM | B163: 2019-01-31 | C163: BND | D163: VS170368 | E163: SPG IMTN 5.330% 30.04.2032 | F163: SPG IMTN 5.330% 30.04.2032 | G163: MYR | H163: POWER | I163: 5000000 | J163: 106.037 | K163: 5000000 | L163: 5000000 | M163: 0 | N163: 5369752.74 | O163: 5369752.74 | P163: 67902.74 | Q163: 301850 | R163: 0 | S163: 0 | T163: Malaysia | U163: 5301850 | V163: 128 | W163: 4000000000 | X163: LARGE CAP | Y163: 0.0533 | Z163: 50 | AA163: FBMT100 | AB163: BND | AC163: 266500 | AD163: AA3 | AE163: 0 | AF163: 0
A164: YH-AUR-VCAM | B164: 2019-01-31 | C164: BND | D164: VS170389 | E164: SEB IMTN 5.320% 03.12.2032 | F164: SEB IMTN 5.320% 03.12.2032 | G164: MYR | H164: POWER | I164: 20000000 | J164: 105.525 | K164: 20082000 | L164: 20082000 | M164: 0 | N164: 21274073.97 | O164: 21274073.97 | P164: 169073.97 | Q164: 1028741.75 | R164: 0 | S164: -5741.75 | T164: Malaysia | U164: 21105000 | V164: 122 | W164: 15000000000 | X164: LARGE CAP | Y164: 0.05280041 | Z164: 50 | AA164: FBMT100 | AB164: BND | AC164: 1060337.834 | AD164: AA1 | AE164: 0 | AF164: 0
A165: YH-AUR-VCAM | B165: 2019-01-31 | C165: BND | D165: VT160263 | E165: LDF3 IMTN 5.770% 23.08.2032 | F165: LDF3 IMTN 5.770% 23.08.2032 | G165: MYR | H165: INDUSTRIALS | I165: 45000000 | J165: 106.635 | K165: 48424500 | L165: 48424500 | M165: 0 | N165: 49138169.18 | O165: 49138169.18 | P165: 1152419.18 | Q165: -168481.96 | R165: 0 | S165: -270268.04 | T165: Malaysia | U165: 47985750 | V165: 128 | W165: 3640000000 | X165: LARGE CAP | Y165: 0.05049398 | Z165: 68 | AA165: FBMT100 | AB165: BND | AC165: 2445145.735 | AD165: AA3 | AE165: 0 | AF165: 0
A166: YH-AUR-VCAM | B166: 2019-01-31 | C166: BND | D166: VT160263 | E166: LDF3 IMTN 5.770% 23.08.2032 | F166: LDF3 IMTN 5.770% 23.08.2032 | G166: MYR | H166: INDUSTRIALS | I166: 5000000 | J166: 106.635 | K166: 5105000 | L166: 5105000 | M166: 0 | N166: 5459796.58 | O166: 5459796.58 | P166: 128046.58 | Q166: 237655.35 | R166: 0 | S166: -10905.35 | T166: Malaysia | U166: 5331750 | V166: 128 | W166: 3640000000 | X166: LARGE CAP | Y166: 0.05569986 | Z166: 68 | AA166: FBMT100 | AB166: BND | AC166: 284347.7853 | AD166: AA3 | AE166: 0 | AF166: 0
A167: YH-AUR-VCAM | B167: 2019-01-31 | C167: BND | D167: VT170365 | E167: SPG IMTN 5.450% 31.10.2033 | F167: SPG IMTN 5.450% 31.10.2033 | G167: MYR | H167: POWER | I167: 5000000 | J167: 105.666 | K167: 5000000 | L167: 5000000 | M167: 0 | N167: 5352731.51 | O167: 5352731.51 | P167: 69431.51 | Q167: 283300 | R167: 0 | S167: 0 | T167: Malaysia | U167: 5283300 | V167: 128 | W167: 4000000000 | X167: LARGE CAP | Y167: 0.0545 | Z167: 50 | AA167: FBMT100 | AB167: BND | AC167: 272500 | AD167: AA3 | AE167: 0 | AF167: 0
A168: YH-AUR-VCAM | B168: 2019-01-31 | C168: BND | D168: VT170366 | E168: SPG IMTN 5.410% 29.04.2033 | F168: SPG IMTN 5.410% 29.04.2033 | G168: MYR | H168: POWER | I168: 5000000 | J168: 105.711 | K168: 5000000 | L168: 5000000 | M168: 0 | N168: 5354471.92 | O168: 5354471.92 | P168: 68921.92 | Q168: 285550 | R168: 0 | S168: 0 | T168: Malaysia | U168: 5285550 | V168: 128 | W168: 4000000000 | X168: LARGE CAP | Y168: 0.0541 | Z168: 50 | AA168: FBMT100 | AB168: BND | AC168: 270500 | AD168: AA3 | AE168: 0 | AF168: 0
A169: YH-AUR-VCAM | B169: 2019-01-31 | C169: BND | D169: VU160264 | E169: LDF3 IMTN 5.860% 23.08.2033 | F169: LDF3 IMTN 5.860% 23.08.2033 | G169: MYR | H169: INDUSTRIALS | I169: 30000000 | J169: 107.225 | K169: 32604000 | L169: 32604000 | M169: 0 | N169: 32947763.01 | O169: 32947763.01 | P169: 780263.01 | Q169: -252783.14 | R169: 0 | S169: -183716.86 | T169: Malaysia | U169: 32167500 | V169: 128 | W169: 300000000 | X169: LARGE CAP | Y169: 0.05069384 | Z169: 68 | AA169: FBMT100 | AB169: BND | AC169: 1652821.959 | AD169: AA3 | AE169: 0 | AF169: 0
A170: YH-AUR-VCAM | B170: 2019-01-31 | C170: BND | D170: VU170364 | E170: SPG IMTN 5.490% 28.04.2034 | F170: SPG IMTN 5.490% 28.04.2034 | G170: MYR | H170: POWER | I170: 5000000 | J170: 105.665 | K170: 5000000 | L170: 5000000 | M170: 0 | N170: 5353191.1 | O170: 5353191.1 | P170: 69941.1 | Q170: 283250 | R170: 0 | S170: 0 | T170: Malaysia | U170: 5283250 | V170: 128 | W170: 4000000000 | X170: LARGE CAP | Y170: 0.0549 | Z170: 50 | AA170: FBMT100 | AB170: BND | AC170: 274500 | AD170: AA3 | AE170: 0 | AF170: 0
A171: YH-AUR-VCAM | B171: 2019-01-31 | C171: BND | D171: VV160265 | E171: LDF3 IMTN 5.950% 23.08.2034 | F171: LDF3 IMTN 5.950% 23.08.2034 | G171: MYR | H171: INDUSTRIALS | I171: 20000000 | J171: 107.727 | K171: 21842000 | L171: 21842000 | M171: 0 | N171: 22073564.38 | O171: 22073564.38 | P171: 528164.38 | Q171: -176113.49 | R171: 0 | S171: -120486.51 | T171: Malaysia | U171: 21545400 | V171: 128 | W171: 3640000000 | X171: LARGE CAP | Y171: 0.05139334 | Z171: 68 | AA171: FBMT100 | AB171: BND | AC171: 1122533.332 | AD171: AA3 | AE171: 0 | AF171: 0
A172: YH-AUR-VCAM | B172: 2019-01-31 | C172: BND | D172: VV160265 | E172: LDF3 IMTN 5.950% 23.08.2034 | F172: LDF3 IMTN 5.950% 23.08.2034 | G172: MYR | H172: INDUSTRIALS | I172: 35000000 | J172: 107.727 | K172: 37775500 | L172: 37775500 | M172: 0 | N172: 38628737.67 | O172: 38628737.67 | P172: 924287.67 | Q172: 122774.06 | R172: 0 | S172: -193824.06 | T172: Malaysia | U172: 37704450 | V172: 128 | W172: 3640000000 | X172: LARGE CAP | Y172: 0.05249973 | Z172: 68 | AA172: FBMT100 | AB172: BND | AC172: 1983203.551 | AD172: AA3 | AE172: 0 | AF172: 0
A173: YH-AUR-VCAM | B173: 2019-01-31 | C173: BND | D173: VV160265 | E173: LDF3 IMTN 5.950% 23.08.2034 | F173: LDF3 IMTN 5.950% 23.08.2034 | G173: MYR | H173: INDUSTRIALS | I173: 8000000 | J173: 107.727 | K173: 8615200 | L173: 8615200 | M173: 0 | N173: 8829425.75 | O173: 8829425.75 | P173: 211265.75 | Q173: 44535.95 | R173: 0 | S173: -41575.95 | T173: Malaysia | U173: 8618160 | V173: 128 | W173: 3640000000 | X173: LARGE CAP | Y173: 0.05268637 | Z173: 68 | AA173: FBMT100 | AB173: BND | AC173: 453903.6148 | AD173: AA3 | AE173: 0 | AF173: 0
A174: YH-AUR-VCAM | B174: 2019-01-31 | C174: BND | D174: VV160265 | E174: LDF3 IMTN 5.950% 23.08.2034 | F174: LDF3 IMTN 5.950% 23.08.2034 | G174: MYR | H174: INDUSTRIALS | I174: 5000000 | J174: 107.727 | K174: 5111500 | L174: 5111500 | M174: 0 | N174: 5518391.1 | O174: 5518391.1 | P174: 132041.1 | Q174: 284397.08 | R174: 0 | S174: -9547.08 | T174: Malaysia | U174: 5386350 | V174: 128 | W174: 3640000000 | X174: LARGE CAP | Y174: 0.05749515 | Z174: 68 | AA174: FBMT100 | AB174: BND | AC174: 293886.4592 | AD174: AA3 | AE174: 0 | AF174: 0
A175: YH-AUR-VCAM | B175: 2019-01-31 | C175: BND | D175: VW160266 | E175: LDF3 IMTN 6.040% 23.08.2035 | F175: LDF3 IMTN 6.040% 23.08.2035 | G175: MYR | H175: INDUSTRIALS | I175: 5000000 | J175: 108.337 | K175: 5409500 | L175: 5409500 | M175: 0 | N175: 5550888.36 | O175: 5550888.36 | P175: 134038.36 | Q175: 34624.46 | R175: 0 | S175: -27274.46 | T175: Malaysia | U175: 5416850 | V175: 128 | W175: 3640000000 | X175: LARGE CAP | Y175: 0.0533848 | Z175: 68 | AA175: FBMT100 | AB175: BND | AC175: 288785.0756 | AD175: AA3 | AE175: 0 | AF175: 0
A176: YH-AUR-VCAM | B176: 2019-01-31 | C176: BND | D176: VW160266 | E176: LDF3 IMTN 6.040% 23.08.2035 | F176: LDF3 IMTN 6.040% 23.08.2035 | G176: MYR | H176: INDUSTRIALS | I176: 5000000 | J176: 108.337 | K176: 5114000 | L176: 5114000 | M176: 0 | N176: 5550888.36 | O176: 5550888.36 | P176: 134038.36 | Q176: 311739.86 | R176: 0 | S176: -8889.86 | T176: Malaysia | U176: 5416850 | V176: 128 | W176: 3640000000 | X176: LARGE CAP | Y176: 0.05839783 | Z176: 68 | AA176: FBMT100 | AB176: BND | AC176: 298646.5026 | AD176: AA3 | AE176: 0 | AF176: 0
A177: YH-AUR-VCAM | B177: 2019-01-31 | C177: BND | D177: VX150256 | E177: DANAINFRA IMTN 4.910% 12.11.2035 - Tranche No 40 | F177: DANAINFRA IMTN 4.910% 12.11.2035 - Tranche No 40 | G177: MYR | H177: GOV | I177: 5000000 | J177: 102.423 | K177: 5081250 | L177: 5081250 | M177: 38338.36 | N177: 5175630.82 | O177: 5175630.82 | P177: 16142.46 | Q177: 40145.68 | R177: 0 | S177: -245.68 | T177: Malaysia | U177: 5121150 | V177: 100 | W177: 61000000000 | X177: LARGE CAP | Y177: 0.04768028 | Z177: 21 | AA177: FBMT100 | AB177: BND | AC177: 242275.4227 | AD177: GG | AE177: 0 | AF177: 0
A178: YH-AUR-VCAM | B178: 2019-01-31 | C178: BND | D178: VX160267 | E178: LDF3 IMTN 6.130% 22.08.2036 | F178: LDF3 IMTN 6.130% 22.08.2036 | G178: MYR | H178: INDUSTRIALS | I178: 5000000 | J178: 108.85 | K178: 5116000 | L178: 5116000 | M178: 0 | N178: 5578535.62 | O178: 5578535.62 | P178: 136035.62 | Q178: 334752.05 | R178: 0 | S178: -8252.05 | T178: Malaysia | U178: 5442500 | V178: 128 | W178: 3640000000000 | X178: LARGE CAP | Y178: 0.0593039 | Z178: 68 | AA178: FBMT100 | AB178: BND | AC178: 303398.7524 | AD178: AA3 | AE178: 0 | AF178: 0
A179: YH-AUR-VCAM | B179: 2019-01-31 | C179: BND | D179: VX170162 | E179: DANAINFRA IMTN 5.100% 25.05.2037 - Tranche No 65 | F179: DANAINFRA IMTN 5.100% 25.05.2037 - Tranche No 65 | G179: MYR | H179: INDUSTRIALS | I179: 15000000 | J179: 104.191 | K179: 15000000 | L179: 15000000 | M179: 0 | N179: 15769074.66 | O179: 15769074.66 | P179: 140424.66 | Q179: 628650 | R179: 0 | S179: 0 | T179: Malaysia | U179: 15628650 | V179: 100 | W179: 46000000000 | X179: LARGE CAP | Y179: 0.051 | Z179: 68 | AA179: FBMT100 | AB179: BND | AC179: 765000 | AD179: GG | AE179: 0 | AF179: 0
A180: YH-AUR-VCAM | B180: 2019-01-31 | C180: BND | D180: VY120020 | E180: PLUS BERHAD IMTN 5.270% 12.01.2033 - Series 1 (17) | F180: PLUS BERHAD IMTN 5.270% 12.01.2033 - Series 1 (17) | G180: MYR | H180: OTHERS | I180: 5000000 | J180: 105.703 | K180: 5263500 | L180: 5263500 | M180: 0 | N180: 5298144.52 | O180: 5298144.52 | P180: 12994.52 | Q180: 22398.07 | R180: 0 | S180: -748.07 | T180: Malaysia | U180: 5285150 | V180: 115 | W180: 1000000000 | X180: LARGE CAP | Y180: 0.04750162 | Z180: 0 | AA180: FBMT100 | AB180: BND | AC180: 250024.7769 | AD180: AAA | AE180: 0 | AF180: 0
A181: YH-AUR-VCAM | B181: 2019-01-31 | C181: BND | D181: VZ170265 | E181: PRASARANA SUKUK MURABAHAH 5.11% 12.09.2042 - S5 | F181: PRASARANA SUKUK MURABAHAH 5.11% 12.09.2042 - S5 | G181: MYR | H181: OTHERS | I181: 20000000 | J181: 102.928 | K181: 20056000 | L181: 20056000 | M181: 0 | N181: 20977600 | O181: 20977600 | P181: 392000 | Q181: 532228.09 | R181: 0 | S181: -2628.09 | T181: Malaysia | U181: 20585600 | V181: 100 | W181: 10000000000 | X181: LARGE CAP | Y181: 0.05090037 | Z181: 0 | AA181: FBMT100 | AB181: BND | AC181: 1020857.821 | AD181: GG | AE181: 0 | AF181: 0
A182: YH-AUR-VCAM | B182: 2019-01-31 | C182: BND | D182: VZ170266 | E182: PRASARANA SUKUK MURABAHAH 5.23% 13.09.2047 - S6 | F182: PRASARANA SUKUK MURABAHAH 5.23% 13.09.2047 - S6 | G182: MYR | H182: OTHERS | I182: 10000000 | J182: 103.645 | K182: 10030000 | L182: 10030000 | M182: 0 | N182: 10565102.74 | O182: 10565102.74 | P182: 200602.74 | Q182: 335665.34 | R182: 0 | S182: -1165.34 | T182: Malaysia | U182: 10364500 | V182: 100 | W182: 10000000000 | X182: LARGE CAP | Y182: 0.05210095 | Z182: 0 | AA182: FBMT100 | AB182: BND | AC182: 522572.5285 | AD182: GG | AE182: 0 | AF182: 0
A183: YH-AUR-VCAM | B183: 2019-01-31 | C183: CSH | D183: RDC*MYR*HLB | E183: HONG LEONG BANK BERHAD | F183: Using HLB invest in Short Term MM Conventional | G183: MYR | H183: CASH | I183: 109341000 | J183: 0 | K183: 109341000 | L183: 109341000 | M183: 0 | N183: 109499488 | O183: 109499488 | P183: 158487.97 | Q183: 0 | R183: 0 | S183: 0 | T183: Malaysia | U183: 109341000 | V183: Cash | W183: 0 | X183: SMALL CAP | Y183: 0.036 | Z183: 0 | AA183: FBMT100 | AB183: CSH | AC183: 3936276 | AD183: Cash | AE183: 0 | AF183: 0
A184: YH-AUR-VCAM | B184: 2019-01-31 | C184: CSH | D184: RDC*MYR*KAF | E184: KAF INVESTMENT BANK BERHAD | F184: Using KAF invest in Short Term MM Conventional | G184: MYR | H184: CASH | I184: 55217000 | J184: 0 | K184: 55217000 | L184: 55217000 | M184: 0 | N184: 55233804.6 | O184: 55233804.6 | P184: 16804.6 | Q184: 0 | R184: 0 | S184: 0 | T184: Malaysia | U184: 55217000 | V184: Cash | W184: 0 | X184: SMALL CAP | Y184: 0.036 | Z184: 0 | AA184: FBMT100 | AB184: CSH | AC184: 1987812 | AD184: Cash | AE184: 0 | AF184: 0
A185: YH-AUR-VCAM | B185: 2019-01-31 | C185: CSH | D185: RDC*MYR*KNGINV | E185: KENANGA INVESTMENT BANK BHD | F185: Using KNGINV invest in Short Term MM Conventional | G185: MYR | H185: CASH | I185: 107229000 | J185: 0 | K185: 107229000 | L185: 107229000 | M185: 0 | N185: 107273119.3 | O185: 107273119.3 | P185: 44119.33 | Q185: 0 | R185: 0 | S185: 0 | T185: Malaysia | U185: 107229000 | V185: Cash | W185: 0 | X185: SMALL CAP | Y185: 0.036 | Z185: 0 | AA185: FBMT100 | AB185: CSH | AC185: 3860244 | AD185: Cash | AE185: 0 | AF185: 0
A186: YH-AUR-VCAM | B186: 2019-01-31 | C186: CSH | D186: RDC*MYR*PIVB | E186: PUBLIC INVESTMENT BANK BERHAD | F186: Using PIVB invest in Short Term MM Conventional | G186: MYR | H186: CASH | I186: 33477000 | J186: 0 | K186: 33477000 | L186: 33477000 | M186: 0 | N186: 33509795.51 | O186: 33509795.51 | P186: 32795.51 | Q186: 0 | R186: 0 | S186: 0 | T186: Malaysia | U186: 33477000 | V186: Cash | W186: 0 | X186: SMALL CAP | Y186: 0.036 | Z186: 0 | AA186: FBMT100 | AB186: CSH | AC186: 1205172 | AD186: Cash | AE186: 0 | AF186: 0
A187: YH-AUR-VCAM | B187: 2019-01-31 | C187: EQT | D187: 138 | E187: MYEG | F187: My E.G. Services Berhad | G187: MYR | H187: INDUSTRIALS | I187: 3000000 | J187: 1 | K187: 7964442.15 | L187: 7964442.15 | M187: 0 | N187: 3000000 | O187: 3000000 | P187: 0 | Q187: -4964442.15 | R187: 0 | S187: 0 | T187: Malaysia | U187: 3000000 | V187: Score 2 | W187: 3606305993 | X187: LARGE CAP | Y187: 0.01 | Z187: 68 | AA187: FBMT100 | AB187: EQT | AC187: 30000 | AE187: 0.02034428377 | AF187: 3000000
A188: YH-AUR-VCAM | B188: 2019-01-31 | C188: EQT | D188: 166 | E188: INARI | F188: Inari Amertron Bhd | G188: MYR | H188: TECHNOLOGY | I188: 4900000 | J188: 1.5 | K188: 11186751.28 | L188: 11186751.28 | M188: 0 | N188: 7350000 | O188: 7350000 | P188: 0 | Q188: -3836751.28 | R188: 0 | S188: 0 | T188: Malaysia | U188: 7350000 | V188: Score 3 | W188: 3166702453 | X188: LARGE CAP | Y188: 0.1 | Z188: 2 | AA188: FBMT100 | AB188: EQT | AC188: 490000 | AE188: 0.002746228671 | AF188: 7350000
A189: YH-AUR-VCAM | B189: 2019-01-31 | C189: EQT | D189: 0821EA | E189: MYETFDJ | F189: MYETF DOW JONES ISLAMIC MARKET MALAYSIA | G189: MYR | H189: FINANCIALS | I189: 14863700 | J189: 1.105 | K189: 16944618 | L189: 16944618 | M189: 0 | N189: 16424388.5 | O189: 16424388.5 | P189: 0 | Q189: -520229.5 | R189: 0 | S189: 0 | T189: Malaysia | U189: 16424388.5 | V189: Score | W189: 275900000 | X189: SMALL CAP | Y189: 0 | Z189: 3 | AA189: FBMT100 | AB189: EQT | AC189: 0 | AE189: 0.177829793 | AF189: 16424388.5
A190: YH-AUR-VCAM | B190: 2019-01-31 | C190: EQT | D190: 0824EA | E190: MYETFID | F190: MyETF MSCI Malaysia Islamic Dividend | G190: MYR | H190: FINANCIALS | I190: 1697400 | J190: 1.155 | K190: 1799244 | L190: 1799244 | M190: 0 | N190: 1960497 | O190: 1960497 | P190: 0 | Q190: 161253 | R190: 0 | S190: 0 | T190: Malaysia | U190: 1960497 | V190: Score | W190: 42800000 | X190: SMALL CAP | Y190: 0 | Z190: 3 | AA190: FBMT100 | AB190: EQT | AC190: 0 | AE190: 0.177829793 | AF190: 1960497
A191: YH-AUR-VCAM | B191: 2019-01-31 | C191: EQT | D191: 1015 | E191: AMBANK | F191: AMMB Holdings Berhad | G191: MYR | H191: FINANCIALS | I191: 14780700 | J191: 4.5 | K191: 65182887 | L191: 65182887 | M191: 0 | N191: 66513150 | O191: 66513150 | P191: 0 | Q191: 1330263 | R191: 0 | S191: 0 | T191: Malaysia | U191: 66513150 | V191: Score 3 | W191: 3014184844 | X191: LARGE CAP | Y191: 0.17 | Z191: 3 | AA191: FBMT100 | AB191: EQT | AC191: 2512719 | AE191: 0.177829793 | AF191: 66513150
A192: YH-AUR-VCAM | B192: 2019-01-31 | C192: EQT | D192: 1066 | E192: RHBBANK | F192: RHB BANK BERHAD | G192: MYR | H192: FINANCIALS | I192: 5635100 | J192: 5.43 | K192: 28312565.81 | L192: 28312565.81 | M192: 0 | N192: 30598593 | O192: 30598593 | P192: 0 | Q192: 2286027.19 | R192: 0 | S192: 0 | T192: Malaysia | U192: 30598593 | V192: Score 4 | W192: 4010045621 | X192: LARGE CAP | Y192: 0.15 | Z192: 3 | AA192: FBMT100 | AB192: EQT | AC192: 845265 | AE192: 0.177829793 | AF192: 30598593
A193: YH-AUR-VCAM | B193: 2019-01-31 | C193: EQT | D193: 1082 | E193: HLFG | F193: Hong Leong Financial Group Berhad | G193: MYR | H193: FINANCIALS | I193: 500000 | J193: 19.7 | K193: 9210400 | L193: 9210400 | M193: 0 | N193: 9850000 | O193: 9850000 | P193: 0 | Q193: 639600 | R193: 0 | S193: 0 | T193: Malaysia | U193: 9850000 | V193: Score 2 | W193: 1147516890 | X193: LARGE CAP | Y193: 0.38 | Z193: 3 | AA193: FBMT100 | AB193: EQT | AC193: 190000 | AE193: 0.177829793 | AF193: 9850000
A194: YH-AUR-VCAM | B194: 2019-01-31 | C194: EQT | D194: 1155 | E194: MAYBANK | F194: Malayan Banking Berhad | G194: MYR | H194: FINANCIALS | I194: 16282246 | J194: 9.54 | K194: 162241716.3 | L194: 162241716.3 | M194: 0 | N194: 155332626.8 | O194: 155332626.8 | P194: 0 | Q194: -6909089.47 | R194: 0 | S194: 0 | T194: Malaysia | U194: 155332626.8 | V194: Score 4 | W194: 11049682979 | X194: LARGE CAP | Y194: 0.47 | Z194: 3 | AA194: FBMT100 | AB194: EQT | AC194: 7652655.62 | AE194: 0.177829793 | AF194: 155332626.8
A195: YH-AUR-VCAM | B195: 2019-01-31 | C195: EQT | D195: 1171 | E195: MBSB | F195: Malaysia Building Society Bhd | G195: MYR | H195: FINANCIALS | I195: 46111500 | J195: 0.995 | K195: 47911288.92 | L195: 47911288.92 | M195: 0 | N195: 45880942.5 | O195: 45880942.5 | P195: 0 | Q195: -2030346.42 | R195: 0 | S195: 0 | T195: Malaysia | U195: 45880942.5 | V195: Score 4 | W195: 6389101298 | X195: LARGE CAP | Y195: 0.02 | Z195: 3 | AA195: FBMT100 | AB195: EQT | AC195: 922230 | AE195: 0.177829793 | AF195: 45880942.5
A196: YH-AUR-VCAM | B196: 2019-01-31 | C196: EQT | D196: 1295 | E196: PBBANK | F196: Public Bank Berhad | G196: MYR | H196: FINANCIALS | I196: 530000 | J196: 24.78 | K196: 11198002.74 | L196: 11198002.74 | M196: 0 | N196: 13133400 | O196: 13133400 | P196: 0 | Q196: 1935397.26 | R196: 0 | S196: 0 | T196: Malaysia | U196: 13133400 | V196: Score 3 | W196: 3882138347 | X196: LARGE CAP | Y196: 0.59 | Z196: 3 | AA196: FBMT100 | AB196: EQT | AC196: 312700 | AE196: 0.177829793 | AF196: 13133400
A197: YH-AUR-VCAM | B197: 2019-01-31 | C197: EQT | D197: 1818 | E197: BURSA | F197: Bursa Malaysia Berhad | G197: MYR | H197: FINANCIALS | I197: 1002400 | J197: 7.3 | K197: 7356453.68 | L197: 7356453.68 | M197: 0 | N197: 7317520 | O197: 7317520 | P197: 0 | Q197: -38933.68 | R197: 0 | S197: 0 | T197: Malaysia | U197: 7317520 | V197: Score 5 | W197: 807474671 | X197: LARGE CAP | Y197: 0.34 | Z197: 3 | AA197: FBMT100 | AB197: EQT | AC197: 340816 | AE197: 0.177829793 | AF197: 7317520
A198: YH-AUR-VCAM | B198: 2019-01-31 | C198: EQT | D198: 1961 | E198: IOICORP | F198: IOI Corporation Berhad | G198: MYR | H198: CONSUMER GOODS | I198: 14920000 | J198: 4.65 | K198: 69433560.22 | L198: 69433560.22 | M198: 0 | N198: 69378000 | O198: 69378000 | P198: 0 | Q198: -55560.22 | R198: 0 | S198: 0 | T198: Malaysia | U198: 69378000 | V198: Score 4 | W198: 6284453995 | X198: LARGE CAP | Y198: 0.1 | Z198: 39 | AA198: FBMT100 | AB198: EQT | AC198: 1492000 | AE198: -0.03474631942 | AF198: 69378000
A199: YH-AUR-VCAM | B199: 2019-01-31 | C199: EQT | D199: 2593 | E199: UMCCA | F199: United Malacca Bhd | G199: MYR | H199: CONSUMER GOODS | I199: 5323600 | J199: 5.46 | K199: 33738259 | L199: 33738259 | M199: 0 | N199: 29066856 | O199: 29066856 | P199: 0 | Q199: -4671403 | R199: 0 | S199: 0 | T199: Malaysia | U199: 29066856 | V199: Score | W199: 209691201 | X199: MID CAP | Y199: 0.16 | Z199: 39 | AA199: FBMT100 | AB199: EQT | AC199: 851776 | AE199: -0.03474631942 | AF199: 29066856
A200: YH-AUR-VCAM | B200: 2019-01-31 | C200: EQT | D200: 3336 | E200: IJM | F200: IJM Corporation Bhd | G200: MYR | H200: INDUSTRIALS | I200: 18546600 | J200: 1.83 | K200: 65724291.29 | L200: 65724291.29 | M200: 0 | N200: 33940278 | O200: 33940278 | P200: 0 | Q200: -31784013.29 | R200: 0 | S200: 0 | T200: Malaysia | U200: 33940278 | V200: Score 3 | W200: 3635687820 | X200: LARGE CAP | Y200: 0.11 | Z200: 68 | AA200: FBMT100 | AB200: EQT | AC200: 2040126 | AE200: 0.02034428377 | AF200: 33940278
... 52 more rows

Sheet IndexBasket (hidden)
A2: ValueDate | B2: qIndexBenchmark | C2: qStockCode | D2: Weight | E2: qKLSESector | F2: SectorName
A3: 2018-12-31 | B3: FBMT100 | C3: 8877 | D3: 0.0006 | E3: 68 | F3: INDUSTRIALS
A4: 2018-12-31 | B4: FBMT100 | C4: 8869 | D4: 0.0133 | E4: 40 | F4: BASIC MATERIALS
A5: 2018-12-31 | B5: FBMT100 | C5: 8664 | D5: 0.0044 | E5: 3 | F5: FINANCIALS
A6: 2018-12-31 | B6: FBMT100 | C6: 8206 | D6: 0.0013 | E6: 3 | F6: FINANCIALS
A7: 2018-12-31 | B7: FBMT100 | C7: 7293 | D7: 0.0029 | E7: 68 | F7: INDUSTRIALS
A8: 2018-12-31 | B8: FBMT100 | C8: 7277 | D8: 0.0212 | E8: 17 | F8: OIL & GAS
A9: 2018-12-31 | B9: FBMT100 | C9: 7161 | D9: 0.0005 | E9: 68 | F9: INDUSTRIALS
A10: 2018-12-31 | B10: FBMT100 | C10: 7155 | D10: 0.0008 | E10: 40 | F10: BASIC MATERIALS
A11: 2018-12-31 | B11: FBMT100 | C11: 7153 | D11: 0.0041 | E11: 30 | F11: HEALTHCARE
A12: 2018-12-31 | B12: FBMT100 | C12: 7113 | D12: 0.0141 | E12: 30 | F12: HEALTHCARE
A13: 2018-12-31 | B13: FBMT100 | C13: 7106 | D13: 0.0021 | E13: 30 | F13: HEALTHCARE
A14: 2018-12-31 | B14: FBMT100 | C14: 7084 | D14: 0.0073 | E14: 39 | F14: CONSUMER GOODS
A15: 2018-12-31 | B15: FBMT100 | C15: 7052 | D15: 0.0019 | E15: 39 | F15: CONSUMER GOODS
A16: 2018-12-31 | B16: FBMT100 | C16: 6963 | D16: 0.0013 | E16: 68 | F16: INDUSTRIALS
A17: 2018-12-31 | B17: FBMT100 | C17: 6947 | D17: 0.0245 | E17: 49 | F17: TELCO
A18: 2018-12-31 | B18: FBMT100 | C18: 6888 | D18: 0.0267 | E18: 49 | F18: TELCO
A19: 2018-12-31 | B19: FBMT100 | C19: 6742 | D19: 0.0037 | E19: 20 | F19: UTILITIES
A20: 2018-12-31 | B20: FBMT100 | C20: 6599 | D20: 0.0014 | E20: 7 | F20: CONSUMER SERVICES
A21: 2018-12-31 | B21: FBMT100 | C21: 6399 | D21: 0.003 | E21: 7 | F21: CONSUMER SERVICES
A22: 2018-12-31 | B22: FBMT100 | C22: 6033 | D22: 0.0221 | E22: 20 | F22: UTILITIES
A23: 2018-12-31 | B23: FBMT100 | C23: 6012 | D23: 0.0218 | E23: 49 | F23: TELCO
A24: 2018-12-31 | B24: FBMT100 | C24: 5878 | D24: 0.0036 | E24: 30 | F24: HEALTHCARE
A25: 2018-12-31 | B25: FBMT100 | C25: 5819 | D25: 0.0202 | E25: 3 | F25: FINANCIALS
A26: 2018-12-31 | B26: FBMT100 | C26: 5681 | D26: 0.0115 | E26: 7 | F26: CONSUMER SERVICES
A27: 2018-12-31 | B27: FBMT100 | C27: 5398 | D27: 0.0076 | E27: 68 | F27: INDUSTRIALS
A28: 2018-12-31 | B28: FBMT100 | C28: 5347 | D28: 0.0799 | E28: 20 | F28: UTILITIES
A29: 2018-12-31 | B29: FBMT100 | C29: 5288 | D29: 0.0052 | E29: 3 | F29: FINANCIALS
A30: 2018-12-31 | B30: FBMT100 | C30: 5285 | D30: 0.025 | E30: 39 | F30: CONSUMER GOODS
A31: 2018-12-31 | B31: FBMT100 | C31: 5284 | D31: 0.0039 | E31: 40 | F31: BASIC MATERIALS
A32: 2018-12-31 | B32: FBMT100 | C32: 5279 | D32: 0.0029 | E32: 17 | F32: OIL & GAS
A33: 2018-12-31 | B33: FBMT100 | C33: 5264 | D33: 0.003 | E33: 20 | F33: UTILITIES
A34: 2018-12-31 | B34: FBMT100 | C34: 5263 | D34: 0.0009 | E34: 68 | F34: INDUSTRIALS
A35: 2018-12-31 | B35: FBMT100 | C35: 5254 | D35: 0.0009 | E35: 39 | F35: CONSUMER GOODS
A36: 2018-12-31 | B36: FBMT100 | C36: 5249 | D36: 0.0043 | E36: 3 | F36: FINANCIALS
A37: 2018-12-31 | B37: FBMT100 | C37: 5248 | D37: 0.0021 | E37: 7 | F37: CONSUMER SERVICES
A38: 2018-12-31 | B38: FBMT100 | C38: 5246 | D38: 0.0057 | E38: 68 | F38: INDUSTRIALS
A39: 2018-12-31 | B39: FBMT100 | C39: 5243 | D39: 0.001 | E39: 17 | F39: OIL & GAS
A40: 2018-12-31 | B40: FBMT100 | C40: 5236 | D40: 0.0007 | E40: 3 | F40: FINANCIALS
A41: 2018-12-31 | B41: FBMT100 | C41: 5227 | D41: 0.0043 | E41: 3 | F41: FINANCIALS
A42: 2018-12-31 | B42: FBMT100 | C42: 5225 | D42: 0.0224 | E42: 30 | F42: HEALTHCARE
A43: 2018-12-31 | B43: FBMT100 | C43: 5222 | D43: 0.002 | E43: 39 | F43: CONSUMER GOODS
A44: 2018-12-31 | B44: FBMT100 | C44: 5218 | D44: 0.0021 | E44: 17 | F44: OIL & GAS
A45: 2018-12-31 | B45: FBMT100 | C45: 5212 | D45: 0.002 | E45: 3 | F45: FINANCIALS
A46: 2018-12-31 | B46: FBMT100 | C46: 5211 | D46: 0.0031 | E46: 3 | F46: FINANCIALS
A47: 2018-12-31 | B47: FBMT100 | C47: 5210 | D47: 0.0008 | E47: 17 | F47: OIL & GAS
A48: 2018-12-31 | B48: FBMT100 | C48: 5200 | D48: 0.0019 | E48: 3 | F48: FINANCIALS
A49: 2018-12-31 | B49: FBMT100 | C49: 5199 | D49: 0.0014 | E49: 17 | F49: OIL & GAS
A50: 2018-12-31 | B50: FBMT100 | C50: 5183 | D50: 0.0391 | E50: 40 | F50: BASIC MATERIALS
A51: 2018-12-31 | B51: FBMT100 | C51: 5176 | D51: 0.0043 | E51: 3 | F51: FINANCIALS
A52: 2018-12-31 | B52: FBMT100 | C52: 5168 | D52: 0.0133 | E52: 30 | F52: HEALTHCARE
A53: 2018-12-31 | B53: FBMT100 | C53: 5148 | D53: 0.0016 | E53: 3 | F53: FINANCIALS
A54: 2018-12-31 | B54: FBMT100 | C54: 5139 | D54: 0.0021 | E54: 3 | F54: FINANCIALS
A55: 2018-12-31 | B55: FBMT100 | C55: 5109 | D55: 0.001 | E55: 3 | F55: FINANCIALS
A56: 2018-12-31 | B56: FBMT100 | C56: 5099 | D56: 0.0101 | E56: 7 | F56: CONSUMER SERVICES
A57: 2018-12-31 | B57: FBMT100 | C57: 5031 | D57: 0.0037 | E57: 49 | F57: TELCO
A58: 2018-12-31 | B58: FBMT100 | C58: 5014 | D58: 0.0111 | E58: 68 | F58: INDUSTRIALS
A59: 2018-12-31 | B59: FBMT100 | C59: 5005 | D59: 0.0024 | E59: 2 | F59: TECHNOLOGY
A60: 2018-12-31 | B60: FBMT100 | C60: 4863 | D60: 0.0078 | E60: 49 | F60: TELCO
A61: 2018-12-31 | B61: FBMT100 | C61: 4731 | D61: 0.0025 | E61: 68 | F61: INDUSTRIALS
A62: 2018-12-31 | B62: FBMT100 | C62: 4715 | D62: 0.0132 | E62: 7 | F62: CONSUMER SERVICES
A63: 2018-12-31 | B63: FBMT100 | C63: 4707 | D63: 0.0134 | E63: 39 | F63: CONSUMER GOODS
A64: 2018-12-31 | B64: FBMT100 | C64: 4677 | D64: 0.0069 | E64: 20 | F64: UTILITIES
A65: 2018-12-31 | B65: FBMT100 | C65: 4634 | D65: 0.0009 | E65: 68 | F65: INDUSTRIALS
A66: 2018-12-31 | B66: FBMT100 | C66: 4588 | D66: 0.0053 | E66: 39 | F66: CONSUMER GOODS
A67: 2018-12-31 | B67: FBMT100 | C67: 4324 | D67: 0.0005 | E67: 17 | F67: OIL & GAS
A68: 2018-12-31 | B68: FBMT100 | C68: 4197 | D68: 0.0126 | E68: 68 | F68: INDUSTRIALS
A69: 2018-12-31 | B69: FBMT100 | C69: 4162 | D69: 0.0076 | E69: 39 | F69: CONSUMER GOODS
A70: 2018-12-31 | B70: FBMT100 | C70: 4065 | D70: 0.0175 | E70: 39 | F70: CONSUMER GOODS
A71: 2018-12-31 | B71: FBMT100 | C71: 3867 | D71: 0.0013 | E71: 2 | F71: TECHNOLOGY
A72: 2018-12-31 | B72: FBMT100 | C72: 3859 | D72: 0.0023 | E72: 7 | F72: CONSUMER SERVICES
A73: 2018-12-31 | B73: FBMT100 | C73: 3816 | D73: 0.0143 | E73: 68 | F73: INDUSTRIALS
A74: 2018-12-31 | B74: FBMT100 | C74: 3794 | D74: 0.0011 | E74: 68 | F74: INDUSTRIALS
A75: 2018-12-31 | B75: FBMT100 | C75: 3689 | D75: 0.0051 | E75: 39 | F75: CONSUMER GOODS
A76: 2018-12-31 | B76: FBMT100 | C76: 3395 | D76: 0.0013 | E76: 7 | F76: CONSUMER SERVICES
A77: 2018-12-31 | B77: FBMT100 | C77: 3336 | D77: 0.0077 | E77: 68 | F77: INDUSTRIALS
A78: 2018-12-31 | B78: FBMT100 | C78: 3182 | D78: 0.0207 | E78: 7 | F78: CONSUMER SERVICES
A79: 2018-12-31 | B79: FBMT100 | C79: 3042 | D79: 0.0007 | E79: 17 | F79: OIL & GAS
A80: 2018-12-31 | B80: FBMT100 | C80: 3034 | D80: 0.0095 | E80: 40 | F80: BASIC MATERIALS
A81: 2018-12-31 | B81: FBMT100 | C81: 2852 | D81: 0.0022 | E81: 68 | F81: INDUSTRIALS
A82: 2018-12-31 | B82: FBMT100 | C82: 2836 | D82: 0.0042 | E82: 39 | F82: CONSUMER GOODS
A83: 2018-12-31 | B83: FBMT100 | C83: 2488 | D83: 0.0066 | E83: 3 | F83: FINANCIALS
A84: 2018-12-31 | B84: FBMT100 | C84: 2445 | D84: 0.0171 | E84: 39 | F84: CONSUMER GOODS
A85: 2018-12-31 | B85: FBMT100 | C85: 2291 | D85: 0.0053 | E85: 39 | F85: CONSUMER GOODS
A86: 2018-12-31 | B86: FBMT100 | C86: 1961 | D86: 0.021 | E86: 39 | F86: CONSUMER GOODS
A87: 2018-12-31 | B87: FBMT100 | C87: 1818 | D87: 0.0053 | E87: 3 | F87: FINANCIALS
A88: 2018-12-31 | B88: FBMT100 | C88: 1651 | D88: 0.002 | E88: 68 | F88: INDUSTRIALS
A89: 2018-12-31 | B89: FBMT100 | C89: 1619 | D89: 0.0022 | E89: 68 | F89: INDUSTRIALS
A90: 2018-12-31 | B90: FBMT100 | C90: 1562 | D90: 0.0026 | E90: 7 | F90: CONSUMER SERVICES
A91: 2018-12-31 | B91: FBMT100 | C91: 1295 | D91: 0.1134 | E91: 3 | F91: FINANCIALS
A92: 2018-12-31 | B92: FBMT100 | C92: 1171 | D92: 0.0028 | E92: 3 | F92: FINANCIALS
A93: 2018-12-31 | B93: FBMT100 | C93: 1155 | D93: 0.0825 | E93: 3 | F93: FINANCIALS
A94: 2018-12-31 | B94: FBMT100 | C94: 1082 | D94: 0.0063 | E94: 3 | F94: FINANCIALS
A95: 2018-12-31 | B95: FBMT100 | C95: 1066 | D95: 0.0088 | E95: 3 | F95: FINANCIALS
A96: 2018-12-31 | B96: FBMT100 | C96: 1023 | D96: 0.0572 | E96: 3 | F96: FINANCIALS
A97: 2018-12-31 | B97: FBMT100 | C97: 1015 | D97: 0.0123 | E97: 3 | F97: FINANCIALS

Sheet Pvt_TimeBucket (hidden)
A1: qProductType | B1: BND
A3: Count of qStockCode | B3: Column Labels
A4: Row Labels | B4: KWAPFI
A5: 10-12 Yrs | B5: 0.1111111111
A6: 12-15 Yrs | B6: 0.1111111111
A7: 1-4 Yrs | B7: 0.02777777778
A8: 15-20 Yrs | B8: 0.3055555556
A9: 4-6 Yrs | B9: 0.1111111111
A10: 6-8 Yrs | B10: 0.05555555556
A11: 8-10 Yrs | B11: 0.1666666667
A12: Above 20 Yrs | B12: 0.1111111111
A13: Grand Total | B13: 1

Sheet InHoldingFI (hidden)
Q1: =IFERROR(IF(D1="BND",G1,0)/SUMIFS(G:G,A:A,A1,D:D,D1),0) -> 0 | R1: =IFERROR(MDURATION(B1,J1,P1,M1,O1),0) -> 0 | S1: =M1*Q1 -> 0 | T1: =R1*Q1 -> 0 | U1: =N1*Q1 -> 0 | AA1: =SUMIFS(G:G,A:A,"KWAPFI",D:D,"BND") -> 433072132.6
A2: qFundCode | B2: HistoryDate | C2: qStockCode | D2: qProductType | E2: StockName | F2: Description | G2: MarketValueFC | H2: qBndType | I2: BondTypeDesc | J2: MaturityDate | K2: DiffYear | L2: category | M2: ValYTM | N2: qRank | O2: Frequency | P2: Coupon | Q2: 0 | R2: 0 | T2: 0
A3: KWAPFI | B3: 2019-01-31 | C3: VH180121 | D3: BND | E3: ASIANFIN IMTN 4.700% 10.12.2021 | F3: ASIANFIN IMTN 4.700% 10.12.2021 | G3: 5055673.29 | H3: 5 | I3: Corporate Bond | J3: 2021-12-10 | K3: 2 | L3: 1-4 Yrs | M3: 0.04535 | N3: 122 | O3: 2 | P3: 0.047 | Q3: 0.01167397509 | R3: 2.632082535 | S3: 0.0005294147705 | T3: 0.03072686595 | U3: 1.424224961
A4: KWAPFI | B4: 2019-01-31 | C4: VJ180117 | D4: BND | E4: ASIANFIN IMTN 4.900% 08.12.2023 | F4: ASIANFIN IMTN 4.900% 08.12.2023 | G4: 5083775.34 | H4: 5 | I4: Corporate Bond | J4: 2023-12-08 | K4: 4 | L4: 4-6 Yrs | M4: 0.04674 | N4: 122 | O4: 2 | P4: 0.049 | Q4: 0.01173886509 | R4: 4.251298598 | S4: 0.0005486745544 | T4: 0.04990542071 | U4: 1.432141541
A5: KWAPFI | B5: 2019-01-31 | C5: VS150073 | D5: BND | E5: AMAN IMTN 4.700% 08.05.2030 | F5: AMAN IMTN 4.700% 08.05.2030 - Tranche No 42 | G5: 5105826.03 | H5: 5 | I5: Corporate Bond | J5: 2030-05-08 | K5: 11 | L5: 10-12 Yrs | M5: 0.04582 | N5: 115 | O5: 2 | P5: 0.047 | Q5: 0.01178978199 | R5: 8.600745837 | S5: 0.0005402078108 | T5: 0.1014009184 | U5: 1.355824929
A6: KWAPFI | B6: 2019-01-31 | C6: UN150040 | D6: BND | E6: RHBBANK MTN 3653D 15/0040 4.75% 08.05.2025 | F6: RHBBANK MTN 3653D 15/0040 4.75% 08.05.2025 | G6: 15250824.66 | H6: 5 | I6: Corporate Bond | J6: 2025-05-08 | K6: 6 | L6: 6-8 Yrs | M6: 0.04278 | N6: 128 | O6: 2 | P6: 0.0475 | Q6: 0.03521543759 | R6: 5.336306123 | S6: 0.00150651642 | T6: 0.1879203552 | U6: 4.507576012
A7: KWAPFI | B7: 2019-01-31 | C7: PP110035 | D7: BND | E7: BESRAYA 4.960% 28.07.2023 | F7: BESRAYA 4.960% 28.07.2023 | G7: 10070750.55 | H7: 5 | I7: Corporate Bond | J7: 2023-07-28 | K7: 4 | L7: 4-6 Yrs | M7: 0.04796 | N7: 128 | O7: 2 | P7: 0.0496 | Q7: 0.02325421054 | R7: 3.985838518 | S7: 0.001115271937 | T7: 0.09268752805 | U7: 2.976538949
A8: KWAPFI | B8: 2019-01-31 | C8: VO140417 | D8: BND | E8: K-PROHAWK IMTN 5.200% 22.12.2025 | F8: K-PROHAWK IMTN 5.200% 22.12.2025 | G8: 5217330.82 | H8: 5 | I8: Corporate Bond | J8: 2025-12-22 | K8: 6 | L8: 6-8 Yrs | M8: 0.04551 | N8: 125 | O8: 2 | P8: 0.052 | Q8: 0.01204725593 | R8: 5.740592852 | S8: 0.0005482706176 | T8: 0.0691583913 | U8: 1.505906992
A9: KWAPFI | B9: 2019-01-31 | C9: VR160244 | D9: BND | E9: SARAWAKHIDRO IMTN 4.61% 09.08.2030 | F9: SARAWAKHIDRO IMTN 4.61% 09.08.2030 | G9: 15363057.53 | H9: 5 | I9: Corporate Bond | J9: 2030-08-09 | K9: 11 | L9: 10-12 Yrs | M9: 0.04582 | N9: 115 | O9: 2 | P9: 0.0461 | Q9: 0.03547459273 | R9: 8.67628152 | S9: 0.001625445839 | T9: 0.3077875534 | U9: 4.079578164
A10: KWAPFI | B10: 2019-01-31 | C10: VS160243 | D10: BND | E10: SARAWAKHIDRO IMTN 4.67% 11.08.2031 | F10: SARAWAKHIDRO IMTN 4.67% 11.08.2031 | G10: 10270865.75 | H10: 5 | I10: Corporate Bond | J10: 2031-08-11 | K10: 12 | L10: 12-15 Yrs | M10: 0.04616 | N10: 115 | O10: 2 | P10: 0.0467 | Q10: 0.02371629337 | R10: 9.213096862 | S10: 0.001094744102 | T10: 0.2185005081 | U10: 2.727373738
A11: KWAPFI | B11: 2019-01-31 | C11: VP150349 | D11: BND | E11: SAMALAJU IMTN 5.45% 28.12.2027 - Issue No.5 | F11: SAMALAJU IMTN 5.45% 28.12.2027 - Issue No.5 | G11: 5290030.14 | H11: 5 | I11: Corporate Bond | J11: 2027-12-28 | K11: 8 | L11: 8-10 Yrs | M11: 0.04716 | N11: 122 | O11: 2 | P11: 0.0545 | Q11: 0.01221512478 | R11: 7.027426108 | S11: 0.0005760652847 | T11: 0.0858408868 | U11: 1.490245223
A12: KWAPFI | B12: 2019-01-31 | C12: VY160268 | D12: BND | E12: LDF3 IMTN 6.230% 21.08.2037 | F12: LDF3 IMTN 6.230% 21.08.2037 | G12: 5607504.79 | H12: 5 | I12: Corporate Bond | J12: 2037-08-21 | K12: 18 | L12: 15-20 Yrs | M12: 0.05421 | N12: 128 | O12: 2 | P12: 0.0623 | Q12: 0.01294820047 | R12: 11.00561581 | S12: 0.0007019219473 | T12: 0.1425029197 | U12: 1.65736966
A13: KWAPFI | B13: 2019-01-31 | C13: VZ160270 | D13: BND | E13: LDF3 IMTN 6.430% 23.08.2039 | F13: LDF3 IMTN 6.430% 23.08.2039 | G13: 5671993.15 | H13: 5 | I13: Corporate Bond | J13: 2039-08-23 | K13: 20 | L13: Above 20 Yrs | M13: 0.05559 | N13: 128 | O13: 2 | P13: 0.0643 | Q13: 0.01309710952 | R13: 11.51039534 | S13: 0.000728068318 | T13: 0.1507529084 | U13: 1.676430018
A14: KWAPFI | B14: 2019-01-31 | C14: MZ160002 | D14: BND | E14: MGS 2/2016 4.736% 15.3.2046 | F14: MGS 2/2016 4.736% 15.3.2046 | G14: 20189303.87 | H14: 7 | I14: Malaysia Government Securities | J14: 2046-03-15 | K14: 27 | L14: Above 20 Yrs | M14: 0.04794 | N14: 10 | O14: 2 | P14: 0.04736 | Q14: 0.04661880169 | R14: 14.86020139 | S14: 0.002234905353 | T14: 0.6927647818 | U14: 0.4661880169
A15: KWAPFI | B15: 2019-01-31 | C15: VS130118 | D15: BND | E15: WESTPORTS IMTN 4.580% 31.03.2028 | F15: WESTPORTS IMTN 4.580% 31.03.2028 | G15: 5051631.87 | H15: 5 | I15: Corporate Bond | J15: 2028-03-31 | K15: 9 | L15: 8-10 Yrs | M15: 0.04649 | N15: 122 | O15: 2 | P15: 0.0458 | Q15: 0.01166464311 | R15: 7.299982154 | S15: 0.0005422892584 | T15: 0.08515168656 | U15: 1.42308646
A16: KWAPFI | B16: 2019-01-31 | C16: VV130177 | D16: BND | E16: K-PROHAWK IMTN 5.240% 27.12.2030 | F16: K-PROHAWK IMTN 5.240% 27.12.2030 | G16: 5229823.29 | H16: 5 | I16: Corporate Bond | J16: 2030-12-27 | K16: 11 | L16: 10-12 Yrs | M16: 0.04784 | N16: 125 | O16: 2 | P16: 0.0524 | Q16: 0.0120761021 | R16: 8.819315152 | S16: 0.0005777207244 | T16: 0.1065029502 | U16: 1.509512762
A17: KWAPFI | B17: 2019-01-31 | C17: VX160267 | D17: BND | E17: LDF3 IMTN 6.130% 22.08.2036 | F17: LDF3 IMTN 6.130% 22.08.2036 | G17: 5578535.62 | H17: 5 | I17: Corporate Bond | J17: 2036-08-22 | K17: 17 | L17: 15-20 Yrs | M17: 0.05346 | N17: 128 | O17: 2 | P17: 0.0613 | Q17: 0.01288130822 | R17: 10.72302212 | S17: 0.0006886347372 | T17: 0.1381265529 | U17: 1.648807452
A18: KWAPFI | B18: 2019-01-31 | C18: VN140164 | D18: BND | E18: BGSM MGMT IMTN 5.450% 28.06.2024 - Issue No 10 | F18: BGSM MGMT IMTN 5.450% 28.06.2024 - Issue No 10 | G18: 10493160.27 | H18: 5 | I18: Corporate Bond | J18: 2024-06-28 | K18: 5 | L18: 4-6 Yrs | M18: 0.04519 | N18: 128 | O18: 2 | P18: 0.0545 | Q18: 0.02422959013 | R18: 4.646510136 | S18: 0.001094935178 | T18: 0.1125830361 | U18: 3.101387536
A19: KWAPFI | B19: 2019-01-31 | C19: VN130387 | D19: BND | E19: BGSM MGMT IMTN 5.600% 27.12.2023 - Issue No 9 | F19: BGSM MGMT IMTN 5.600% 27.12.2023 - Issue No 9 | G19: 5270449.32 | H19: 5 | I19: Corporate Bond | J19: 2023-12-28 | K19: 4 | L19: 4-6 Yrs | M19: 0.04479 | N19: 128 | O19: 2 | P19: 0.056 | Q19: 0.01216991102 | R19: 4.25894962 | S19: 0.0005450903146 | T19: 0.05183103792 | U19: 1.557748611
A20: KWAPFI | B20: 2019-01-31 | C20: MZ160002 | D20: BND | E20: MGS 2/2016 4.736% 15.3.2046 | F20: MGS 2/2016 4.736% 15.3.2046 | G20: 10094651.93 | H20: 7 | I20: Malaysia Government Securities | J20: 2046-03-15 | K20: 27 | L20: Above 20 Yrs | M20: 0.04794 | N20: 10 | O20: 2 | P20: 0.04736 | Q20: 0.02330940083 | R20: 14.86020139 | S20: 0.001117452676 | T20: 0.3463823907 | U20: 0.2330940083
A21: KWAPFI | B21: 2019-01-31 | C21: VX160267 | D21: BND | E21: LDF3 IMTN 6.130% 22.08.2036 | F21: LDF3 IMTN 6.130% 22.08.2036 | G21: 5578535.62 | H21: 5 | I21: Corporate Bond | J21: 2036-08-22 | K21: 17 | L21: 15-20 Yrs | M21: 0.05346 | N21: 128 | O21: 2 | P21: 0.0613 | Q21: 0.01288130822 | R21: 10.72302212 | S21: 0.0006886347372 | T21: 0.1381265529 | U21: 1.648807452
A22: KWAPFI | B22: 2019-01-31 | C22: VY160268 | D22: BND | E22: LDF3 IMTN 6.230% 21.08.2037 | F22: LDF3 IMTN 6.230% 21.08.2037 | G22: 5607504.79 | H22: 5 | I22: Corporate Bond | J22: 2037-08-21 | K22: 18 | L22: 15-20 Yrs | M22: 0.05421 | N22: 128 | O22: 2 | P22: 0.0623 | Q22: 0.01294820047 | R22: 11.00561581 | S22: 0.0007019219473 | T22: 0.1425029197 | U22: 1.65736966
A23: KWAPFI | B23: 2019-01-31 | C23: VP150259 | D23: BND | E23: MMC CORP IMTN 5.950% 12.11.2027 | F23: MMC CORP IMTN 5.950% 12.11.2027 | G23: 10424741.1 | H23: 5 | I23: Corporate Bond | J23: 2027-11-12 | K23: 8 | L23: 8-10 Yrs | M23: 0.05523 | N23: 128 | O23: 2 | P23: 0.0595 | Q23: 0.02407160451 | R23: 6.723924666 | S23: 0.001329474717 | T23: 0.1618556553 | U23: 3.081165377
A24: KWAPFI | B24: 2019-01-31 | C24: VN180095 | D24: BND | E24: MMC CORP IMTN 5.700% 24.03.2028 | F24: MMC CORP IMTN 5.700% 24.03.2028 | G24: 30920671.23 | H24: 5 | I24: Corporate Bond | J24: 2028-03-24 | K24: 9 | L24: 8-10 Yrs | M24: 0.05548 | N24: 128 | O24: 2 | P24: 0.057 | Q24: 0.07139843204 | R24: 6.932854895 | S24: 0.003961185009 | T24: 0.494994969 | U24: 9.138999301
A25: KWAPFI | B25: 2019-01-31 | C25: VX160267 | D25: BND | E25: LDF3 IMTN 6.130% 22.08.2036 | F25: LDF3 IMTN 6.130% 22.08.2036 | G25: 11157071.23 | H25: 5 | I25: Corporate Bond | J25: 2036-08-22 | K25: 17 | L25: 15-20 Yrs | M25: 0.05346 | N25: 128 | O25: 2 | P25: 0.0613 | Q25: 0.02576261641 | R25: 10.72302212 | S25: 0.001377269473 | T25: 0.2762531056 | U25: 3.2976149
A26: KWAPFI | B26: 2019-01-31 | C26: VY160268 | D26: BND | E26: LDF3 IMTN 6.230% 21.08.2037 | F26: LDF3 IMTN 6.230% 21.08.2037 | G26: 5607504.79 | H26: 5 | I26: Corporate Bond | J26: 2037-08-21 | K26: 18 | L26: 15-20 Yrs | M26: 0.05421 | N26: 128 | O26: 2 | P26: 0.0623 | Q26: 0.01294820047 | R26: 11.00561581 | S26: 0.0007019219473 | T26: 0.1425029197 | U26: 1.65736966
A27: KWAPFI | B27: 2019-01-31 | C27: VZ160270 | D27: BND | E27: LDF3 IMTN 6.430% 23.08.2039 | F27: LDF3 IMTN 6.430% 23.08.2039 | G27: 11343986.3 | H27: 5 | I27: Corporate Bond | J27: 2039-08-23 | K27: 20 | L27: Above 20 Yrs | M27: 0.05559 | N27: 128 | O27: 2 | P27: 0.0643 | Q27: 0.02619421903 | R27: 11.51039534 | S27: 0.001456136636 | T27: 0.3015058168 | U27: 3.352860036
A28: KWAPFI | B28: 2019-01-31 | C28: VY160268 | D28: BND | E28: LDF3 IMTN 6.230% 21.08.2037 | F28: LDF3 IMTN 6.230% 21.08.2037 | G28: 5607504.79 | H28: 5 | I28: Corporate Bond | J28: 2037-08-21 | K28: 18 | L28: 15-20 Yrs | M28: 0.05421 | N28: 128 | O28: 2 | P28: 0.0623 | Q28: 0.01294820047 | R28: 11.00561581 | S28: 0.0007019219473 | T28: 0.1425029197 | U28: 1.65736966
A29: KWAPFI | B29: 2019-01-31 | C29: MT180003 | D29: BND | E29: MGS 3/2018 4.642% 07.11.2033 | F29: MGS 3/2018 4.642% 07.11.2033 | G29: 20730559.12 | H29: 7 | I29: Malaysia Government Securities | J29: 2033-11-07 | K29: 14 | L29: 12-15 Yrs | M29: 0.04405 | N29: 10 | O29: 2 | P29: 0.04642 | Q29: 0.04786860561 | R29: 10.56105444 | S29: 0.002108612077 | T29: 0.5055429498 | U29: 0.4786860561
A30: KWAPFI | B30: 2019-01-31 | C30: MX180004 | D30: BND | E30: MGS 4/2018 08.06.2038 | F30: MGS 4/2018 08.06.2038 | G30: 10488932.69 | H30: 7 | I30: Malaysia Government Securities | J30: 2038-06-08 | K30: 19 | L30: 15-20 Yrs | M30: 0.04567 | N30: 10 | O30: 2 | P30: 0.04893 | Q30: 0.02421982829 | R30: 12.49768337 | S30: 0.001106119558 | T30: 0.3026917453 | U30: 0.2421982829
A31: KWAPFI | B31: 2019-01-31 | C31: MT180003 | D31: BND | E31: MGS 3/2018 4.642% 07.11.2033 | F31: MGS 3/2018 4.642% 07.11.2033 | G31: 20730559.12 | H31: 7 | I31: Malaysia Government Securities | J31: 2033-11-07 | K31: 14 | L31: 12-15 Yrs | M31: 0.04405 | N31: 10 | O31: 2 | P31: 0.04642 | Q31: 0.04786860561 | R31: 10.56105444 | S31: 0.002108612077 | T31: 0.5055429498 | U31: 0.4786860561
A32: KWAPFI | B32: 2019-01-31 | C32: VN180276 | D32: BND | E32: SDHB IMTN 5.300% 02.10.2028 | F32: SDHB IMTN 5.300% 02.10.2028 | G32: 51303253.42 | H32: 5 | I32: Corporate Bond | J32: 2028-10-02 | K32: 9 | L32: 8-10 Yrs | M32: 0.05188 | N32: 128 | O32: 2 | P32: 0.053 | Q32: 0.1184635296 | R32: 7.377694251 | S32: 0.006145887917 | T32: 0.8739877015 | U32: 15.16333179
A33: KWAPFI | B33: 2019-01-31 | C33: MX180004 | D33: BND | E33: MGS 4/2018 08.06.2038 | F33: MGS 4/2018 08.06.2038 | G33: 10488932.69 | H33: 7 | I33: Malaysia Government Securities | J33: 2038-06-08 | K33: 19 | L33: 15-20 Yrs | M33: 0.04567 | N33: 10 | O33: 2 | P33: 0.04893 | Q33: 0.02421982829 | R33: 12.49768337 | S33: 0.001106119558 | T33: 0.3026917453 | U33: 0.2421982829
A34: KWAPFI | B34: 2019-01-31 | C34: VS150073 | D34: BND | E34: AMAN IMTN 4.700% 08.05.2030 | F34: AMAN IMTN 4.700% 08.05.2030 - Tranche No 42 | G34: 5105826.03 | H34: 5 | I34: Corporate Bond | J34: 2030-05-08 | K34: 11 | L34: 10-12 Yrs | M34: 0.04582 | N34: 115 | O34: 2 | P34: 0.047 | Q34: 0.01178978199 | R34: 8.600745837 | S34: 0.0005402078108 | T34: 0.1014009184 | U34: 1.355824929
A35: KWAPFI | B35: 2019-01-31 | C35: MX180004 | D35: BND | E35: MGS 4/2018 08.06.2038 | F35: MGS 4/2018 08.06.2038 | G35: 20977865.38 | H35: 7 | I35: Malaysia Government Securities | J35: 2038-06-08 | K35: 19 | L35: 15-20 Yrs | M35: 0.04567 | N35: 10 | O35: 2 | P35: 0.04893 | Q35: 0.04843965658 | R35: 12.49768337 | S35: 0.002212239116 | T35: 0.6053834906 | U35: 0.4843965658
A36: KWAPFI | B36: 2019-01-31 | C36: MX180004 | D36: BND | E36: MGS 4/2018 08.06.2038 | F36: MGS 4/2018 08.06.2038 | G36: 10488932.69 | H36: 7 | I36: Malaysia Government Securities | J36: 2038-06-08 | K36: 19 | L36: 15-20 Yrs | M36: 0.04567 | N36: 10 | O36: 2 | P36: 0.04893 | Q36: 0.02421982829 | R36: 12.49768337 | S36: 0.001106119558 | T36: 0.3026917453 | U36: 0.2421982829
A37: KWAPFI | B37: 2019-01-31 | C37: VN180095 | D37: BND | E37: MMC CORP IMTN 5.700% 24.03.2028 | F37: MMC CORP IMTN 5.700% 24.03.2028 | G37: 5153445.21 | H37: 5 | I37: Corporate Bond | J37: 2028-03-24 | K37: 9 | L37: 8-10 Yrs | M37: 0.05548 | N37: 128 | O37: 2 | P37: 0.057 | Q37: 0.01189973868 | R37: 6.932854895 | S37: 0.0006601975022 | T37: 0.08249916159 | U37: 1.523166552
A38: KWAPFI | B38: 2019-01-31 | C38: MT180003 | D38: BND | E38: MGS 3/2018 4.642% 07.11.2033 | F38: MGS 3/2018 4.642% 07.11.2033 | G38: 41461118.23 | H38: 7 | I38: Malaysia Government Securities | J38: 2033-11-07 | K38: 14 | L38: 12-15 Yrs | M38: 0.04405 | N38: 10 | O38: 2 | P38: 0.04642 | Q38: 0.0957372112 | R38: 10.56105444 | S38: 0.004217224154 | T38: 1.011085899 | U38: 0.957372112
A39: VCAM-TABA | B39: 2019-01-31 | C39: VS170042 | D39: BND | E39: BPMB IMTN 4.98% 02.03.2032 - Issue No 12 | F39: BPMB IMTN 4.98% 02.03.2032 - Issue No 12 | G39: 1040388.79 | H39: 5 | I39: Corporate Bond | J39: 2032-03-02 | K39: 13 | L39: 12-15 Yrs | M39: 0.04775 | N39: 115 | O39: 2 | P39: 0.0498 | Q39: 0.320341873 | R39: 9.388930026 | S39: 0.01529632444 | T39: 3.00766743 | U39: 36.83931539
A40: VCAM-TABA | B40: 2019-01-31 | C40: VV160265 | D40: BND | E40: LDF3 IMTN 5.950% 23.08.2034 | F40: LDF3 IMTN 5.950% 23.08.2034 | G40: 2207356.44 | H40: 5 | I40: Corporate Bond | J40: 2034-08-23 | K40: 15 | L40: 15-20 Yrs | M40: 0.05218 | N40: 128 | O40: 2 | P40: 0.0595 | Q40: 0.679658127 | R40: 10.05552013 | S40: 0.03546456107 | T40: 6.834315977 | U40: 86.99624026
A41: YH-AUR-VCAM | B41: 2019-01-31 | C41: UN150035 | D41: BND | E41: RHBINVB MTN 3653D 16.4.2025 | F41: RHBINVB MTN 3653D 16.4.2025 | G41: 30654497.26 | H41: 5 | I41: Corporate Bond | J41: 2025-04-16 | K41: 6 | L41: 6-8 Yrs | M41: 0.04323 | N41: 128 | O41: 2 | P41: 0.0495 | Q41: 0.02657607964 | R41: 5.249367959 | S41: 0.001148883923 | T41: 0.139507621 | U41: 3.401738194
A42: YH-AUR-VCAM | B42: 2019-01-31 | C42: UN150040 | D42: BND | E42: RHBBANK MTN 3653D 15/0040 4.75% 08.05.2025 | F42: RHBBANK MTN 3653D 15/0040 4.75% 08.05.2025 | G42: 35585257.53 | H42: 5 | I42: Corporate Bond | J42: 2025-05-08 | K42: 6 | L42: 6-8 Yrs | M42: 0.04278 | N42: 128 | O42: 2 | P42: 0.0475 | Q42: 0.03085082852 | R42: 5.336306123 | S42: 0.001319798444 | T42: 0.1646294651 | U42: 3.94890605
A43: YH-AUR-VCAM | B43: 2019-01-31 | C43: VR120013 | D43: BND | E43: PLUS BERHAD IMTN 4.720% 12.01.2026 - Series 1 (10) | F43: PLUS BERHAD IMTN 4.720% 12.01.2026 - Series 1 (10) | G43: 5094588.36 | H43: 5 | I43: Corporate Bond | J43: 2026-01-12 | K43: 7 | L43: 6-8 Yrs | M43: 0.04439 | N43: 115 | O43: 2 | P43: 0.0472 | Q43: 0.004416780509 | R43: 5.868395071 | S43: 0.0001960608868 | T43: 0.02591941297 | U43: 0.5079297585
A44: YH-AUR-VCAM | B44: 2019-01-31 | C44: VR120013 | D44: BND | E44: PLUS BERHAD IMTN 4.720% 12.01.2026 - Series 1 (10) | F44: PLUS BERHAD IMTN 4.720% 12.01.2026 - Series 1 (10) | G44: 10189176.71 | H44: 5 | I44: Corporate Bond | J44: 2026-01-12 | K44: 7 | L44: 6-8 Yrs | M44: 0.04439 | N44: 115 | O44: 2 | P44: 0.0472 | Q44: 0.008833561009 | R44: 5.868395071 | S44: 0.0003921217732 | T44: 0.05183882588 | U44: 1.015859516
A45: YH-AUR-VCAM | B45: 2019-01-31 | C45: VR120013 | D45: BND | E45: PLUS BERHAD IMTN 4.720% 12.01.2026 - Series 1 (10) | F45: PLUS BERHAD IMTN 4.720% 12.01.2026 - Series 1 (10) | G45: 10189176.71 | H45: 5 | I45: Corporate Bond | J45: 2026-01-12 | K45: 7 | L45: 6-8 Yrs | M45: 0.04439 | N45: 115 | O45: 2 | P45: 0.0472 | Q45: 0.008833561009 | R45: 5.868395071 | S45: 0.0003921217732 | T45: 0.05183882588 | U45: 1.015859516
A46: YH-AUR-VCAM | B46: 2019-01-31 | C46: VK150137 | D46: BND | E46: IHSAN IMTN 4.300% 17.06.2022 - 7 Years | F46: IHSAN IMTN 4.300% 17.06.2022 - First Sukuk Ihsan | G46: 17401374.66 | H46: 5 | I46: Corporate Bond | J46: 2022-06-17 | K46: 3 | L46: 1-4 Yrs | M46: 0.04399 | N46: 115 | O46: 1 | P46: 0.043 | Q46: 0.01508621443 | R46: 3.004491932 | S46: 0.0006636425727 | T46: 0.04532640953 | U46: 1.734914659
A47: YH-AUR-VCAM | B47: 2019-01-31 | C47: VN150260 | D47: BND | E47: MMC CORP IMTN 5.800% 12.11.2025 | F47: MMC CORP IMTN 5.800% 12.11.2025 | G47: 15517068.49 | H47: 5 | I47: Corporate Bond | J47: 2025-11-12 | K47: 6 | L47: 6-8 Yrs | M47: 0.05413 | N47: 128 | O47: 2 | P47: 0.058 | Q47: 0.01345260516 | R47: 5.498391864 | S47: 0.0007281895173 | T47: 0.07396769476 | U47: 1.721933461
A48: YH-AUR-VCAM | B48: 2019-01-31 | C48: VN150347 | D48: BND | E48: SAMALAJU IMTN 5.25% 26.12.2025 - Issue No. 3 | F48: SAMALAJU IMTN 5.25% 26.12.2025 - Issue No. 3 | G48: 5220371.23 | H48: 5 | I48: Corporate Bond | J48: 2025-12-26 | K48: 6 | L48: 6-8 Yrs | M48: 0.04582 | N48: 122 | O48: 2 | P48: 0.0525 | Q48: 0.004525828638 | R48: 5.742772787 | S48: 0.0002073734682 | T48: 0.02599080554 | U48: 0.5521510938
A49: YH-AUR-VCAM | B49: 2019-01-31 | C49: VO150348 | D49: BND | E49: SAMALAJU IMTN 5.35% 28.12.2026 - Issue No. 4 | F49: SAMALAJU IMTN 5.35% 28.12.2026 - Issue No. 4 | G49: 5252800.68 | H49: 5 | I49: Corporate Bond | J49: 2026-12-28 | K49: 7 | L49: 6-8 Yrs | M49: 0.04655 | N49: 122 | O49: 2 | P49: 0.0535 | Q49: 0.004553943522 | R49: 6.407672719 | S49: 0.000211986071 | T49: 0.02918017967 | U49: 0.5555811097
A50: YH-AUR-VCAM | B50: 2019-01-31 | C50: VR150351 | D50: BND | E50: SAMALAJU IMTN 5.65% 28.12.2029 - Issue No. 7 | F50: SAMALAJU IMTN 5.65% 28.12.2029 - Issue No. 7 | G50: 5364039.04 | H50: 5 | I50: Corporate Bond | J50: 2029-12-28 | K50: 10 | L50: 10-12 Yrs | M50: 0.04846 | N50: 122 | O50: 2 | P50: 0.0565 | Q50: 0.004650382211 | R50: 8.149638132 | S50: 0.0002253575219 | T50: 0.03789893219 | U50: 0.5673466297
A51: YH-AUR-VCAM | B51: 2019-01-31 | C51: VM150346 | D51: BND | E51: SAMALAJU IMTN 5.15% 27.12.2024 - Issue No. 2 | F51: SAMALAJU IMTN 5.15% 27.12.2024 - Issue No. 2 | G51: 5192641.78 | H51: 5 | I51: Corporate Bond | J51: 2024-12-27 | K51: 5 | L51: 4-6 Yrs | M51: 0.04494 | N51: 122 | O51: 2 | P51: 0.0515 | Q51: 0.004501788444 | R51: 5.044640983 | S51: 0.0002023103727 | T51: 0.02270990648 | U51: 0.5492181901
A52: YH-AUR-VCAM | B52: 2019-01-31 | C52: VQ150350 | D52: BND | E52: SAMALAJU IMTN 5.55% 28.12.2018 - Issue No. 6 | F52: SAMALAJU IMTN 5.55% 28.12.2018 - Issue No. 6 | G52: 5326709.59 | H52: 5 | I52: Corporate Bond | J52: 2028-12-28 | K52: 9 | L52: 8-10 Yrs | M52: 0.04781 | N52: 122 | O52: 2 | P52: 0.0555 | Q52: 0.004618019245 | R52: 7.607514208 | S52: 0.0002207875001 | T52: 0.03513164702 | U52: 0.5633983479
A53: YH-AUR-VCAM | B53: 2019-01-31 | C53: VS160236 | D53: BND | E53: JAMB.KEDUA IMTN 4.520% 28.07.2031 | F53: JAMB.KEDUA IMTN 4.520% 28.07.2031 | G53: 5023276.71 | H53: 5 | I53: Corporate Bond | J53: 2031-07-28 | K53: 12 | L53: 12-15 Yrs | M53: 0.04476 | N53: 100 | O53: 2 | P53: 0.0452 | Q53: 0.004354956494 | R53: 9.470859274 | S53: 0.0001949278527 | T53: 0.0412451801 | U53: 0.4354956494
A54: YH-AUR-VCAM | B54: 2019-01-31 | C54: MZ160002 | D54: BND | E54: MGS 2/2016 4.736% 15.3.2046 | F54: MGS 2/2016 4.736% 15.3.2046 | G54: 40378607.73 | H54: 7 | I54: Malaysia Government Securities | J54: 2046-03-15 | K54: 27 | L54: Above 20 Yrs | M54: 0.04794 | N54: 10 | O54: 2 | P54: 0.04736 | Q54: 0.035006449 | R54: 14.86020139 | S54: 0.001678209165 | T54: 0.5202028822 | U54: 0.35006449
A55: YH-AUR-VCAM | B55: 2019-01-31 | C55: VR160244 | D55: BND | E55: SARAWAKHIDRO IMTN 4.61% 09.08.2030 | F55: SARAWAKHIDRO IMTN 4.61% 09.08.2030 | G55: 15363057.53 | H55: 5 | I55: Corporate Bond | J55: 2030-08-09 | K55: 11 | L55: 10-12 Yrs | M55: 0.04582 | N55: 115 | O55: 2 | P55: 0.0461 | Q55: 0.01331908454 | R55: 8.67628152 | S55: 0.0006102804536 | T55: 0.115560127 | U55: 1.531694722
A56: YH-AUR-VCAM | B56: 2019-01-31 | C56: VP160259 | D56: BND | E56: LDF3 IMTN 5.340% 23.08.2028 | F56: LDF3 IMTN 5.340% 23.08.2028 | G56: 5288754.11 | H56: 5 | I56: Corporate Bond | J56: 2028-08-23 | K56: 9 | L56: 8-10 Yrs | M56: 0.04889 | N56: 128 | O56: 2 | P56: 0.0534 | Q56: 0.00458511354 | R56: 7.301330788 | S56: 0.000224166201 | T56: 0.03347743065 | U56: 0.5868945331
A57: YH-AUR-VCAM | B57: 2019-01-31 | C57: VT160263 | D57: BND | E57: LDF3 IMTN 5.770% 23.08.2032 | F57: LDF3 IMTN 5.770% 23.08.2032 | G57: 5459796.58 | H57: 5 | I57: Corporate Bond | J57: 2032-08-23 | K57: 13 | L57: 12-15 Yrs | M57: 0.05086 | N57: 128 | O57: 2 | P57: 0.0577 | Q57: 0.00473339972 | R57: 9.268453808 | S57: 0.0002407407098 | T57: 0.04387129666 | U57: 0.6058751642
A58: YH-AUR-VCAM | B58: 2019-01-31 | C58: VV160265 | D58: BND | E58: LDF3 IMTN 5.950% 23.08.2034 | F58: LDF3 IMTN 5.950% 23.08.2034 | G58: 5518391.1 | H58: 5 | I58: Corporate Bond | J58: 2034-08-23 | K58: 15 | L58: 15-20 Yrs | M58: 0.05218 | N58: 128 | O58: 2 | P58: 0.0595 | Q58: 0.004784198551 | R58: 10.05552013 | S58: 0.0002496394804 | T58: 0.04810760483 | U58: 0.6123774146
A59: YH-AUR-VCAM | B59: 2019-01-31 | C59: VW160266 | D59: BND | E59: LDF3 IMTN 6.040% 23.08.2035 | F59: LDF3 IMTN 6.040% 23.08.2035 | G59: 5550888.36 | H59: 5 | I59: Corporate Bond | J59: 2035-08-23 | K59: 16 | L59: 15-20 Yrs | M59: 0.05278 | N59: 128 | O59: 2 | P59: 0.0604 | Q59: 0.004812372224 | R59: 10.40621996 | S59: 0.000253997006 | T59: 0.05007860388 | U59: 0.6159836447
A60: YH-AUR-VCAM | B60: 2019-01-31 | C60: VX160267 | D60: BND | E60: LDF3 IMTN 6.130% 22.08.2036 | F60: LDF3 IMTN 6.130% 22.08.2036 | G60: 5578535.62 | H60: 5 | I60: Corporate Bond | J60: 2036-08-23 | K60: 17 | L60: 15-20 Yrs | M60: 0.05346 | N60: 128 | O60: 2 | P60: 0.0613 | Q60: 0.004836341163 | R60: 10.72572758 | S60: 0.0002585507986 | T60: 0.05187327781 | U60: 0.6190516689
A61: YH-AUR-VCAM | B61: 2019-01-31 | C61: MO160003 | D61: BND | E61: MGS 3/2016 3.9% 30.11.2026 | F61: MGS 3/2016 3.9% 30.11.2026 | G61: 49857500 | H61: 7 | I61: Malaysia Government Securities | J61: 2026-11-30 | K61: 7 | L61: 6-8 Yrs | M61: 0.04044 | N61: 10 | O61: 2 | P61: 0.039 | Q61: 0.04322422513 | R61: 6.641460435 | S61: 0.001747987664 | T61: 0.2870719811 | U61: 0.4322422513
A62: YH-AUR-VCAM | B62: 2019-01-31 | C62: MO160003 | D62: BND | E62: MGS 3/2016 3.9% 30.11.2026 | F62: MGS 3/2016 3.9% 30.11.2026 | G62: 9971500 | H62: 7 | I62: Malaysia Government Securities | J62: 2026-11-30 | K62: 7 | L62: 6-8 Yrs | M62: 0.04044 | N62: 10 | O62: 2 | P62: 0.039 | Q62: 0.008644845026 | R62: 6.641460435 | S62: 0.0003495975329 | T62: 0.05741439621 | U62: 0.08644845026
A63: YH-AUR-VCAM | B63: 2019-01-31 | C63: MX110004 | D63: BND | E63: MGS 4/2011 4.232% 30.06.2031 | F63: MGS 4/2011 4.232% 30.06.2031 | G63: 29872229.83 | H63: 7 | I63: Malaysia Government Securities | J63: 2031-06-30 | K63: 12 | L63: 12-15 Yrs | M63: 0.04316 | N63: 10 | O63: 2 | P63: 0.04232 | Q63: 0.02589788873 | R63: 9.532006333 | S63: 0.001117752878 | T63: 0.2468588394 | U63: 0.2589788873
A64: YH-AUR-VCAM | B64: 2019-01-31 | C64: UG160121 | D64: BND | E64: CAGAMAS MTN 3.750% 18.10.2019 | F64: CAGAMAS MTN 3.750% 18.10.2019 | G64: 10101294.52 | H64: 5 | I64: Corporate Bond | J64: 2019-10-18 | K64: 0 | L64: <=1 Yrs | M64: 0.03795 | N64: 115 | O64: 2 | P64: 0.0375 | Q64: 0.008757371077 | R64: 0.69156205 | S64: 0.0003323422324 | T64: 0.006056265494 | U64: 1.007097674
A65: YH-AUR-VCAM | B65: 2019-01-31 | C65: VW160266 | D65: BND | E65: LDF3 IMTN 6.040% 23.08.2035 | F65: LDF3 IMTN 6.040% 23.08.2035 | G65: 5550888.36 | H65: 5 | I65: Corporate Bond | J65: 2035-08-23 | K65: 16 | L65: 15-20 Yrs | M65: 0.05278 | N65: 128 | O65: 2 | P65: 0.0604 | Q65: 0.004812372224 | R65: 10.40621996 | S65: 0.000253997006 | T65: 0.05007860388 | U65: 0.6159836447
A66: YH-AUR-VCAM | B66: 2019-01-31 | C66: VN130387 | D66: BND | E66: BGSM MGMT IMTN 5.600% 27.12.2023 - Issue No 9 | F66: BGSM MGMT IMTN 5.600% 27.12.2023 - Issue No 9 | G66: 5270449.32 | H66: 5 | I66: Corporate Bond | J66: 2023-12-28 | K66: 4 | L66: 4-6 Yrs | M66: 0.04479 | N66: 128 | O66: 2 | P66: 0.056 | Q66: 0.004569244105 | R66: 4.25894962 | S66: 0.0002046564434 | T66: 0.01946018044 | U66: 0.5848632454
A67: YH-AUR-VCAM | B67: 2019-01-31 | C67: VS170042 | D67: BND | E67: BPMB IMTN 4.98% 02.03.2032 - Issue No 12 | F67: BPMB IMTN 4.98% 02.03.2032 - Issue No 12 | G67: 9363499.12 | H67: 5 | I67: Corporate Bond | J67: 2032-03-02 | K67: 13 | L67: 12-15 Yrs | M67: 0.04775 | N67: 115 | O67: 2 | P67: 0.0498 | Q67: 0.008117735426 | R67: 9.388930026 | S67: 0.0003876218666 | T67: 0.07621684988 | U67: 0.9335395739
A68: YH-AUR-VCAM | B68: 2019-01-31 | C68: VV160265 | D68: BND | E68: LDF3 IMTN 5.950% 23.08.2034 | F68: LDF3 IMTN 5.950% 23.08.2034 | G68: 38628737.67 | H68: 5 | I68: Corporate Bond | J68: 2034-08-23 | K68: 15 | L68: 15-20 Yrs | M68: 0.05218 | N68: 128 | O68: 2 | P68: 0.0595 | Q68: 0.03348938983 | R68: 10.05552013 | S68: 0.001747476361 | T68: 0.3367532336 | U68: 4.286641899
A69: YH-AUR-VCAM | B69: 2019-01-31 | C69: VV160265 | D69: BND | E69: LDF3 IMTN 5.950% 23.08.2034 | F69: LDF3 IMTN 5.950% 23.08.2034 | G69: 8829425.75 | H69: 5 | I69: Corporate Bond | J69: 2034-08-23 | K69: 15 | L69: 15-20 Yrs | M69: 0.05218 | N69: 128 | O69: 2 | P69: 0.0595 | Q69: 0.007654717673 | R69: 10.05552013 | S69: 0.0003994231682 | T69: 0.07697216764 | U69: 0.9798038622
A70: YH-AUR-VCAM | B70: 2019-01-31 | C70: VN170154 | D70: BND | E70: YTL POWER IMTN 5.050% 0.05.2027 | F70: YTL POWER IMTN 5.050% 0.05.2027 | G70: 46220640.41 | H70: 5 | I70: Corporate Bond | J70: 2027-05-03 | K70: 8 | L70: 8-10 Yrs | M70: 0.04827 | N70: 122 | O70: 2 | P70: 0.0505 | Q70: 0.04007123034 | R70: 6.624016258 | S70: 0.001934238289 | T70: 0.2654324813 | U70: 4.888690102
A71: YH-AUR-VCAM | B71: 2019-01-31 | C71: VS160262 | D71: BND | E71: LDF3 IMTN 5.640% 22.08.2031 | F71: LDF3 IMTN 5.640% 22.08.2031 | G71: 5407211.64 | H71: 5 | I71: Corporate Bond | J71: 2031-08-22 | K71: 12 | L71: 12-15 Yrs | M71: 0.05028 | N71: 128 | O71: 2 | P71: 0.0564 | Q71: 0.004687810926 | R71: 8.834438059 | S71: 0.0002357031334 | T71: 0.04141417526 | U71: 0.6000397986
A72: YH-AUR-VCAM | B72: 2019-01-31 | C72: VT160263 | D72: BND | E72: LDF3 IMTN 5.770% 23.08.2032 | F72: LDF3 IMTN 5.770% 23.08.2032 | G72: 49138169.18 | H72: 5 | I72: Corporate Bond | J72: 2032-08-23 | K72: 13 | L72: 12-15 Yrs | M72: 0.05086 | N72: 128 | O72: 2 | P72: 0.0577 | Q72: 0.04260059745 | R72: 9.268453808 | S72: 0.002166666386 | T72: 0.3948416696 | U72: 5.452876473
A73: YH-AUR-VCAM | B73: 2019-01-31 | C73: VV160265 | D73: BND | E73: LDF3 IMTN 5.950% 23.08.2034 | F73: LDF3 IMTN 5.950% 23.08.2034 | G73: 22073564.38 | H73: 5 | I73: Corporate Bond | J73: 2034-08-23 | K73: 15 | L73: 15-20 Yrs | M73: 0.05218 | N73: 128 | O73: 2 | P73: 0.0595 | Q73: 0.01913679419 | R73: 10.05552013 | S73: 0.0009985579207 | T73: 0.1924304192 | U73: 2.449509656
A74: YH-AUR-VCAM | B74: 2019-01-31 | C74: GZ170004 | D74: BND | E74: GII MURABAHAH 4/2017 4.895% 08.05.2047 | F74: GII MURABAHAH 4/2017 4.895% 08.05.2047 | G74: 101499378.5 | H74: 7 | I74: Malaysia Government Securities | J74: 2047-05-08 | K74: 28 | L74: Above 20 Yrs | M74: 0.04872 | N74: 10 | O74: 2 | P74: 0.04895 | Q74: 0.08799542666 | R74: 15.07958467 | S74: 0.004287137187 | T74: 1.326934487 | U74: 0.8799542666
A75: YH-AUR-VCAM | B75: 2019-01-31 | C75: GZ170004 | D75: BND | E75: GII MURABAHAH 4/2017 4.895% 08.05.2047 | F75: GII MURABAHAH 4/2017 4.895% 08.05.2047 | G75: 101499378.5 | H75: 7 | I75: Malaysia Government Securities | J75: 2047-05-08 | K75: 28 | L75: Above 20 Yrs | M75: 0.04872 | N75: 10 | O75: 2 | P75: 0.04895 | Q75: 0.08799542666 | R75: 15.07958467 | S75: 0.004287137187 | T75: 1.326934487 | U75: 0.8799542666
A76: YH-AUR-VCAM | B76: 2019-01-31 | C76: VU160264 | D76: BND | E76: LDF3 IMTN 5.860% 23.08.2033 | F76: LDF3 IMTN 5.860% 23.08.2033 | G76: 32947763.01 | H76: 5 | I76: Corporate Bond | J76: 2033-08-23 | K76: 14 | L76: 12-15 Yrs | M76: 0.05148 | N76: 128 | O76: 2 | P76: 0.0586 | Q76: 0.0285642386 | R76: 9.678711222 | S76: 0.001470487003 | T76: 0.2764650167 | U76: 3.656222541
A77: YH-AUR-VCAM | B77: 2019-01-31 | C77: VX170162 | D77: BND | E77: DANAINFRA IMTN 5.100% 25.05.2037 - Tranche No 65 | F77: DANAINFRA IMTN 5.100% 25.05.2037 - Tranche No 65 | G77: 15769074.66 | H77: 5 | I77: Corporate Bond | J77: 2037-05-25 | K77: 18 | L77: 15-20 Yrs | M77: 0.04754 | N77: 100 | O77: 2 | P77: 0.051 | Q77: 0.01367108325 | R77: 11.86474463 | S77: 0.0006499232978 | T77: 0.1622039117 | U77: 1.367108325
A78: YH-AUR-VCAM | B78: 2019-01-31 | C78: VK170233 | D78: BND | E78: IHSAN IMTN 4.600% 08.08.2024 - Second Sukuk Ihsan | F78: IHSAN IMTN 4.600% 08.08.2024 - Second Sukuk Ihsan | G78: 13350699.04 | H78: 5 | I78: Corporate Bond | J78: 2024-08-08 | K78: 5 | L78: 4-6 Yrs | M78: 0.04497 | N78: 115 | O78: 1 | P78: 0.046 | Q78: 0.01157445963 | R78: 4.688288091 | S78: 0.0005205034495 | T78: 0.05426440124 | U78: 1.331062857
A79: YH-AUR-VCAM | B79: 2019-01-31 | C79: VZ170266 | D79: BND | E79: PRASARANA SUKUK MURABAHAH 5.23% 13.09.2047 - S6 | F79: PRASARANA SUKUK MURABAHAH 5.23% 13.09.2047 - S6 | G79: 10565102.74 | H79: 5 | I79: Corporate Bond | J79: 2047-09-13 | K79: 28 | L79: Above 20 Yrs | M79: 0.04989 | N79: 100 | O79: 2 | P79: 0.0523 | Q79: 0.009159472083 | R79: 14.72318119 | S79: 0.0004569660622 | T79: 0.1348565671 | U79: 0.9159472083
A80: YH-AUR-VCAM | B80: 2019-01-31 | C80: VZ170265 | D80: BND | E80: PRASARANA SUKUK MURABAHAH 5.11% 12.09.2042 - S5 | F80: PRASARANA SUKUK MURABAHAH 5.11% 12.09.2042 - S5 | G80: 20977600 | H80: 5 | I80: Corporate Bond | J80: 2042-09-12 | K80: 23 | L80: Above 20 Yrs | M80: 0.04899 | N80: 100 | O80: 2 | P80: 0.0511 | Q80: 0.01818664203 | R80: 13.52352912 | S80: 0.0008909635932 | T80: 0.2459475832 | U80: 1.818664203
A81: YH-AUR-VCAM | B81: 2019-01-31 | C81: VO170353 | D81: BND | E81: SPG IMTN 5.040% 28.04.2028 | F81: SPG IMTN 5.040% 28.04.2028 | G81: 5225108.22 | H81: 5 | I81: Corporate Bond | J81: 2028-04-28 | K81: 9 | L81: 8-10 Yrs | M81: 0.04607 | N81: 128 | O81: 2 | P81: 0.0504 | Q81: 0.004529935397 | R81: 7.273546818 | S81: 0.0002086941237 | T81: 0.03294869719 | U81: 0.5798317308
A82: YH-AUR-VCAM | B82: 2019-01-31 | C82: VO170354 | D82: BND | E82: SPG IMTN 5.060% 31.10.2028 | F82: SPG IMTN 5.060% 31.10.2028 | G82: 5234913.01 | H82: 5 | I82: Corporate Bond | J82: 2028-10-31 | K82: 9 | L82: 8-10 Yrs | M82: 0.04622 | N82: 128 | O82: 2 | P82: 0.0506 | Q82: 0.004538435712 | R82: 7.584591761 | S82: 0.0002097664986 | T82: 0.03442218211 | U82: 0.5809197711
A83: YH-AUR-VCAM | B83: 2019-01-31 | C83: VP170355 | D83: BND | E83: SPG IMTN 5.090% 30.04.2029 | F83: SPG IMTN 5.090% 30.04.2029 | G83: 5250295.21 | H83: 5 | I83: Corporate Bond | J83: 2029-04-30 | K83: 10 | L83: 10-12 Yrs | M83: 0.0463 | N83: 128 | O83: 2 | P83: 0.0509 | Q83: 0.004551771392 | R83: 7.877786536 | S83: 0.0002107470154 | T83: 0.03585788338 | U83: 0.5826267381
A84: YH-AUR-VCAM | B84: 2019-01-31 | C84: VQ170358 | D84: BND | E84: SPG IMTN 5.210% 31.10.2030 | F84: SPG IMTN 5.210% 31.10.2030 | G84: 5317273.97 | H84: 5 | I84: Corporate Bond | J84: 2030-10-31 | K84: 11 | L84: 10-12 Yrs | M84: 0.04651 | N84: 128 | O84: 2 | P84: 0.0521 | Q84: 0.004609838984 | R84: 8.701104777 | S84: 0.0002144036112 | T84: 0.04011069201 | U84: 0.59005939
A85: YH-AUR-VCAM | B85: 2019-01-31 | C85: VR170359 | D85: BND | E85: SPG IMTN 5.250% 30.04.2031 | F85: SPG IMTN 5.250% 30.04.2031 | G85: 5341133.56 | H85: 5 | I85: Corporate Bond | J85: 2031-04-30 | K85: 12 | L85: 12-15 Yrs | M85: 0.04656 | N85: 128 | O85: 2 | P85: 0.0525 | Q85: 0.004630524183 | R85: 8.960089638 | S85: 0.000215597206 | T85: 0.04148991175 | U85: 0.5927070954
A86: YH-AUR-VCAM | B86: 2019-01-31 | C86: VR170360 | D86: BND | E86: SPG IMTN 5.290% 31.10.2031 | F86: SPG IMTN 5.290% 31.10.2031 | G86: 5368243.15 | H86: 5 | I86: Corporate Bond | J86: 2031-10-31 | K86: 12 | L86: 12-15 Yrs | M86: 0.04659 | N86: 128 | O86: 2 | P86: 0.0529 | Q86: 0.004654026986 | R86: 9.211992372 | S86: 0.0002168311173 | T86: 0.0428728611 | U86: 0.5957154543
A87: YH-AUR-VCAM | B87: 2019-01-31 | C87: VS170368 | D87: BND | E87: SPG IMTN 5.330% 30.04.2032 | F87: SPG IMTN 5.330% 30.04.2032 | G87: 5369752.74 | H87: 5 | I87: Corporate Bond | J87: 2032-04-30 | K87: 13 | L87: 12-15 Yrs | M87: 0.04711 | N87: 128 | O87: 2 | P87: 0.0533 | Q87: 0.004655335733 | R87: 9.444867235 | S87: 0.0002193128664 | T87: 0.04396902794 | U87: 0.5958829739
A88: YH-AUR-VCAM | B88: 2019-01-31 | C88: VS170367 | D88: BND | E88: SPG IMTN 5.370% 29.10.2032 | F88: SPG IMTN 5.370% 29.10.2032 | G88: 10726124.66 | H88: 5 | I88: Corporate Bond | J88: 2032-10-29 | K88: 13 | L88: 12-15 Yrs | M88: 0.04779 | N88: 128 | O88: 2 | P88: 0.0537 | Q88: 0.009299070894 | R88: 9.659238381 | S88: 0.000444402598 | T88: 0.08982194249 | U88: 1.190281074
A89: YH-AUR-VCAM | B89: 2019-01-31 | C89: VT170366 | D89: BND | E89: SPG IMTN 5.410% 29.04.2033 | F89: SPG IMTN 5.410% 29.04.2033 | G89: 5354471.92 | H89: 5 | I89: Corporate Bond | J89: 2033-04-29 | K89: 14 | L89: 12-15 Yrs | M89: 0.04849 | N89: 128 | O89: 2 | P89: 0.0541 | Q89: 0.004642087945 | R89: 9.869023696 | S89: 0.0002250948445 | T89: 0.04581287593 | U89: 0.594187257
A90: YH-AUR-VCAM | B90: 2019-01-31 | C90: VT170365 | D90: BND | E90: SPG IMTN 5.450% 31.10.2033 | F90: SPG IMTN 5.450% 31.10.2033 | G90: 5352731.51 | H90: 5 | I90: Corporate Bond | J90: 2033-10-31 | K90: 14 | L90: 12-15 Yrs | M90: 0.04906 | N90: 128 | O90: 2 | P90: 0.0545 | Q90: 0.004640579088 | R90: 10.07868172 | S90: 0.00022766681 | T90: 0.04677091961 | U90: 0.5939941232
A91: YH-AUR-VCAM | B91: 2019-01-31 | C91: VU170364 | D91: BND | E91: SPG IMTN 5.490% 28.04.2034 | F91: SPG IMTN 5.490% 28.04.2034 | G91: 5353191.1 | H91: 5 | I91: Corporate Bond | J91: 2034-04-28 | K91: 15 | L91: 15-20 Yrs | M91: 0.04955 | N91: 128 | O91: 2 | P91: 0.0549 | Q91: 0.004640977532 | R91: 10.2685361 | S91: 0.0002299604367 | T91: 0.04765604533 | U91: 0.594045124
A92: YH-AUR-VCAM | B92: 2019-01-31 | C92: VP170356 | D92: BND | E92: SPG IMTN 5.130% 31.10.2029 | F92: SPG IMTN 5.130% 31.10.2029 | G92: 5271004.79 | H92: 5 | I92: Corporate Bond | J92: 2029-10-31 | K92: 10 | L92: 10-12 Yrs | M92: 0.0464 | N92: 128 | O92: 2 | P92: 0.0513 | Q92: 0.004569725672 | R92: 8.159890791 | S92: 0.0002120352712 | T92: 0.03728846243 | U92: 0.5849248861
A93: YH-AUR-VCAM | B93: 2019-01-31 | C93: VS170389 | D93: BND | E93: SEB IMTN 5.320% 03.12.2032 | F93: SEB IMTN 5.320% 03.12.2032 | G93: 21274073.97 | H93: 5 | I93: Corporate Bond | J93: 2032-12-03 | K93: 13 | L93: 12-15 Yrs | M93: 0.04769 | N93: 122 | O93: 2 | P93: 0.0532 | Q93: 0.01844367172 | R93: 9.771233991 | S93: 0.0008795787043 | T93: 0.180217432 | U93: 2.25012795
A94: YH-AUR-VCAM | B94: 2019-01-31 | C94: VN180095 | D94: BND | E94: MMC CORP IMTN 5.700% 24.03.2028 | F94: MMC CORP IMTN 5.700% 24.03.2028 | G94: 77301678.08 | H94: 5 | I94: Corporate Bond | J94: 2028-03-24 | K94: 9 | L94: 8-10 Yrs | M94: 0.05548 | N94: 128 | O94: 2 | P94: 0.057 | Q94: 0.06701710147 | R94: 6.932854895 | S94: 0.003718108789 | T94: 0.46461984 | U94: 8.578188988
A95: YH-AUR-VCAM | B95: 2019-01-31 | C95: PO180006 | D95: BND | E95: CIMB 4.880% 13.09.2029 - Tranche 4 | F95: CIMB 4.880% 13.09.2029 - Tranche 4 | G95: 66891597.95 | H95: 5 | I95: Corporate Bond | J95: 2029-09-13 | K95: 10 | L95: 10-12 Yrs | M95: 0.04669 | N95: 125 | O95: 2 | P95: 0.0488 | Q95: 0.05799202706 | R95: 8.092777867 | S95: 0.002707647743 | T95: 0.4693165931 | U95: 7.249003383
A96: YH-AUR-VCAM | B96: 2019-01-31 | C96: VN180276 | D96: BND | E96: SDHB IMTN 5.300% 02.10.2028 | F96: SDHB IMTN 5.300% 02.10.2028 | G96: 71824554.79 | H96: 5 | I96: Corporate Bond | J96: 2028-10-02 | K96: 9 | L96: 8-10 Yrs | M96: 0.05188 | N96: 128 | O96: 2 | P96: 0.053 | Q96: 0.06226868026 | R96: 7.377694251 | S96: 0.003230499132 | T96: 0.4593992844 | U96: 7.970391074
